Workbook

Sheet SB (hidden)
A5: Sponsoring Body
A6: ABERDEEN BAPTIST CHURCH
A7: AGNES EDU INST CO LTD
A8: ALL LUCK LTD
A9: ANGELA LUK'S EDU FOUND LTD
A10: ASSN. OF INTL CHILDREN EDU LTD, THE
A11: AUSTRALIAN INTL SCH FOUNDATION LTD
A12: B H I E
A13: BAPTIST CONVENTION OF HK
A14: BEAUFORT ASSETS LTD
A15: BETHEL MISSION OF CHINA, (HK) LTD
A16: BUDDHIST TO CHI FAT SHE LTD
A17: C BAY KF WELFARE ADVANCEMENT ASSN.
A18: CANADIAN INTL SCH OF HK LTD.
A19: CARITAS - HK
A20: CARMEL SCHOOL ASSN LTD
A21: CATHOLIC DIOCESE OF HK
A22: CCC CHEUNG CHAU CHURCH
A23: CCC HK COUNCIL
A24: CCC HONG KONG CHI TO CHURCH
A25: CCC HOP YAT CHURCH
A26: CCC MONGKOK CHURCH
A27: CCC SHEUNG SHUI CHURCH
A28: CCC WANCHAI CHURCH
A29: CHAI WAN BAPTIST CHURCH
A30: CHARK WAI REALTY D. CO. LTD.
A31: CHI CHRISTIAN WORKERS' FELLOWSHIP
A32: CHI INTL SCH FOUNDATION
A33: CHI MUSLIM CULTURAL & FRATERNAL
A34: CHI RHENISH CHURCH, HK SYNOD
A35: CHI YOUNG MEN'S CHRISTIAN ASSN
A36: CHING CHUNG TAOIST ASSN OF HK LTD
A37: CHIU YANG RESIDENTS' ASSN OF HK LTD
A38: CHRIST CHURCH
A39: CHRISTIAN & MISSIONARY ALLIANCE CHR
A40: CHRISTIAN CH OF LIVING FAITH LTD.
A41: CHRISTIAN EVANGELICAL YOUTH CTR
A42: CHRISTIAN LITTLE ANGEL KG LTD.
A43: CHRISTIAN NATIONALS' EVANGELISM COM
A44: CHRISTIAN THE FAITH HOPE LOVE CH.
A45: CHURCH BODY OF HK SKH
A46: CHURCH OF THE GOOD SHEPHERD
A47: COUNCIL OF HEEP YUNN SCH
A48: CREATIVE EDUCATORS LIMITED
A49: CREATIVE SCHOOL LIMITED
A50: CUMBERLAND PRESBYTERIAN CHURCH HK
A51: DAUGHTERS OF CHARITY OF CANOSSIAN
A52: DELIA GP OF SCH
A53: DOMINIC SAVIO EDU ORGANIZATION LTD
A54: DOMINICAN MISSIONS
A55: EAST ASIAN EDU ASSN
A56: EDU FOUNDATION ALUMNI ASSN OF CUHK
A57: EDUHK SCHOOLS LIMITED
A58: EMMANUEL CHURCH
A59: ESF EDUCATIONAL SERVICES LTD
A60: ETERNAL LIFE LUTHERAN CHURCH LTD.
A61: EVANGELICAL LUTHERAN CHURCH OF HK
A62: EVANGELIZE CHINA FELLOWSHIP
A63: FAIN NATION LIMITED
A64: FAIR ENTERPRISE LTD
A65: FAIRVIEW PARK ALLIANCE CHURCH LTD
A66: FANLING ASSEMBLY OF GOD CHURCH LTD
A67: FEI NGAN TUNG BUDD & TAO SOC LTD
A68: FIRST ASSEMBLY OF GOD CHURCH
A69: FIVE DISTICTS BUSINESS WELFARE ASSN
A70: FNH INTRNL SCH "VICTOR SEGALEN" ASSN LTD
A71: FRANCISCAN MISSIONARIES OF MARY
A72: FREE METHODIST CHURCH OF HK
A73: FUNG KAI PUBLIC SCHOOL
A74: FUNG YING SEEN KOON LIMITED
A75: GENERAL OF SALVATION ARMY
A76: GENERATIONS CHRISTIAN EDUCATION
A77: GERMAN SWISS INTL SCH FOUND LTD
A78: GOOD NEWS EDU SERVICES LTD
A79: GUIDEPOSTS EDU FDTN LTD
A80: H.K. BODHI SIKSA SOCIETY LTD.,THE
A81: H.K. FOLIAGE ASSOCIATION LTD., THE
A82: H.K. HARBOUR MISSION CHURCH
A83: HARROW INT SCH (HK) LTD
A84: HEUNG HOI CHING KOK LIN ASSN
A85: HK & KLN KAIFONG WOMEN'S ASSN LTD
A86: HK & MACAU LUTHERAN CHURCH LTD
A87: HK ACADEMY EDU FOUDN LTD
A88: HK BAPTIST CHURCH
A89: HK BAPTIST KG EDU CONVN LTD
A90: HK BUDDHIST ASSN
A91: HK CHINESE WOMEN'S CLUB
A92: HK CHRISTIAN SERVICE
A93: HK FEDERATION OF YOUTH GROUPS
A94: HK GRACE BAPTIST CHURCH
A95: HK NEPALESE WOMEN ASSN
A96: HK SHIN YAT TONG MORAL ASSN
A97: HK TAOIST ASSN
A98: HK VERNACULAR NORMAL SCH ALU ASSN
A99: HK YOUNG WOMEN'S CHRISTIAN ASSN
A100: HLY SCH INTL ASSN LTD.
A101: HOLY TRINITY CHURCH
A102: HONG KONG 5-S KINDERGARTEN LTD.
A103: HONG KONG BAPTIST UNIVERSITY, THE
A104: HONG KONG BETHEL CHURCH LIMITED
A105: HONG LOK YUEN SCH INTL ASSN LTD.
A106: INC TRUSTEES OF PEACE EVAN CTR
A107: INCORP TRUSTEES OF ISLAMIC COM FUND
A108: INCORP TRUSTEES OF THE PEACE EVAN
A109: INTELLECTUAL EDU ASSOCIATION
A110: INTERNATIONAL CHRISTIAN SCHOOL LTD
A111: INTERNATIONAL MISSIONS INC HK FIELD
A112: INTL CHURCH OF FOURSQUARE GOSPEL
A113: INTL MONTESSORI EDU FOUNDATION LTD
A114: IVY EDUCATION DEVELOPMENT LTD
A115: KAM TSIN VILLAGE (SCH BOARD) CO LTD
A116: KELLETT SCHOOL ASSOCIATON LIMITED
A117: KIANGSU CHEKIANG SHANGHAI RES ASSN
A118: KLN CITY BAPTIST CHURCH
A119: KLN TONG CHURCH OF CHI CHRIST & MIS
A120: KOREAN EXODOS MISSION CHURCH
A121: KOREAN INTL SCH FOUNDATION
A122: KORNHILL CHRISTIAN CHURCH LTD., THE
A123: KOWLOON INTERNATIONAL BAPTIST CHURCH
A124: KOWLOON LING LIANG CHURCH LTD.
A125: KWAI CHUNG BAPTIST CHURCH
A126: LAW'S FOUNDATION LTD
A127: LES SOEURS MISSION DE L'IMMACULEE
A128: LING LIANG WORLD-WIDE EVAN MISSION
A129: LINGNAN EDU ORGANIZATION LTD
A130: LOCK TAO CHRISTIAN ASSOCIATION
A131: LOK SIN TONG BENEVOLENT SOCIETY
A132: LOTUS ASSN OF HK
A133: LOVING HEART LUTHERAN CH HK SYNOD
A134: LT EST KF WELFARE ASSN LTD
A135: LUNG KONG WORLD FEDERATION SCH LTD
A136: LUTHERAN CHURCH - HK SYNOD LTD
A137: METHODIST CHURCH HK
A138: MISSION COVENANT CHURCH LTD
A139: MISSIONARY SISTERS OF LADY OF ANGEL
A140: MORDEN DYNAMIC LIMITED
A141: MOTHER OF DAUGHTERS OF M.H.C.
A142: MOTHER SUPERIOR OF SOEURS ST PAUL
A143: MUNSANG COLLEGE (SSB) LTD
A144: NT ASSEMBLIES OF GOD CHURCH LTD
A145: NT WOMEN & JUVENILES WELFARE ASSN
A146: OI KWAI ROAD BAPTIST CHURCH LTD
A147: OISCA H.K. COLLEGE LTD.
A148: ORIENTAL CHRISTIAN CHS TO KWONG CHS
A149: PARK WORLD LTD
A150: PEGASUS SOCIAL SERVICE CHRIST ORG
A151: PENTECOSTAL CHURCH OF HK
A152: PO LEUNG KUK
A153: POK OI HOSPITAL
A154: PRIMSON CONDITION LTD.
A155: PROVIDENT EDUCATION INSTITUTE LTD.
A156: QES OLD STUDENTS ASSN EDU PROMOTION
A157: REGENT CULT & EDU ORGAN LTD
A158: S.K.H. ST. JOSEPH'S CHURCH
A159: S.K.H. ST. MATTHIAS' CHURCH
A160: SEVENTH-DAY ADVENTIST SCH ORG LTD
A161: SHAM SHUI PO BAPTIST CHURCH
A162: SHAMSHUIPO BAP CHURCH
A163: SHARON LUTHERAN CH (HK) LTD THE
A164: SHAUKIWAN BAPTIST CHURCH
A165: SHENG KUNG HUI ST. THOMAS CHURCH
A166: SHEUNG SHUI CHURCH K/G
A167: SHUI WAH EDU INSTITUTE LTD
A168: SHUN TAK FRATERNAL ASSN
A169: SIK SIK YUEN
A170: SING YAN KG LTD.
A171: SINGAPORE INTL SCH FOUNDATON LTD
A172: SISTERS OF IMMACULATE HEART OF MARY
A173: SKH KLC HOLY CARPENTER KG LTD
A174: SKH KLC OR PUI CHEUNG KG LTD
A175: SKH ST. MATTHEW'S CH
A176: SOKA GAKKAI INTERNATIONAL OF HK LTD
A177: ST PETER'S CHURCH (NORTH POINT)
A178: ST STEPHEN'S GIRLS' COLL COUNCIL
A179: ST. BARNABA'S CHURCH
A180: ST. MARK'S CHURCH
A181: ST. PAUL'S CHURCH
A182: ST. PHILIP LUTHERAN CHURCH
A183: ST. STEPHEN'S CHURCH
A184: STEWARDS
A185: SUN ISLAND ENGLISH KG CO LTD
A186: SUN ISLAND ENGLISH KINDERGARTEN LTD
A187: SUPERIORESS OF SR OF PRECIOUS BLOOD
A188: SZE CHI SING ED ORG LTD
A189: TAI LAM CHUNG EDU ORG LTD
A190: TAI PO BAPTIST CHURCH
A191: TAI PO MERCHANTS ASSN K/G LTD.
A192: THE ABM HK SWATOW BAPTIST CCSA LTD
A193: THE CHR THE FAITH HOPE LOVE CH
A194: THE ENDEAVOURERS, HONG KONG
A195: THE ENDEAVOURERS, HONG KONG
A196: THE EVANGELICAL LUTHERAN CHURCH OF HONG KONG
A197: THE FREE METHODIST CHURCH OF HONG KONG
A198: THE HKIED SCHOOLS LIMITED
A199: THE HONG KONG BODHI SIKSA SOCIETY, LIMITED
A200: THE HONG KONG BUDDHIST ASSOCIATION
A201: THE HONG KONG CHINESE CHURCH OF CHRIST
A202: THE HONG KONG CHINESE WOMEN'S CLUB
A203: THE HONG KONG FEDERATION OF YOUTH GROUPS
A204: THE HONG KONG FOLIAGE ASSOCIATION LIMITED
... 83 more rows

Sheet KG (hidden)
A5: School Eng/Reg Name | B5: School No | C5: REG. NO
A6: 611 TREE OF LIFE KINDERGARTEN | B6: 601497 | C6: 601497
A7: ABC PATHWAYS INTERNATIONAL KINDERGARTEN | B7: 602329 | C7: 602329
A8: ABC PATHWAYS INTERNATIONAL KINDERGARTEN (WHAMPOA GARDEN) | B8: 603864 | C8: 603864
A9: ABERDEEN BAPTIST CHURCH PAK KWONG KINDERGARTEN | B9: 523089 | C9: 523089
A10: ABIDING KINDERGARTEN | B10: 597384 | C10: 597384
A11: ACADEMY KINDERGARTEN (TIN SHUI WAI) | B11: 537594 | C11: 537594
A12: AGNES ENGLISH KINDERGARTEN | B12: 231592 | C12: 23159
A13: AGNES KINDERGARTEN (GRANDEUR TERRACE) | B13: 554383 | C13: 554383
A14: AGNES WISE KINDERGARTEN | B14: 598623 | C14: 598623
A15: ALICE LAN & VERA SHEN EDUCATION FUND DELIA PEI KINDERGARTEN | B15: 563838 | C15: 563838
A16: ALICE LAN & VERA SHEN EDUCATION FUND GORDON PEI KINDERGARTEN | B16: 563846 | C16: 563846
A17: ALISON'S LETTERLAND INTERNATIONAL KINDERGARTEN | B17: 566144 | C17: 566144
A18: ALLWAY KINDERGARTEN | B18: 156612 | C18: 15661
A19: AMERICAN INTERNATIONAL SCHOOL | B19: 287695 | C19: 28769
A20: AMOY PLAZA ST. TERESA KINDERGARTEN | B20: 325503 | C20: 32550
A21: ANANI KINDERGARTEN | B21: 540498 | C21: 540498
A22: ANCHORS INTERNATIONAL NURSERY | B22: 565199 | C22: 565199
A23: ANCHORS KINDERGARTEN | B23: 536067 | C23: 536067
A24: ANCHORS KINDERGARTEN (FANLING) | B24: 582417 | C24: 582417
A25: ANFIELD INTERNATIONAL KINDERGARTEN | B25: 535818 | C25: 535818
A26: ANNUNCIATION CATHOLIC KINDERGARTEN | B26: 159220 | C26: 15922
A27: ANTONIA INTERNATIONAL KINDERGARTEN | B27: 598020 | C27: 598020
A28: A-ONE KINDERGARTEN | B28: 316504 | C28: 31650
A29: ARISTLE INTERNATIONAL KINDERGARTEN | B29: 604470 | C29: 604470
A30: ASBURY METHODIST KINDERGARTEN | B30: 510726 | C30: 15148
A31: ASSEMBLY OF GOD MCLEOD MEMORIAL KINDERGARTEN | B31: 560820 | C31: 560820
A32: ASSEMBLY OF GOD UNION CHURCH KINDERGARTEN | B32: 543861 | C32: 543861
A33: AUSTRALIAN INTERNATIONAL SCHOOL HONG KONG | B33: 216275 | C33: 21627
A34: AVENDALE INTERNATIONAL KINDERGARTEN (HARMONY GARDEN) | B34: 609285 | C34: 609285
A35: BAMBINO ENGLISH PLAYSCHOOL | B35: 566799 | C35: 566799
A36: BAPTIST CHURCH SHINING GRACE KINDERGARTEN | B36: 535583 | C36: 535583
A37: BAPTIST OASIS ENGLISH KINDERGARTEN | B37: 590541 | C37: 590541
A38: BAPTIST OI KWAN SOCIAL SERVICE PUI YAN PRE-PRIMARY SCHOOL | B38: 565563 | C38: 565563
A39: BAPTIST PUI LI SCHOOL | B39: 311910 | C39: 31191
A40: BENEVOLENT LIGHT KINDERGARTEN | B40: 156019 | C40: 15601
A41: BETHEL KINDERGARTEN | B41: 324841 | C41: 32484
A42: BEVERLY ANGLO-CHINESE KINDERGARTEN | B42: 231363 | C42: 23136
A43: BILOK ANGLO-CHINESE KINDERGARTEN | B43: 231088 | C43: 23108
A44: BILOK CREATIVE KINDERGARTEN | B44: 592080 | C44: 592080
A45: BILOK KINDERGARTEN (1ST BRANCH SCHOOL) | B45: 566217 | C45: 566217
A46: BILOK KINDERGARTEN (TSEUNG KWAN O BRANCH) | B46: 560219 | C46: 560219
A47: BLESSING KINDERGARTEN (BELVEDERE) | B47: 231584 | C47: 23158
A48: BLOOMING BUDS PRESCHOOL | B48: 590843 | C48: 590843
A49: BO BO NURSERY SCHOOL | B49: 566101 | C49: 566101
A50: BOWIE ANGLO-CHINESE KINDERGARTEN | B50: 231002 | C50: 23100
A51: BOX HILL (HK) INTERNATIONAL KINDERGARTEN | B51: 559415 | C51: 559415
A52: BOX HILL (HK) INTERNATIONAL KINDERGARTEN - TSEUNG KWAN O | B52: 581836 | C52: 581836
A53: BOX HILL (HK) INTERNATIONAL KINDERGARTEN - WONDERLAND VILLAS | B53: 592854 | C53: 592854
A54: BOX HILL (HK) INTERNATIONAL KINDERGARTEN-FO TAN | B54: 581739 | C54: 581739
A55: BRAEMAR HILL NURSERY SCHOOL | B55: 565938 | C55: 565938
A56: BRIGHTLAND INTERNATIONAL KINDERGARTEN | B56: 601616 | C56: 601616
A57: BRITISH COUNCIL INTERNATIONAL PRE-SCHOOL | B57: 601896 | C57: 601896
A58: BUDDHIST CHEUNG MUI KWAI KINDERGARTEN | B58: 517518 | C58: 517518
A59: BUDDHIST CHI KWONG KINDERGARTEN | B59: 541427 | C59: 541427
A60: BUDDHIST CHI WAI DAY NURSERY | B60: 565946 | C60: 565946
A61: BUDDHIST CHUN YUE KINDERGARTEN (TUNG CHUNG) | B61: 556220 | C61: 556220
A62: BUDDHIST FOO HONG KINDERGARTEN | B62: 325678 | C62: 32567
A63: BUDDHIST KAM LAI KINDERGARTEN | B63: 323497 | C63: 32349
A64: BUDDHIST MR. & MRS. CHAN CHART MAN KINDERGARTEN | B64: 600890 | C64: 600890
A65: BUDDHIST SUM TUNG FOOK KINDERGARTEN | B65: 157252 | C65: 15725
A66: BUDDHIST TO CHI FAT SHE YEUNG TAM YUEN FONG KINDERGARTEN | B66: 325945 | C66: 32594
A67: BUDDHIST TSANG KOR SING ANGLO-CHINESE KINDERGARTEN | B67: 324787 | C67: 32478
A68: BUSY BEES KINDERGARTEN | B68: 532355 | C68: 532355
A69: C C C MONGKOK CHURCH JEANNETTE KINDERGARTEN | B69: 547069 | C69: 547069
A70: CANADIAN INTERNATIONAL SCHOOL | B70: 216011 | C70: 21601
A71: CANNAN ENGLISH & CHINESE KINDERGARTEN (SHA TAU KOK) | B71: 231428 | C71: 23142
A72: CANNAN KINDERGARTEN (CHARMING GARDEN) | B72: 531898 | C72: 531898
A73: CANNAN KINDERGARTEN (HONG KONG) | B73: 522740 | C73: 522740
A74: CANNAN KINDERGARTEN (KOWLOON TONG) | B74: 531910 | C74: 531910
A75: CANNAN KINDERGARTEN (LAGUNA CITY) | B75: 216054 | C75: 21605
A76: CANNAN KINDERGARTEN (RIVIERA GARDEN) | B76: 526010 | C76: 526010
A77: CANNAN KINDERGARTEN (SIU SAI WAN) | B77: 325996 | C77: 32599
A78: CANNAN KINDERGARTEN (TSUEN WAN) | B78: 516376 | C78: 516376
A79: CANNAN KINDERGARTEN (WATERLOO ROAD) | B79: 565130 | C79: 565130
A80: CANNAN KINDERGARTEN (WHAMPOA GARDEN) | B80: 575518 | C80: 575518
A81: CARBO ANGLO-CHINESE KINDERGARTEN (FANLING) | B81: 231703 | C81: 23170
A82: CARITAS KAI YAU NURSERY SCHOOL | B82: 566020 | C82: 566020
A83: CARITAS LING YUET SIN KINDERGARTEN | B83: 322270 | C83: 32227
A84: CARITAS LIONS CLUB OF HONG KONG (PACIFIC) NURSERY SCHOOL | B84: 566039 | C84: 566039
A85: CARITAS NURSERY SCHOOL - KENNEDY TOWN | B85: 565954 | C85: 565954
A86: CARITAS NURSERY SCHOOL - LEI YUE MUN | B86: 565962 | C86: 565962
A87: CARITAS NURSERY SCHOOL - SHATIN | B87: 565970 | C87: 565970
A88: CARITAS NURSERY SCHOOL - TA KWU LING | B88: 565989 | C88: 565989
A89: CARITAS NURSERY SCHOOL - TSUI LAM | B89: 565997 | C89: 565997
A90: CARITAS NURSERY SCHOOL - YAU TONG | B90: 566004 | C90: 566004
A91: CARITAS ST. FRANCIS KINDERGARTEN | B91: 320544 | C91: 32054
A92: CARITAS ZONTA CLUB OF HONG KONG NURSERY SCHOOL | B92: 566047 | C92: 566047
A93: CARMEL SCHOOL | B93: 216186 | C93: 21618
A94: CASA DEI BAMBINI KINDERGARTEN | B94: 570249 | C94: 570249
A95: CASTAR KINDERGARTEN | B95: 534790 | C95: 534790
A96: CASTAR KINDERGARTEN (LEI MUK SHUE) | B96: 565628 | C96: 565628
A97: CATILINE ANGLO-CHINESE KINDERGARTEN | B97: 231266 | C97: 23126
A98: CATILINE KINDERGARTEN | B98: 564311 | C98: 564311
A99: CATILINE KINDERGARTEN (FANLING) | B99: 231738 | C99: 23173
A100: CATILINE KINDERGARTEN (FU SHAN) | B100: 324345 | C100: 32434
A101: CATILINE KINDERGARTEN (WHAMPOA) | B101: 325449 | C101: 32544
A102: CAUSEWAY BAY VICTORIA INTERNATIONAL KINDERGARTEN | B102: 325651 | C102: 32565
A103: CAUSEWAY BAY VICTORIA KINDERGARTEN | B103: 324779 | C103: 32477
A104: CAUSEWAY BAY VICTORIA NURSERY | B104: 566942 | C104: 566942
A105: CECES ORGANIZED AETNA PRESCHOOL | B105: 563226 | C105: 563226
A106: CHAI WAN BAPTIST CHURCH PRE-SCHOOL EDUCATION LUI MING CHOI KINDERGARTEN | B106: 325597 | C106: 32559
A107: CHAI WAN BAPTIST CHURCH PRE-SCHOOL EDUCATION LUI MING CHOI KINDERGARTEN (SIU SAI WAN) | B107: 578126 | C107: 578126
A108: CHAN EN MEI LUTHERAN DAY NURSERY | B108: 565741 | C108: 565741
A109: CHAN MUNG YAN LUTHERAN KINDERGARTEN | B109: 523895 | C109: 523895
A110: CHE LOK KINDERGARTEN | B110: 532550 | C110: 532550
A111: CHERISH ENGLISH SCHOOL & KINDERGARTEN | B111: 215929 | C111: 21592
A112: CHEUNG CHAU SACRED HEART KINDERGARTEN | B112: 152978 | C112: 15297
A113: CHEUNG CHING LUTHERAN DAY NURSERY | B113: 565733 | C113: 565733
A114: CHEUNG SHA WAN KAI FONG WELFARE ASSOCIATION LAM TAM YIN WAH KINDERGARTEN | B114: 565245 | C114: 565245
A115: CHILD PSYCHOLOGICAL DEVELOPMENT ASSOCIATION (CHI FU) KINDERGARTEN | B115: 575933 | C115: 575933
A116: CHINESE CHRISTIAN WORKER'S FELLOWSHIP LIMITED, KING SHING KINDERGARTEN | B116: 519090 | C116: 519090
A117: CHINESE CHRISTIAN WORKER'S FELLOWSHIP LTD. CHOI PO KINDERGARTEN | B117: 157791 | C117: 15779
A118: CHINESE INTERNATIONAL SCHOOL | B118: 215589 | C118: 21558
A119: CHINESE Y.M.C.A. KINDERGARTEN | B119: 541230 | C119: 541230
A120: CHINESE Y.M.C.A. SHEUNG SHUI KINDERGARTEN | B120: 575429 | C120: 575429
A121: CHINESE YMCA KWAI CHUNG KINDERGARTEN | B121: 564680 | C121: 564680
A122: CHING CHUNG HING TUNG KINDERGARTEN | B122: 520144 | C122: 520144
A123: CHING CHUNG WU KING KINDERGARTEN | B123: 157236 | C123: 15723
A124: CHIU HA KINDERGARTEN | B124: 540749 | C124: 540749
A125: CHIU YANG KINDERGARTEN | B125: 564648 | C125: 564648
A126: CHOI HA ESTATE KIT SAM KINDERGARTEN | B126: 325694 | C126: 32569
A127: CHOICE ENGLISH SCHOOL & KINDERGARTEN (TSING YI BRANCH) | B127: 231240 | C127: 23124
A128: CHRIST CHURCH KINDERGARTEN | B128: 210196 | C128: 21019
A129: CHRISTIAN & MISSIONARY ALLIANCE CHURCH TAI WO KINDERGARTEN | B129: 158577 | C129: 15857
A130: CHRISTIAN & MISSIONARY ALLIANCE CHURCH UNION TSEUNG KWAN O ALLIANCE KINDERGARTEN | B130: 159255 | C130: 15925
A131: CHRISTIAN & MISSIONARY ALLIANCE FAIRVIEW PARK KINDERGARTEN | B131: 156949 | C131: 15694
A132: CHRISTIAN & MISSIONARY ALLIANCE FU SHAN NURSERY SCHOOL | B132: 565873 | C132: 565873
A133: CHRISTIAN & MISSIONARY ALLIANCE JOYFUL PEACE KINDERGARTEN | B133: 524328 | C133: 524328
A134: CHRISTIAN & MISSIONARY ALLIANCE LEI TUNG NURSERY SCHOOL | B134: 565865 | C134: 565865
A135: CHRISTIAN & MISSIONARY ALLIANCE PLOVER COVE NURSERY SCHOOL | B135: 565806 | C135: 565806
A136: CHRISTIAN & MISSIONARY ALLIANCE SHATIN NURSERY SCHOOL | B136: 565857 | C136: 565857
A137: CHRISTIAN & MISSIONARY ALLIANCE SOUTH HORIZONS NURSERY SCHOOL | B137: 565849 | C137: 565849
A138: CHRISTIAN & MISSIONARY ALLIANCE TAI O KINDERGARTEN | B138: 155233 | C138: 15523
A139: CHRISTIAN & MISSIONARY ALLIANCE TIN CHUNG NURSERY SCHOOL | B139: 565814 | C139: 565814
A140: CHRISTIAN ADRIANNE KINDERGARTEN | B140: 575640 | C140: 575640
A141: CHRISTIAN ADRIANNE KINDERGARTEN (BAYVIEW) | B141: 598038 | C141: 598038
A142: CHRISTIAN ALLIANCE CHEN LEE WING TSING MEMORIAL KINDERGARTEN | B142: 159042 | C142: 15904
A143: CHRISTIAN ALLIANCE LOUEY CHOY KWAN LOK KINDERGARTEN | B143: 532800 | C143: 532800
A144: CHRISTIAN ALLIANCE SAU MAU PING CHEN LEE WING TSING KINDERGARTEN | B144: 523178 | C144: 523178
A145: CHRISTIAN AND MISSIONARY ALLIANCE CHURCH VERBENA KINDERGARTEN | B145: 524026 | C145: 524026
A146: CHRISTIAN EVANGELICAL CENTRE LOK FU KINDERGARTEN | B146: 323268 | C146: 32326
A147: CHRISTIAN FAMILY SERVICE CENTRE CHEERLAND KINDERGARTEN | B147: 564664 | C147: 564664
A148: CHRISTIAN FAMILY SERVICE CENTRE TAK TIN KINDERGARTEN | B148: 564656 | C148: 564656
A149: CHRISTIAN LITTLE ANGEL KINDERGARTEN (KAM FUNG COURT) | B149: 522678 | C149: 522678
A150: CHRISTIAN LITTLE ANGEL KINDERGARTEN RICHLAND GARDENS | B150: 325244 | C150: 32524
A151: CHRISTIAN LITTLE TREE KINDERGARTEN | B151: 577987 | C151: 577987
A152: CHRISTIAN YOUTH CENTRE KINDERGARTEN | B152: 315907 | C152: 31590
A153: CHRISTIAN YOUTH CENTRE KINDERGARTEN (YAU TONG) | B153: 595837 | C153: 595837
A154: CHUEN YUEN CHURCH KINDERGARTEN | B154: 152269 | C154: 15226
A155: CNEC CHRISTIAN KINDERGARTEN | B155: 522910 | C155: 522910
A156: CREATIVE DAY NURSERY (SCENEWAY) | B156: 566071 | C156: 566071
A157: CREATIVE KINDERGARTEN | B157: 323926 | C157: 32392
A158: CREATIVE KINDERGARTEN (AEGEAN COAST) | B158: 556246 | C158: 556246
A159: CREATIVE KINDERGARTEN (CASTELLO) | B159: 537578 | C159: 537578
A160: CREATIVE KINDERGARTEN (HENG FA CHUEN) | B160: 215830 | C160: 21583
A161: CREATIVE KINDERGARTEN (MA WAN) | B161: 552747 | C161: 552747
A162: CREATIVE KINDERGARTEN (SCENEWAY GARDEN) | B162: 325864 | C162: 32586
A163: CREATIVE KINDERGARTEN (SHAM WAN TOWERS) | B163: 560090 | C163: 560090
A164: CREATIVE KINDERGARTEN (TSING YI) | B164: 534226 | C164: 534226
A165: CREATIVE KINDERGARTEN (TUEN MUN BRANCH) | B165: 158852 | C165: 15885
A166: CREATIVE KINDERGARTEN (WONDERLAND VILLAS) | B166: 543764 | C166: 543764
A167: CREATIVE PRIMARY SCHOOL'S KINDERGARTEN | B167: 544744 | C167: 544744
A168: CREATIVITY (PARK VALE) KINDERGARTEN | B168: 325783 | C168: 32578
A169: CREATIVITY (TAI LAM) KINDERGARTEN | B169: 154156 | C169: 15415
A170: CUHK FAA CHAN CHUN HA KINDERGARTEN | B170: 560740 | C170: 560740
A171: CUHK FAA SHUN LUNG YAN CHAK KINDERGARTEN | B171: 600377 | C171: 600377
A172: CUHK FEDERATION OF ALUMNI ASSOCIATIONS THOMAS CHEUNG KINDERGARTEN | B172: 158887 | C172: 15888
A173: CUMBERLAND PRESBYTERIAN CHURCH GREEN PASTURE KINDERGARTEN | B173: 524123 | C173: 524123
A174: DAVID (EXODUS) KINDERGARTEN | B174: 231517 | C174: 23151
A175: DAWNING VIEWS ELEMENTI ENGLISH KINDERGARTEN | B175: 536415 | C175: 536415
A176: DEBORAH ANGLO-CHINESE KINDERGARTEN (WHAMPOA GARDEN) | B176: 215813 | C176: 21581
A177: DEBORAH ENGLISH KINDERGARTEN (BAUHINIA GARDEN) | B177: 542555 | C177: 542555
A178: DEBORAH ENGLISH KINDERGARTEN (TSEUNG KWAN O) | B178: 530131 | C178: 530131
A179: DEBORAH INTERNATIONAL PRE-SCHOOL | B179: 566136 | C179: 566136
A180: DEBORAH INTERNATIONAL PRE-SCHOOL (BAUHINIA GARDEN) | B180: 567116 | C180: 567116
A181: DEBORAH INTERNATIONAL PRE-SCHOOL (SITE 7) | B181: 567132 | C181: 567132
A182: DEBORAH INTERNATIONAL PRE-SCHOOL (TSEUNG KWAN O) | B182: 567108 | C182: 567108
A183: DELIA ENGLISH PRIMARY SCHOOL & KINDERGARTEN | B183: 216208 | C183: 21620
A184: DIAMOND HILL BAPTIST CHURCH BRIGHT BLOSSOMS KINDERGARTEN | B184: 322580 | C184: 32258
A185: DIAMOND HILL LING LIANG KINDERGARTEN | B185: 530379 | C185: 530379
A186: DISCOVERY BAY INTERNATIONAL SCHOOL | B186: 230987 | C186: 23098
A187: DISCOVERY FUNFUL KINDERGARTEN | B187: 564915 | C187: 564915
A188: DISCOVERY MIND KINDERGARTEN | B188: 519871 | C188: 519871
A189: DISCOVERY MIND KINDERGARTEN (BRANCH) | B189: 566063 | C189: 566063
A190: DISCOVERY MIND KINDERGARTEN (TUNG CHUNG) | B190: 578193 | C190: 578193
A191: DISCOVERY MONTESSORI ACADEMY | B191: 600814 | C191: 600814
A192: DISCOVERY MONTESSORI SCHOOL | B192: 584606 | C192: 584606
A193: DISCOVERY MONTESSORI SCHOOL (CENTRAL) | B193: 588032 | C193: 588032
A194: DOMINIC SAVIO KINDERGARTEN | B194: 324230 | C194: 32423
A195: DOMINIC SAVIO KINDERGARTEN (OLYMPIC BRANCH) | B195: 533858 | C195: 533858
A196: ELCHK AMAZING GRACE NURSERY SCHOOL | B196: 564850 | C196: 564850
A197: ELCHK CHUNG ON NURSERY SCHOOL | B197: 564826 | C197: 564826
A198: ELCHK GRACE NURSERY SCHOOL | B198: 565571 | C198: 565571
A199: ELCHK HING WAH NURSERY SCHOOL | B199: 564800 | C199: 564800
A200: ELCHK KIN MING NURSERY SCHOOL | B200: 564818 | C200: 564818
A201: ELCHK LING KUNG NURSERY SCHOOL | B201: 564842 | C201: 564842
A202: ELCHK LING ON NURSERY SCHOOL | B202: 564834 | C202: 564834
A203: ELCHK SHATIN LUTHERAN KINDERGARTEN | B203: 151203 | C203: 15120
A204: ELCHK TSEUNG KWAN O KINDERGARTEN | B204: 533351 | C204: 533351
... 864 more rows

Sheet Interim (hidden)
A1: Year | B1: RegNo | C1: BranchId | D1: TeachingType | E1: Stream | F1: Type | G1: FeeIncomeParent | H1: FeeIncomePEVS | I1: FeeIncomeKCFRS | J1: FeeRemssion | K1: KCSS | L1: SME | M1: GovRentReimbur | N1: RatesReimbur | O1: RentReimbur | P1: BankInterestIncome | Q1: DonationsReceived | R1: CourseFeeRefundToTeachers | S1: AppFeeRegFee | T1: AirConditioning | U1: MealCharges | V1: SubsidiesFromSchSponsorBody | W1: SchItmSchBus | X1: ActivitiesIncome | Y1: DesignatedGrants | Z1: InsufficientInformationItems | AA1: SundryIncomeNotFromParent | AB1: InsuranceCompensation | AC1: OthersNoBreakdown | AD1: OtherIncomeName1 | AE1: OtherIncomeName2 | AF1: OtherIncomeName3 | AG1: OtherIncomeName4 | AH1: OtherIncomeName5 | AI1: OtherIncomeName6 | AJ1: OtherIncomeName7 | AK1: OtherIncomeName8 | AL1: OtherIncomeName9 | AM1: OtherIncomeName10 | AN1: OtherIncomeName11 | AO1: OtherIncomeName12 | AP1: OtherIncomeName13 | AQ1: OtherIncomeName14 | AR1: OtherIncomeName15 | AS1: OtherIncomeAmount1 | AT1: OtherIncomeAmount2 | AU1: OtherIncomeAmount3 | AV1: OtherIncomeAmount4 | AW1: OtherIncomeAmount5 | AX1: OtherIncomeAmount6 | AY1: OtherIncomeAmount7 | AZ1: OtherIncomeAmount8 | BA1: OtherIncomeAmount9 | BB1: OtherIncomeAmount10 | BC1: OtherIncomeAmount11 | BD1: OtherIncomeAmount12 | BE1: OtherIncomeAmount13 | BF1: OtherIncomeAmount14 | BG1: OtherIncomeAmount15 | BH1: TotalIncome | BI1: Salary_T | BJ1: Salary_NT | BK1: Allowance_T | BL1: Allowance_NT | BM1: PFund_T | BN1: PFund_NT | BO1: LongServicePay_T | BP1: LongServicePay_NT | BQ1: SupervisorPay | BR1: GovRent | BS1: Rates | BT1: Rental | BU1: DeprecPremises | BV1: DeprecFurniture | BW1: DeprecComputer | BX1: DeprecOthers | BY1: MajorRepairs | BZ1: MinorRepairs | CA1: ExpMealPreparation | CB1: FEAndTeachingAids | CC1: Water | CD1: Electricity | CE1: BadDebt | CF1: LossOnDisposal | CG1: Telephone | CH1: Cleaning | CI1: Printing | CJ1: TeachingConsumables | CK1: Insurance | CL1: FirstAidAndFireSafety | CM1: AuditFee | CN1: Travelling | CO1: RegularLearning | CP1: Postage | CQ1: Publications | CR1: StudentHandbooks | CS1: Advertisement | CT1: BankInterest | CU1: BankCharges | CV1: Newspapers | CW1: ExpChargedToDonationIncome | CX1: OtherExpenditureName1 | CY1: OtherExpenditureName2 | CZ1: OtherExpenditureName3 | DA1: OtherExpenditureName4 | DB1: OtherExpenditureName5 | DC1: OtherExpenditureName6 | DD1: OtherExpenditureName7 | DE1: OtherExpenditureName8 | DF1: OtherExpenditureName9 | DG1: OtherExpenditureName10 | DH1: OtherExpenditureName11 | DI1: OtherExpenditureName12 | DJ1: OtherExpenditureName13 | DK1: OtherExpenditureName14 | DL1: OtherExpenditureName15 | DM1: OtherExpenditureAmount1 | DN1: OtherExpenditureAmount2 | DO1: OtherExpenditureAmount3 | DP1: OtherExpenditureAmount4 | DQ1: OtherExpenditureAmount5 | DR1: OtherExpenditureAmount6 | DS1: OtherExpenditureAmount7 | DT1: OtherExpenditureAmount8 | DU1: OtherExpenditureAmount9 | DV1: OtherExpenditureAmount10 | DW1: OtherExpenditureAmount11 | DX1: OtherExpenditureAmount12 | DY1: OtherExpenditureAmount13 | DZ1: OtherExpenditureAmount14 | EA1: OtherExpenditureAmount15 | EB1: TotalExpense | EC1: SurplusDefTA | ED1: SurplusDefSWD | EE1: SurplusDefBFAdj | EF1: TransferToReserveName1 | EG1: TransferToReserveName2 | EH1: TransferToReserveName3 | EI1: TransferToReserveName4 | EJ1: TransferToReserveName5 | EK1: TransferToReserveName6 | EL1: TransferToReserveName7 | EM1: TransferToReserveName8 | EN1: TransferToReserveName9 | EO1: TransferToReserveName10 | EP1: TransferToReserveAmount1 | EQ1: TransferToReserveAmount2 | ER1: TransferToReserveAmount3 | ES1: TransferToReserveAmount4 | ET1: TransferToReserveAmount5 | EU1: TransferToReserveAmount6 | EV1: TransferToReserveAmount7 | EW1: TransferToReserveAmount8 | EX1: TransferToReserveAmount9 | EY1: TransferToReserveAmount10 | EZ1: TransferToReserveSSBName1 | FA1: TransferToReserveSSBName2 | FB1: TransferToReserveSSBName3 | FC1: TransferToReserveSSBAmount1 | FD1: TransferToReserveSSBAmount2 | FE1: TransferToReserveSSBAmount3 | FF1: DonationToSponsor | FG1: DonationToOthers | FH1: Entertainment | FI1: Messing | FJ1: ManageFeetoSSB | FK1: OthersSpecialExpName1 | FL1: OthersSpecialExp1 | FM1: OthersSpecialExpName2 | FN1: OthersSpecialExp2 | FO1: OthersSpecialExpName3 | FP1: OthersSpecialExp3 | FQ1: OthersSpecialExpName4 | FR1: OthersSpecialExp4 | FS1: CumulativeSurplusDefTABFAdj | FT1: Remarks | FU1: IsUsed | FV1: IsFullAmountMR | FW1: PriorYearAdj | FX1: PriorYearAdjDesc
A2: =YEAR('Annex 1'!C32) ->  | B2: =IF(ISBLANK('Annex 1'!C7),"",VLOOKUP('Annex 1'!C7,KG!$A$4:$C$1100,3,0)) ->  | C2: =IF(ISBLANK('Annex 1'!C13),"A",'Annex 1'!C13) -> A | D2: A | E2: L | F2: A | G2: =INDIRECT(ADDRESS(G7,G11,,,$A$11)) -> 0 | H2: 0 | I2: 0 | J2: 0 | K2: 0 | L2: 0 | M2: 0 | N2: 0 | O2: 0 | P2: =INDIRECT(ADDRESS(P7,P11,,,$A$16)) -> 0 | Q2: =INDIRECT(ADDRESS(Q7,Q11,,,$A$14)) -> 0 | R2: =INDIRECT(ADDRESS(R7,R11,,,$A$16)) -> 0 | S2: 0 | U2: 0 | V2: =INDIRECT(ADDRESS(V7,V11,,,$A$16)) -> 0 | Y2: 0 | AB2: =INDIRECT(ADDRESS(AB7,AB11,,,$A$16)) -> 0 | AD2: =IF(OR(AS2="",AS2=0),"",INDIRECT(ADDRESS(AD7,AD11,,,$A$16))) ->  | AS2: =INDIRECT(ADDRESS(AS7,AS11,,,$A$16)) -> 0 | AT2: 0 | AU2: 0 | AV2: 0 | AW2: 0 | AX2: 0 | AY2: 0 | AZ2: 0 | BA2: 0 | BB2: 0 | BC2: =INDIRECT(ADDRESS(BC7,BC11,,,$A$16)) -> 0 | BD2: =INDIRECT(ADDRESS(BD7,BD11,,,$A$16)) -> 0 | BE2: =INDIRECT(ADDRESS(BE7,BE11,,,$A$16)) -> 0 | BF2: =INDIRECT(ADDRESS(BF7,BF11,,,$A$16)) -> 0 | BG2: =INDIRECT(ADDRESS(BG7,BG11,,,$A$16)) -> 0 | BH2: =INDIRECT(ADDRESS(BH7,BH11,,,$A$11)) -> 0 | BI2: 0 | BJ2: 0 | BM2: 0 | BN2: 0 | BO2: 0 | BP2: =INDIRECT(ADDRESS(BP7,BP11,,,$A$11)) -> 0 | BQ2: 0 | BR2: 0 | BS2: 0 | BT2: 0 | BU2: 0 | BV2: 0 | BW2: 0 | BX2: 0 | BY2: 0 | BZ2: 0 | CA2: =INDIRECT(ADDRESS(CA7,CA11,,,$A$16)) -> 0 | CB2: =INDIRECT(ADDRESS(CB7,CB11,,,$A$16)) -> 0 | CC2: =INDIRECT(ADDRESS(CC7,CC11,,,$A$16)) -> 0 | CD2: =INDIRECT(ADDRESS(CD7,CD11,,,$A$16)) -> 0 | CG2: =INDIRECT(ADDRESS(CG7,CG11,,,$A$16)) -> 0 | CH2: 0 | CI2: 0 | CJ2: 0 | CK2: 0 | CL2: 0 | CM2: =INDIRECT(ADDRESS(CM7,CM11,,,$A$11)) -> 0 | CN2: =INDIRECT(ADDRESS(CN7,CN11,,,$A$16)) -> 0 | CO2: 0 | CP2: 0 | CQ2: 0 | CR2: 0 | CS2: 0 | CT2: 0 | CU2: 0 | CV2: 0 | CW2: =INDIRECT(ADDRESS(CW7,CW11,,,$A$14)) -> 0 | CX2: =IF(OR(DM2="",DM2=0),"",INDIRECT(ADDRESS(CX7,CX11,,,$A$16))) ->  | DM2: =INDIRECT(ADDRESS(DM7,DM11,,,$A$16)) -> 0 | DN2: 0 | DO2: 0 | DP2: 0 | DQ2: 0 | DR2: 0 | DS2: 0 | DT2: 0 | DU2: 0 | DV2: 0 | DW2: =INDIRECT(ADDRESS(DW7,DW11,,,$A$16)) -> 0 | DX2: =INDIRECT(ADDRESS(DX7,DX11,,,$A$16)) -> 0 | DY2: =INDIRECT(ADDRESS(DY7,DY11,,,$A$16)) -> 0 | DZ2: =INDIRECT(ADDRESS(DZ7,DZ11,,,$A$16)) -> 0 | EA2: =INDIRECT(ADDRESS(EA7,EA11,,,$A$16)) -> 0 | EB2: =INDIRECT(ADDRESS(EB7,EB11,,,$A$11)) -> 0 | EC2: =INDIRECT(ADDRESS(EC7,EC11,,,$A$11)) -> 0 | EF2: =IF(OR(EP2="",EP2=0),"",INDIRECT(ADDRESS(EF7,EF11,,,$A$16))) ->  | EJ2: =IF(OR(ET2="",ET2=0),"",INDIRECT(ADDRESS(EJ7,EJ11,,,$A$16))) ->  | EP2: =INDIRECT(ADDRESS(EP7,EP11,,,$A$16)) -> 0 | EQ2: 0 | ER2: 0 | ES2: 0 | ET2: 0 | EU2: 0 | EV2: 0 | EW2: 0 | EX2: 0 | EY2: 0 | FV2: 1 | FW2: =INDIRECT(ADDRESS(FW7,FW11,,,$A$11)) -> 0 | FX2: =INDIRECT(ADDRESS(FX7,FX11,,,$A$11)) -> PRIOR YEAR ADJUSTMENT (Please specify the nature)
A3: =A2 ->  | B3: =B2 ->  | C3: =C2 -> A | D3: A | E3: N | F3: =F2 -> A | G3: =IF($A$11="Statement 1","",INDIRECT(ADDRESS(G8,G12,,,$A$11))) ->  | P3: =IF($A$11="Statement 1","",INDIRECT(ADDRESS(P8,P12,,,$A$16))) ->  | R3: =IF($A$11="Statement 1","",INDIRECT(ADDRESS(R8,R12,,,$A$16))) ->  | V3: =IF($A$11="Statement 1","",INDIRECT(ADDRESS(V8,V12,,,$A$16))) ->  | AB3: =IF($A$11="Statement 1","",INDIRECT(ADDRESS(AB8,AB12,,,$A$16))) ->  | AD3: =IF(OR(AS3="",AS3=0),"",INDIRECT(ADDRESS(AD8,AD12,,,$A$16))) ->  | AS3: =IF($A$11="Statement 1","",INDIRECT(ADDRESS(AS8,AS12,,,$A$16))) ->  | BC3: =IF($A$11="Statement 1","",INDIRECT(ADDRESS(BC8,BC12,,,$A$16))) ->  | BD3: =IF($A$11="Statement 1","",INDIRECT(ADDRESS(BD8,BD12,,,$A$16))) ->  | BE3: =IF($A$11="Statement 1","",INDIRECT(ADDRESS(BE8,BE12,,,$A$16))) ->  | BF3: =IF($A$11="Statement 1","",INDIRECT(ADDRESS(BF8,BF12,,,$A$16))) ->  | BG3: =IF($A$11="Statement 1","",INDIRECT(ADDRESS(BG8,BG12,,,$A$16))) ->  | BH3: =IF($A$11="Statement 1","",INDIRECT(ADDRESS(BH8,BH12,,,$A$11))) ->  | BP3: =IF($A$11="Statement 1","",INDIRECT(ADDRESS(BP8,BP12,,,$A$11))) ->  | CA3: =IF($A$11="Statement 1","",INDIRECT(ADDRESS(CA8,CA12,,,$A$16))) ->  | CB3: =IF($A$11="Statement 1","",INDIRECT(ADDRESS(CB8,CB12,,,$A$16))) ->  | CC3: =IF($A$11="Statement 1","",INDIRECT(ADDRESS(CC8,CC12,,,$A$16))) ->  | CD3: =IF($A$11="Statement 1","",INDIRECT(ADDRESS(CD8,CD12,,,$A$16))) ->  | CG3: =IF($A$11="Statement 1","",INDIRECT(ADDRESS(CG8,CG12,,,$A$16))) ->  | CM3: =IF($A$11="Statement 1","",INDIRECT(ADDRESS(CM8,CM12,,,$A$11))) ->  | CN3: =IF($A$11="Statement 1","",INDIRECT(ADDRESS(CN8,CN12,,,$A$16))) ->  | DM3: =IF($A$11="Statement 1","",INDIRECT(ADDRESS(DM8,DM12,,,$A$16))) ->  | DW3: =IF($A$11="Statement 1","",INDIRECT(ADDRESS(DW8,DW12,,,$A$16))) ->  | DX3: =IF($A$11="Statement 1","",INDIRECT(ADDRESS(DX8,DX12,,,$A$16))) ->  | DY3: =IF($A$11="Statement 1","",INDIRECT(ADDRESS(DY8,DY12,,,$A$16))) ->  | DZ3: =IF($A$11="Statement 1","",INDIRECT(ADDRESS(DZ8,DZ12,,,$A$16))) ->  | EA3: =IF($A$11="Statement 1","",INDIRECT(ADDRESS(EA8,EA12,,,$A$16))) ->  | EB3: =IF($A$11="Statement 1","",INDIRECT(ADDRESS(EB8,EB12,,,$A$11))) ->  | EC3: =IF($A$11="Statement 1","",INDIRECT(ADDRESS(EC8,EC12,,,$A$11))) ->  | EP3: =IF($A$11="Statement 1","",INDIRECT(ADDRESS(EP8,EP12,,,$A$16))) ->  | FV3: 1 | FW3: =IF($A$11="Statement 1","",INDIRECT(ADDRESS(FW8,FW12,,,$A$11))) ->  | FX3: =IF($A$11="Statement 1","",INDIRECT(ADDRESS(FX8,FX12,,,$A$11))) -> 
P4: Statement 7 | Q4: Statement 6 | R4: Statement 7 | S4: Statement 7 | U4: Statement 7 | V4: Statement 7 | Y4: Statement 7 | AB4: Statement 7 | AD4: Statement 7 | AE4: Statement 7 | AF4: Statement 7 | AG4: Statement 7 | AH4: Statement 7 | AI4: Statement 7 | AJ4: Statement 7 | AK4: Statement 7 | AL4: Statement 7 | AM4: Statement 7 | AN4: Statement 7 | AO4: Statement 7 | AP4: Statement 7 | AQ4: Statement 7 | AR4: Statement 7 | AS4: Statement 7 | AT4: Statement 7 | AU4: Statement 7 | AV4: Statement 7 | AW4: Statement 7 | AX4: Statement 7 | AY4: Statement 7 | AZ4: Statement 7 | BA4: Statement 7 | BB4: Statement 7 | BC4: Statement 7 | BD4: Statement 7 | BE4: Statement 7 | BF4: Statement 7 | BG4: Statement 7 | CA4: Statement 7 | CB4: Statement 7 | CC4: Statement 7 | CD4: Statement 7 | CG4: Statement 7 | CH4: Statement 7 | CI4: Statement 7 | CJ4: Statement 7 | CK4: Statement 7 | CL4: Statement 7 | CN4: Statement 7 | CO4: Statement 7 | CP4: Statement 7 | CQ4: Statement 7 | CR4: Statement 7 | CS4: Statement 7 | CT4: Statement 7 | CU4: Statement 7 | CV4: Statement 7 | CW4: Statement 6 | CX4: Statement 7 | CY4: Statement 7 | CZ4: Statement 7 | DA4: Statement 7 | DB4: Statement 7 | DC4: Statement 7 | DD4: Statement 7 | DE4: Statement 7 | DF4: Statement 7 | DG4: Statement 7 | DH4: Statement 7 | DI4: Statement 7 | DJ4: Statement 7 | DK4: Statement 7 | DL4: Statement 7 | DM4: Statement 7 | DN4: Statement 7 | DO4: Statement 7 | DP4: Statement 7 | DQ4: Statement 7 | DR4: Statement 7 | DS4: Statement 7 | DT4: Statement 7 | DU4: Statement 7 | DV4: Statement 7 | DW4: Statement 7 | DX4: Statement 7 | DY4: Statement 7 | DZ4: Statement 7 | EA4: Statement 7 | EF4: Statement 7 | EG4: Statement 7 | EH4: Statement 7 | EI4: Statement 7 | EJ4: Statement 7 | EK4: Statement 7 | EL4: Statement 7 | EM4: Statement 7 | EN4: Statement 7 | EO4: Statement 7 | EP4: Statement 7 | EQ4: Statement 7 | ER4: Statement 7 | ES4: Statement 7 | ET4: Statement 7 | EU4: Statement 7 | EV4: Statement 7 | EW4: Statement 7 | EX4: Statement 7 | EY4: Statement 7
I5: ='Statement 1'!$R$21 -> 0 | P5: New | T5: blank | V5: New | W5: blank | X5: blank | Z5: blank | AA5: blank | AB5: New | AC5: blank | AD5: New | AE5: New | AF5: New | AG5: New | AH5: New | AI5: New | AJ5: New | AK5: New | AL5: New | AM5: New | AN5: New | AO5: New | AP5: New | AQ5: New | AR5: New | AS5: New | AT5: New | AU5: New | AV5: New | AW5: New | AX5: New | AY5: New | AZ5: New | BA5: New | BB5: New | BC5: New | BD5: New | BE5: New | BF5: New | BG5: New | BK5: blank | BL5: blank | BX5: New | CA5: New | CB5: Resume | CC5: Resume | CD5: Resume | CE5: Blank | CF5: Blank | CG5: Resume | CH5: Resume | CI5: Resume | CJ5: Resume | CK5: Resume | CL5: Resume | CN5: Resume | CO5: Resume | CP5: Resume | CQ5: Resume | CR5: Resume | CS5: Resume | CT5: Resume | CU5: Resume | CV5: Resume | CX5: New | CY5: New | CZ5: New | DA5: New | DB5: New | DC5: New | DD5: New | DE5: New | DF5: New | DG5: New | DH5: New | DI5: New | DJ5: New | DK5: New | DL5: New | DM5: New | DN5: New | DO5: New | DP5: New | DQ5: New | DR5: New | DS5: New | DT5: New | DU5: New | DV5: New | DW5: New | DX5: New | DY5: New | DZ5: New | EA5: New | ED5: blank | EE5: blank | EZ5: blank | FA5: blank | FB5: blank | FC5: blank | FD5: blank | FE5: blank | FF5: blank | FG5: blank | FH5: blank | FI5: blank | FJ5: blank | FK5: blank | FL5: blank | FM5: blank | FN5: blank | FO5: blank | FP5: blank | FQ5: blank | FR5: blank | FS5: blank | FT5: blank | FU5: blank | FV5: blank
A6: =CELL("filename",'Statement 1'!A2) -> T:\2. KG review of audited accounts\2017-18 KG Audited Accounts\NON-SCHEME\FINAL\[2018fdkg-e.xlsm]Statement 1
A7: =CELL("filename",'Statement 1A'!A2) -> T:\2. KG review of audited accounts\2017-18 KG Audited Accounts\NON-SCHEME\FINAL\[2018fdkg-e.xlsm]Statement 1A | E7: Row | G7: =IF($A$11="Statement 1",G14,G20) -> 23 | H7: 24 | I7: 25 | J7: 27 | K7: 29 | L7: 31 | M7: 32 | N7: 33 | O7: 34 | P7: 239 | Q7: 16 | R7: 237 | S7: 235 | T7: 0 | U7: 234 | V7: 236 | W7: 0 | X7: 0 | Y7: 238 | Z7: 0 | AA7: 0 | AB7: 240 | AC7: 257 | AD7: =IF($A$11="Statement 1",AD14,AD20) -> 242 | AE7: 243 | AF7: 244 | AG7: 245 | AH7: 246 | AI7: 247 | AJ7: 248 | AK7: 249 | AL7: 250 | AM7: 251 | AN7: =IF($A$11="Statement 1",AN14,AN20) -> 252 | AO7: 253 | AP7: 254 | AQ7: 255 | AR7: 256 | AS7: 242 | AT7: 243 | AU7: 244 | AV7: 245 | AW7: 246 | AX7: 247 | AY7: 248 | AZ7: 249 | BA7: 250 | BB7: 251 | BC7: =IF($A$11="Statement 1",BC14,BC20) -> 252 | BD7: 253 | BE7: 254 | BF7: 255 | BG7: 256 | BH7: 36 | BI7: 39 | BJ7: 40 | BK7: 0 | BL7: 0 | BM7: 42 | BN7: 43 | BO7: 45 | BP7: 46 | BQ7: 47 | BR7: 48 | BS7: 49 | BT7: 50 | BU7: 52 | BV7: 53 | BW7: 54 | BX7: 55 | BY7: 56 | BZ7: 58 | CA7: 100 | CB7: 101 | CC7: 102 | CD7: 103 | CE7: 0 | CF7: 0 | CG7: 104 | CH7: 105 | CI7: 106 | CJ7: 107 | CK7: 108 | CL7: 109 | CM7: 60 | CN7: 110 | CO7: 111 | CP7: 112 | CQ7: 113 | CR7: 114 | CS7: 115 | CT7: 116 | CU7: 117 | CV7: 118 | CW7: 38 | CX7: =IF($A$11="Statement 1",CX14,CX20) -> 120 | CY7: 121 | CZ7: 122 | DA7: 123 | DB7: 124 | DC7: 125 | DD7: 126 | DE7: 127 | DF7: 128 | DG7: 129 | DH7: =IF($A$11="Statement 1",DH14,DH20) -> 130 | DI7: 131 | DJ7: 132 | DK7: 133 | DL7: 134 | DM7: =IF($A$11="Statement 1",DM14,DM20) -> 120 | DN7: 121 | DO7: 122 | DP7: 123 | DQ7: 124 | DR7: 125 | DS7: 126 | DT7: 127 | DU7: 128 | DV7: 129 | DW7: =IF($A$11="Statement 1",DW14,DW20) -> 130 | DX7: 131 | DY7: 132 | DZ7: 133 | EA7: 134 | EB7: 62 | EC7: 83 | ED7: 0 | EE7: 0 | EF7: 265 | EG7: 266 | EH7: 267 | EI7: 268 | EJ7: 269 | EK7: 270 | EL7: 271 | EM7: 272 | EN7: 273 | EO7: 274 | EP7: 265 | EQ7: 266 | ER7: 267 | ES7: =IF($A$11="Statement 1",ES14,ES20) -> 268 | ET7: 269 | EU7: =IF($A$11="Statement 1",EU14,EU20) -> 270 | EV7: 271 | EW7: 272 | EX7: 273 | EY7: 274 | EZ7: 0 | FA7: 0 | FB7: 0 | FC7: 0 | FD7: 0 | FE7: 0 | FF7: 0 | FG7: 0 | FH7: 0 | FI7: 0 | FJ7: 0 | FK7: 0 | FL7: 0 | FM7: 0 | FN7: 0 | FO7: 0 | FP7: 0 | FQ7: 0 | FR7: 0 | FS7: 0 | FT7: 0 | FU7: 0 | FV7: 0 | FW7: 87 | FX7: =IF($A$11="Statement 1",FX14,FX20) -> 87
A8: =TRIM(RIGHT(A6,LEN(A6)-SEARCH("]",A6,1))) -> Statement 1 | G8: =IF($A$11="Statement 1",G15,G21) -> 0 | H8: 0 | I8: 0 | J8: 0 | K8: 0 | L8: 0 | M8: 0 | N8: 0 | O8: 0 | P8: 0 | Q8: 0 | R8: 0 | S8: 0 | T8: 0 | U8: 0 | V8: 0 | W8: 0 | X8: 0 | Y8: 0 | Z8: 0 | AA8: 0 | AB8: 0 | AC8: 0 | AD8: =IF($A$11="Statement 1",AD15,AD21) -> 0 | AE8: 0 | AF8: 0 | AG8: 0 | AH8: 0 | AI8: 0 | AJ8: 0 | AK8: 0 | AL8: 0 | AM8: 0 | AN8: 0 | AO8: 0 | AP8: 0 | AQ8: 0 | AR8: 0 | AS8: 0 | AT8: 0 | AU8: 0 | AV8: 0 | AW8: 0 | AX8: 0 | AY8: 0 | AZ8: 0 | BA8: 0 | BB8: 0 | BC8: =IF($A$11="Statement 1",BC15,BC21) -> 0 | BD8: 0 | BE8: 0 | BF8: 0 | BG8: 0 | BH8: 0 | BI8: 0 | BJ8: 0 | BK8: 0 | BL8: 0 | BM8: 0 | BN8: 0 | BO8: 0 | BP8: 0 | BQ8: 0 | BR8: 0 | BS8: 0 | BT8: 0 | BU8: 0 | BV8: 0 | BW8: 0 | BX8: 0 | BY8: 0 | BZ8: 0 | CA8: 0 | CB8: 0 | CC8: 0 | CD8: 0 | CE8: 0 | CF8: 0 | CG8: 0 | CH8: 0 | CI8: 0 | CJ8: 0 | CK8: 0 | CL8: 0 | CM8: 0 | CN8: 0 | CO8: 0 | CP8: 0 | CQ8: 0 | CR8: 0 | CS8: 0 | CT8: 0 | CU8: 0 | CV8: 0 | CW8: 0 | CX8: =IF($A$11="Statement 1",CX15,CX21) -> 0 | CY8: 0 | CZ8: 0 | DA8: 0 | DB8: 0 | DC8: 0 | DD8: 0 | DE8: 0 | DF8: 0 | DG8: 0 | DH8: 0 | DI8: 0 | DJ8: 0 | DK8: 0 | DL8: 0 | DM8: =IF($A$11="Statement 1",DM15,DM21) -> 0 | DN8: 0 | DO8: 0 | DP8: 0 | DQ8: 0 | DR8: 0 | DS8: 0 | DT8: 0 | DU8: 0 | DV8: 0 | DW8: =IF($A$11="Statement 1",DW15,DW21) -> 0 | DX8: 0 | DY8: 0 | DZ8: 0 | EA8: 0 | EB8: 0 | EC8: 0 | ED8: 0 | EE8: 0 | EF8: 0 | EG8: 0 | EH8: 0 | EI8: 0 | EJ8: 0 | EK8: 0 | EL8: 0 | EM8: 0 | EN8: 0 | EO8: 0 | EP8: 0 | EQ8: 0 | ER8: 0 | ES8: =IF($A$11="Statement 1",ES15,ES21) -> 0 | ET8: 0 | EU8: 0 | EV8: 0 | EW8: 0 | EX8: 0 | EY8: 0 | EZ8: 0 | FA8: 0 | FB8: 0 | FC8: 0 | FD8: 0 | FE8: 0 | FF8: 0 | FG8: 0 | FH8: 0 | FI8: 0 | FJ8: 0 | FK8: 0 | FL8: 0 | FM8: 0 | FN8: 0 | FO8: 0 | FP8: 0 | FQ8: 0 | FR8: 0 | FS8: 0 | FT8: 0 | FU8: 0 | FV8: 0 | FW8: 0 | FX8: =IF($A$11="Statement 1",FX15,FX21) -> 0
A9: =TRIM(RIGHT(A7,LEN(A7)-SEARCH("]",A7,1))) -> Statement 1A
A11: =IF('Annex 1'!$C$27='Annex 1'!$D$27,A9,A8) -> Statement 1 | E11: Column | G11: =IF($A$11="Statement 1",G17,G23) -> 18 | H11: 18 | I11: 18 | J11: 18 | K11: 18 | L11: =IF($A$11="Statement 1",L17,L23) -> 18 | M11: 18 | N11: 18 | O11: 18 | P11: 22 | Q11: 17 | R11: 22 | S11: 22 | T11: 0 | U11: 22 | V11: 22 | W11: 0 | X11: 0 | Y11: 22 | Z11: 0 | AA11: 0 | AB11: 22 | AC11: 22 | AD11: ='Statement 6_Others'!AF239 -> 32 | AE11: =AD11 -> 32 | AF11: =AE11 -> 32 | AG11: 32 | AH11: 32 | AI11: 32 | AJ11: 32 | AK11: 32 | AL11: 32 | AM11: 32 | AN11: =AM11 -> 32 | AO11: 32 | AP11: 32 | AQ11: 32 | AR11: 32 | AS11: =IF($A$11="Statement 1",AS17,AS23) -> 22 | AT11: 22 | AU11: 22 | AV11: 22 | AW11: 22 | AX11: 22 | AY11: 22 | AZ11: 22 | BA11: 22 | BB11: 22 | BC11: =IF($A$11="Statement 1",BC17,BC23) -> 22 | BD11: 22 | BE11: 22 | BF11: 22 | BG11: 22 | BH11: 18 | BI11: 18 | BJ11: 18 | BK11: 0 | BL11: 0 | BM11: 18 | BN11: 18 | BO11: 18 | BP11: 18 | BQ11: 18 | BR11: 18 | BS11: 18 | BT11: 18 | BU11: 18 | BV11: 18 | BW11: 18 | BX11: 18 | BY11: 18 | BZ11: 18 | CA11: 22 | CB11: 22 | CC11: 22 | CD11: 22 | CE11: 0 | CF11: 0 | CG11: 22 | CH11: 22 | CI11: 22 | CJ11: 22 | CK11: 22 | CL11: 22 | CM11: 18 | CN11: 22 | CO11: 22 | CP11: 22 | CQ11: 22 | CR11: 22 | CS11: 22 | CT11: 22 | CU11: 22 | CV11: 22 | CW11: 17 | CX11: =AD11 -> 32 | CY11: =AE11 -> 32 | CZ11: 32 | DA11: 32 | DB11: 32 | DC11: 32 | DD11: 32 | DE11: 32 | DF11: 32 | DG11: 32 | DH11: 32 | DI11: 32 | DJ11: 32 | DK11: 32 | DL11: 32 | DM11: =IF($A$11="Statement 1",DM17,DM23) -> 22 | DN11: 22 | DO11: 22 | DP11: 22 | DQ11: 22 | DR11: 22 | DS11: 22 | DT11: 22 | DU11: 22 | DV11: 22 | DW11: =IF($A$11="Statement 1",DW17,DW23) -> 22 | DX11: 22 | DY11: 22 | DZ11: 22 | EA11: 22 | EB11: 18 | EC11: 18 | ED11: 0 | EE11: 0 | EF11: 2 | EG11: =EF11 -> 2 | EH11: =EG11 -> 2 | EI11: 2 | EJ11: 2 | EK11: 2 | EL11: 2 | EM11: 2 | EN11: 2 | EO11: 2 | EP11: 22 | EQ11: 22 | ER11: 22 | ES11: =IF($A$11="Statement 1",ES17,ES23) -> 22 | ET11: 22 | EU11: =IF($A$11="Statement 1",EU17,EU23) -> 22 | EV11: 22 | EW11: 22 | EX11: 22 | EY11: 22 | EZ11: 0 | FA11: 0 | FB11: 0 | FC11: 0 | FD11: 0 | FE11: 0 | FF11: 0 | FG11: 0 | FH11: 0 | FI11: 0 | FJ11: 0 | FK11: 0 | FL11: 0 | FM11: 0 | FN11: 0 | FO11: 0 | FP11: 0 | FQ11: 0 | FR11: 0 | FS11: 0 | FT11: 0 | FU11: 0 | FV11: 0 | FW11: 18 | FX11: =IF($A$11="Statement 1",FX17,FX23) -> 1
G12: =IF($A$11="Statement 1",G18,G24) -> 0 | H12: 0 | I12: 0 | J12: 0 | K12: 0 | L12: =IF($A$11="Statement 1",L18,L24) -> 0 | M12: 0 | N12: 0 | O12: 0 | P12: 0 | Q12: 0 | R12: 0 | S12: 0 | T12: 0 | U12: 0 | V12: 0 | W12: 0 | X12: 0 | Y12: 0 | Z12: 0 | AA12: 0 | AB12: 0 | AC12: 0 | AD12: =AD11 -> 32 | AE12: =AD12 -> 32 | AF12: 32 | AG12: 32 | AH12: 32 | AI12: 32 | AJ12: 32 | AK12: 32 | AL12: 32 | AM12: 32 | AN12: =AM12 -> 32 | AO12: 32 | AP12: 32 | AQ12: 32 | AR12: 32 | AS12: =IF($A$11="Statement 1",AS18,AS24) -> 0 | AT12: 0 | AU12: 0 | AV12: 0 | AW12: 0 | AX12: 0 | AY12: 0 | AZ12: 0 | BA12: 0 | BB12: 0 | BC12: =IF($A$11="Statement 1",BC18,BC24) -> 0 | BD12: 0 | BE12: 0 | BF12: 0 | BG12: 0 | BH12: 0 | BI12: 0 | BJ12: 0 | BK12: 0 | BL12: 0 | BM12: 0 | BN12: 0 | BO12: 0 | BP12: 0 | BQ12: 0 | BR12: 0 | BS12: 0 | BT12: 0 | BU12: 0 | BV12: 0 | BW12: 0 | BX12: 0 | BY12: 0 | BZ12: 0 | CA12: 0 | CB12: 0 | CC12: 0 | CD12: 0 | CE12: 0 | CF12: 0 | CG12: 0 | CH12: 0 | CI12: 0 | CJ12: 0 | CK12: 0 | CL12: 0 | CM12: 0 | CN12: 0 | CO12: 0 | CP12: 0 | CQ12: 0 | CR12: 0 | CS12: 0 | CT12: 0 | CU12: 0 | CV12: 0 | CW12: 0 | CX12: =AD12 -> 32 | CY12: =AE12 -> 32 | CZ12: 32 | DA12: 32 | DB12: 32 | DC12: 32 | DD12: 32 | DE12: 32 | DF12: 32 | DG12: 32 | DH12: 32 | DI12: 32 | DJ12: 32 | DK12: 32 | DL12: 32 | DM12: =IF($A$11="Statement 1",DM18,DM24) -> 0 | DN12: 0 | DO12: 0 | DP12: 0 | DQ12: 0 | DR12: 0 | DS12: 0 | DT12: 0 | DU12: 0 | DV12: 0 | DW12: =IF($A$11="Statement 1",DW18,DW24) -> 0 | DX12: 0 | DY12: 0 | DZ12: 0 | EA12: 0 | EB12: 0 | EC12: 0 | ED12: 0 | EE12: 0 | EF12: =EF11 -> 2 | EG12: =EF12 -> 2 | EH12: =EG12 -> 2 | EI12: 2 | EJ12: 2 | EK12: 2 | EL12: 2 | EM12: 2 | EN12: 2 | EO12: 2 | EP12: 0 | EQ12: 0 | ER12: 0 | ES12: =IF($A$11="Statement 1",ES18,ES24) -> 0 | ET12: 0 | EU12: 0 | EV12: 0 | EW12: 0 | EX12: 0 | EY12: 0 | EZ12: 0 | FA12: 0 | FB12: 0 | FC12: 0 | FD12: 0 | FE12: 0 | FF12: 0 | FG12: 0 | FH12: 0 | FI12: 0 | FJ12: 0 | FK12: 0 | FL12: 0 | FM12: 0 | FN12: 0 | FO12: 0 | FP12: 0 | FQ12: 0 | FR12: 0 | FS12: 0 | FT12: 0 | FU12: 0 | FV12: 0 | FW12: 0 | FX12: =IF($A$11="Statement 1",FX18,FX24) -> 0
A13: =CELL("filename",'Statement 5'!A16) -> T:\2. KG review of audited accounts\2017-18 KG Audited Accounts\NON-SCHEME\FINAL\[2018fdkg-e.xlsm]Statement 5
A14: =TRIM(RIGHT(A13,LEN(A13)-SEARCH("]",A13,1))) -> Statement 5 | E14: Row - Stmt 1 | G14: =VLOOKUP(G$1,'Statement 1'!$I$1:$J$483,2,0) -> 23 | H14: =VLOOKUP(H$1,'Statement 1'!$I$1:$J$483,2,0) -> 24 | I14: =VLOOKUP(I$1,'Statement 1'!$I$1:$J$483,2,0) -> 25 | J14: =VLOOKUP(J$1,'Statement 1'!$I$1:$J$483,2,0) -> 27 | K14: =VLOOKUP(K$1,'Statement 1'!$I$1:$J$483,2,0) -> 29 | L14: =VLOOKUP(L$1,'Statement 1'!$I$1:$J$483,2,0) -> 31 | M14: =VLOOKUP(M$1,'Statement 1'!$I$1:$J$483,2,0) -> 32 | N14: =VLOOKUP(N$1,'Statement 1'!$I$1:$J$483,2,0) -> 33 | O14: =VLOOKUP(O$1,'Statement 1'!$I$1:$J$483,2,0) -> 34 | P14: =VLOOKUP(P$1,'Statement 6_Others'!$K$14:$M$278,2,0) -> 239 | Q14: =VLOOKUP(Q$1,'Statement 5'!$G$15:$H$41,2,0) -> 16 | R14: =VLOOKUP(R$1,'Statement 6_Others'!$K$14:$M$278,2,0) -> 237 | S14: =VLOOKUP(S$1,'Statement 6_Others'!$K$14:$M$278,2,0) -> 235 | U14: =VLOOKUP(U$1,'Statement 6_Others'!$K$14:$M$278,2,0) -> 234 | V14: =VLOOKUP(V$1,'Statement 6_Others'!$K$14:$M$278,2,0) -> 236 | Y14: =VLOOKUP(Y$1,'Statement 6_Others'!$K$14:$M$278,2,0) -> 238 | AB14: =VLOOKUP(AB$1,'Statement 6_Others'!$K$14:$M$278,2,0) -> 240 | AC14: =VLOOKUP(AC$1,'Statement 6_Others'!$K$1:$M$276,2,0) -> 257 | AD14: =+AS14 -> 242 | AE14: 243 | AF14: 244 | AG14: 245 | AH14: 246 | AI14: 247 | AJ14: 248 | AK14: 249 | AL14: 250 | AM14: 251 | AN14: =+BC14 -> 252 | AO14: =+BD14 -> 253 | AP14: =+BE14 -> 254 | AQ14: =+BF14 -> 255 | AR14: =+BG14 -> 256 | AS14: =VLOOKUP(AS$1,'Statement 6_Others'!$K$14:$M$278,2,0) -> 242 | AT14: =VLOOKUP(AT$1,'Statement 6_Others'!$K$14:$M$278,2,0) -> 243 | AU14: =VLOOKUP(AU$1,'Statement 6_Others'!$K$14:$M$278,2,0) -> 244 | AV14: =VLOOKUP(AV$1,'Statement 6_Others'!$K$14:$M$278,2,0) -> 245 | AW14: =VLOOKUP(AW$1,'Statement 6_Others'!$K$14:$M$278,2,0) -> 246 | AX14: =VLOOKUP(AX$1,'Statement 6_Others'!$K$14:$M$278,2,0) -> 247 | AY14: =VLOOKUP(AY$1,'Statement 6_Others'!$K$14:$M$278,2,0) -> 248 | AZ14: =VLOOKUP(AZ$1,'Statement 6_Others'!$K$14:$M$278,2,0) -> 249 | BA14: =VLOOKUP(BA$1,'Statement 6_Others'!$K$14:$M$278,2,0) -> 250 | BB14: =VLOOKUP(BB$1,'Statement 6_Others'!$K$14:$M$278,2,0) -> 251 | BC14: =VLOOKUP(BC$1,'Statement 6_Others'!$K$14:$M$278,2,0) -> 252 | BD14: =VLOOKUP(BD$1,'Statement 6_Others'!$K$14:$M$278,2,0) -> 253 | BE14: =VLOOKUP(BE$1,'Statement 6_Others'!$K$14:$M$278,2,0) -> 254 | BF14: =VLOOKUP(BF$1,'Statement 6_Others'!$K$14:$M$278,2,0) -> 255 | BG14: =VLOOKUP(BG$1,'Statement 6_Others'!$K$14:$M$278,2,0) -> 256 | BH14: =VLOOKUP(BH$1,'Statement 1'!$I$1:$J$483,2,0) -> 36 | BI14: =VLOOKUP(BI$1,'Statement 1'!$I$1:$J$483,2,0) -> 39 | BJ14: =VLOOKUP(BJ$1,'Statement 1'!$I$1:$J$483,2,0) -> 40 | BM14: =VLOOKUP(BM$1,'Statement 1'!$I$1:$J$483,2,0) -> 42 | BN14: =VLOOKUP(BN$1,'Statement 1'!$I$1:$J$483,2,0) -> 43 | BO14: =VLOOKUP(BO$1,'Statement 1'!$I$1:$J$483,2,0) -> 45 | BP14: =VLOOKUP(BP$1,'Statement 1'!$I$1:$J$483,2,0) -> 46 | BQ14: =VLOOKUP(BQ$1,'Statement 1'!$I$1:$J$483,2,0) -> 47 | BR14: =VLOOKUP(BR$1,'Statement 1'!$I$1:$J$483,2,0) -> 48 | BS14: =VLOOKUP(BS$1,'Statement 1'!$I$1:$J$483,2,0) -> 49 | BT14: =VLOOKUP(BT$1,'Statement 1'!$I$1:$J$483,2,0) -> 50 | BU14: =VLOOKUP(BU$1,'Statement 1'!$I$1:$J$483,2,0) -> 52 | BV14: =VLOOKUP(BV$1,'Statement 1'!$I$1:$J$483,2,0) -> 53 | BW14: =VLOOKUP(BW$1,'Statement 1'!$I$1:$J$483,2,0) -> 54 | BX14: =VLOOKUP(BX$1,'Statement 1'!$I$1:$J$483,2,0) -> 55 | BY14: =VLOOKUP(BY$1,'Statement 1'!$I$1:$J$483,2,0) -> 56 | BZ14: =VLOOKUP(BZ$1,'Statement 1'!$I$1:$J$483,2,0) -> 58 | CA14: =VLOOKUP(CA$1,'Statement 6_Others'!$K$14:$M$278,2,0) -> 100 | CB14: =VLOOKUP(CB$1,'Statement 6_Others'!$K$14:$M$278,2,0) -> 101 | CC14: =VLOOKUP(CC$1,'Statement 6_Others'!$K$14:$M$278,2,0) -> 102 | CD14: =VLOOKUP(CD$1,'Statement 6_Others'!$K$14:$M$278,2,0) -> 103 | CG14: =VLOOKUP(CG$1,'Statement 6_Others'!$K$14:$M$278,2,0) -> 104 | CH14: =VLOOKUP(CH$1,'Statement 6_Others'!$K$14:$M$278,2,0) -> 105 | CI14: =VLOOKUP(CI$1,'Statement 6_Others'!$K$14:$M$278,2,0) -> 106 | CJ14: =VLOOKUP(CJ$1,'Statement 6_Others'!$K$14:$M$278,2,0) -> 107 | CK14: =VLOOKUP(CK$1,'Statement 6_Others'!$K$14:$M$278,2,0) -> 108 | CL14: =VLOOKUP(CL$1,'Statement 6_Others'!$K$14:$M$278,2,0) -> 109 | CM14: =VLOOKUP(CM$1,'Statement 1'!$I$1:$J$483,2,0) -> 60 | CN14: =VLOOKUP(CN$1,'Statement 6_Others'!$K$14:$M$278,2,0) -> 110 | CO14: =VLOOKUP(CO$1,'Statement 6_Others'!$K$14:$M$278,2,0) -> 111 | CP14: =VLOOKUP(CP$1,'Statement 6_Others'!$K$14:$M$278,2,0) -> 112 | CQ14: =VLOOKUP(CQ$1,'Statement 6_Others'!$K$14:$M$278,2,0) -> 113 | CR14: =VLOOKUP(CR$1,'Statement 6_Others'!$K$14:$M$278,2,0) -> 114 | CS14: =VLOOKUP(CS$1,'Statement 6_Others'!$K$14:$M$278,2,0) -> 115 | CT14: =VLOOKUP(CT$1,'Statement 6_Others'!$K$14:$M$278,2,0) -> 116 | CU14: =VLOOKUP(CU$1,'Statement 6_Others'!$K$14:$M$278,2,0) -> 117 | CV14: =VLOOKUP(CV$1,'Statement 6_Others'!$K$14:$M$278,2,0) -> 118 | CW14: =VLOOKUP(CW$1,'Statement 5'!$G$15:$H$41,2,0) -> 38 | CX14: =+DM14 -> 120 | CY14: 121 | CZ14: 122 | DA14: 123 | DB14: 124 | DC14: 125 | DD14: 126 | DE14: 127 | DF14: 128 | DG14: 129 | DH14: =+DW14 -> 130 | DI14: =+DX14 -> 131 | DJ14: =+DY14 -> 132 | DK14: =+DZ14 -> 133 | DL14: =+EA14 -> 134 | DM14: =VLOOKUP(DM$1,'Statement 6_Others'!$K$14:$M$278,2,0) -> 120 | DN14: =VLOOKUP(DN$1,'Statement 6_Others'!$K$14:$M$278,2,0) -> 121 | DO14: =VLOOKUP(DO$1,'Statement 6_Others'!$K$14:$M$278,2,0) -> 122 | DP14: =VLOOKUP(DP$1,'Statement 6_Others'!$K$14:$M$278,2,0) -> 123 | DQ14: =VLOOKUP(DQ$1,'Statement 6_Others'!$K$14:$M$278,2,0) -> 124 | DR14: =VLOOKUP(DR$1,'Statement 6_Others'!$K$14:$M$278,2,0) -> 125 | DS14: =VLOOKUP(DS$1,'Statement 6_Others'!$K$14:$M$278,2,0) -> 126 | DT14: =VLOOKUP(DT$1,'Statement 6_Others'!$K$14:$M$278,2,0) -> 127 | DU14: =VLOOKUP(DU$1,'Statement 6_Others'!$K$14:$M$278,2,0) -> 128 | DV14: =VLOOKUP(DV$1,'Statement 6_Others'!$K$14:$M$278,2,0) -> 129 | DW14: =VLOOKUP(DW$1,'Statement 6_Others'!$K$14:$M$278,2,0) -> 130 | DX14: =VLOOKUP(DX$1,'Statement 6_Others'!$K$14:$M$278,2,0) -> 131 | DY14: =VLOOKUP(DY$1,'Statement 6_Others'!$K$14:$M$278,2,0) -> 132 | DZ14: =VLOOKUP(DZ$1,'Statement 6_Others'!$K$14:$M$278,2,0) -> 133 | EA14: =VLOOKUP(EA$1,'Statement 6_Others'!$K$14:$M$278,2,0) -> 134 | EB14: =VLOOKUP(EB$1,'Statement 1'!$I$1:$J$483,2,0) -> 62 | EC14: =VLOOKUP(EC$1,'Statement 1'!$I$1:$J$483,2,0) -> 83 | EF14: =VLOOKUP(EF$1,'Statement 6_Others'!$K$1:$M$276,2,0) -> 265 | EG14: =VLOOKUP(EG$1,'Statement 6_Others'!$K$1:$M$276,2,0) -> 266 | EH14: =VLOOKUP(EH$1,'Statement 6_Others'!$K$1:$M$276,2,0) -> 267 | EI14: =VLOOKUP(EI$1,'Statement 6_Others'!$K$1:$M$276,2,0) -> 268 | EJ14: =VLOOKUP(EJ$1,'Statement 6_Others'!$K$1:$M$276,2,0) -> 269 | EK14: =VLOOKUP(EK$1,'Statement 6_Others'!$K$1:$M$276,2,0) -> 270 | EL14: =VLOOKUP(EL$1,'Statement 6_Others'!$K$1:$M$276,2,0) -> 271 | EM14: =VLOOKUP(EM$1,'Statement 6_Others'!$K$1:$M$276,2,0) -> 272 | EN14: =VLOOKUP(EN$1,'Statement 6_Others'!$K$1:$M$276,2,0) -> 273 | EO14: =VLOOKUP(EO$1,'Statement 6_Others'!$K$1:$M$276,2,0) -> 274 | EP14: =+EF14 -> 265 | EQ14: 266 | ER14: 267 | ES14: 268 | ET14: 269 | EU14: 270 | EV14: 271 | EW14: 272 | EX14: 273 | EY14: 274 | FW14: =VLOOKUP(FW$1,'Statement 1'!$I$1:$J$483,2,0) -> 87 | FX14: =VLOOKUP(FW$1,'Statement 1'!$I$1:$J$483,2,0) -> 87
A15: =CELL("filename",'Statement 6_Others'!A2) -> T:\2. KG review of audited accounts\2017-18 KG Audited Accounts\NON-SCHEME\FINAL\[2018fdkg-e.xlsm]Statement 6_Others
A16: =TRIM(RIGHT(A15,LEN(A15)-SEARCH("]",A15,1))) -> Statement 6_Others
E17: Column - Stmt 1 | G17: =COLUMN('Statement 1'!$R$21) -> 18 | H17: =COLUMN('Statement 1'!$R$21) -> 18 | I17: =COLUMN('Statement 1'!$R$21) -> 18 | J17: =COLUMN('Statement 1'!$R$21) -> 18 | K17: =COLUMN('Statement 1'!$R$21) -> 18 | L17: =COLUMN('Statement 1'!$R$21) -> 18 | M17: =COLUMN('Statement 1'!$R$21) -> 18 | N17: =COLUMN('Statement 1'!$R$21) -> 18 | O17: =COLUMN('Statement 1'!$R$21) -> 18 | P17: =COLUMN('Statement 6_Others'!$V$99) -> 22 | Q17: =COLUMN('Statement 5'!$Q$10) -> 17 | R17: =COLUMN('Statement 6_Others'!$V$99) -> 22 | S17: =COLUMN('Statement 6_Others'!$V$99) -> 22 | U17: =COLUMN('Statement 6_Others'!$V$99) -> 22 | V17: =COLUMN('Statement 6_Others'!$V$99) -> 22 | Y17: =COLUMN('Statement 6_Others'!$V$99) -> 22 | AB17: =COLUMN('Statement 6_Others'!$V$99) -> 22 | AC17: =COLUMN('Statement 6_Others'!$V$99) -> 22 | AD17: =COLUMN('Statement 6_Others'!$B$242) -> 2 | AE17: =COLUMN('Statement 6_Others'!$B$242) -> 2 | AF17: =COLUMN('Statement 6_Others'!$B$242) -> 2 | AG17: =COLUMN('Statement 6_Others'!$B$242) -> 2 | AH17: =COLUMN('Statement 6_Others'!$B$242) -> 2 | AI17: =COLUMN('Statement 6_Others'!$B$242) -> 2 | AJ17: =COLUMN('Statement 6_Others'!$B$242) -> 2 | AK17: =COLUMN('Statement 6_Others'!$B$242) -> 2 | AL17: =COLUMN('Statement 6_Others'!$B$242) -> 2 | AM17: =COLUMN('Statement 6_Others'!$B$242) -> 2 | AN17: =COLUMN('Statement 6_Others'!$B$242) -> 2 | AO17: =COLUMN('Statement 6_Others'!$B$242) -> 2 | AP17: =COLUMN('Statement 6_Others'!$B$242) -> 2 | AQ17: =COLUMN('Statement 6_Others'!$B$242) -> 2 | AR17: =COLUMN('Statement 6_Others'!$B$242) -> 2 | AS17: =COLUMN('Statement 6_Others'!$V$99) -> 22 | AT17: =COLUMN('Statement 6_Others'!$V$99) -> 22 | AU17: =COLUMN('Statement 6_Others'!$V$99) -> 22 | AV17: =COLUMN('Statement 6_Others'!$V$99) -> 22 | AW17: =COLUMN('Statement 6_Others'!$V$99) -> 22 | AX17: =COLUMN('Statement 6_Others'!$V$99) -> 22 | AY17: =COLUMN('Statement 6_Others'!$V$99) -> 22 | AZ17: =COLUMN('Statement 6_Others'!$V$99) -> 22 | BA17: =COLUMN('Statement 6_Others'!$V$99) -> 22 | BB17: =COLUMN('Statement 6_Others'!$V$99) -> 22 | BC17: =COLUMN('Statement 6_Others'!$V$99) -> 22 | BD17: =COLUMN('Statement 6_Others'!$V$99) -> 22 | BE17: =COLUMN('Statement 6_Others'!$V$99) -> 22 | BF17: =COLUMN('Statement 6_Others'!$V$99) -> 22 | BG17: =COLUMN('Statement 6_Others'!$V$99) -> 22 | BH17: =COLUMN('Statement 1'!$R$21) -> 18 | BI17: =COLUMN('Statement 1'!$R$21) -> 18 | BJ17: =COLUMN('Statement 1'!$R$21) -> 18 | BM17: =COLUMN('Statement 1'!$R$21) -> 18 | BN17: =COLUMN('Statement 1'!$R$21) -> 18 | BO17: =COLUMN('Statement 1'!$R$21) -> 18 | BP17: =COLUMN('Statement 1'!$R$21) -> 18 | BQ17: =COLUMN('Statement 1'!$R$21) -> 18 | BR17: =COLUMN('Statement 1'!$R$21) -> 18 | BS17: =COLUMN('Statement 1'!$R$21) -> 18 | BT17: =COLUMN('Statement 1'!$R$21) -> 18 | BU17: =COLUMN('Statement 1'!$R$21) -> 18 | BV17: =COLUMN('Statement 1'!$R$21) -> 18 | BW17: =COLUMN('Statement 1'!$R$21) -> 18 | BX17: =COLUMN('Statement 1'!$R$21) -> 18 | BY17: =COLUMN('Statement 1'!$R$21) -> 18 | BZ17: =COLUMN('Statement 1'!$R$21) -> 18 | CA17: =COLUMN('Statement 6_Others'!$V$99) -> 22 | CB17: =COLUMN('Statement 6_Others'!$V$99) -> 22 | CC17: =COLUMN('Statement 6_Others'!$V$99) -> 22 | CD17: =COLUMN('Statement 6_Others'!$V$99) -> 22 | CG17: =COLUMN('Statement 6_Others'!$V$99) -> 22 | CH17: =COLUMN('Statement 6_Others'!$V$99) -> 22 | CI17: =COLUMN('Statement 6_Others'!$V$99) -> 22 | CJ17: =COLUMN('Statement 6_Others'!$V$99) -> 22 | CK17: =COLUMN('Statement 6_Others'!$V$99) -> 22 | CL17: =COLUMN('Statement 6_Others'!$V$99) -> 22 | CM17: =COLUMN('Statement 1'!$R$21) -> 18 | CN17: =COLUMN('Statement 6_Others'!$V$99) -> 22 | CO17: =COLUMN('Statement 6_Others'!$V$99) -> 22 | CP17: =COLUMN('Statement 6_Others'!$V$99) -> 22 | CQ17: =COLUMN('Statement 6_Others'!$V$99) -> 22 | CR17: =COLUMN('Statement 6_Others'!$V$99) -> 22 | CS17: =COLUMN('Statement 6_Others'!$V$99) -> 22 | CT17: =COLUMN('Statement 6_Others'!$V$99) -> 22 | CU17: =COLUMN('Statement 6_Others'!$V$99) -> 22 | CV17: =COLUMN('Statement 6_Others'!$V$99) -> 22 | CW17: =COLUMN('Statement 5'!$Q$10) -> 17 | CX17: =COLUMN('Statement 6_Others'!$B$120) -> 2 | CY17: =COLUMN('Statement 6_Others'!$B$120) -> 2 | CZ17: =COLUMN('Statement 6_Others'!$B$120) -> 2 | DA17: =COLUMN('Statement 6_Others'!$B$120) -> 2 | DB17: =COLUMN('Statement 6_Others'!$B$120) -> 2 | DC17: =COLUMN('Statement 6_Others'!$B$120) -> 2 | DD17: =COLUMN('Statement 6_Others'!$B$120) -> 2 | DE17: =COLUMN('Statement 6_Others'!$B$120) -> 2 | DF17: =COLUMN('Statement 6_Others'!$B$120) -> 2 | DG17: =COLUMN('Statement 6_Others'!$B$120) -> 2 | DH17: =COLUMN('Statement 6_Others'!$B$120) -> 2 | DI17: =COLUMN('Statement 6_Others'!$B$120) -> 2 | DJ17: =COLUMN('Statement 6_Others'!$B$120) -> 2 | DK17: =COLUMN('Statement 6_Others'!$B$120) -> 2 | DL17: =COLUMN('Statement 6_Others'!$B$120) -> 2 | DM17: =COLUMN('Statement 6_Others'!$V$99) -> 22 | DN17: =COLUMN('Statement 6_Others'!$V$99) -> 22 | DO17: =COLUMN('Statement 6_Others'!$V$99) -> 22 | DP17: =COLUMN('Statement 6_Others'!$V$99) -> 22 | DQ17: =COLUMN('Statement 6_Others'!$V$99) -> 22 | DR17: =COLUMN('Statement 6_Others'!$V$99) -> 22 | DS17: =COLUMN('Statement 6_Others'!$V$99) -> 22 | DT17: =COLUMN('Statement 6_Others'!$V$99) -> 22 | DU17: =COLUMN('Statement 6_Others'!$V$99) -> 22 | DV17: =COLUMN('Statement 6_Others'!$V$99) -> 22 | DW17: =COLUMN('Statement 6_Others'!$V$99) -> 22 | DX17: =COLUMN('Statement 6_Others'!$V$99) -> 22 | DY17: =COLUMN('Statement 6_Others'!$V$99) -> 22 | DZ17: =COLUMN('Statement 6_Others'!$V$99) -> 22 | EA17: =COLUMN('Statement 6_Others'!$V$99) -> 22 | EB17: =COLUMN('Statement 1'!$R$21) -> 18 | EC17: =COLUMN('Statement 1'!$R$21) -> 18 | EF17: =COLUMN('Statement 6_Others'!$B$265) -> 2 | EG17: =COLUMN('Statement 6_Others'!$B$265) -> 2 | EH17: =COLUMN('Statement 6_Others'!$B$265) -> 2 | EI17: =COLUMN('Statement 6_Others'!$B$265) -> 2 | EJ17: =COLUMN('Statement 6_Others'!$B$265) -> 2 | EK17: =COLUMN('Statement 6_Others'!$B$265) -> 2 | EL17: =COLUMN('Statement 6_Others'!$B$265) -> 2 | EM17: =COLUMN('Statement 6_Others'!$B$265) -> 2 | EN17: =COLUMN('Statement 6_Others'!$B$265) -> 2 | EO17: =COLUMN('Statement 6_Others'!$B$265) -> 2 | EP17: =COLUMN('Statement 6_Others'!$V$99) -> 22 | EQ17: =COLUMN('Statement 6_Others'!$V$99) -> 22 | ER17: =COLUMN('Statement 6_Others'!$V$99) -> 22 | ES17: =COLUMN('Statement 6_Others'!$V$99) -> 22 | ET17: =COLUMN('Statement 6_Others'!$V$99) -> 22 | EU17: =COLUMN('Statement 6_Others'!$V$99) -> 22 | EV17: =COLUMN('Statement 6_Others'!$V$99) -> 22 | EW17: =COLUMN('Statement 6_Others'!$V$99) -> 22 | EX17: =COLUMN('Statement 6_Others'!$V$99) -> 22 | EY17: =COLUMN('Statement 6_Others'!$V$99) -> 22 | FW17: =COLUMN('Statement 1'!$R$21) -> 18 | FX17: =COLUMN('Statement 1'!$A$87) -> 1
E20: Row - Stmt 1A | G20: =VLOOKUP(G$1,'Statement 1A'!$I$1:$J$481,2,0) -> 25 | H20: =VLOOKUP(H$1,'Statement 1A'!$I$1:$J$481,2,0) -> 26 | I20: =VLOOKUP(I$1,'Statement 1A'!$I$1:$J$481,2,0) -> 27 | J20: =VLOOKUP(J$1,'Statement 1A'!$I$1:$J$481,2,0) -> 29 | K20: =VLOOKUP(K$1,'Statement 1A'!$I$1:$J$481,2,0) -> 31 | L20: =VLOOKUP(L$1,'Statement 1A'!$I$1:$J$481,2,0) -> 33 | M20: =VLOOKUP(M$1,'Statement 1A'!$I$1:$J$481,2,0) -> 34 | N20: =VLOOKUP(N$1,'Statement 1A'!$I$1:$J$481,2,0) -> 35 | O20: =VLOOKUP(O$1,'Statement 1A'!$I$1:$J$481,2,0) -> 36 | P20: =VLOOKUP(P$1,'Statement 6_Others'!$K$1:$M$276,2,0) -> 239 | Q20: =VLOOKUP(Q$1,'Statement 5'!$G$15:$H$41,2,0) -> 16 | R20: =VLOOKUP(R$1,'Statement 6_Others'!$K$1:$M$276,2,0) -> 237 | S20: =VLOOKUP(S$1,'Statement 6_Others'!$K$1:$M$276,2,0) -> 235 | U20: =VLOOKUP(U$1,'Statement 6_Others'!$K$1:$M$276,2,0) -> 234 | V20: =VLOOKUP(V$1,'Statement 6_Others'!$K$1:$M$276,2,0) -> 236 | Y20: =VLOOKUP(Y$1,'Statement 6_Others'!$K$1:$M$276,2,0) -> 238 | AB20: =VLOOKUP(AB$1,'Statement 6_Others'!$K$1:$M$276,2,0) -> 240 | AC20: =VLOOKUP(AC$1,'Statement 6_Others'!$K$1:$M$276,2,0) -> 257 | AD20: =+AS20 -> 242 | AE20: =+AT20 -> 243 | AF20: 244 | AG20: 245 | AH20: 246 | AI20: 247 | AJ20: 248 | AK20: 249 | AL20: 250 | AM20: 251 | AN20: =+BC20 -> 252 | AO20: =+BD20 -> 253 | AP20: =+BE20 -> 254 | AQ20: =+BF20 -> 255 | AR20: =+BG20 -> 256 | AS20: =VLOOKUP(AS$1,'Statement 6_Others'!$K$1:$M$276,2,0) -> 242 | AT20: =VLOOKUP(AT$1,'Statement 6_Others'!$K$1:$M$276,2,0) -> 243 | AU20: =VLOOKUP(AU$1,'Statement 6_Others'!$K$1:$M$276,2,0) -> 244 | AV20: =VLOOKUP(AV$1,'Statement 6_Others'!$K$1:$M$276,2,0) -> 245 | AW20: =VLOOKUP(AW$1,'Statement 6_Others'!$K$1:$M$276,2,0) -> 246 | AX20: =VLOOKUP(AX$1,'Statement 6_Others'!$K$1:$M$276,2,0) -> 247 | AY20: =VLOOKUP(AY$1,'Statement 6_Others'!$K$1:$M$276,2,0) -> 248 | AZ20: =VLOOKUP(AZ$1,'Statement 6_Others'!$K$1:$M$276,2,0) -> 249 | BA20: =VLOOKUP(BA$1,'Statement 6_Others'!$K$1:$M$276,2,0) -> 250 | BB20: =VLOOKUP(BB$1,'Statement 6_Others'!$K$1:$M$276,2,0) -> 251 | BC20: =VLOOKUP(BC$1,'Statement 6_Others'!$K$1:$M$276,2,0) -> 252 | BD20: =VLOOKUP(BD$1,'Statement 6_Others'!$K$1:$M$276,2,0) -> 253 | BE20: =VLOOKUP(BE$1,'Statement 6_Others'!$K$1:$M$276,2,0) -> 254 | BF20: =VLOOKUP(BF$1,'Statement 6_Others'!$K$1:$M$276,2,0) -> 255 | BG20: =VLOOKUP(BG$1,'Statement 6_Others'!$K$1:$M$276,2,0) -> 256 | BH20: =VLOOKUP(BH$1,'Statement 1A'!$I$1:$J$481,2,0) -> 38 | BI20: =VLOOKUP(BI$1,'Statement 1A'!$I$1:$J$481,2,0) -> 41 | BJ20: =VLOOKUP(BJ$1,'Statement 1A'!$I$1:$J$481,2,0) -> 42 | BM20: =VLOOKUP(BM$1,'Statement 1A'!$I$1:$J$481,2,0) -> 44 | BN20: =VLOOKUP(BN$1,'Statement 1A'!$I$1:$J$481,2,0) -> 45 | BO20: =VLOOKUP(BO$1,'Statement 1A'!$I$1:$J$481,2,0) -> 47 | BP20: =VLOOKUP(BP$1,'Statement 1A'!$I$1:$J$481,2,0) -> 48 | BQ20: =VLOOKUP(BQ$1,'Statement 1A'!$I$1:$J$481,2,0) -> 49 | BR20: =VLOOKUP(BR$1,'Statement 1A'!$I$1:$J$481,2,0) -> 50 | BS20: =VLOOKUP(BS$1,'Statement 1A'!$I$1:$J$481,2,0) -> 51 | BT20: =VLOOKUP(BT$1,'Statement 1A'!$I$1:$J$481,2,0) -> 52 | BU20: =VLOOKUP(BU$1,'Statement 1A'!$I$1:$J$481,2,0) -> 54 | BV20: =VLOOKUP(BV$1,'Statement 1A'!$I$1:$J$481,2,0) -> 55 | BW20: =VLOOKUP(BW$1,'Statement 1A'!$I$1:$J$481,2,0) -> 56 | BX20: =VLOOKUP(BX$1,'Statement 1A'!$I$1:$J$481,2,0) -> 57 | BY20: =VLOOKUP(BY$1,'Statement 1A'!$I$1:$J$481,2,0) -> 59 | BZ20: =VLOOKUP(BZ$1,'Statement 1A'!$I$1:$J$481,2,0) -> 61 | CA20: =VLOOKUP(CA$1,'Statement 6_Others'!$K$1:$M$276,2,0) -> 100 | CB20: =VLOOKUP(CB$1,'Statement 6_Others'!$K$1:$M$276,2,0) -> 101 | CC20: =VLOOKUP(CC$1,'Statement 6_Others'!$K$1:$M$276,2,0) -> 102 | CD20: =VLOOKUP(CD$1,'Statement 6_Others'!$K$1:$M$276,2,0) -> 103 | CG20: =VLOOKUP(CG$1,'Statement 6_Others'!$K$1:$M$276,2,0) -> 104 | CH20: =VLOOKUP(CH$1,'Statement 6_Others'!$K$1:$M$276,2,0) -> 105 | CI20: =VLOOKUP(CI$1,'Statement 6_Others'!$K$1:$M$276,2,0) -> 106 | CJ20: =VLOOKUP(CJ$1,'Statement 6_Others'!$K$1:$M$276,2,0) -> 107 | CK20: =VLOOKUP(CK$1,'Statement 6_Others'!$K$1:$M$276,2,0) -> 108 | CL20: =VLOOKUP(CL$1,'Statement 6_Others'!$K$1:$M$276,2,0) -> 109 | CM20: =VLOOKUP(CM$1,'Statement 1A'!$I$1:$J$481,2,0) -> 63 | CN20: =VLOOKUP(CN$1,'Statement 6_Others'!$K$1:$M$276,2,0) -> 110 | CO20: =VLOOKUP(CO$1,'Statement 6_Others'!$K$1:$M$276,2,0) -> 111 | CP20: =VLOOKUP(CP$1,'Statement 6_Others'!$K$1:$M$276,2,0) -> 112 | CQ20: =VLOOKUP(CQ$1,'Statement 6_Others'!$K$1:$M$276,2,0) -> 113 | CR20: =VLOOKUP(CR$1,'Statement 6_Others'!$K$1:$M$276,2,0) -> 114 | CS20: =VLOOKUP(CS$1,'Statement 6_Others'!$K$1:$M$276,2,0) -> 115 | CT20: =VLOOKUP(CT$1,'Statement 6_Others'!$K$1:$M$276,2,0) -> 116 | CU20: =VLOOKUP(CU$1,'Statement 6_Others'!$K$1:$M$276,2,0) -> 117 | CV20: =VLOOKUP(CV$1,'Statement 6_Others'!$K$1:$M$276,2,0) -> 118 | CW20: =VLOOKUP(CW$1,'Statement 5'!$G$15:$H$41,2,0) -> 38 | CX20: =+DM20 -> 120 | CY20: =+DN20 -> 121 | CZ20: 122 | DA20: 123 | DB20: 124 | DC20: 125 | DD20: 126 | DE20: 127 | DF20: 128 | DG20: 129 | DH20: =+DW20 -> 130 | DI20: 131 | DJ20: 132 | DK20: 133 | DL20: 134 | DM20: =VLOOKUP(DM$1,'Statement 6_Others'!$K$1:$M$276,2,0) -> 120 | DN20: =VLOOKUP(DN$1,'Statement 6_Others'!$K$1:$M$276,2,0) -> 121 | DO20: =VLOOKUP(DO$1,'Statement 6_Others'!$K$1:$M$276,2,0) -> 122 | DP20: =VLOOKUP(DP$1,'Statement 6_Others'!$K$1:$M$276,2,0) -> 123 | DQ20: =VLOOKUP(DQ$1,'Statement 6_Others'!$K$1:$M$276,2,0) -> 124 | DR20: =VLOOKUP(DR$1,'Statement 6_Others'!$K$1:$M$276,2,0) -> 125 | DS20: =VLOOKUP(DS$1,'Statement 6_Others'!$K$1:$M$276,2,0) -> 126 | DT20: =VLOOKUP(DT$1,'Statement 6_Others'!$K$1:$M$276,2,0) -> 127 | DU20: =VLOOKUP(DU$1,'Statement 6_Others'!$K$1:$M$276,2,0) -> 128 | DV20: =VLOOKUP(DV$1,'Statement 6_Others'!$K$1:$M$276,2,0) -> 129 | DW20: =VLOOKUP(DW$1,'Statement 6_Others'!$K$1:$M$276,2,0) -> 130 | DX20: =VLOOKUP(DX$1,'Statement 6_Others'!$K$1:$M$276,2,0) -> 131 | DY20: =VLOOKUP(DY$1,'Statement 6_Others'!$K$1:$M$276,2,0) -> 132 | DZ20: =VLOOKUP(DZ$1,'Statement 6_Others'!$K$1:$M$276,2,0) -> 133 | EA20: =VLOOKUP(EA$1,'Statement 6_Others'!$K$1:$M$276,2,0) -> 134 | EB20: =VLOOKUP(EB$1,'Statement 1A'!$I$1:$J$481,2,0) -> 65 | EC20: =VLOOKUP(EC$1,'Statement 1A'!$I$1:$J$481,2,0) -> 92 | EF20: =VLOOKUP(EF$1,'Statement 6_Others'!$K$1:$M$276,2,0) -> 265 | EG20: =VLOOKUP(EG$1,'Statement 6_Others'!$K$1:$M$276,2,0) -> 266 | EH20: =VLOOKUP(EH$1,'Statement 6_Others'!$K$1:$M$276,2,0) -> 267 | EI20: =VLOOKUP(EI$1,'Statement 6_Others'!$K$1:$M$276,2,0) -> 268 | EJ20: =VLOOKUP(EJ$1,'Statement 6_Others'!$K$1:$M$276,2,0) -> 269 | EK20: =VLOOKUP(EK$1,'Statement 6_Others'!$K$1:$M$276,2,0) -> 270 | EL20: =VLOOKUP(EL$1,'Statement 6_Others'!$K$1:$M$276,2,0) -> 271 | EM20: =VLOOKUP(EM$1,'Statement 6_Others'!$K$1:$M$276,2,0) -> 272 | EN20: =VLOOKUP(EN$1,'Statement 6_Others'!$K$1:$M$276,2,0) -> 273 | EO20: =VLOOKUP(EO$1,'Statement 6_Others'!$K$1:$M$276,2,0) -> 274 | EP20: =+EF20 -> 265 | EQ20: 266 | ER20: 267 | ES20: 268 | ET20: 269 | EU20: 270 | EV20: 271 | EW20: 272 | EX20: 273 | EY20: 274 | FW20: =VLOOKUP(FW$1,'Statement 1A'!$I$1:$J$481,2,0) -> 96 | FX20: =VLOOKUP(FW$1,'Statement 1A'!$I$1:$J$481,2,0) -> 96
G21: =+G20 -> 25 | H21: 26 | I21: 27 | J21: 29 | K21: 31 | L21: =+L20 -> 33 | M21: 34 | N21: 35 | O21: 36 | P21: =+P20 -> 239 | Q21: =+Q20 -> 16 | R21: =+R20 -> 237 | S21: =+S20 -> 235 | U21: =+U20 -> 234 | V21: =+V20 -> 236 | Y21: =+Y20 -> 238 | AB21: =+AB20 -> 240 | AC21: =+AC20 -> 257 | AD21: 242 | AE21: 243 | AF21: 244 | AG21: 245 | AH21: 246 | AI21: 247 | AJ21: 248 | AK21: 249 | AL21: 250 | AM21: 251 | AN21: =+AN20 -> 252 | AO21: =+AO20 -> 253 | AP21: =+AP20 -> 254 | AQ21: =+AQ20 -> 255 | AR21: =+AR20 -> 256 | AS21: 242 | AT21: 243 | AU21: 244 | AV21: 245 | AW21: 246 | AX21: 247 | AY21: 248 | AZ21: 249 | BA21: 250 | BB21: 251 | BC21: =+BC20 -> 252 | BD21: 253 | BE21: 254 | BF21: 255 | BG21: 256 | BH21: 38 | BI21: 41 | BJ21: 42 | BM21: =+BM20 -> 44 | BN21: 45 | BO21: 47 | BP21: 48 | BQ21: 49 | BR21: 50 | BS21: 51 | BT21: 52 | BU21: 54 | BV21: 55 | BW21: 56 | BX21: 57 | BY21: 59 | BZ21: 61 | CA21: =+CA20 -> 100 | CB21: 101 | CC21: 102 | CD21: 103 | CG21: 104 | CH21: 105 | CI21: 106 | CJ21: 107 | CK21: 108 | CL21: 109 | CM21: 63 | CN21: 110 | CO21: 111 | CP21: =+CP20 -> 112 | CQ21: 113 | CR21: 114 | CS21: 115 | CT21: 116 | CU21: 117 | CV21: 118 | CW21: 38 | CX21: =+DM21 -> 120 | CY21: 121 | CZ21: 122 | DA21: 123 | DB21: 124 | DC21: 125 | DD21: 126 | DE21: 127 | DF21: 128 | DG21: 129 | DH21: 130 | DI21: 131 | DJ21: 132 | DK21: 133 | DL21: 134 | DM21: =+DM20 -> 120 | DN21: 121 | DO21: 122 | DP21: 123 | DQ21: 124 | DR21: 125 | DS21: 126 | DT21: 127 | DU21: 128 | DV21: 129 | DW21: =+DW20 -> 130 | DX21: =+DX20 -> 131 | DY21: =+DY20 -> 132 | DZ21: =+DZ20 -> 133 | EA21: =+EA20 -> 134 | EB21: 65 | EC21: 92 | EF21: =+EF20 -> 265 | EG21: 266 | EH21: 267 | EI21: 268 | EJ21: 269 | EK21: =+EK20 -> 270 | EL21: =+EL20 -> 271 | EM21: =+EM20 -> 272 | EN21: =+EN20 -> 273 | EO21: =+EO20 -> 274 | EP21: 265 | EQ21: 266 | ER21: 267 | ES21: 268 | ET21: 269 | EU21: =+EU20 -> 270 | EV21: =+EV20 -> 271 | EW21: =+EW20 -> 272 | EX21: =+EX20 -> 273 | EY21: =+EY20 -> 274 | FW21: =+FW20 -> 96 | FX21: =+FX20 -> 96
E23: Column - Stmt 1A | G23: =COLUMN('Statement 1A'!$V$20) -> 22 | H23: =COLUMN('Statement 1A'!$V$20) -> 22 | I23: =COLUMN('Statement 1A'!$V$20) -> 22 | J23: =COLUMN('Statement 1A'!$V$20) -> 22 | K23: =COLUMN('Statement 1A'!$V$20) -> 22 | L23: =COLUMN('Statement 1A'!$V$20) -> 22 | M23: =COLUMN('Statement 1A'!$V$20) -> 22 | N23: =COLUMN('Statement 1A'!$V$20) -> 22 | O23: =COLUMN('Statement 1A'!$V$20) -> 22 | P23: =COLUMN('Statement 6_Others'!$V$99) -> 22 | Q23: =COLUMN('Statement 5'!$Q$10) -> 17 | R23: =COLUMN('Statement 6_Others'!$V$99) -> 22 | S23: =COLUMN('Statement 6_Others'!$V$99) -> 22 | U23: =COLUMN('Statement 6_Others'!$V$99) -> 22 | V23: =COLUMN('Statement 6_Others'!$V$99) -> 22 | Y23: =COLUMN('Statement 6_Others'!$V$99) -> 22 | AB23: =COLUMN('Statement 6_Others'!$V$99) -> 22 | AC23: =COLUMN('Statement 6_Others'!$V$265) -> 22 | AD23: =COLUMN('Statement 6_Others'!$V$265) -> 22 | AE23: =COLUMN('Statement 6_Others'!$V$265) -> 22 | AF23: =COLUMN('Statement 6_Others'!$V$265) -> 22 | AG23: =COLUMN('Statement 6_Others'!$V$265) -> 22 | AH23: =COLUMN('Statement 6_Others'!$V$265) -> 22 | AI23: =COLUMN('Statement 6_Others'!$V$265) -> 22 | AJ23: =COLUMN('Statement 6_Others'!$V$265) -> 22 | AK23: =COLUMN('Statement 6_Others'!$V$265) -> 22 | AL23: =COLUMN('Statement 6_Others'!$V$265) -> 22 | AM23: =COLUMN('Statement 6_Others'!$V$265) -> 22 | AN23: =COLUMN('Statement 6_Others'!$V$265) -> 22 | AO23: =COLUMN('Statement 6_Others'!$V$265) -> 22 | AP23: =COLUMN('Statement 6_Others'!$V$265) -> 22 | AQ23: =COLUMN('Statement 6_Others'!$V$265) -> 22 | AR23: =COLUMN('Statement 6_Others'!$V$265) -> 22 | AS23: =COLUMN('Statement 6_Others'!$V$99) -> 22 | AT23: =COLUMN('Statement 6_Others'!$V$99) -> 22 | AU23: =COLUMN('Statement 6_Others'!$V$99) -> 22 | AV23: =COLUMN('Statement 6_Others'!$V$99) -> 22 | AW23: =COLUMN('Statement 6_Others'!$V$99) -> 22 | AX23: =COLUMN('Statement 6_Others'!$V$99) -> 22 | AY23: =COLUMN('Statement 6_Others'!$V$99) -> 22 | AZ23: =COLUMN('Statement 6_Others'!$V$99) -> 22 | BA23: =COLUMN('Statement 6_Others'!$V$99) -> 22 | BB23: =COLUMN('Statement 6_Others'!$V$99) -> 22 | BC23: =COLUMN('Statement 6_Others'!$V$99) -> 22 | BD23: =COLUMN('Statement 6_Others'!$V$99) -> 22 | BE23: =COLUMN('Statement 6_Others'!$V$99) -> 22 | BF23: =COLUMN('Statement 6_Others'!$V$99) -> 22 | BG23: =COLUMN('Statement 6_Others'!$V$99) -> 22 | BH23: =COLUMN('Statement 1A'!$V$20) -> 22 | BI23: =COLUMN('Statement 1A'!$V$20) -> 22 | BJ23: =COLUMN('Statement 1A'!$V$20) -> 22 | BM23: =COLUMN('Statement 1A'!$V$20) -> 22 | BN23: =COLUMN('Statement 1A'!$V$20) -> 22 | BO23: =COLUMN('Statement 1A'!$V$20) -> 22 | BP23: =COLUMN('Statement 1A'!$V$20) -> 22 | BQ23: =COLUMN('Statement 1A'!$V$20) -> 22 | BR23: =COLUMN('Statement 1A'!$V$20) -> 22 | BS23: =COLUMN('Statement 1A'!$V$20) -> 22 | BT23: =COLUMN('Statement 1A'!$V$20) -> 22 | BU23: =COLUMN('Statement 1A'!$V$20) -> 22 | BV23: =COLUMN('Statement 1A'!$V$20) -> 22 | BW23: =COLUMN('Statement 1A'!$V$20) -> 22 | BX23: =COLUMN('Statement 1A'!$V$20) -> 22 | BY23: =COLUMN('Statement 1A'!$V$20) -> 22 | BZ23: =COLUMN('Statement 1A'!$V$20) -> 22 | CA23: =COLUMN('Statement 6_Others'!$V$99) -> 22 | CB23: =COLUMN('Statement 6_Others'!$V$99) -> 22 | CC23: =COLUMN('Statement 6_Others'!$V$99) -> 22 | CD23: =COLUMN('Statement 6_Others'!$V$99) -> 22 | CG23: =COLUMN('Statement 6_Others'!$V$99) -> 22 | CH23: =COLUMN('Statement 6_Others'!$V$99) -> 22 | CI23: =COLUMN('Statement 6_Others'!$V$99) -> 22 | CJ23: =COLUMN('Statement 6_Others'!$V$99) -> 22 | CK23: =COLUMN('Statement 6_Others'!$V$99) -> 22 | CL23: =COLUMN('Statement 6_Others'!$V$99) -> 22 | CM23: =COLUMN('Statement 1A'!$V$20) -> 22 | CN23: =COLUMN('Statement 6_Others'!$V$99) -> 22 | CO23: =COLUMN('Statement 6_Others'!$V$99) -> 22 | CP23: =COLUMN('Statement 6_Others'!$V$99) -> 22 | CQ23: =COLUMN('Statement 6_Others'!$V$99) -> 22 | CR23: =COLUMN('Statement 6_Others'!$V$99) -> 22 | CS23: =COLUMN('Statement 6_Others'!$V$99) -> 22 | CT23: =COLUMN('Statement 6_Others'!$V$99) -> 22 | CU23: =COLUMN('Statement 6_Others'!$V$99) -> 22 | CV23: =COLUMN('Statement 6_Others'!$V$99) -> 22 | CW23: =COLUMN('Statement 5'!$Q$10) -> 17 | CX23: =COLUMN('Statement 6_Others'!$V$265) -> 22 | CY23: =COLUMN('Statement 6_Others'!$V$265) -> 22 | CZ23: =COLUMN('Statement 6_Others'!$V$265) -> 22 | DA23: =COLUMN('Statement 6_Others'!$V$265) -> 22 | DB23: =COLUMN('Statement 6_Others'!$V$265) -> 22 | DC23: =COLUMN('Statement 6_Others'!$V$265) -> 22 | DD23: =COLUMN('Statement 6_Others'!$V$265) -> 22 | DE23: =COLUMN('Statement 6_Others'!$V$265) -> 22 | DF23: =COLUMN('Statement 6_Others'!$V$265) -> 22 | DG23: =COLUMN('Statement 6_Others'!$V$265) -> 22 | DH23: =COLUMN('Statement 6_Others'!$V$265) -> 22 | DI23: =COLUMN('Statement 6_Others'!$V$265) -> 22 | DJ23: =COLUMN('Statement 6_Others'!$V$265) -> 22 | DK23: =COLUMN('Statement 6_Others'!$V$265) -> 22 | DL23: =COLUMN('Statement 6_Others'!$V$265) -> 22 | DM23: =COLUMN('Statement 6_Others'!$V$99) -> 22 | DN23: =COLUMN('Statement 6_Others'!$V$99) -> 22 | DO23: =COLUMN('Statement 6_Others'!$V$99) -> 22 | DP23: =COLUMN('Statement 6_Others'!$V$99) -> 22 | DQ23: =COLUMN('Statement 6_Others'!$V$99) -> 22 | DR23: =COLUMN('Statement 6_Others'!$V$99) -> 22 | DS23: =COLUMN('Statement 6_Others'!$V$99) -> 22 | DT23: =COLUMN('Statement 6_Others'!$V$99) -> 22 | DU23: =COLUMN('Statement 6_Others'!$V$99) -> 22 | DV23: =COLUMN('Statement 6_Others'!$V$99) -> 22 | DW23: =COLUMN('Statement 6_Others'!$V$99) -> 22 | DX23: =COLUMN('Statement 6_Others'!$V$99) -> 22 | DY23: =COLUMN('Statement 6_Others'!$V$99) -> 22 | DZ23: =COLUMN('Statement 6_Others'!$V$99) -> 22 | EA23: =COLUMN('Statement 6_Others'!$V$99) -> 22 | EB23: =COLUMN('Statement 1A'!$V$20) -> 22 | EC23: =COLUMN('Statement 1A'!$V$20) -> 22 | EF23: =COLUMN('Statement 6_Others'!$V$265) -> 22 | EG23: =COLUMN('Statement 6_Others'!$V$265) -> 22 | EH23: =COLUMN('Statement 6_Others'!$V$265) -> 22 | EI23: =COLUMN('Statement 6_Others'!$V$265) -> 22 | EJ23: =COLUMN('Statement 6_Others'!$V$265) -> 22 | EK23: =COLUMN('Statement 6_Others'!$V$265) -> 22 | EL23: =COLUMN('Statement 6_Others'!$V$265) -> 22 | EM23: =COLUMN('Statement 6_Others'!$V$265) -> 22 | EN23: =COLUMN('Statement 6_Others'!$V$265) -> 22 | EO23: =COLUMN('Statement 6_Others'!$V$265) -> 22 | EP23: =COLUMN('Statement 6_Others'!$V$99) -> 22 | EQ23: =COLUMN('Statement 6_Others'!$V$99) -> 22 | ER23: =COLUMN('Statement 6_Others'!$V$99) -> 22 | ES23: =COLUMN('Statement 6_Others'!$V$99) -> 22 | ET23: =COLUMN('Statement 6_Others'!$V$99) -> 22 | EU23: =COLUMN('Statement 6_Others'!$V$99) -> 22 | EV23: =COLUMN('Statement 6_Others'!$V$99) -> 22 | EW23: =COLUMN('Statement 6_Others'!$V$99) -> 22 | EX23: =COLUMN('Statement 6_Others'!$V$99) -> 22 | EY23: =COLUMN('Statement 6_Others'!$V$99) -> 22 | FW23: =COLUMN('Statement 1A'!$V$20) -> 22 | FX23: =COLUMN('Statement 1A'!$A$96) -> 1
G24: =COLUMN('Statement 1A'!$AE$20) -> 31 | H24: =COLUMN('Statement 1A'!$AE$20) -> 31 | I24: =COLUMN('Statement 1A'!$AE$20) -> 31 | J24: =COLUMN('Statement 1A'!$AE$20) -> 31 | K24: =COLUMN('Statement 1A'!$AE$20) -> 31 | L24: =COLUMN('Statement 1A'!$AE$20) -> 31 | M24: =COLUMN('Statement 1A'!$AE$20) -> 31 | N24: =COLUMN('Statement 1A'!$AE$20) -> 31 | O24: =COLUMN('Statement 1A'!$AE$20) -> 31 | P24: =COLUMN('Statement 6_Others'!$AE$99) -> 31 | R24: =COLUMN('Statement 6_Others'!$AE$99) -> 31 | S24: =COLUMN('Statement 6_Others'!$AE$99) -> 31 | U24: =COLUMN('Statement 6_Others'!$AE$99) -> 31 | V24: =COLUMN('Statement 6_Others'!$AE$99) -> 31 | Y24: =COLUMN('Statement 6_Others'!$AE$99) -> 31 | AB24: =COLUMN('Statement 6_Others'!$AE$99) -> 31 | AC24: =COLUMN('Statement 6_Others'!$AE$265) -> 31 | AD24: =COLUMN('Statement 6_Others'!$AE$265) -> 31 | AE24: =COLUMN('Statement 6_Others'!$AE$265) -> 31 | AF24: =COLUMN('Statement 6_Others'!$AE$265) -> 31 | AG24: =COLUMN('Statement 6_Others'!$AE$265) -> 31 | AH24: =COLUMN('Statement 6_Others'!$AE$265) -> 31 | AI24: =COLUMN('Statement 6_Others'!$AE$265) -> 31 | AJ24: =COLUMN('Statement 6_Others'!$AE$265) -> 31 | AK24: =COLUMN('Statement 6_Others'!$AE$265) -> 31 | AL24: =COLUMN('Statement 6_Others'!$AE$265) -> 31 | AM24: =COLUMN('Statement 6_Others'!$AE$265) -> 31 | AN24: =COLUMN('Statement 6_Others'!$AE$265) -> 31 | AO24: =COLUMN('Statement 6_Others'!$AE$265) -> 31 | AP24: =COLUMN('Statement 6_Others'!$AE$265) -> 31 | AQ24: =COLUMN('Statement 6_Others'!$AE$265) -> 31 | AR24: =COLUMN('Statement 6_Others'!$AE$265) -> 31 | AS24: =COLUMN('Statement 6_Others'!$AE$99) -> 31 | AT24: =COLUMN('Statement 6_Others'!$AE$99) -> 31 | AU24: =COLUMN('Statement 6_Others'!$AE$99) -> 31 | AV24: =COLUMN('Statement 6_Others'!$AE$99) -> 31 | AW24: =COLUMN('Statement 6_Others'!$AE$99) -> 31 | AX24: =COLUMN('Statement 6_Others'!$AE$99) -> 31 | AY24: =COLUMN('Statement 6_Others'!$AE$99) -> 31 | AZ24: =COLUMN('Statement 6_Others'!$AE$99) -> 31 | BA24: =COLUMN('Statement 6_Others'!$AE$99) -> 31 | BB24: =COLUMN('Statement 6_Others'!$AE$99) -> 31 | BC24: =COLUMN('Statement 6_Others'!$AE$99) -> 31 | BD24: =COLUMN('Statement 6_Others'!$AE$99) -> 31 | BE24: =COLUMN('Statement 6_Others'!$AE$99) -> 31 | BF24: =COLUMN('Statement 6_Others'!$AE$99) -> 31 | BG24: =COLUMN('Statement 6_Others'!$AE$99) -> 31 | BH24: =COLUMN('Statement 1A'!$AE$20) -> 31 | BI24: =COLUMN('Statement 1A'!$AE$20) -> 31 | BJ24: =COLUMN('Statement 1A'!$AE$20) -> 31 | BM24: =COLUMN('Statement 1A'!$AE$20) -> 31 | BN24: =COLUMN('Statement 1A'!$AE$20) -> 31 | BO24: =COLUMN('Statement 1A'!$AE$20) -> 31 | BP24: =COLUMN('Statement 1A'!$AE$20) -> 31 | BQ24: =COLUMN('Statement 1A'!$AE$20) -> 31 | BR24: =COLUMN('Statement 1A'!$AE$20) -> 31 | BS24: =COLUMN('Statement 1A'!$AE$20) -> 31 | BT24: =COLUMN('Statement 1A'!$AE$20) -> 31 | BU24: =COLUMN('Statement 1A'!$AE$20) -> 31 | BV24: =COLUMN('Statement 1A'!$AE$20) -> 31 | BW24: =COLUMN('Statement 1A'!$AE$20) -> 31 | BX24: =COLUMN('Statement 1A'!$AE$20) -> 31 | BY24: =COLUMN('Statement 1A'!$AE$20) -> 31 | BZ24: =COLUMN('Statement 1A'!$AE$20) -> 31 | CA24: =COLUMN('Statement 6_Others'!$AE$99) -> 31 | CB24: =COLUMN('Statement 6_Others'!$AE$99) -> 31 | CC24: =COLUMN('Statement 6_Others'!$AE$99) -> 31 | CD24: =COLUMN('Statement 6_Others'!$AE$99) -> 31 | CG24: =COLUMN('Statement 6_Others'!$AE$99) -> 31 | CH24: =COLUMN('Statement 6_Others'!$AE$99) -> 31 | CI24: =COLUMN('Statement 6_Others'!$AE$99) -> 31 | CJ24: =COLUMN('Statement 6_Others'!$AE$99) -> 31 | CK24: =COLUMN('Statement 6_Others'!$AE$99) -> 31 | CL24: =COLUMN('Statement 6_Others'!$AE$99) -> 31 | CM24: =COLUMN('Statement 1A'!$AE$20) -> 31 | CN24: =COLUMN('Statement 6_Others'!$AE$99) -> 31 | CO24: =COLUMN('Statement 6_Others'!$AE$99) -> 31 | CP24: =COLUMN('Statement 6_Others'!$AE$99) -> 31 | CQ24: =COLUMN('Statement 6_Others'!$AE$99) -> 31 | CR24: =COLUMN('Statement 6_Others'!$AE$99) -> 31 | CS24: =COLUMN('Statement 6_Others'!$AE$99) -> 31 | CT24: =COLUMN('Statement 6_Others'!$AE$99) -> 31 | CU24: =COLUMN('Statement 6_Others'!$AE$99) -> 31 | CV24: =COLUMN('Statement 6_Others'!$AE$99) -> 31 | CX24: =COLUMN('Statement 6_Others'!$AE$265) -> 31 | CY24: =COLUMN('Statement 6_Others'!$AE$265) -> 31 | CZ24: =COLUMN('Statement 6_Others'!$AE$265) -> 31 | DA24: =COLUMN('Statement 6_Others'!$AE$265) -> 31 | DB24: =COLUMN('Statement 6_Others'!$AE$265) -> 31 | DC24: =COLUMN('Statement 6_Others'!$AE$265) -> 31 | DD24: =COLUMN('Statement 6_Others'!$AE$265) -> 31 | DE24: =COLUMN('Statement 6_Others'!$AE$265) -> 31 | DF24: =COLUMN('Statement 6_Others'!$AE$265) -> 31 | DG24: =COLUMN('Statement 6_Others'!$AE$265) -> 31 | DH24: =COLUMN('Statement 6_Others'!$AE$265) -> 31 | DI24: =COLUMN('Statement 6_Others'!$AE$265) -> 31 | DJ24: =COLUMN('Statement 6_Others'!$AE$265) -> 31 | DK24: =COLUMN('Statement 6_Others'!$AE$265) -> 31 | DL24: =COLUMN('Statement 6_Others'!$AE$265) -> 31 | DM24: =COLUMN('Statement 6_Others'!$AE$99) -> 31 | DN24: =COLUMN('Statement 6_Others'!$AE$99) -> 31 | DO24: =COLUMN('Statement 6_Others'!$AE$99) -> 31 | DP24: =COLUMN('Statement 6_Others'!$AE$99) -> 31 | DQ24: =COLUMN('Statement 6_Others'!$AE$99) -> 31 | DR24: =COLUMN('Statement 6_Others'!$AE$99) -> 31 | DS24: =COLUMN('Statement 6_Others'!$AE$99) -> 31 | DT24: =COLUMN('Statement 6_Others'!$AE$99) -> 31 | DU24: =COLUMN('Statement 6_Others'!$AE$99) -> 31 | DV24: =COLUMN('Statement 6_Others'!$AE$99) -> 31 | DW24: =COLUMN('Statement 6_Others'!$AE$99) -> 31 | DX24: =COLUMN('Statement 6_Others'!$AE$99) -> 31 | DY24: =COLUMN('Statement 6_Others'!$AE$99) -> 31 | DZ24: =COLUMN('Statement 6_Others'!$AE$99) -> 31 | EA24: =COLUMN('Statement 6_Others'!$AE$99) -> 31 | EB24: =COLUMN('Statement 1A'!$AE$20) -> 31 | EC24: =COLUMN('Statement 1A'!$AE$20) -> 31 | EF24: =COLUMN('Statement 6_Others'!$AE$265) -> 31 | EG24: =COLUMN('Statement 6_Others'!$AE$265) -> 31 | EH24: =COLUMN('Statement 6_Others'!$AE$265) -> 31 | EI24: =COLUMN('Statement 6_Others'!$AE$265) -> 31 | EJ24: =COLUMN('Statement 6_Others'!$AE$265) -> 31 | EK24: =COLUMN('Statement 6_Others'!$AE$265) -> 31 | EL24: =COLUMN('Statement 6_Others'!$AE$265) -> 31 | EM24: =COLUMN('Statement 6_Others'!$AE$265) -> 31 | EN24: =COLUMN('Statement 6_Others'!$AE$265) -> 31 | EO24: =COLUMN('Statement 6_Others'!$AE$265) -> 31 | EP24: =COLUMN('Statement 6_Others'!$AE$99) -> 31 | EQ24: =COLUMN('Statement 6_Others'!$AE$99) -> 31 | ER24: =COLUMN('Statement 6_Others'!$AE$99) -> 31 | ES24: =COLUMN('Statement 6_Others'!$AE$99) -> 31 | ET24: =COLUMN('Statement 6_Others'!$AE$99) -> 31 | EU24: =COLUMN('Statement 6_Others'!$AE$99) -> 31 | EV24: =COLUMN('Statement 6_Others'!$AE$99) -> 31 | EW24: =COLUMN('Statement 6_Others'!$AE$99) -> 31 | EX24: =COLUMN('Statement 6_Others'!$AE$99) -> 31 | EY24: =COLUMN('Statement 6_Others'!$AE$99) -> 31 | FW24: =COLUMN('Statement 1A'!$AE$20) -> 31 | FX24: =COLUMN('Statement 1A'!$A$96) -> 1

Sheet AuditedAc1 (hidden)
A1: Year | B1: RegNo | C1: BranchId | D1: TeachingType | E1: Stream | F1: Type | G1: FeeIncomeParent | H1: FeeIncomePEVS | I1: FeeIncomeKCFRS | J1: FeeRemssion | K1: KCSS | L1: SME | M1: GovRentReimbur | N1: RatesReimbur | O1: RentReimbur | P1: BankInterestIncome | Q1: DonationsReceived | R1: CourseFeeRefundToTeachers | S1: AppFeeRegFee | T1: AirConditioning | U1: MealCharges | V1: SubsidiesFromSchSponsorBody | W1: SchItmSchBus | X1: ActivitiesIncome | Y1: DesignatedGrants | Z1: InsufficientInformationItems | AA1: SundryIncomeNotFromParent | AB1: InsuranceCompensation | AC1: OthersNoBreakdown | AD1: OtherIncomeName1 | AE1: OtherIncomeName2 | AF1: OtherIncomeName3 | AG1: OtherIncomeName4 | AH1: OtherIncomeName5 | AI1: OtherIncomeName6 | AJ1: OtherIncomeName7 | AK1: OtherIncomeName8 | AL1: OtherIncomeName9 | AM1: OtherIncomeName10 | AN1: OtherIncomeName11 | AO1: OtherIncomeName12 | AP1: OtherIncomeName13 | AQ1: OtherIncomeName14 | AR1: OtherIncomeName15 | AS1: OtherIncomeAmount1 | AT1: OtherIncomeAmount2 | AU1: OtherIncomeAmount3 | AV1: OtherIncomeAmount4 | AW1: OtherIncomeAmount5 | AX1: OtherIncomeAmount6 | AY1: OtherIncomeAmount7 | AZ1: OtherIncomeAmount8 | BA1: OtherIncomeAmount9 | BB1: OtherIncomeAmount10 | BC1: OtherIncomeAmount11 | BD1: OtherIncomeAmount12 | BE1: OtherIncomeAmount13 | BF1: OtherIncomeAmount14 | BG1: OtherIncomeAmount15 | BH1: TotalIncome | BI1: Salary_T | BJ1: Salary_NT | BK1: Allowance_T | BL1: Allowance_NT | BM1: PFund_T | BN1: PFund_NT | BO1: LongServicePay_T | BP1: LongServicePay_NT | BQ1: SupervisorPay | BR1: GovRent | BS1: Rates | BT1: Rental | BU1: DeprecPremises | BV1: DeprecFurniture | BW1: DeprecComputer | BX1: DeprecOthers | BY1: MajorRepairs | BZ1: MinorRepairs | CA1: ExpMealPreparation | CB1: FEAndTeachingAids | CC1: Water | CD1: Electricity | CE1: BadDebt | CF1: LossOnDisposal | CG1: Telephone | CH1: Cleaning | CI1: Printing | CJ1: TeachingConsumables | CK1: Insurance | CL1: FirstAidAndFireSafety | CM1: AuditFee | CN1: Travelling | CO1: RegularLearning | CP1: Postage | CQ1: Publications | CR1: StudentHandbooks | CS1: Advertisement | CT1: BankInterest | CU1: BankCharges | CV1: Newspapers | CW1: ExpChargedToDonationIncome | CX1: OtherExpenditureName1 | CY1: OtherExpenditureName2 | CZ1: OtherExpenditureName3 | DA1: OtherExpenditureName4 | DB1: OtherExpenditureName5 | DC1: OtherExpenditureName6 | DD1: OtherExpenditureName7 | DE1: OtherExpenditureName8 | DF1: OtherExpenditureName9 | DG1: OtherExpenditureName10 | DH1: OtherExpenditureName11 | DI1: OtherExpenditureName12 | DJ1: OtherExpenditureName13 | DK1: OtherExpenditureName14 | DL1: OtherExpenditureName15 | DM1: OtherExpenditureAmount1 | DN1: OtherExpenditureAmount2 | DO1: OtherExpenditureAmount3 | DP1: OtherExpenditureAmount4 | DQ1: OtherExpenditureAmount5 | DR1: OtherExpenditureAmount6 | DS1: OtherExpenditureAmount7 | DT1: OtherExpenditureAmount8 | DU1: OtherExpenditureAmount9 | DV1: OtherExpenditureAmount10 | DW1: OtherExpenditureAmount11 | DX1: OtherExpenditureAmount12 | DY1: OtherExpenditureAmount13 | DZ1: OtherExpenditureAmount14 | EA1: OtherExpenditureAmount15 | EB1: TotalExpense | EC1: SurplusDefTA | ED1: SurplusDefSWD | EE1: SurplusDefBFAdj | EF1: TransferToReserveName1 | EG1: TransferToReserveName2 | EH1: TransferToReserveName3 | EI1: TransferToReserveName4 | EJ1: TransferToReserveName5 | EK1: TransferToReserveName6 | EL1: TransferToReserveName7 | EM1: TransferToReserveName8 | EN1: TransferToReserveName9 | EO1: TransferToReserveName10 | EP1: TransferToReserveAmount1 | EQ1: TransferToReserveAmount2 | ER1: TransferToReserveAmount3 | ES1: TransferToReserveAmount4 | ET1: TransferToReserveAmount5 | EU1: TransferToReserveAmount6 | EV1: TransferToReserveAmount7 | EW1: TransferToReserveAmount8 | EX1: TransferToReserveAmount9 | EY1: TransferToReserveAmount10 | EZ1: TransferToReserveSSBName1 | FA1: TransferToReserveSSBName2 | FB1: TransferToReserveSSBName3 | FC1: TransferToReserveSSBAmount1 | FD1: TransferToReserveSSBAmount2 | FE1: TransferToReserveSSBAmount3 | FF1: DonationToSponsor | FG1: DonationToOthers | FH1: Entertainment | FI1: Messing | FJ1: ManageFeetoSSB | FK1: OthersSpecialExpName1 | FL1: OthersSpecialExp1 | FM1: OthersSpecialExpName2 | FN1: OthersSpecialExp2 | FO1: OthersSpecialExpName3 | FP1: OthersSpecialExp3 | FQ1: OthersSpecialExpName4 | FR1: OthersSpecialExp4 | FS1: CumulativeSurplusDefTABFAdj | FT1: Remarks | FU1: IsUsed | FV1: IsFullAmountMR | FW1: =Interim!FW1 -> PriorYearAdj | FX1: =Interim!FX1 -> PriorYearAdjDesc
A2: =Interim!A2 ->  | B2: =Interim!B2 ->  | C2: =Interim!C2 -> A | D2: =Interim!D2 -> A | E2: =Interim!E2 -> L | F2: =Interim!F2 -> A | G2: =Interim!G2 -> 0 | H2: =Interim!H2 -> 0 | I2: =Interim!I2 -> 0 | J2: =Interim!J2 -> 0 | K2: =Interim!K2 -> 0 | L2: =Interim!L2 -> 0 | M2: =Interim!M2 -> 0 | N2: =Interim!N2 -> 0 | O2: =Interim!O2 -> 0 | P2: =Interim!P2 -> 0 | Q2: =Interim!Q2 -> 0 | R2: =Interim!R2 -> 0 | S2: =Interim!S2 -> 0 | T2: =Interim!T2 -> 0 | U2: =Interim!U2 -> 0 | V2: =Interim!V2 -> 0 | W2: =Interim!W2 -> 0 | X2: =Interim!X2 -> 0 | Y2: =Interim!Y2 -> 0 | Z2: =Interim!Z2 -> 0 | AA2: =Interim!AA2 -> 0 | AB2: =Interim!AB2 -> 0 | AC2: =Interim!AC2 -> 0 | AD2: =Interim!AD2 ->  | AE2: =Interim!AE2 ->  | AF2: =Interim!AF2 ->  | AG2: =Interim!AG2 ->  | AH2: =Interim!AH2 ->  | AI2: =Interim!AI2 ->  | AJ2: =Interim!AJ2 ->  | AK2: =Interim!AK2 ->  | AL2: =Interim!AL2 ->  | AM2: =Interim!AM2 ->  | AN2: =Interim!AN2 ->  | AO2: =Interim!AO2 ->  | AP2: =Interim!AP2 ->  | AQ2: =Interim!AQ2 ->  | AR2: =Interim!AR2 ->  | AS2: =Interim!AS2 -> 0 | AT2: =Interim!AT2 -> 0 | AU2: =Interim!AU2 -> 0 | AV2: =Interim!AV2 -> 0 | AW2: =Interim!AW2 -> 0 | AX2: =Interim!AX2 -> 0 | AY2: =Interim!AY2 -> 0 | AZ2: =Interim!AZ2 -> 0 | BA2: =Interim!BA2 -> 0 | BB2: =Interim!BB2 -> 0 | BC2: =Interim!BC2 -> 0 | BD2: =Interim!BD2 -> 0 | BE2: =Interim!BE2 -> 0 | BF2: =Interim!BF2 -> 0 | BG2: =Interim!BG2 -> 0 | BH2: =Interim!BH2 -> 0 | BI2: =Interim!BI2 -> 0 | BJ2: =Interim!BJ2 -> 0 | BK2: =Interim!BK2 -> 0 | BL2: =Interim!BL2 -> 0 | BM2: =Interim!BM2 -> 0 | BN2: =Interim!BN2 -> 0 | BO2: =Interim!BO2 -> 0 | BP2: =Interim!BP2 -> 0 | BQ2: =Interim!BQ2 -> 0 | BR2: =Interim!BR2 -> 0 | BS2: =Interim!BS2 -> 0 | BT2: =Interim!BT2 -> 0 | BU2: =Interim!BU2 -> 0 | BV2: =Interim!BV2 -> 0 | BW2: =Interim!BW2 -> 0 | BX2: =Interim!BX2 -> 0 | BY2: =Interim!BY2 -> 0 | BZ2: =Interim!BZ2 -> 0 | CA2: =Interim!CA2 -> 0 | CB2: =Interim!CB2 -> 0 | CC2: =Interim!CC2 -> 0 | CD2: =Interim!CD2 -> 0 | CE2: =Interim!CE2 -> 0 | CF2: =Interim!CF2 -> 0 | CG2: =Interim!CG2 -> 0 | CH2: =Interim!CH2 -> 0 | CI2: =Interim!CI2 -> 0 | CJ2: =Interim!CJ2 -> 0 | CK2: =Interim!CK2 -> 0 | CL2: =Interim!CL2 -> 0 | CM2: =Interim!CM2 -> 0 | CN2: =Interim!CN2 -> 0 | CO2: =Interim!CO2 -> 0 | CP2: =Interim!CP2 -> 0 | CQ2: =Interim!CQ2 -> 0 | CR2: =Interim!CR2 -> 0 | CS2: =Interim!CS2 -> 0 | CT2: =Interim!CT2 -> 0 | CU2: =Interim!CU2 -> 0 | CV2: =Interim!CV2 -> 0 | CW2: =Interim!CW2 -> 0 | CX2: =Interim!CX2 ->  | CY2: =Interim!CY2 ->  | CZ2: =Interim!CZ2 ->  | DA2: =Interim!DA2 ->  | DB2: =Interim!DB2 ->  | DC2: =Interim!DC2 ->  | DD2: =Interim!DD2 ->  | DE2: =Interim!DE2 ->  | DF2: =Interim!DF2 ->  | DG2: =Interim!DG2 ->  | DH2: =Interim!DH2 ->  | DI2: =Interim!DI2 ->  | DJ2: =Interim!DJ2 ->  | DK2: =Interim!DK2 ->  | DL2: =Interim!DL2 ->  | DM2: =Interim!DM2 -> 0 | DN2: =Interim!DN2 -> 0 | DO2: =Interim!DO2 -> 0 | DP2: =Interim!DP2 -> 0 | DQ2: =Interim!DQ2 -> 0 | DR2: =Interim!DR2 -> 0 | DS2: =Interim!DS2 -> 0 | DT2: =Interim!DT2 -> 0 | DU2: =Interim!DU2 -> 0 | DV2: =Interim!DV2 -> 0 | DW2: =Interim!DW2 -> 0 | DX2: =Interim!DX2 -> 0 | DY2: =Interim!DY2 -> 0 | DZ2: =Interim!DZ2 -> 0 | EA2: =Interim!EA2 -> 0 | EB2: =Interim!EB2 -> 0 | EC2: =Interim!EC2 -> 0 | ED2: =Interim!ED2 -> 0 | EE2: =Interim!EE2 -> 0 | EF2: =Interim!EF2 ->  | EG2: =Interim!EG2 ->  | EH2: =Interim!EH2 ->  | EI2: =Interim!EI2 ->  | EJ2: =Interim!EJ2 ->  | EK2: =Interim!EK2 ->  | EL2: =Interim!EL2 ->  | EM2: =Interim!EM2 ->  | EN2: =Interim!EN2 ->  | EO2: =Interim!EO2 ->  | EP2: =Interim!EP2 -> 0 | EQ2: =Interim!EQ2 -> 0 | ER2: =Interim!ER2 -> 0 | ES2: =Interim!ES2 -> 0 | ET2: =Interim!ET2 -> 0 | EU2: =Interim!EU2 -> 0 | EV2: =Interim!EV2 -> 0 | EW2: =Interim!EW2 -> 0 | EX2: =Interim!EX2 -> 0 | EY2: =Interim!EY2 -> 0 | EZ2: =IF(Interim!EZ2="","",+Interim!EZ2) ->  | FA2: =IF(Interim!FA2="","",+Interim!FA2) ->  | FB2: =IF(Interim!FB2="","",+Interim!FB2) ->  | FC2: =Interim!FC2 -> 0 | FD2: =Interim!FD2 -> 0 | FE2: =Interim!FE2 -> 0 | FF2: =Interim!FF2 -> 0 | FG2: =Interim!FG2 -> 0 | FH2: =Interim!FH2 -> 0 | FI2: =Interim!FI2 -> 0 | FJ2: =Interim!FJ2 -> 0 | FK2: =IF(Interim!FK2="","",+Interim!FK2) ->  | FL2: =Interim!FL2 -> 0 | FM2: =IF(Interim!FM2="","",+Interim!FM2) ->  | FN2: =Interim!FN2 -> 0 | FO2: =IF(Interim!FO2="","",+Interim!FO2) ->  | FP2: =Interim!FP2 -> 0 | FQ2: =IF(Interim!FQ2="","",+Interim!FQ2) ->  | FR2: =Interim!FR2 -> 0 | FS2: =Interim!FS2 -> 0 | FT2: =IF(Interim!FT2="","",+Interim!FT2) ->  | FU2: =IF(Interim!FU2="","",+Interim!FU2) ->  | FV2: =IF(Interim!FV2="","",+Interim!FV2) -> 1 | FW2: =Interim!FW2 -> 0 | FX2: =Interim!FX2 -> PRIOR YEAR ADJUSTMENT (Please specify the nature)
A3: =Interim!A3 ->  | B3: =Interim!B3 ->  | C3: =Interim!C3 -> A | D3: =Interim!D3 -> A | E3: =Interim!E3 -> N | F3: =Interim!F3 -> A | G3: =Interim!G3 ->  | H3: =Interim!H3 ->  | I3: =Interim!I3 ->  | J3: =Interim!J3 ->  | K3: =Interim!K3 ->  | L3: =Interim!L3 ->  | M3: =Interim!M3 ->  | N3: =Interim!N3 ->  | O3: =Interim!O3 ->  | P3: =Interim!P3 ->  | Q3: =Interim!Q3 -> 0 | R3: =Interim!R3 ->  | S3: =Interim!S3 ->  | T3: =Interim!T3 -> 0 | U3: =Interim!U3 ->  | V3: =Interim!V3 ->  | W3: =Interim!W3 -> 0 | X3: =Interim!X3 -> 0 | Y3: =Interim!Y3 ->  | Z3: =Interim!Z3 -> 0 | AA3: =Interim!AA3 -> 0 | AB3: =Interim!AB3 ->  | AC3: =Interim!AC3 -> 0 | AD3: =Interim!AD3 ->  | AE3: =Interim!AE3 ->  | AF3: =Interim!AF3 ->  | AG3: =Interim!AG3 ->  | AH3: =Interim!AH3 ->  | AI3: =Interim!AI3 ->  | AJ3: =Interim!AJ3 ->  | AK3: =Interim!AK3 ->  | AL3: =Interim!AL3 ->  | AM3: =Interim!AM3 ->  | AN3: =Interim!AN3 ->  | AO3: =Interim!AO3 ->  | AP3: =Interim!AP3 ->  | AQ3: =Interim!AQ3 ->  | AR3: =Interim!AR3 ->  | AS3: =Interim!AS3 ->  | AT3: =Interim!AT3 ->  | AU3: =Interim!AU3 ->  | AV3: =Interim!AV3 ->  | AW3: =Interim!AW3 ->  | AX3: =Interim!AX3 ->  | AY3: =Interim!AY3 ->  | AZ3: =Interim!AZ3 ->  | BA3: =Interim!BA3 ->  | BB3: =Interim!BB3 ->  | BC3: =Interim!BC3 ->  | BD3: =Interim!BD3 ->  | BE3: =Interim!BE3 ->  | BF3: =Interim!BF3 ->  | BG3: =Interim!BG3 ->  | BH3: =Interim!BH3 ->  | BI3: =Interim!BI3 ->  | BJ3: =Interim!BJ3 ->  | BK3: =Interim!BK3 -> 0 | BL3: =Interim!BL3 -> 0 | BM3: =Interim!BM3 ->  | BN3: =Interim!BN3 ->  | BO3: =Interim!BO3 ->  | BP3: =Interim!BP3 ->  | BQ3: =Interim!BQ3 ->  | BR3: =Interim!BR3 ->  | BS3: =Interim!BS3 ->  | BT3: =Interim!BT3 ->  | BU3: =Interim!BU3 ->  | BV3: =Interim!BV3 ->  | BW3: =Interim!BW3 ->  | BX3: =Interim!BX3 ->  | BY3: =Interim!BY3 ->  | BZ3: =Interim!BZ3 ->  | CA3: =Interim!CA3 ->  | CB3: =Interim!CB3 ->  | CC3: =Interim!CC3 ->  | CD3: =Interim!CD3 ->  | CE3: =Interim!CE3 -> 0 | CF3: =Interim!CF3 -> 0 | CG3: =Interim!CG3 ->  | CH3: =Interim!CH3 ->  | CI3: =Interim!CI3 ->  | CJ3: =Interim!CJ3 ->  | CK3: =Interim!CK3 ->  | CL3: =Interim!CL3 ->  | CM3: =Interim!CM3 ->  | CN3: =Interim!CN3 ->  | CO3: =Interim!CO3 ->  | CP3: =Interim!CP3 ->  | CQ3: =Interim!CQ3 ->  | CR3: =Interim!CR3 ->  | CS3: =Interim!CS3 ->  | CT3: =Interim!CT3 ->  | CU3: =Interim!CU3 ->  | CV3: =Interim!CV3 ->  | CW3: =Interim!CW3 -> 0 | CX3: =Interim!CX3 ->  | CY3: =Interim!CY3 ->  | CZ3: =Interim!CZ3 ->  | DA3: =Interim!DA3 ->  | DB3: =Interim!DB3 ->  | DC3: =Interim!DC3 ->  | DD3: =Interim!DD3 ->  | DE3: =Interim!DE3 ->  | DF3: =Interim!DF3 ->  | DG3: =Interim!DG3 ->  | DH3: =Interim!DH3 ->  | DI3: =Interim!DI3 ->  | DJ3: =Interim!DJ3 ->  | DK3: =Interim!DK3 ->  | DL3: =Interim!DL3 ->  | DM3: =Interim!DM3 ->  | DN3: =Interim!DN3 ->  | DO3: =Interim!DO3 ->  | DP3: =Interim!DP3 ->  | DQ3: =Interim!DQ3 ->  | DR3: =Interim!DR3 ->  | DS3: =Interim!DS3 ->  | DT3: =Interim!DT3 ->  | DU3: =Interim!DU3 ->  | DV3: =Interim!DV3 ->  | DW3: =Interim!DW3 ->  | DX3: =Interim!DX3 ->  | DY3: =Interim!DY3 ->  | DZ3: =Interim!DZ3 ->  | EA3: =Interim!EA3 ->  | EB3: =Interim!EB3 ->  | EC3: =Interim!EC3 ->  | ED3: =Interim!ED3 -> 0 | EE3: =Interim!EE3 -> 0 | EF3: =Interim!EF3 ->  | EG3: =Interim!EG3 ->  | EH3: =Interim!EH3 ->  | EI3: =Interim!EI3 ->  | EJ3: =Interim!EJ3 ->  | EK3: =Interim!EK3 ->  | EL3: =Interim!EL3 ->  | EM3: =Interim!EM3 ->  | EN3: =Interim!EN3 ->  | EO3: =Interim!EO3 ->  | EP3: =Interim!EP3 ->  | EQ3: =Interim!EQ3 ->  | ER3: =Interim!ER3 ->  | ES3: =Interim!ES3 ->  | ET3: =Interim!ET3 ->  | EU3: =Interim!EU3 ->  | EV3: =Interim!EV3 ->  | EW3: =Interim!EW3 ->  | EX3: =Interim!EX3 ->  | EY3: =Interim!EY3 ->  | EZ3: =IF(Interim!EZ3="","",+Interim!EZ3) ->  | FA3: =IF(Interim!FA3="","",+Interim!FA3) ->  | FB3: =IF(Interim!FB3="","",+Interim!FB3) ->  | FC3: =Interim!FC3 -> 0 | FD3: =Interim!FD3 -> 0 | FE3: =Interim!FE3 -> 0 | FF3: =Interim!FF3 -> 0 | FG3: =Interim!FG3 -> 0 | FH3: =Interim!FH3 -> 0 | FI3: =Interim!FI3 -> 0 | FJ3: =Interim!FJ3 -> 0 | FK3: =IF(Interim!FK3="","",+Interim!FK3) ->  | FL3: =Interim!FL3 -> 0 | FM3: =IF(Interim!FM3="","",+Interim!FM3) ->  | FN3: =Interim!FN3 -> 0 | FO3: =IF(Interim!FO3="","",+Interim!FO3) ->  | FP3: =Interim!FP3 -> 0 | FQ3: =IF(Interim!FQ3="","",+Interim!FQ3) ->  | FR3: =Interim!FR3 -> 0 | FS3: =Interim!FS3 -> 0 | FT3: =IF(Interim!FT3="","",+Interim!FT3) ->  | FU3: =IF(Interim!FU3="","",+Interim!FU3) ->  | FV3: =IF(Interim!FV3="","",+Interim!FV3) -> 1 | FW3: =Interim!FW3 ->  | FX3: =Interim!FX3 -> 
T4: blank | V4: New | W4: blank | X4: blank | Z4: blank | AA4: blank | BK4: blank | BL4: blank | BX4: New | CA4: New | CE4: blank | CF4: blank | CT4: blank | CU4: blank | ED4: blank | EE4: note 1 | EZ4: note 1 | FA4: note 1 | FB4: note 1 | FC4: note 1 | FD4: note 1 | FE4: note 1 | FF4: note 1 | FG4: note 1 | FH4: note 1 | FI4: note 1 | FJ4: note 1 | FK4: note 1 | FL4: note 1 | FM4: note 1 | FN4: note 1 | FO4: note 1 | FP4: note 1 | FQ4: note 1 | FR4: note 1 | FS4: note 1 | FT4: note 1 | FU4: note 1 | FV4: note 1
A12: Remarks
A13: note 1: | B13: data to be filled in by MS
A14: blank | B14: column not being used in 2012/13
A15: new : | B15: new column added in 2012/13

Sheet AuditedAc2 (hidden)
A1: Year | B1: RegNo | C1: BranchId | D1: TeachingType | E1: Stream | F1: SDG_GrantReceived | G1: SDG_Expenditure1 | H1: SDG_Expenditure2 | I1: SDG_Expenditure3 | J1: SDG_Expenditure4 | K1: SDG_Expenditure5 | L1: SDG_Expenditure6 | M1: SDG_Expenditure7 | N1: SDG_Expenditure8 | O1: SDG_Expenditure9 | P1: SDG_Expenditure10 | Q1: SDG_Expenditure11 | R1: SDG_Expenditure12 | S1: SDG_Expenditure13 | T1: SDG_Expenditure14 | U1: SDG_Expenditure15 | V1: SDG_ExpRemark1 | W1: SDG_ExpRemark2 | X1: SDG_ExpRemark3 | Y1: SDG_ExpRemark4 | Z1: SDG_ExpRemark5 | AA1: SDG_ExpRemark6 | AB1: SDG_ExpRemark7 | AC1: SDG_ExpRemark8 | AD1: SDG_ExpRemark9 | AE1: SDG_ExpRemark10 | AF1: SDG_ExpRemark11 | AG1: SDG_ExpRemark12 | AH1: SDG_ExpRemark13 | AI1: SDG_ExpRemark14 | AJ1: SDG_ExpRemark15 | AK1: SDG_Surplus | AL1: SDG_SurplusBF | AM1: SDG_SurplusCF | AN1: DI_DonationIncome | AO1: DI_DonationExpenses | AP1: DI_Expenditure1 | AQ1: DI_Expenditure2 | AR1: DI_Expenditure3 | AS1: DI_Expenditure4 | AT1: DI_Expenditure5 | AU1: DI_Expenditure6 | AV1: DI_Expenditure7 | AW1: DI_Expenditure8 | AX1: DI_Expenditure9 | AY1: DI_Expenditure10 | AZ1: DI_Expenditure11 | BA1: DI_Expenditure12 | BB1: DI_Expenditure13 | BC1: DI_Expenditure14 | BD1: DI_Expenditure15 | BE1: DI_ExpRemark1 | BF1: DI_ExpRemark2 | BG1: DI_ExpRemark3 | BH1: DI_ExpRemark4 | BI1: DI_ExpRemark5 | BJ1: DI_ExpRemark6 | BK1: DI_ExpRemark7 | BL1: DI_ExpRemark8 | BM1: DI_ExpRemark9 | BN1: DI_ExpRemark10 | BO1: DI_ExpRemark11 | BP1: DI_ExpRemark12 | BQ1: DI_ExpRemark13 | BR1: DI_ExpRemark14 | BS1: DI_ExpRemark15 | BT1: BS_DataAsAt | BU1: BS_FixedAssProperty | BV1: BS_FixedAssAvailForSale | BW1: BS_FixedAssOther1 | BX1: BS_FixedAssDesc1 | BY1: BS_FixedAssOther2 | BZ1: BS_FixedAssDesc2 | CA1: BS_FixedAssOther3 | CB1: BS_FixedAssDesc3 | CC1: BS_FixedAssOther4 | CD1: BS_FixedAssDesc4 | CE1: BS_FixedAssOther5 | CF1: BS_FixedAssDesc5 | CG1: BS_FixedAssOther6 | CH1: BS_FixedAssDesc6 | CI1: BS_FixedAssOther7 | CJ1: BS_FixedAssDesc7 | CK1: BS_FixedAssOther8 | CL1: BS_FixedAssDesc8 | CM1: BS_FixedAssOther9 | CN1: BS_FixedAssDesc9 | CO1: BS_FixedAssOther10 | CP1: BS_FixedAssDesc10 | CQ1: BS_FixedAssets | CR1: BS_CurrentAssAccountWithDirector | CS1: BS_CurrentAssAccountWithSSB | CT1: BS_CurrentAssAccountDueFromDirector | CU1: BS_CurrentAssAccountDueFromSSB | CV1: BS_CurrentAssAccountDueFromRelatedCompany | CW1: BS_CurrentAssLoan | CX1: BS_CurrentAssLoanRemarks | CY1: BS_CurrentAssStockOfStationery | CZ1: BS_CurrentAssSundryDebtors | DA1: BS_CurrentAssRentalDeposit | DB1: BS_CurrentAssCash | DC1: BS_CurrentAssOthers1 | DD1: BS_CurrentAssDesc1 | DE1: BS_CurrentAssOthers2 | DF1: BS_CurrentAssDesc2 | DG1: BS_CurrentAssOthers3 | DH1: BS_CurrentAssDesc3 | DI1: BS_CurrentAssOthers4 | DJ1: BS_CurrentAssDesc4 | DK1: BS_CurrentAssOthers5 | DL1: BS_CurrentAssDesc5 | DM1: BS_CurrentAssOthers6 | DN1: BS_CurrentAssDesc6 | DO1: BS_CurrentAssOthers7 | DP1: BS_CurrentAssDesc7 | DQ1: BS_CurrentAssOthers8 | DR1: BS_CurrentAssDesc8 | DS1: BS_CurrentAssOthers9 | DT1: BS_CurrentAssDesc9 | DU1: BS_CurrentAssOthers10 | DV1: BS_CurrentAssDesc10 | DW1: BS_CurrentAssets | DX1: BS_CurrentLiabAccountWithDirector | DY1: BS_CurrentLiabAccountWithSSB | DZ1: BS_CurrentLiabAccountDueToDirector | EA1: BS_CurrentLiabAccountDueToSSB | EB1: BS_CurrentLiabAccountDueToRelatedCompany | EC1: BS_CurrentLiabLoan | ED1: BS_CurrentLiabLoanRemarks | EE1: BS_CurrentLiabSchoolFees | EF1: BS_CurrentLiabBankOverdraft | EG1: BS_CurrentLiabSundaryCreditor | EH1: BS_CurrentLiabOthers1 | EI1: BS_CurrentLiabDesc1 | EJ1: BS_CurrentLiabOthers2 | EK1: BS_CurrentLiabDesc2 | EL1: BS_CurrentLiabOthers3 | EM1: BS_CurrentLiabDesc3 | EN1: BS_CurrentLiabOthers4 | EO1: BS_CurrentLiabDesc4 | EP1: BS_CurrentLiabOthers5 | EQ1: BS_CurrentLiabDesc5 | ER1: BS_CurrentLiabOthers6 | ES1: BS_CurrentLiabDesc6 | ET1: BS_CurrentLiabOthers7 | EU1: BS_CurrentLiabDesc7 | EV1: BS_CurrentLiabOthers8 | EW1: BS_CurrentLiabDesc8 | EX1: BS_CurrentLiabOthers9 | EY1: BS_CurrentLiabDesc9 | EZ1: BS_CurrentLiabOthers10 | FA1: BS_CurrentLiabDesc10 | FB1: BS_CurrentLiabilities | FC1: BS_SurplusReserve1 | FD1: BS_SurplusReserve2 | FE1: BS_SurplusReserve3 | FF1: BS_SurplusReserve4 | FG1: BS_SurplusReserve5 | FH1: BS_SurplusReserve6 | FI1: BS_SurplusReserve7 | FJ1: BS_SurplusReserve8 | FK1: BS_SurplusReserve9 | FL1: BS_SurplusReserve10 | FM1: BS_SurplusReserve1Name | FN1: BS_SurplusReserve2Name | FO1: BS_SurplusReserve3Name | FP1: BS_SurplusReserve4Name | FQ1: BS_SurplusReserve5Name | FR1: BS_SurplusReserve6Name | FS1: BS_SurplusReserve7Name | FT1: BS_SurplusReserve8Name | FU1: BS_SurplusReserve9Name | FV1: BS_SurplusReserve10Name | FW1: BS_DevGrantPEVS | FX1: BS_SurplusForTeacherDev | FY1: BS_LongTermLiabBankLoan | FZ1: BS_LongTermLiabDueToSSB | GA1: BS_LongTermLiabDueToRelatedCompany | GB1: BS_LongTermLiabOthers | GC1: BS_LongTermLiabOthersRemarks | GD1: BS_LongTermLiabOthers2 | GE1: BS_LongTermLiabOthersRemarks2 | GF1: BS_LongTermLiabOthers3 | GG1: BS_LongTermLiabOthersRemarks3 | GH1: BS_LongTermLiabOthers4 | GI1: BS_LongTermLiabOthersRemarks4 | GJ1: BS_LongTermLiabOthers5 | GK1: BS_LongTermLiabOthersRemarks5 | GL1: BS_LongTermLiabOthers6 | GM1: BS_LongTermLiabOthersRemarks6 | GN1: BS_LongTermLiabOthers7 | GO1: BS_LongTermLiabOthersRemarks7 | GP1: BS_LongTermLiabOthers8 | GQ1: BS_LongTermLiabOthersRemarks8 | GR1: BS_LongTermLiabOthers9 | GS1: BS_LongTermLiabOthersRemarks9 | GT1: BS_LongTermLiabOthers10 | GU1: BS_LongTermLiabOthersRemarks10 | GV1: AmountDueFromRelatedParties1 | GW1: AmountDueFromRelatedPartiesName1 | GX1: AmountDueFromRelatedParties2 | GY1: AmountDueFromRelatedPartiesName2 | GZ1: AmountDueFromRelatedParties3 | HA1: AmountDueFromRelatedPartiesName3 | HB1: AmountDueFromRelatedParties4 | HC1: AmountDueFromRelatedPartiesName4 | HD1: AmountDueFromRelatedParties5 | HE1: AmountDueFromRelatedPartiesName5 | HF1: AmountDueFromRelatedParties6 | HG1: AmountDueFromRelatedPartiesName6 | HH1: AmountDueFromRelatedParties7 | HI1: AmountDueFromRelatedPartiesName7 | HJ1: AmountDueFromRelatedParties8 | HK1: AmountDueFromRelatedPartiesName8 | HL1: AmountDueFromRelatedParties9 | HM1: AmountDueFromRelatedPartiesName9 | HN1: AmountDueFromRelatedParties10 | HO1: AmountDueFromRelatedPartiesName10 | HP1: AmountDueToRelatedParties1 | HQ1: AmountDueToRelatedPartiesName1 | HR1: AmountDueToRelatedParties2 | HS1: AmountDueToRelatedPartiesName2 | HT1: AmountDueToRelatedParties3 | HU1: AmountDueToRelatedPartiesName3 | HV1: AmountDueToRelatedParties4 | HW1: AmountDueToRelatedPartiesName4 | HX1: AmountDueToRelatedParties5 | HY1: AmountDueToRelatedPartiesName5 | HZ1: PaymentToRelatedParties1 | IA1: PaymentToRelatedPartiesName1 | IB1: PaymentToRelatedParties2 | IC1: PaymentToRelatedPartiesName2 | ID1: PaymentToRelatedParties3 | IE1: PaymentToRelatedPartiesName3 | IF1: PaymentToRelatedParties4 | IG1: PaymentToRelatedPartiesName4 | IH1: PaymentToRelatedParties5 | II1: PaymentToRelatedPartiesName5 | IJ1: ReceiptFromRelatedParties1 | IK1: ReceiptFromRelatedPartiesName1 | IL1: ReceiptFromRelatedParties2 | IM1: ReceiptFromRelatedPartiesName2 | IN1: ReceiptFromRelatedParties3 | IO1: ReceiptFromRelatedPartiesName3 | IP1: ReceiptFromRelatedParties4 | IQ1: ReceiptFromRelatedPartiesName4 | IR1: ReceiptFromRelatedParties5 | IS1: ReceiptFromRelatedPartiesName5
A2: =+AuditedAc1!A2 ->  | B2: =+AuditedAc1!B2 ->  | C2: =+AuditedAc1!C2 -> A | D2: =+AuditedAc1!D2 -> A | E2: =IF(Interim!A11="Statement 1A","N","L") -> L | AN2: =+'Statement 5'!Q16 -> 0 | AP2: =+'Statement 5'!Q22 -> 0 | AQ2: =+'Statement 5'!Q23 -> 0 | AR2: =+'Statement 5'!Q24 -> 0 | AS2: =+'Statement 5'!Q25 -> 0 | AT2: =+'Statement 5'!Q26 -> 0 | AU2: =+'Statement 5'!Q27 -> 0 | AV2: =+'Statement 5'!Q28 -> 0 | AW2: =+'Statement 5'!Q29 -> 0 | AX2: =+'Statement 5'!Q30 -> 0 | AY2: =+'Statement 5'!Q31 -> 0 | AZ2: =+'Statement 5'!Q32 -> 0 | BA2: =+'Statement 5'!Q33 -> 0 | BB2: =+'Statement 5'!Q34 -> 0 | BC2: =+'Statement 5'!Q35 -> 0 | BD2: =+'Statement 5'!Q36 -> 0 | BE2: =IF(OR(AP2="",AP2=0),"",+'Statement 5'!$A22) ->  | BF2: =IF(OR(AQ2="",AQ2=0),"",+'Statement 5'!$A23) ->  | BG2: =IF(OR(AR2="",AR2=0),"",+'Statement 5'!$A24) ->  | BH2: =IF(OR(AS2="",AS2=0),"",+'Statement 5'!$A25) ->  | BI2: =IF(OR(AT2="",AT2=0),"",+'Statement 5'!$A26) ->  | BJ2: =IF(OR(AU2="",AU2=0),"",+'Statement 5'!$A27) ->  | BK2: =IF(OR(AV2="",AV2=0),"",+'Statement 5'!$A28) ->  | BL2: =IF(OR(AW2="",AW2=0),"",+'Statement 5'!$A29) ->  | BM2: =IF(OR(AX2="",AX2=0),"",+'Statement 5'!$A30) ->  | BN2: =IF(OR(AY2="",AY2=0),"",+'Statement 5'!$A31) ->  | BO2: =IF(OR(AZ2="",AZ2=0),"",+'Statement 5'!$A32) ->  | BP2: =IF(OR(BA2="",BA2=0),"",+'Statement 5'!$A33) ->  | BQ2: =IF(OR(BB2="",BB2=0),"",+'Statement 5'!$A34) ->  | BR2: =IF(OR(BC2="",BC2=0),"",+'Statement 5'!$A35) ->  | BS2: =IF(OR(BD2="",BD2=0),"",+'Statement 5'!$A36) ->  | BT2: =(TEXT('Annex 1'!C33,"dd/mm/yyyy")) -> e.g. 31 August 2018 | BU2: =+'Statement 2'!N18 -> 0 | BV2: 0 | BW2: =+'Statement 2'!$N20 -> 0 | BX2: =IF(OR(BW2="",BW2=0),"",'Statement 2'!$A20) ->  | BY2: =+'Statement 2'!$N21 -> 0 | BZ2: =IF(OR(BY2="",BY2=0),"",'Statement 2'!$A21) ->  | CA2: =+'Statement 2'!$N22 -> 0 | CB2: =IF(OR(CA2="",CA2=0),"",'Statement 2'!$A22) ->  | CC2: =+'Statement 2'!$N23 -> 0 | CD2: =IF(OR(CC2="",CC2=0),"",'Statement 2'!$A23) ->  | CE2: =+'Statement 2'!$N24 -> 0 | CF2: =IF(OR(CE2="",CE2=0),"",'Statement 2'!$A24) ->  | CG2: =+'Statement 2'!$N25 -> 0 | CH2: =IF(OR(CG2="",CG2=0),"",'Statement 2'!$A25) ->  | CI2: =+'Statement 2'!$N26 -> 0 | CJ2: =IF(OR(CI2="",CI2=0),"",'Statement 2'!$A26) ->  | CK2: =+'Statement 2'!$N27 -> 0 | CL2: =IF(OR(CK2="",CK2=0),"",'Statement 2'!$A27) ->  | CM2: =+'Statement 2'!$N28 -> 0 | CN2: =IF(OR(CM2="",CM2=0),"",'Statement 2'!$A28) ->  | CO2: =+'Statement 2'!$N29 -> 0 | CP2: =IF(OR(CO2="",CO2=0),"",'Statement 2'!$A29) ->  | CQ2: ='Statement 2'!N31 -> 0 | CR2: 0 | CS2: 0 | CT2: 0 | CU2: 0 | CV2: 0 | CW2: 0 | CY2: =+'Statement 2'!N34 -> 0 | CZ2: =+'Statement 2'!N35 -> 0 | DA2: =+'Statement 2'!N36 -> 0 | DB2: =+'Statement 2'!N37 -> 0 | DC2: =+'Statement 2'!$N39 -> 0 | DD2: =IF(OR(DC2="",DC2=0),"",'Statement 2'!$A39) ->  | DE2: =+'Statement 2'!$N40 -> 0 | DF2: =IF(OR(DE2="",DE2=0),"",'Statement 2'!$A40) ->  | DG2: =+'Statement 2'!$N41 -> 0 | DH2: =IF(OR(DG2="",DG2=0),"",'Statement 2'!$A41) ->  | DI2: =+'Statement 2'!$N42 -> 0 | DJ2: =IF(OR(DI2="",DI2=0),"",'Statement 2'!$A42) ->  | DK2: =+'Statement 2'!$N43 -> 0 | DL2: =IF(OR(DK2="",DK2=0),"",'Statement 2'!$A43) ->  | DM2: =+'Statement 2'!$N44 -> 0 | DN2: =IF(OR(DM2="",DM2=0),"",'Statement 2'!$A44) ->  | DO2: =+'Statement 2'!$N45 -> 0 | DP2: =IF(OR(DO2="",DO2=0),"",'Statement 2'!$A45) ->  | DQ2: =+'Statement 2'!$N46 -> 0 | DR2: =IF(OR(DQ2="",DQ2=0),"",'Statement 2'!$A46) ->  | DS2: =+'Statement 2'!$N47 -> 0 | DT2: =IF(OR(DS2="",DS2=0),"",'Statement 2'!$A47) ->  | DU2: =+'Statement 2'!$N48 -> 0 | DV2: =IF(OR(DU2="",DU2=0),"",'Statement 2'!$A48) ->  | DW2: =+'Statement 2'!N50 -> 0 | DX2: 0 | DY2: 0 | DZ2: 0 | EA2: 0 | EB2: 0 | EC2: 0 | EE2: =+'Statement 2'!N53 -> 0 | EF2: =+'Statement 2'!N54 -> 0 | EG2: =+'Statement 2'!N55 -> 0 | EH2: =+'Statement 2'!$N57 -> 0 | EI2: =IF(OR(EH2="",EH2=0),"",'Statement 2'!$A57) ->  | EJ2: =+'Statement 2'!$N58 -> 0 | EK2: =IF(OR(EJ2="",EJ2=0),"",'Statement 2'!$A58) ->  | EL2: =+'Statement 2'!$N59 -> 0 | EM2: =IF(OR(EL2="",EL2=0),"",'Statement 2'!$A59) ->  | EN2: =+'Statement 2'!$N60 -> 0 | EO2: =IF(OR(EN2="",EN2=0),"",'Statement 2'!$A60) ->  | EP2: =+'Statement 2'!$N61 -> 0 | EQ2: =IF(OR(EP2="",EP2=0),"",'Statement 2'!$A61) ->  | ER2: =+'Statement 2'!$N62 -> 0 | ES2: =IF(OR(ER2="",ER2=0),"",'Statement 2'!$A62) ->  | ET2: =+'Statement 2'!$N63 -> 0 | EU2: =IF(OR(ET2="",ET2=0),"",'Statement 2'!$A63) ->  | EV2: =+'Statement 2'!$N64 -> 0 | EW2: =IF(OR(EV2="",EV2=0),"",'Statement 2'!$A64) ->  | EX2: =+'Statement 2'!$N65 -> 0 | EY2: =IF(OR(EX2="",EX2=0),"",'Statement 2'!$A65) ->  | EZ2: =+'Statement 2'!$N66 -> 0 | FA2: =IF(OR(EZ2="",EZ2=0),"",'Statement 2'!$A66) ->  | FB2: =+'Statement 2'!N68 -> 0 | FC2: =+'Statement 2'!$N76 -> 0 | FD2: =+'Statement 2'!$N77 -> 0 | FE2: =+'Statement 2'!$N78 -> 0 | FF2: =+'Statement 2'!$N79 -> 0 | FG2: =+'Statement 2'!$N80 -> 0 | FH2: =+'Statement 2'!$N81 -> 0 | FI2: =+'Statement 2'!$N82 -> 0 | FJ2: =+'Statement 2'!$N83 -> 0 | FK2: =+'Statement 2'!$N84 -> 0 | FL2: =+'Statement 2'!$N85 -> 0 | FM2: =IF(OR(FC2="",FC2=0),"",'Statement 2'!$A76) ->  | FN2: =IF(OR(FD2="",FD2=0),"",'Statement 2'!$A77) ->  | FO2: =IF(OR(FE2="",FE2=0),"",'Statement 2'!$A78) ->  | FP2: =IF(OR(FF2="",FF2=0),"",'Statement 2'!$A79) ->  | FQ2: =IF(OR(FG2="",FG2=0),"",'Statement 2'!$A80) ->  | FR2: =IF(OR(FH2="",FH2=0),"",'Statement 2'!$A81) ->  | FS2: =IF(OR(FI2="",FI2=0),"",'Statement 2'!$A82) ->  | FT2: =IF(OR(FJ2="",FJ2=0),"",'Statement 2'!$A83) ->  | FU2: =IF(OR(FK2="",FK2=0),"",'Statement 2'!$A84) ->  | FV2: =IF(OR(FL2="",FL2=0),"",'Statement 2'!$A85) ->  | FX2: 0 | FY2: =+'Statement 2'!$N92 -> 0 | FZ2: 0 | GA2: 0 | GB2: =+'Statement 2'!$N94 -> 0 | GC2: =IF(OR(GB2="",GB2=0),"",'Statement 2'!$A94) ->  | GD2: =+'Statement 2'!$N95 -> 0 | GE2: =IF(OR(GD2="",GD2=0),"",'Statement 2'!$A95) ->  | GF2: =+'Statement 2'!$N96 -> 0 | GG2: =IF(OR(GF2="",GF2=0),"",'Statement 2'!$A96) ->  | GH2: =+'Statement 2'!$N97 -> 0 | GI2: =IF(OR(GH2="",GH2=0),"",'Statement 2'!$A97) ->  | GJ2: =+'Statement 2'!$N98 -> 0 | GK2: =IF(OR(GJ2="",GJ2=0),"",'Statement 2'!$A98) ->  | GL2: =+'Statement 2'!$N99 -> 0 | GM2: =IF(OR(GL2="",GL2=0),"",'Statement 2'!$A99) ->  | GN2: =+'Statement 2'!$N100 -> 0 | GO2: =IF(OR(GN2="",GN2=0),"",'Statement 2'!$A100) ->  | GP2: =+'Statement 2'!$N101 -> 0 | GQ2: =IF(OR(GP2="",GP2=0),"",'Statement 2'!$A101) ->  | GR2: =+'Statement 2'!$N102 -> 0 | GS2: =IF(OR(GR2="",GR2=0),"",'Statement 2'!$A102) ->  | GT2: =+'Statement 2'!$N103 -> 0 | GU2: =IF(OR(GT2="",GT2=0),"",'Statement 2'!$A103) ->  | GV2: =+'Statement 6_Others'!V160 -> 0 | GW2: =IF(OR(GV2="",GV2=0),"",'Statement 6_Others'!$B160) ->  | GX2: =+'Statement 6_Others'!V161 -> 0 | GY2: =IF(OR(GX2="",GX2=0),"",'Statement 6_Others'!$B161) ->  | GZ2: =+'Statement 6_Others'!V162 -> 0 | HA2: =IF(OR(GZ2="",GZ2=0),"",'Statement 6_Others'!$B162) ->  | HB2: =+'Statement 6_Others'!V163 -> 0 | HC2: =IF(OR(HB2="",HB2=0),"",'Statement 6_Others'!$B163) ->  | HD2: =+'Statement 6_Others'!$V164 -> 0 | HE2: =IF(OR(HD2="",HD2=0),"",'Statement 6_Others'!$B164) ->  | HF2: =+'Statement 6_Others'!$V165 -> 0 | HG2: =IF(OR(HF2="",HF2=0),"",'Statement 6_Others'!$B165) ->  | HH2: =+'Statement 6_Others'!$V166 -> 0 | HI2: =IF(OR(HH2="",HH2=0),"",'Statement 6_Others'!$B166) ->  | HJ2: =+'Statement 6_Others'!$V167 -> 0 | HK2: =IF(OR(HJ2="",HJ2=0),"",'Statement 6_Others'!$B167) ->  | HL2: =+'Statement 6_Others'!$V168 -> 0 | HM2: =IF(OR(HL2="",HL2=0),"",'Statement 6_Others'!$B168) ->  | HN2: =+'Statement 6_Others'!$V169 -> 0 | HO2: =IF(OR(HN2="",HN2=0),"",'Statement 6_Others'!$B169) ->  | HP2: =+'Statement 6_Others'!V171 -> 0 | HQ2: =IF(OR(HP2="",HP2=0),"",'Statement 6_Others'!$B171) ->  | HR2: =+'Statement 6_Others'!V172 -> 0 | HS2: =IF(OR(HR2="",HR2=0),"",'Statement 6_Others'!$B172) ->  | HT2: =+'Statement 6_Others'!V173 -> 0 | HU2: =IF(OR(HT2="",HT2=0),"",'Statement 6_Others'!$B173) ->  | HV2: =+'Statement 6_Others'!V174 -> 0 | HW2: =IF(OR(HV2="",HV2=0),"",'Statement 6_Others'!$B174) ->  | HX2: =+'Statement 6_Others'!V175 -> 0 | HY2: =IF(OR(HX2="",HX2=0),"",'Statement 6_Others'!$B175) ->  | HZ2: =+'Statement 6_Others'!V182 -> 0 | IA2: =IF(OR(HZ2="",HZ2=0),"",'Statement 6_Others'!$B182) ->  | IB2: =+'Statement 6_Others'!V183 -> 0 | IC2: =IF(OR(IB2="",IB2=0),"",'Statement 6_Others'!$B183) ->  | ID2: =+'Statement 6_Others'!V184 -> 0 | IE2: =IF(OR(ID2="",ID2=0),"",'Statement 6_Others'!$B184) ->  | IF2: =+'Statement 6_Others'!V185 -> 0 | IG2: =IF(OR(IF2="",IF2=0),"",'Statement 6_Others'!$B185) ->  | IH2: =+'Statement 6_Others'!V186 -> 0 | II2: =IF(OR(IH2="",IH2=0),"",'Statement 6_Others'!$B186) ->  | IJ2: =+'Statement 6_Others'!V193 -> 0 | IK2: =IF(OR(IJ2="",IJ2=0),"",'Statement 6_Others'!$B193) ->  | IL2: =+'Statement 6_Others'!V194 -> 0 | IM2: =IF(OR(IL2="",IL2=0),"",'Statement 6_Others'!$B194) ->  | IN2: =+'Statement 6_Others'!V195 -> 0 | IO2: =IF(OR(IN2="",IN2=0),"",'Statement 6_Others'!$B195) ->  | IP2: =+'Statement 6_Others'!V196 -> 0 | IQ2: =IF(OR(IP2="",IP2=0),"",'Statement 6_Others'!$B196) ->  | IR2: =+'Statement 6_Others'!V197 -> 0 | IS2: =IF(OR(IR2="",IR2=0),"",'Statement 6_Others'!$B197) -> 
F4: Statement 4A | G4: Statement 4A | H4: Statement 4A | I4: Statement 4A | J4: Statement 4A | K4: Statement 4A | L4: Statement 4A | M4: Statement 4A | N4: Statement 4A | O4: Statement 4A | P4: Statement 4A | Q4: Statement 4A | R4: Statement 4A | S4: Statement 4A | T4: Statement 4A | U4: Statement 4A | V4: Statement 4A | W4: Statement 4A | X4: Statement 4A | Y4: Statement 4A | Z4: Statement 4A | AA4: Statement 4A | AB4: Statement 4A | AC4: Statement 4A | AD4: Statement 4A | AE4: Statement 4A | AF4: Statement 4A | AG4: Statement 4A | AH4: Statement 4A | AI4: Statement 4A | AJ4: Statement 4A | AK4: Statement 4A | AL4: Statement 4A | AM4: Statement 4A | AN4: Statement 5 | AO4: Statement 5 | AP4: Statement 5 | AQ4: Statement 5 | AR4: Statement 5 | AS4: Statement 5 | AT4: Statement 5 | AU4: Statement 5 | AV4: Statement 5 | AW4: Statement 5 | AX4: Statement 5 | AY4: Statement 5 | AZ4: Statement 5 | BA4: Statement 5 | BB4: Statement 5 | BC4: Statement 5 | BD4: Statement 5 | BE4: Statement 5 | BF4: Statement 5 | BG4: Statement 5 | BH4: Statement 5 | BI4: Statement 5 | BJ4: Statement 5 | BK4: Statement 5 | BL4: Statement 5 | BM4: Statement 5 | BN4: Statement 5 | BO4: Statement 5 | BP4: Statement 5 | BQ4: Statement 5 | BR4: Statement 5 | BS4: Statement 5 | BT4: Statement 2 | BU4: Statement 2 | BV4: Statement 2 | BW4: Statement 2 | BX4: Statement 2 | BY4: Statement 2 | BZ4: Statement 2 | CA4: Statement 2 | CB4: Statement 2 | CC4: Statement 2 | CD4: Statement 2 | CE4: Statement 2 | CF4: Statement 2 | CG4: Statement 2 | CH4: Statement 2 | CI4: Statement 2 | CJ4: Statement 2 | CK4: Statement 2 | CL4: Statement 2 | CM4: Statement 2 | CN4: Statement 2 | CO4: Statement 2 | CP4: Statement 2 | CQ4: Statement 2 | CR4: Statement 2 | CS4: Statement 2 | CT4: Statement 2 | CU4: Statement 2 | CV4: Statement 2 | CW4: Statement 2 | CX4: Statement 2 | CY4: Statement 2 | CZ4: Statement 2 | DA4: Statement 2 | DB4: Statement 2 | DC4: Statement 2 | DD4: Statement 2 | DE4: Statement 2 | DF4: Statement 2 | DG4: Statement 2 | DH4: Statement 2 | DI4: Statement 2 | DJ4: Statement 2 | DK4: Statement 2 | DL4: Statement 2 | DM4: Statement 2 | DN4: Statement 2 | DO4: Statement 2 | DP4: Statement 2 | DQ4: Statement 2 | DR4: Statement 2 | DS4: Statement 2 | DT4: Statement 2 | DU4: Statement 2 | DV4: Statement 2 | DW4: Statement 2 | DX4: Statement 2 | DY4: Statement 2 | DZ4: Statement 2 | EA4: Statement 2 | EB4: Statement 2 | EC4: Statement 2 | ED4: Statement 2 | EE4: Statement 2 | EF4: Statement 2 | EG4: Statement 2 | EH4: Statement 2 | EI4: Statement 2 | EJ4: Statement 2 | EK4: Statement 2 | EL4: Statement 2 | EM4: Statement 2 | EN4: Statement 2 | EO4: Statement 2 | EP4: Statement 2 | EQ4: Statement 2 | ER4: Statement 2 | ES4: Statement 2 | ET4: Statement 2 | EU4: Statement 2 | EV4: Statement 2 | EW4: Statement 2 | EX4: Statement 2 | EY4: Statement 2 | EZ4: Statement 2 | FA4: Statement 2 | FB4: Statement 2 | FC4: Statement 2 | FD4: Statement 2 | FE4: Statement 2 | FF4: Statement 2 | FG4: Statement 2 | FH4: Statement 2 | FI4: Statement 2 | FJ4: Statement 2 | FK4: Statement 2 | FL4: Statement 2 | FM4: Statement 2 | FN4: Statement 2 | FO4: Statement 2 | FP4: Statement 2 | FQ4: Statement 2 | FR4: Statement 2 | FS4: Statement 2 | FT4: Statement 2 | FU4: Statement 2 | FV4: Statement 2 | FW4: Statement 2 | FX4: Statement 2 | FY4: Statement 2 | FZ4: Statement 2 | GA4: Statement 2 | GB4: Statement 2 | GC4: Statement 2 | GD4: Statement 2 | GE4: Statement 2 | GF4: Statement 2 | GG4: Statement 2 | GH4: Statement 2 | GI4: Statement 2 | GJ4: Statement 2 | GK4: Statement 2 | GL4: Statement 2 | GM4: Statement 2 | GN4: Statement 2 | GO4: Statement 2 | GP4: Statement 2 | GQ4: Statement 2 | GR4: Statement 2 | GS4: Statement 2 | GT4: Statement 2 | GU4: Statement 2 | GV4: Statement 7_Others | GW4: Statement 7_Others | GX4: Statement 7_Others | GY4: Statement 7_Others | GZ4: Statement 7_Others | HA4: Statement 7_Others | HB4: Statement 7_Others | HC4: Statement 7_Others | HD4: Statement 7_Others | HE4: Statement 7_Others | HF4: Statement 7_Others | HG4: Statement 7_Others | HH4: Statement 7_Others | HI4: Statement 7_Others | HJ4: Statement 7_Others | HK4: Statement 7_Others | HL4: Statement 7_Others | HM4: Statement 7_Others | HN4: Statement 7_Others | HO4: Statement 7_Others | HP4: Statement 7_Others | HQ4: Statement 7_Others | HR4: Statement 7_Others | HS4: Statement 7_Others | HT4: Statement 7_Others | HU4: Statement 7_Others | HV4: Statement 7_Others | HW4: Statement 7_Others | HX4: Statement 7_Others | HY4: Statement 7_Others | HZ4: Statement 7_Others | IA4: Statement 7_Others | IB4: Statement 7_Others | IC4: Statement 7_Others | ID4: Statement 7_Others | IE4: Statement 7_Others | IF4: Statement 7_Others | IG4: Statement 7_Others | IH4: Statement 7_Others | II4: Statement 7_Others | IJ4: Statement 7_Others | IK4: Statement 7_Others | IL4: Statement 7_Others | IM4: Statement 7_Others | IN4: Statement 7_Others | IO4: Statement 7_Others | IP4: Statement 7_Others | IQ4: Statement 7_Others | IR4: Statement 7_Others | IS4: Statement 7_Others
AO5: note 1 | BV5: note 1 | CC5: New | CD5: New | CE5: New | CF5: New | CG5: New | CH5: New | CI5: New | CJ5: New | CK5: New | CL5: New | CM5: New | CN5: New | CO5: New | CP5: New | CR5: note 1 | CS5: note 1 | CT5: note 1 | CU5: note 1 | CV5: note 1 | CW5: note 1 | CX5: note 1 | DI5: New | DJ5: New | DK5: New | DL5: New | DM5: New | DN5: New | DO5: New | DP5: New | DQ5: New | DR5: New | DS5: New | DT5: New | DU5: New | DV5: New | DX5: note 1 | DY5: note 1 | DZ5: note 1 | EA5: note 1 | EB5: note 1 | EC5: note 1 | ED5: note 1 | EN5: New | EO5: New | EP5: New | EQ5: New | ER5: New | ES5: New | ET5: New | EU5: New | EV5: New | EW5: New | EX5: New | EY5: New | EZ5: New | FA5: New | FF5: New | FG5: New | FH5: New | FI5: New | FJ5: New | FK5: New | FL5: New | FP5: New | FQ5: New | FR5: New | FS5: New | FT5: New | FU5: New | FV5: New | FZ5: note 1 | GA5: note 1 | GD5: New | GE5: New | GF5: New | GG5: New | GH5: New | GI5: New | GJ5: New | GK5: New | GL5: New | GM5: New | GN5: New | GO5: New | GP5: New | GQ5: New | GR5: New | GS5: New | GT5: New | GU5: New | GV5: New | GW5: New | GX5: New | GY5: New | GZ5: New | HA5: New | HB5: New | HC5: New | HD5: New | HE5: New | HF5: New | HG5: New | HH5: New | HI5: New | HJ5: New | HK5: New | HL5: New | HM5: New | HN5: New | HO5: New | HP5: New | HQ5: New | HR5: New | HS5: New | HT5: New | HU5: New | HV5: New | HW5: New | HX5: New | HY5: New | HZ5: New | IA5: New | IB5: New | IC5: New | ID5: New | IE5: New | IF5: New | IG5: New | IH5: New | II5: New | IJ5: New | IK5: New | IL5: New | IM5: New | IN5: New | IO5: New | IP5: New | IQ5: New | IR5: New | IS5: New
A7: =+AuditedAc1!A7 -> 0 | B7: =+AuditedAc1!B7 -> 0 | C7: =+AuditedAc1!C7 -> 0 | D7: =+AuditedAc1!D7 -> 0 | E7: =IF(Interim!A16="Statement 1A","N","L") -> L | BT7: =(TEXT('Annex 1'!C37,"dd/mm/yyyy")) -> School Supervisor's Certificate | BU7: =+'Statement 2'!N22 -> 0 | BV7: 0 | BW7: =+'Statement 2'!$N24 -> 0 | BX7: =IF(OR(BW7="",BW7=0),"",'Statement 2'!$A24) ->  | BY7: =+'Statement 2'!$N25 -> 0 | BZ7: =IF(OR(BY7="",BY7=0),"",'Statement 2'!$A25) ->  | CA7: =+'Statement 2'!$N26 -> 0 | CB7: =IF(OR(CA7="",CA7=0),"",'Statement 2'!$A26) ->  | CC7: =+'Statement 2'!$N27 -> 0 | CD7: =IF(OR(CC7="",CC7=0),"",'Statement 2'!$A27) ->  | CE7: =+'Statement 2'!$N28 -> 0 | CF7: =IF(OR(CE7="",CE7=0),"",'Statement 2'!$A28) ->  | CG7: =+'Statement 2'!$N29 -> 0 | CH7: =IF(OR(CG7="",CG7=0),"",'Statement 2'!$A29) ->  | CI7: =+'Statement 2'!$N30 -> 0 | CJ7: =IF(OR(CI7="",CI7=0),"",'Statement 2'!$A30) ->  | CK7: =+'Statement 2'!$N31 -> 0 | CL7: =IF(OR(CK7="",CK7=0),"",'Statement 2'!$A31) ->  | CM7: =+'Statement 2'!$N32 -> 0 | CN7: =IF(OR(CM7="",CM7=0),"",'Statement 2'!$A32) ->  | CO7: =+'Statement 2'!$N33 -> 0 | CP7: =IF(OR(CO7="",CO7=0),"",'Statement 2'!$A33) ->  | CQ7: ='Statement 2'!N35 -> 0 | CR7: 0 | CS7: 0 | CT7: 0 | CU7: 0 | CV7: 0 | CW7: 0 | CY7: =+'Statement 2'!N38 -> 0 | CZ7: =+'Statement 2'!N39 -> 0 | DA7: =+'Statement 2'!N40 -> 0 | DB7: =+'Statement 2'!N41 -> 0 | DC7: =+'Statement 2'!$N43 -> 0 | DD7: =IF(OR(DC7="",DC7=0),"",'Statement 2'!$A43) ->  | DE7: =+'Statement 2'!$N44 -> 0 | DF7: =IF(OR(DE7="",DE7=0),"",'Statement 2'!$A44) ->  | DG7: =+'Statement 2'!$N45 -> 0 | DH7: =IF(OR(DG7="",DG7=0),"",'Statement 2'!$A45) ->  | DI7: =+'Statement 2'!$N46 -> 0 | DJ7: =IF(OR(DI7="",DI7=0),"",'Statement 2'!$A46) ->  | DK7: =+'Statement 2'!$N47 -> 0 | DL7: =IF(OR(DK7="",DK7=0),"",'Statement 2'!$A47) ->  | DM7: =+'Statement 2'!$N48 -> 0 | DN7: =IF(OR(DM7="",DM7=0),"",'Statement 2'!$A48) ->  | DO7: =+'Statement 2'!$N49 -> 0 | DP7: =IF(OR(DO7="",DO7=0),"",'Statement 2'!$A49) ->  | DQ7: =+'Statement 2'!$N50 -> 0 | DR7: =IF(OR(DQ7="",DQ7=0),"",'Statement 2'!$A50) ->  | DS7: =+'Statement 2'!$N51 -> 0 | DT7: =IF(OR(DS7="",DS7=0),"",'Statement 2'!$A51) ->  | DU7: =+'Statement 2'!$N52 -> 0 | DV7: =IF(OR(DU7="",DU7=0),"",'Statement 2'!$A52) ->  | DW7: =+'Statement 2'!N54 -> 0 | DX7: 0 | DY7: 0 | DZ7: 0 | EA7: 0 | EB7: 0 | EC7: 0 | EE7: =+'Statement 2'!N57 -> 0 | EF7: =+'Statement 2'!N58 -> 0 | EG7: =+'Statement 2'!N59 -> 0 | EH7: =+'Statement 2'!$N61 -> 0 | EI7: =IF(OR(EH7="",EH7=0),"",'Statement 2'!$A61) ->  | EJ7: =+'Statement 2'!$N62 -> 0 | EK7: =IF(OR(EJ7="",EJ7=0),"",'Statement 2'!$A62) ->  | EL7: =+'Statement 2'!$N63 -> 0 | EM7: =IF(OR(EL7="",EL7=0),"",'Statement 2'!$A63) ->  | EN7: =+'Statement 2'!$N64 -> 0 | EO7: =IF(OR(EN7="",EN7=0),"",'Statement 2'!$A64) ->  | EP7: =+'Statement 2'!$N65 -> 0 | EQ7: =IF(OR(EP7="",EP7=0),"",'Statement 2'!$A65) ->  | ER7: =+'Statement 2'!$N66 -> 0 | ES7: =IF(OR(ER7="",ER7=0),"",'Statement 2'!$A66) ->  | ET7: =+'Statement 2'!$N67 -> 0 | EU7: =IF(OR(ET7="",ET7=0),"",'Statement 2'!$A67) ->  | EV7: =+'Statement 2'!$N68 -> 0 | EW7: =IF(OR(EV7="",EV7=0),"",'Statement 2'!$A68) ->  | EX7: =+'Statement 2'!$N69 -> 0 | EY7: =IF(OR(EX7="",EX7=0),"",'Statement 2'!$A69) ->  | EZ7: =+'Statement 2'!$N70 -> 0 | FA7: =IF(OR(EZ7="",EZ7=0),"",'Statement 2'!$A70) ->  | FB7: =+'Statement 2'!N72 -> 0 | FC7: =+'Statement 2'!$N81 -> 0 | FD7: =+'Statement 2'!$N82 -> 0 | FE7: =+'Statement 2'!$N83 -> 0 | FF7: =+'Statement 2'!$N84 -> 0 | FG7: =+'Statement 2'!$N85 -> 0 | FH7: =+'Statement 2'!$N86 -> 0 | FI7: =+'Statement 2'!$N87 -> 0 | FJ7: =+'Statement 2'!$N88 -> 0 | FK7: =+'Statement 2'!$N89 -> 0 | FL7: =+'Statement 2'!$N90 -> 0 | FM7: =IF(OR(FC7="",FC7=0),"",'Statement 2'!$A81) ->  | FN7: =IF(OR(FD7="",FD7=0),"",'Statement 2'!$A82) ->  | FO7: =IF(OR(FE7="",FE7=0),"",'Statement 2'!$A83) ->  | FP7: =IF(OR(FF7="",FF7=0),"",'Statement 2'!$A84) ->  | FQ7: =IF(OR(FG7="",FG7=0),"",'Statement 2'!$A85) ->  | FR7: =IF(OR(FH7="",FH7=0),"",'Statement 2'!$A86) ->  | FS7: =IF(OR(FI7="",FI7=0),"",'Statement 2'!$A87) ->  | FT7: =IF(OR(FJ7="",FJ7=0),"",'Statement 2'!$A88) ->  | FU7: =IF(OR(FK7="",FK7=0),"",'Statement 2'!$A89) ->  | FV7: =IF(OR(FL7="",FL7=0),"",'Statement 2'!$A90) ->  | FW7: =+'Statement 2'!$N99 -> 0 | FX7: 0 | FY7: =+'Statement 2'!$N120 -> 0 | FZ7: 0 | GA7: 0 | GB7: =+'Statement 2'!$N122 -> 0 | GC7: =IF(OR(GB7="",GB7=0),"",'Statement 2'!$A122) ->  | GD7: =+'Statement 2'!$N123 -> 0 | GE7: =IF(OR(GD7="",GD7=0),"",'Statement 2'!$A123) ->  | GF7: =+'Statement 2'!$N124 -> 0 | GG7: =IF(OR(GF7="",GF7=0),"",'Statement 2'!$A124) ->  | GH7: =+'Statement 2'!$N125 -> 0 | GI7: =IF(OR(GH7="",GH7=0),"",'Statement 2'!$A125) ->  | GJ7: =+'Statement 2'!$N126 -> 0 | GK7: =IF(OR(GJ7="",GJ7=0),"",'Statement 2'!$A126) ->  | GL7: =+'Statement 2'!$N127 -> 0 | GM7: =IF(OR(GL7="",GL7=0),"",'Statement 2'!$A127) ->  | GN7: =+'Statement 2'!$N128 -> 0 | GO7: =IF(OR(GN7="",GN7=0),"",'Statement 2'!$A128) ->  | GP7: =+'Statement 2'!$N129 -> 0 | GQ7: =IF(OR(GP7="",GP7=0),"",'Statement 2'!$A129) ->  | GR7: =+'Statement 2'!$N130 -> 0 | GS7: =IF(OR(GR7="",GR7=0),"",'Statement 2'!$A130) ->  | GT7: =+'Statement 2'!$N131 -> 0 | GU7: =IF(OR(GT7="",GT7=0),"",'Statement 2'!$A131) -> 
A8: Remarks
A9: note 1: | B9: data to be filled in by MS
A10: Auto: | B10: Auto calculation
A11: blank : | B11: column not being used in 2012/13
A12: new : | B12: new column added in 2012/13

Sheet Sheet1 (hidden)

Sheet AuditedAc3 (hidden)
A1: Year | B1: RegNo | C1: BranchId | D1: TeachingType | E1: Stream | F1: OtherExp1 | G1: OtherExp2 | H1: OtherExp3 | I1: OtherExp4 | J1: OtherExp5 | K1: OtherExp6 | L1: OtherExp7 | M1: OtherExp8 | N1: OtherExp9 | O1: OtherExp10 | P1: TO_SchoolBusIncome | Q1: TO_SchoolBusOpenStock | R1: TO_SchoolBusPurchase | S1: TO_SchoolBusOtherExp1 | T1: TO_SchoolBusOtherExp2 | U1: TO_SchoolBusOtherExp3 | V1: TO_SchoolBusOtherExp4 | W1: TO_SchoolBusOtherExp5 | X1: TO_SchoolBusOtherExp6 | Y1: TO_SchoolBusOtherExp7 | Z1: TO_SchoolBusOtherExp8 | AA1: TO_SchoolBusOtherExp9 | AB1: TO_SchoolBusOtherExp10 | AC1: TO_SchoolBusCloseStock | AD1: TO_SchoolBusCost | AE1: TO_TextBooksIncome | AF1: TO_TextBooksOpenStock | AG1: TO_TextBooksPurchase | AH1: TO_TextBooksOtherExp1 | AI1: TO_TextBooksOtherExp2 | AJ1: TO_TextBooksOtherExp3 | AK1: TO_TextBooksOtherExp4 | AL1: TO_TextBooksOtherExp5 | AM1: TO_TextBooksOtherExp6 | AN1: TO_TextBooksOtherExp7 | AO1: TO_TextBooksOtherExp8 | AP1: TO_TextBooksOtherExp9 | AQ1: TO_TextBooksOtherExp10 | AR1: TO_TextBooksCloseStock | AS1: TO_TextBooksCost | AT1: TO_BooksIncome | AU1: TO_BooksOpenStock | AV1: TO_BooksPurchase | AW1: TO_BooksOtherExp1 | AX1: TO_BooksOtherExp2 | AY1: TO_BooksOtherExp3 | AZ1: TO_BooksOtherExp4 | BA1: TO_BooksOtherExp5 | BB1: TO_BooksOtherExp6 | BC1: TO_BooksOtherExp7 | BD1: TO_BooksOtherExp8 | BE1: TO_BooksOtherExp9 | BF1: TO_BooksOtherExp10 | BG1: TO_BooksCloseStock | BH1: TO_BooksCost | BI1: TO_SchoolUniformIncome | BJ1: TO_SchoolUniformOpenStock | BK1: TO_SchoolUniformPurchase | BL1: TO_SchoolUniformOtherExp1 | BM1: TO_SchoolUniformOtherExp2 | BN1: TO_SchoolUniformOtherExp3 | BO1: TO_SchoolUniformOtherExp4 | BP1: TO_SchoolUniformOtherExp5 | BQ1: TO_SchoolUniformOtherExp6 | BR1: TO_SchoolUniformOtherExp7 | BS1: TO_SchoolUniformOtherExp8 | BT1: TO_SchoolUniformOtherExp9 | BU1: TO_SchoolUniformOtherExp10 | BV1: TO_SchoolUniformCloseStock | BW1: TO_SchoolUniformCost | BX1: TO_SchoolBagIncome | BY1: TO_SchoolBagOpenStock | BZ1: TO_SchoolBagPurchase | CA1: TO_SchoolBagOtherExp1 | CB1: TO_SchoolBagOtherExp2 | CC1: TO_SchoolBagOtherExp3 | CD1: TO_SchoolBagOtherExp4 | CE1: TO_SchoolBagOtherExp5 | CF1: TO_SchoolBagOtherExp6 | CG1: TO_SchoolBagOtherExp7 | CH1: TO_SchoolBagOtherExp8 | CI1: TO_SchoolBagOtherExp9 | CJ1: TO_SchoolBagOtherExp10 | CK1: TO_SchoolBagCloseStock | CL1: TO_SchoolBagCost | CM1: TO_BeddingIncome | CN1: TO_BeddingOpenStock | CO1: TO_BeddingPurchase | CP1: TO_BeddingOtherExp1 | CQ1: TO_BeddingOtherExp2 | CR1: TO_BeddingOtherExp3 | CS1: TO_BeddingOtherExp4 | CT1: TO_BeddingOtherExp5 | CU1: TO_BeddingOtherExp6 | CV1: TO_BeddingOtherExp7 | CW1: TO_BeddingOtherExp8 | CX1: TO_BeddingOtherExp9 | CY1: TO_BeddingOtherExp10 | CZ1: TO_BeddingCloseStock | DA1: TO_BeddingCost | DB1: TO_ActivitiesIncome | DC1: TO_ActivitiesOpenStock | DD1: TO_ActivitiesPurchase | DE1: TO_ActivitiesOtherExp1 | DF1: TO_ActivitiesOtherExp2 | DG1: TO_ActivitiesOtherExp3 | DH1: TO_ActivitiesOtherExp4 | DI1: TO_ActivitiesOtherExp5 | DJ1: TO_ActivitiesOtherExp6 | DK1: TO_ActivitiesOtherExp7 | DL1: TO_ActivitiesOtherExp8 | DM1: TO_ActivitiesOtherExp9 | DN1: TO_ActivitiesOtherExp10 | DO1: TO_ActivitiesCloseStock | DP1: TO_ActivitiesCost | DQ1: TO_StationeryIncome | DR1: TO_StationeryOpenStock | DS1: TO_StationeryPurchase | DT1: TO_StationeryOtherExp1 | DU1: TO_StationeryOtherExp2 | DV1: TO_StationeryOtherExp3 | DW1: TO_StationeryOtherExp4 | DX1: TO_StationeryOtherExp5 | DY1: TO_StationeryOtherExp6 | DZ1: TO_StationeryOtherExp7 | EA1: TO_StationeryOtherExp8 | EB1: TO_StationeryOtherExp9 | EC1: TO_StationeryOtherExp10 | ED1: TO_StationeryCloseStock | EE1: TO_StationeryCost | EF1: TO_TeachingMaterialIncome | EG1: TO_TeachingMaterialOpenStock | EH1: TO_TeachingMaterialPurchase | EI1: TO_TeachingMaterialOtherExp1 | EJ1: TO_TeachingMaterialOtherExp2 | EK1: TO_TeachingMaterialOtherExp3 | EL1: TO_TeachingMaterialOtherExp4 | EM1: TO_TeachingMaterialOtherExp5 | EN1: TO_TeachingMaterialOtherExp6 | EO1: TO_TeachingMaterialOtherExp7 | EP1: TO_TeachingMaterialOtherExp8 | EQ1: TO_TeachingMaterialOtherExp9 | ER1: TO_TeachingMaterialOtherExp10 | ES1: TO_TeachingMaterialCloseStock | ET1: TO_TeachingMaterialCost | EU1: TO_FoodIncome | EV1: TO_FoodOpenStock | EW1: TO_FoodPurchase | EX1: TO_FoodOtherExp1 | EY1: TO_FoodOtherExp2 | EZ1: TO_FoodOtherExp3 | FA1: TO_FoodOtherExp4 | FB1: TO_FoodOtherExp5 | FC1: TO_FoodOtherExp6 | FD1: TO_FoodOtherExp7 | FE1: TO_FoodOtherExp8 | FF1: TO_FoodOtherExp9 | FG1: TO_FoodOtherExp10 | FH1: TO_FoodCloseStock | FI1: TO_FoodCost | FJ1: TO_OthersIncome | FK1: TO_OthersOpenStock | FL1: TO_OthersPurchase | FM1: TO_OthersOtherExp1 | FN1: TO_OthersOtherExp2 | FO1: TO_OthersOtherExp3 | FP1: TO_OthersOtherExp4 | FQ1: TO_OthersOtherExp5 | FR1: TO_OthersOtherExp6 | FS1: TO_OthersOtherExp7 | FT1: TO_OthersOtherExp8 | FU1: TO_OthersOtherExp9 | FV1: TO_OthersOtherExp10 | FW1: TO_OthersCloseStock | FX1: TO_OthersCost | FY1: TO_RemarksForOthers | FZ1: TO_RemarksForGoods
A2: =+AuditedAc1!A2 ->  | B2: =+AuditedAc1!B2 ->  | C2: =+AuditedAc1!C2 -> A | D2: =+AuditedAc1!D2 -> A | E2: =IF(Interim!A11="Statement 1A","N","L") -> L | F2: =IF(OR('Statement 4'!$AS24="",'Statement 4'!$AS24=0),"",'Statement 4'!$B24) ->  | G2: =IF(OR('Statement 4'!$AS25="",'Statement 4'!$AS25=0),"",'Statement 4'!$B25) ->  | H2: =IF(OR('Statement 4'!$AS26="",'Statement 4'!$AS26=0),"",'Statement 4'!$B26) ->  | I2: =IF(OR('Statement 4'!$AS27="",'Statement 4'!$AS27=0),"",'Statement 4'!$B27) ->  | J2: =IF(OR('Statement 4'!$AS28="",'Statement 4'!$AS28=0),"",'Statement 4'!$B28) ->  | K2: =IF(OR('Statement 4'!$AS29="",'Statement 4'!$AS29=0),"",'Statement 4'!$B29) ->  | L2: =IF(OR('Statement 4'!$AS30="",'Statement 4'!$AS30=0),"",'Statement 4'!$B30) ->  | M2: =IF(OR('Statement 4'!$AS31="",'Statement 4'!$AS31=0),"",'Statement 4'!$B31) ->  | N2: =IF(OR('Statement 4'!$AS32="",'Statement 4'!$AS32=0),"",'Statement 4'!$B32) ->  | O2: =IF(OR('Statement 4'!$AS33="",'Statement 4'!$AS33=0),"",'Statement 4'!$B33) ->  | P2: =+'Statement 4'!$AW15 -> 0 | Q2: =+'Statement 4'!$AW20 -> 0 | R2: =+'Statement 4'!$AW22 -> 0 | S2: =+'Statement 4'!$AW24 -> 0 | T2: =+'Statement 4'!$AW25 -> 0 | U2: =+'Statement 4'!$AW26 -> 0 | V2: =+'Statement 4'!$AW27 -> 0 | W2: =+'Statement 4'!$AW28 -> 0 | X2: =+'Statement 4'!$AW29 -> 0 | Y2: =+'Statement 4'!$AW30 -> 0 | Z2: =+'Statement 4'!$AW31 -> 0 | AA2: =+'Statement 4'!$AW32 -> 0 | AB2: =+'Statement 4'!$AW33 -> 0 | AC2: =+'Statement 4'!$AW35 -> 0 | AD2: =+'Statement 4'!$AW37 -> 0 | AE2: =+'Statement 4'!$AY15 -> 0 | AF2: =+'Statement 4'!$AY20 -> 0 | AG2: =+'Statement 4'!$AY22 -> 0 | AH2: =+'Statement 4'!$AY24 -> 0 | AI2: =+'Statement 4'!$AY25 -> 0 | AJ2: =+'Statement 4'!$AY26 -> 0 | AK2: =+'Statement 4'!$AY27 -> 0 | AL2: =+'Statement 4'!$AY28 -> 0 | AM2: =+'Statement 4'!$AY29 -> 0 | AN2: =+'Statement 4'!$AY30 -> 0 | AO2: =+'Statement 4'!$AY31 -> 0 | AP2: =+'Statement 4'!$AY32 -> 0 | AQ2: =+'Statement 4'!$AY33 -> 0 | AR2: =+'Statement 4'!$AY35 -> 0 | AS2: =+'Statement 4'!$AY37 -> 0 | AT2: =+'Statement 4'!$BA15 -> 0 | AU2: =+'Statement 4'!$BA20 -> 0 | AV2: =+'Statement 4'!$BA22 -> 0 | AW2: =+'Statement 4'!$BA24 -> 0 | AX2: =+'Statement 4'!$BA25 -> 0 | AY2: =+'Statement 4'!$BA26 -> 0 | AZ2: =+'Statement 4'!$BA27 -> 0 | BA2: =+'Statement 4'!$BA28 -> 0 | BB2: =+'Statement 4'!$BA29 -> 0 | BC2: =+'Statement 4'!$BA30 -> 0 | BD2: =+'Statement 4'!$BA31 -> 0 | BE2: =+'Statement 4'!$BA32 -> 0 | BF2: =+'Statement 4'!$BA33 -> 0 | BG2: =+'Statement 4'!$BA35 -> 0 | BH2: =+'Statement 4'!$BA37 -> 0 | BI2: =+'Statement 4'!$BC15 -> 0 | BJ2: =+'Statement 4'!$BC20 -> 0 | BK2: =+'Statement 4'!$BC22 -> 0 | BL2: =+'Statement 4'!$BC24 -> 0 | BM2: =+'Statement 4'!$BC25 -> 0 | BN2: =+'Statement 4'!$BC26 -> 0 | BO2: =+'Statement 4'!$BC27 -> 0 | BP2: =+'Statement 4'!$BC28 -> 0 | BQ2: =+'Statement 4'!$BC29 -> 0 | BR2: =+'Statement 4'!$BC30 -> 0 | BS2: =+'Statement 4'!$BC31 -> 0 | BT2: =+'Statement 4'!$BC32 -> 0 | BU2: =+'Statement 4'!$BC33 -> 0 | BV2: =+'Statement 4'!$BC35 -> 0 | BW2: =+'Statement 4'!$BC37 -> 0 | BX2: =+'Statement 4'!$BE15 -> 0 | BY2: =+'Statement 4'!$BE20 -> 0 | BZ2: =+'Statement 4'!$BE22 -> 0 | CA2: =+'Statement 4'!$BE24 -> 0 | CB2: =+'Statement 4'!$BE25 -> 0 | CC2: =+'Statement 4'!$BE26 -> 0 | CD2: =+'Statement 4'!$BE27 -> 0 | CE2: =+'Statement 4'!$BE28 -> 0 | CF2: =+'Statement 4'!$BE29 -> 0 | CG2: =+'Statement 4'!$BE30 -> 0 | CH2: =+'Statement 4'!$BE31 -> 0 | CI2: =+'Statement 4'!$BE32 -> 0 | CJ2: =+'Statement 4'!$BE33 -> 0 | CK2: =+'Statement 4'!$BE35 -> 0 | CL2: =+'Statement 4'!$BE37 -> 0 | CM2: =+'Statement 4'!$BG15 -> 0 | CN2: =+'Statement 4'!$BG20 -> 0 | CO2: =+'Statement 4'!$BG22 -> 0 | CP2: =+'Statement 4'!$BG24 -> 0 | CQ2: =+'Statement 4'!$BG25 -> 0 | CR2: =+'Statement 4'!$BG26 -> 0 | CS2: =+'Statement 4'!$BG27 -> 0 | CT2: =+'Statement 4'!$BG28 -> 0 | CU2: =+'Statement 4'!$BG29 -> 0 | CV2: =+'Statement 4'!$BG30 -> 0 | CW2: =+'Statement 4'!$BG31 -> 0 | CX2: =+'Statement 4'!$BG32 -> 0 | CY2: =+'Statement 4'!$BG33 -> 0 | CZ2: =+'Statement 4'!$BG35 -> 0 | DA2: =+'Statement 4'!$BG37 -> 0 | DB2: =+'Statement 4'!$BI15 -> 0 | DC2: =+'Statement 4'!$BI20 -> 0 | DD2: =+'Statement 4'!$BI22 -> 0 | DE2: =+'Statement 4'!$BI24 -> 0 | DF2: =+'Statement 4'!$BI25 -> 0 | DG2: =+'Statement 4'!$BI26 -> 0 | DH2: =+'Statement 4'!$BI27 -> 0 | DI2: =+'Statement 4'!$BI28 -> 0 | DJ2: =+'Statement 4'!$BI29 -> 0 | DK2: =+'Statement 4'!$BI30 -> 0 | DL2: =+'Statement 4'!$BI31 -> 0 | DM2: =+'Statement 4'!$BI32 -> 0 | DN2: =+'Statement 4'!$BI33 -> 0 | DO2: =+'Statement 4'!$BI35 -> 0 | DP2: =+'Statement 4'!$BI37 -> 0 | DQ2: =+'Statement 4'!$BK15 -> 0 | DR2: =+'Statement 4'!$BK20 -> 0 | DS2: =+'Statement 4'!$BK22 -> 0 | DT2: =+'Statement 4'!$BK24 -> 0 | DU2: =+'Statement 4'!$BK25 -> 0 | DV2: =+'Statement 4'!$BK26 -> 0 | DW2: =+'Statement 4'!$BK27 -> 0 | DX2: =+'Statement 4'!$BK28 -> 0 | DY2: =+'Statement 4'!$BK29 -> 0 | DZ2: =+'Statement 4'!$BK30 -> 0 | EA2: =+'Statement 4'!$BK31 -> 0 | EB2: =+'Statement 4'!$BK32 -> 0 | EC2: =+'Statement 4'!$BK33 -> 0 | ED2: =+'Statement 4'!$BK35 -> 0 | EE2: =+'Statement 4'!$BK37 -> 0 | EF2: =+'Statement 4'!$BM15 -> 0 | EG2: =+'Statement 4'!$BM20 -> 0 | EH2: =+'Statement 4'!$BM22 -> 0 | EI2: =+'Statement 4'!$BM24 -> 0 | EJ2: =+'Statement 4'!$BM25 -> 0 | EK2: =+'Statement 4'!$BM26 -> 0 | EL2: =+'Statement 4'!$BM27 -> 0 | EM2: =+'Statement 4'!$BM28 -> 0 | EN2: =+'Statement 4'!$BM29 -> 0 | EO2: =+'Statement 4'!$BM30 -> 0 | EP2: =+'Statement 4'!$BM31 -> 0 | EQ2: =+'Statement 4'!$BM32 -> 0 | ER2: =+'Statement 4'!$BM33 -> 0 | ES2: =+'Statement 4'!$BM35 -> 0 | ET2: =+'Statement 4'!$BM37 -> 0 | EU2: =+'Statement 4'!$BO15 -> 0 | EV2: =+'Statement 4'!$BO20 -> 0 | EW2: =+'Statement 4'!$BO22 -> 0 | EX2: =+'Statement 4'!$BO24 -> 0 | EY2: =+'Statement 4'!$BO25 -> 0 | EZ2: =+'Statement 4'!$BO26 -> 0 | FA2: =+'Statement 4'!$BO27 -> 0 | FB2: =+'Statement 4'!$BO28 -> 0 | FC2: =+'Statement 4'!$BO29 -> 0 | FD2: =+'Statement 4'!$BO30 -> 0 | FE2: =+'Statement 4'!$BO31 -> 0 | FF2: =+'Statement 4'!$BO32 -> 0 | FG2: =+'Statement 4'!$BO33 -> 0 | FH2: =+'Statement 4'!$BO35 -> 0 | FI2: =+'Statement 4'!$BO37 -> 0 | FJ2: ='Statement 4'!$BQ15 -> 0 | FK2: ='Statement 4'!$BQ20 -> 0 | FL2: ='Statement 4'!$BQ22 -> 0 | FM2: ='Statement 4'!$BQ24 -> 0 | FN2: ='Statement 4'!$BQ25 -> 0 | FO2: ='Statement 4'!$BQ26 -> 0 | FP2: ='Statement 4'!$BQ27 -> 0 | FQ2: ='Statement 4'!$BQ28 -> 0 | FR2: ='Statement 4'!$BQ29 -> 0 | FS2: ='Statement 4'!$BQ30 -> 0 | FT2: ='Statement 4'!$BQ31 -> 0 | FU2: ='Statement 4'!$BQ32 -> 0 | FV2: ='Statement 4'!$BQ33 -> 0 | FW2: ='Statement 4'!$BQ35 -> 0 | FX2: ='Statement 4'!$BQ37 -> 0
F4: Statement 4 | G4: Statement 4 | H4: Statement 4 | I4: Statement 4 | J4: Statement 4 | K4: Statement 4 | L4: Statement 4 | M4: Statement 4 | N4: Statement 4 | O4: Statement 4 | P4: Statement 4 | Q4: Statement 4 | R4: Statement 4 | S4: Statement 4 | T4: Statement 4 | U4: Statement 4 | V4: Statement 4 | W4: Statement 4 | X4: Statement 4 | Y4: Statement 4 | Z4: Statement 4 | AA4: Statement 4 | AB4: Statement 4 | AC4: Statement 4 | AD4: Statement 4 | AE4: Statement 4 | AF4: Statement 4 | AG4: Statement 4 | AH4: Statement 4 | AI4: Statement 4 | AJ4: Statement 4 | AK4: Statement 4 | AL4: Statement 4 | AM4: Statement 4 | AN4: Statement 4 | AO4: Statement 4 | AP4: Statement 4 | AQ4: Statement 4 | AR4: Statement 4 | AS4: Statement 4 | AT4: Statement 4 | AU4: Statement 4 | AV4: Statement 4 | AW4: Statement 4 | AX4: Statement 4 | AY4: Statement 4 | AZ4: Statement 4 | BA4: Statement 4 | BB4: Statement 4 | BC4: Statement 4 | BD4: Statement 4 | BE4: Statement 4 | BF4: Statement 4 | BG4: Statement 4 | BH4: Statement 4 | BI4: Statement 4 | BJ4: Statement 4 | BK4: Statement 4 | BL4: Statement 4 | BM4: Statement 4 | BN4: Statement 4 | BO4: Statement 4 | BP4: Statement 4 | BQ4: Statement 4 | BR4: Statement 4 | BS4: Statement 4 | BT4: Statement 4 | BU4: Statement 4 | BV4: Statement 4 | BW4: Statement 4 | BX4: Statement 4 | BY4: Statement 4 | BZ4: Statement 4 | CA4: Statement 4 | CB4: Statement 4 | CC4: Statement 4 | CD4: Statement 4 | CE4: Statement 4 | CF4: Statement 4 | CG4: Statement 4 | CH4: Statement 4 | CI4: Statement 4 | CJ4: Statement 4 | CK4: Statement 4 | CL4: Statement 4 | CM4: Statement 4 | CN4: Statement 4 | CO4: Statement 4 | CP4: Statement 4 | CQ4: Statement 4 | CR4: Statement 4 | CS4: Statement 4 | CT4: Statement 4 | CU4: Statement 4 | CV4: Statement 4 | CW4: Statement 4 | CX4: Statement 4 | CY4: Statement 4 | CZ4: Statement 4 | DA4: Statement 4 | DB4: Statement 4 | DC4: Statement 4 | DD4: Statement 4 | DE4: Statement 4 | DF4: Statement 4 | DG4: Statement 4 | DH4: Statement 4 | DI4: Statement 4 | DJ4: Statement 4 | DK4: Statement 4 | DL4: Statement 4 | DM4: Statement 4 | DN4: Statement 4 | DO4: Statement 4 | DP4: Statement 4 | DQ4: Statement 4 | DR4: Statement 4 | DS4: Statement 4 | DT4: Statement 4 | DU4: Statement 4 | DV4: Statement 4 | DW4: Statement 4 | DX4: Statement 4 | DY4: Statement 4 | DZ4: Statement 4 | EA4: Statement 4 | EB4: Statement 4 | EC4: Statement 4 | ED4: Statement 4 | EE4: Statement 4 | EF4: Statement 4 | EG4: Statement 4 | EH4: Statement 4 | EI4: Statement 4 | EJ4: Statement 4 | EK4: Statement 4 | EL4: Statement 4 | EM4: Statement 4 | EN4: Statement 4 | EO4: Statement 4 | EP4: Statement 4 | EQ4: Statement 4 | ER4: Statement 4 | ES4: Statement 4 | ET4: Statement 4 | EU4: Statement 4 | EV4: Statement 4 | EW4: Statement 4 | EX4: Statement 4 | EY4: Statement 4 | EZ4: Statement 4 | FA4: Statement 4 | FB4: Statement 4 | FC4: Statement 4 | FD4: Statement 4 | FE4: Statement 4 | FF4: Statement 4 | FG4: Statement 4 | FH4: Statement 4 | FI4: Statement 4 | FJ4: Statement 4 | FK4: Statement 4 | FL4: Statement 4 | FM4: Statement 4 | FN4: Statement 4 | FO4: Statement 4 | FP4: Statement 4 | FQ4: Statement 4 | FR4: Statement 4 | FS4: Statement 4 | FT4: Statement 4 | FU4: Statement 4 | FV4: Statement 4 | FW4: Statement 4 | FX4: Statement 4 | FY4: Statement 4 | FZ4: Statement 4
F5: New | G5: New | H5: New | I5: New | J5: New | K5: New | L5: New | M5: New | N5: New | O5: New | Q5: New | R5: New | S5: New | T5: New | U5: New | V5: New | W5: New | X5: New | Y5: New | Z5: New | AA5: New | AB5: New | AC5: New | AF5: New | AG5: New | AH5: New | AI5: New | AJ5: New | AK5: New | AL5: New | AM5: New | AN5: New | AO5: New | AP5: New | AQ5: New | AR5: New | AU5: New | AV5: New | AW5: New | AX5: New | AY5: New | AZ5: New | BA5: New | BB5: New | BC5: New | BD5: New | BE5: New | BF5: New | BG5: New | BJ5: New | BK5: New | BL5: New | BM5: New | BN5: New | BO5: New | BP5: New | BQ5: New | BR5: New | BS5: New | BT5: New | BU5: New | BV5: New | BY5: New | BZ5: New | CA5: New | CB5: New | CC5: New | CD5: New | CE5: New | CF5: New | CG5: New | CH5: New | CI5: New | CJ5: New | CK5: New | CN5: New | CO5: New | CP5: New | CQ5: New | CR5: New | CS5: New | CT5: New | CU5: New | CV5: New | CW5: New | CX5: New | CY5: New | CZ5: New | DC5: New | DD5: New | DE5: New | DF5: New | DG5: New | DH5: New | DI5: New | DJ5: New | DK5: New | DL5: New | DM5: New | DN5: New | DO5: New | DR5: New | DS5: New | DT5: New | DU5: New | DV5: New | DW5: New | DX5: New | DY5: New | DZ5: New | EA5: New | EB5: New | EC5: New | ED5: New | EG5: New | EH5: New | EI5: New | EJ5: New | EK5: New | EL5: New | EM5: New | EN5: New | EO5: New | EP5: New | EQ5: New | ER5: New | ES5: New | EV5: New | EW5: New | EX5: New | EY5: New | EZ5: New | FA5: New | FB5: New | FC5: New | FD5: New | FE5: New | FF5: New | FG5: New | FH5: New | FK5: New | FL5: New | FM5: New | FN5: New | FO5: New | FP5: New | FQ5: New | FR5: New | FS5: New | FT5: New | FU5: New | FV5: New | FW5: New | FY5: note 1 | FZ5: note 1
A8: Remarks
A9: note 1: | B9: data to be filled in by MS
A10: new : | B10: new column added in 2012/13

Sheet AuditedAc4 (hidden)
A1: Year | B1: RegNo | C1: BranchId | D1: TeachingType | E1: Stream | F1: AmountDueToRelatedParties6 | G1: AmountDueToRelatedPartiesName6 | H1: AmountDueToRelatedParties7 | I1: AmountDueToRelatedPartiesName7 | J1: AmountDueToRelatedParties8 | K1: AmountDueToRelatedPartiesName8 | L1: AmountDueToRelatedParties9 | M1: AmountDueToRelatedPartiesName9 | N1: AmountDueToRelatedParties10 | O1: AmountDueToRelatedPartiesName10 | P1: PaymentToRelatedParties6 | Q1: PaymentToRelatedPartiesName6 | R1: PaymentToRelatedParties7 | S1: PaymentToRelatedPartiesName7 | T1: PaymentToRelatedParties8 | U1: PaymentToRelatedPartiesName8 | V1: PaymentToRelatedParties9 | W1: PaymentToRelatedPartiesName9 | X1: PaymentToRelatedParties10 | Y1: PaymentToRelatedPartiesName10 | Z1: ReceiptFromRelatedParties6 | AA1: ReceiptFromRelatedPartiesName6 | AB1: ReceiptFromRelatedParties7 | AC1: ReceiptFromRelatedPartiesName7 | AD1: ReceiptFromRelatedParties8 | AE1: ReceiptFromRelatedPartiesName8 | AF1: ReceiptFromRelatedParties9 | AG1: ReceiptFromRelatedPartiesName9 | AH1: ReceiptFromRelatedParties10 | AI1: ReceiptFromRelatedPartiesName10 | AJ1: CCCSS_SalaryExp_T
A2: =+AuditedAc1!A2 ->  | B2: =+AuditedAc1!B2 ->  | C2: =+AuditedAc1!C2 -> A | D2: =+AuditedAc1!D2 -> A | E2: =IF(Interim!A11="Statement 1A","N","L") -> L | F2: =+'Statement 6_Others'!$V176 -> 0 | G2: =IF(OR(F2="",F2=0),"",'Statement 6_Others'!$B176) ->  | H2: =+'Statement 6_Others'!$V177 -> 0 | I2: =IF(OR(H2="",H2=0),"",'Statement 6_Others'!$B177) ->  | J2: =+'Statement 6_Others'!$V178 -> 0 | K2: =IF(OR(J2="",J2=0),"",'Statement 6_Others'!$B178) ->  | L2: =+'Statement 6_Others'!$V179 -> 0 | M2: =IF(OR(L2="",L2=0),"",'Statement 6_Others'!$B179) ->  | N2: =+'Statement 6_Others'!$V180 -> 0 | O2: =IF(OR(N2="",N2=0),"",'Statement 6_Others'!$B180) ->  | P2: =+'Statement 6_Others'!$V187 -> 0 | Q2: =IF(OR(P2="",P2=0),"",'Statement 6_Others'!$B187) ->  | R2: =+'Statement 6_Others'!$V188 -> 0 | S2: =IF(OR(R2="",R2=0),"",'Statement 6_Others'!$B188) ->  | T2: =+'Statement 6_Others'!$V189 -> 0 | U2: =IF(OR(T2="",T2=0),"",'Statement 6_Others'!$B189) ->  | V2: =+'Statement 6_Others'!$V190 -> 0 | W2: =IF(OR(V2="",V2=0),"",'Statement 6_Others'!$B190) ->  | X2: =+'Statement 6_Others'!$V191 -> 0 | Y2: =IF(OR(X2="",X2=0),"",'Statement 6_Others'!$B191) ->  | Z2: =+'Statement 6_Others'!$V198 -> 0 | AA2: =IF(OR(Z2="",Z2=0),"",'Statement 6_Others'!$B198) ->  | AB2: =+'Statement 6_Others'!$V199 -> 0 | AC2: =IF(OR(AB2="",AB2=0),"",'Statement 6_Others'!$B199) ->  | AD2: =+'Statement 6_Others'!$V200 -> 0 | AE2: =IF(OR(AD2="",AD2=0),"",'Statement 6_Others'!$B200) ->  | AF2: =+'Statement 6_Others'!$V201 -> 0 | AG2: =IF(OR(AF2="",AF2=0),"",'Statement 6_Others'!$B201) ->  | AH2: =+'Statement 6_Others'!$V202 -> 0 | AI2: =IF(OR(AH2="",AH2=0),"",'Statement 6_Others'!$B202) ->  | AJ2: ='Statement 3'!$Q$36 -> 0
F4: Statement 6_Others | G4: Statement 6_Others | H4: Statement 6_Others | I4: Statement 6_Others | J4: Statement 6_Others | K4: Statement 6_Others | L4: Statement 6_Others | M4: Statement 6_Others | N4: Statement 6_Others | O4: Statement 6_Others | P4: Statement 6_Others | Q4: Statement 6_Others | R4: Statement 6_Others | S4: Statement 6_Others | T4: Statement 6_Others | U4: Statement 6_Others | V4: Statement 6_Others | W4: Statement 6_Others | X4: Statement 6_Others | Y4: Statement 6_Others | Z4: Statement 6_Others | AA4: Statement 6_Others | AB4: Statement 6_Others | AC4: Statement 6_Others | AD4: Statement 6_Others | AE4: Statement 6_Others | AF4: Statement 6_Others | AG4: Statement 6_Others | AH4: Statement 6_Others | AI4: Statement 6_Others | AJ4: Statement 3
F5: New | G5: New | H5: New | I5: New | J5: New | K5: New | L5: New | M5: New | N5: New | O5: New | P5: New | Q5: New | R5: New | S5: New | T5: New | U5: New | V5: New | W5: New | X5: New | Y5: New | Z5: New | AA5: New | AB5: New | AC5: New | AD5: New | AE5: New | AF5: New | AG5: New | AH5: New | AI5: New | AJ5: New
A8: Remarks
A9: note 1: | B9: data to be filled in by MS
A10: Auto: | B10: Auto calculation
A11: blank : | B11: column not being used in 2012/13
A12: new : | B12: new column added in 2012/13

Sheet School Name (hidden)
A1: =TRIM(CONCATENATE("Name of School : ",IF(ISBLANK('Annex 1'!$C$7),A$15,LEFT($A$15,$E$34)))) -> Name of School : ________________________________________________________________________
A2: =IF(ISBLANK('Annex 1'!$C$7),"",IF(E$34<$B$20,CONCATENATE(" ",TRIM(RIGHT($A$15,$B$20-E$34))),"")) -> 
A4: =TRIM(CONCATENATE("Name of School : ",IF(ISBLANK('Annex 1'!$C$7),A$15,LEFT($A$15,F$34)))) -> Name of School : ________________________________________________________________________
A5: =IF(ISBLANK('Annex 1'!$C$7),"",IF(F$34<$B$20,CONCATENATE(" ",TRIM(RIGHT($A$15,$B$20-F$34))),"")) -> 
A7: =TRIM(CONCATENATE("Name of School : ",IF(ISBLANK('Annex 1'!$C$7),A$15,LEFT($A$15,G$34)))) -> Name of School : ________________________________________________________________________
A8: =IF(ISBLANK('Annex 1'!$C$7),"",IF(G$34<$B$20,CONCATENATE(" ",TRIM(RIGHT($A$15,$B$20-G$34))),"")) -> 
A15: =CONCATENATE(IF(ISBLANK('Annex 1'!C7)," ________________________________________________________________________ ",'Annex 1'!C7),IF(ISBLANK('Annex 1'!C15),"",(" ("&'Annex 1'!C15&")"))) -> ________________________________________________________________________
D17: Statement | E17: 1 | F17: 1A | G17: 3
D18: Maximum | E18: 70 | F18: 75 | G18: 65
B19: Length | D19: Start | E19: =IF($B$20<=E$18,$B$20,E$18-30) -> 40 | F19: =IF($B$20<=F$18,$B$20,F$18-30) -> 74 | G19: =IF($B$20<=G$18,$B$20,G$18-30) -> 35
B20: =LEN(A15) -> 74 | E20: =IF($B$20<=E$18,$B$20,IF(ISERROR(SEARCH(" ",$A$15,E19+1)),E19,IF(SEARCH(" ",$A$15,E19+1)>E$18,E19,SEARCH(" ",$A$15,E19+1)))) -> 40 | F20: =IF($B$20<=F$18,$B$20,IF(ISERROR(SEARCH(" ",$A$15,F19+1)),F19,IF(SEARCH(" ",$A$15,F19+1)>F$18,F19,SEARCH(" ",$A$15,F19+1)))) -> 74 | G20: =IF($B$20<=G$18,$B$20,IF(ISERROR(SEARCH(" ",$A$15,G19+1)),G19,IF(SEARCH(" ",$A$15,G19+1)>G$18,G19,SEARCH(" ",$A$15,G19+1)))) -> 35
E21: =IF($B$20<=E$18,$B$20,IF(ISERROR(SEARCH(" ",$A$15,E20+1)),E20,IF(SEARCH(" ",$A$15,E20+1)>E$18,E20,SEARCH(" ",$A$15,E20+1)))) -> 40 | F21: =IF($B$20<=F$18,$B$20,IF(ISERROR(SEARCH(" ",$A$15,F20+1)),F20,IF(SEARCH(" ",$A$15,F20+1)>F$18,F20,SEARCH(" ",$A$15,F20+1)))) -> 74 | G21: =IF($B$20<=G$18,$B$20,IF(ISERROR(SEARCH(" ",$A$15,G20+1)),G20,IF(SEARCH(" ",$A$15,G20+1)>G$18,G20,SEARCH(" ",$A$15,G20+1)))) -> 35
E22: 40 | F22: 74 | G22: 35
E23: 40 | F23: 74 | G23: 35
E24: 40 | F24: 74 | G24: 35
E25: 40 | F25: 74 | G25: 35
E26: 40 | F26: 74 | G26: 35
E27: 40 | F27: 74 | G27: 35
E28: 40 | F28: 74 | G28: 35
E29: 40 | F29: 74 | G29: 35
E30: 40 | F30: 74 | G30: 35
E31: 40 | F31: 74 | G31: 35
E32: 40 | F32: 74 | G32: 35
E33: 40 | F33: 74 | G33: 35
E34: 40 | F34: 74 | G34: 35

Sheet README
A1: Procedures/Guidelines for Inputting Data into the Excel Template
A3: Step No. | B3: Procedures / Points to Note
A5: 1 | B5: Input Schools' basic information in Front Page of Annex 1
B7: - To facilitate easy retrieval of school name, school can first select their sponsor's name from the pull-down menu for "Name of Sponsoring Body" (item 1) which is an optional field. Then, only schools under the selected sponsoring body will be shown for selection in the pull-down menu for "Name of School" (item 2). Schools can choose to go to item 2 directly.
B9: - After selecting your school from the pull-down menu for “Name of School”(item 2), the school number will prop-up at item 3 based on your selection. Please check whether the school number is correct.
B11: - For schools with branch schools under the same school number, please fill up the cell on “Branch ID” (item 4) for these branch schools (Please select "B", "C", "D" etc. for each individual Branch School other than Main School). Please fill up the cell on “Name of Branch School” (item 5) also.
B13: - All cells under “School type” (item 6) are mandatory fields. Please select appropriate values from the drop-down lists.
B15: - For schools with Non-Local Curriculum operated during the reporting year, please fill up "Yes" for item 7, otherwise select "No". Please then complete either Statement 1 (for schools without Non-Local Curriculum) OR Statement 1A (for schools with Non-Local Curriculum) as appropriate.
B17: - Please fill in item 8 with the reporting period start/end dates, which will be automatically copied to other statements.
A19: 2 | B19: School Supervisor’s Certificate & Auditor’s Report
B21: - All schools are required to complete these 2 worksheets. Hardcopy sent to EDB must bear signature of school's supervisor/auditor as well as school/auditor's chop while these are not required in the softcopy.
A23: 3 | B23: Statements 1 to 6
B25: - Editing is allowed in certain cells only. Other cells are write-protected and their value are either preset or will be calculated automatically based on your data input in editable cells. For easy identification, editable cells are shaded in blue. Schools can unshade editable cells if necessary.
B26: - In the columns "Remarks (or Notes)" which is editable, schools can input remarks/notes according to their reporting requirement.
B27: - Please follow the sequence of completion for Statements 1/1A , 2 to 6 from (a) to (d):
B28: (a) Complete Statements 6_FA and 6_Others.
B29: (b) Complete Statements 3, 4 and 5.
B30: (c) Complete Statement 1/1A.
B31: (d) Complete Statement 2.
A33: Statement No. | B33: General Guidelines
A35: All | B35: - For those fields shown "-", no input is required as they will be automatically updated from input in other field(s).
B36: - For all statements, schools can hide rows that are not applicable to the school's reporting requirement.
A37: 1/1A | B37: - Please fill in either Statement 1 (for schools operating classes of local curriculum only) or Statement 1A (for schools operating classes of both local and non-local curriculum).
B39: - Do not fill in both Statement 1 and 1A.
A40: 2 | B40: - Brief break-downs on Items “Other non-current assets”, “Other current assets”, “Other current liabilities”, “Reserve” and “Other long term liabilities” are required. However, please limit the description of each sub-items to 50 characters.
B43: - A maximum of 10 sub-items are allowed for each Item. Where appropriate, please merge all minor break-downs into the tenth sub-item.
A44: 3 | B44: - This statement is only applicable to schools receiving subsidies under the Child Care Centres Subsidy Scheme and Subsidy for Manpower Enhancement.
A46: 4 | B46: - For a trading operation which is not specified in Statement 4, please input the required data in column K. In case you have more than one such trading operation, you can unhide the columns and input relevant data in columns L to U. Please briefly specify each trading operation added (on row 12) and your description should be restricted to 50 characters.
B48: - For new items to be inserted under “Other expenses” where you are required to specify, please limit your description to 50 characters for each.
A49: 5 | B49: - For each item of expenditure to be inserted, please specify its description which should be restricted to 50 characters.
A51: 6_FA | B51: - For category of fixed assets which is not specified in Statement 6_FA, please input the required data in column D. In case you have more than one such fixed asset, you can unhide the columns and input relevant data in columns E to M. Please specify the description of such category which should be restricted to 50 characters.
A53: 6_Others | B53: - For each item to be listed under “Details of Addition of Fixed Assets” (Note 2), “Related Party Transactions” (Note 4) and “Transfer to / (from) Reserve” (Note 6), please provide description and limit your description to 50 characters.
B55: - For new items under “Other Expenditure” (Note 3) and “Other Income” (Note 5), you are required to specify the description, which should be restricted to 50 characters for each item.
A57: Note: For those items group under "Others" in various statements, EDB may request further information, if necessary.

Sheet Annex 1
E1: Annex 1
A4: (1) | B4: Name of Sponsoring Body :
B5: [ Optional ]
A7: (2) | B7: Name of School :
A11: (3) | B11: School Number : | C11: =IF(ISBLANK(C7),"",VLOOKUP(C7,KG!$A$4:$B$2001,2,0)) -> 
A13: (4) | B13: Branch ID | D13: B | E13: C | F13: D | G13: E | H13: F | I13: G | J13: H | K13: I | L13: J | M13: K | N13: L | O13: M | P13: N | Q13: O | R13: P | S13: Q | T13: R | U13: S | V13: T | W13: U | X13: V | Y13: W | Z13: X | AA13: Y | AB13: Z
A15: (5) | B15: Name of Branch School
A17: (6) | B17: School type
B19: KG / KG-cum-CCC | D19: KG | E19: KG-cum-CCC
B20: Redeeming / Not redeeming voucher subsidy under PEVS | D20: Redeeming PEVS voucher | E20: Not redeeming PEVS voucher
B21: CCCSS / Non-CCCSS | D21: CCCSS | E21: Non-CCCSS
B22: SME / Non-SME | D22: SME | E22: Non-SME
B23: Rent Reimb. / Non-Rent Reimb. | D23: Rent Reimbursement | E23: Non-Rent Reimbursement
A25: (7) | B25: With / Without Non-Local Curriculum
B27: Non-Local Curriculum | D27: Yes | E27: No
C28: =IF(ISBLANK(C27),"",CONCATENATE("Please complete Statement ",IF(C27=D27,"1A","1")," but NOT Statement ",IF(C27=D27,"1","1A"),".")) -> 
A30: (8) | B30: Accounting Period
B32: Start Date : | C32: e.g. 1 September 2017 | E32: 2017-2018
B33: End Date : | C33: e.g. 31 August 2018
B36: Statement No. | C36: Particulars | E36: Page
B37: - | C37: School Supervisor's Certificate | E37: 2
B38: - | C38: Auditor’s Report | E38: 3
B39: 1 | C39: Income and Expenditure Account (for KGs if Statement 1A below is inapplicable) | E39: 4 - 5
B40: 1A | C40: Income and Expenditure Account (for KGs redeeming voucher subsidy under PEVS with operating classes of both local & non-local curriculum) | E40: 6 - 7
B41: 2 | C41: Balance Sheet | E41: 8
B42: 3 | C42: Statement of Child Care Centre Subsidy Scheme and Subsidy for Manpower Enhancement (if applicable) | E42: 9
B45: 4 | C45: Statement of Trading Operations | E45: 10
B46: 6 | C46: Statement of Donation Income | E46: 11
B47: 7 | C47: Notes to the Accounts | E47: 12 - 16
B49: Note:
B50: Please refer to "README" before completion of the respective statements.
A51: - 1 -

Sheet Supervisors Certificate
A1: Name of School : | B1: =IF('Annex 1'!C7="","",'Annex 1'!C7) -> 
A4: ='Annex 1'!C33 -> e.g. 31 August 2018 | B4: ='Annex 1'!E33 -> 0
B5: ='Annex 1'!E33 -> 0
A8: =CONCATENATE("ACCOUNTS FOR THE YEAR ENDED ",IF(NOT(ISNUMBER('Annex 1'!C33)),"_____________________",UPPER(TEXT('Annex 1'!C33,"dd mmmm yyyy")))) -> ACCOUNTS FOR THE YEAR ENDED _____________________
A11: SCHOOL SUPERVISOR'S CERTIFICATE
B15: =CONCATENATE("I hereby certify that information and explanation given in", IF(ISBLANK('Annex 1'!C27)," * Statement 1 / 1A , ",IF('Annex 1'!C27="Yes"," Statement 1A , "," Statement 1 , ")),) -> I hereby certify that information and explanation given in * Statement 1 / 1A ,
A17: =CONCATENATE("2, 3, 4A, 4B, 5, 6 and 7 in the Accounts of School for the year ended ",IF(NOT(ISNUMBER('Annex 1'!C33))," __________________________ ",TEXT('Annex 1'!C33,"d mmmm yyyy"))," are true and correct.") -> 2, 3, 4A, 4B, 5, 6 and 7 in the Accounts of School for the year ended __________________________ are true and correct.
E32: Signed :
F33: (School Supervisor)
E35: Name of School Supervisor :
E37: Date :
A42: =IF('Annex 1'!C27="","*Please delete whichever is inappropriate","") -> *Please delete whichever is inappropriate
A48: - 2 -

Sheet Auditors Report
A1: Name of School : | B1: =IF('Annex 1'!C7="","",'Annex 1'!C7) -> 
A4: ='Annex 1'!C33 -> e.g. 31 August 2018 | B4: ='Annex 1'!E33 -> 0
A6: ='Supervisors Certificate'!A8 -> ACCOUNTS FOR THE YEAR ENDED _____________________
A9: AUDITORS' REPORT
F32: Signed :
G33: ( Auditor )
F34: Name of Auditor :
F36: Date :
A48: - 3 -

Sheet Statement 1
A2: Statement 1
E3: (Page 1 of 2)
A5: For KGs/KG-cum-CCCs (i) redeeming voucher subsidy under PEVS and/or (ii) receiving (a) CCCSS, and/or (b) SME and/or (c) Rent Reimbursement
A6: =IF('Annex 1'!C27="Yes","(For those KGs/KG-cum-CCCs redeeming voucher subsidy under PEVS with operating classes of both local and non-local curriculum, they should prepare Statement 1A instead.)","") -> 
A8: ='School Name'!A1 -> Name of School : ________________________________________________________________________
A9: ='School Name'!A2 -> 
A11: =CONCATENATE("School type : ",IF(ISBLANK('Annex 1'!C19),"*KG / KG-cum-CCC",'Annex 1'!C19)) -> School type : *KG / KG-cum-CCC | C11: =IF(AND('Annex 1'!C19="",'Annex 1'!C20=""),"[*Please delete whichever is inappropriate.]","") -> [*Please delete whichever is inappropriate.]
A12: =CONCATENATE(" ",IF(ISBLANK('Annex 1'!C20),"*Redeeming / Not redeeming voucher subsidy under PEVS",'Annex 1'!C20)) -> *Redeeming / Not redeeming voucher subsidy under PEVS
A14: INCOME AND EXPENDITURE ACCOUNT
A15: =CONCATENATE("FOR THE YEAR ENDED ",IF(NOT(ISNUMBER('Annex 1'!C33)),"______________________________",UPPER(TEXT('Annex 1'!C33,"dd mmmm yyyy")))) -> FOR THE YEAR ENDED ______________________________
C18: Current | D18: Previous | E18: Remarks | K18: maximum | L18: =MAX(L21:L520)*200 -> 0
C19: Year | D19: Year | E19: (or Notes)
B20: $ | C20: $ | D20: $ | K20: Original | L20: Integer | M20: Decimal | N20: Fake No. | O20: Rank | P20: Adj. Rank | Q20: Adjustment | R20: Final
A21: INCOME
A22: School Fees
A23: - from parents | I23: FeeIncomeParent | J23: =ROW() -> 23 | K23: =B23 -> 0 | L23: =ROUND(K23,0) -> 0 | M23: =K23-L23 -> 0 | N23: =ABS(M23)*L$18+L23 -> 0 | O23: =RANK(N23,$N$23:$N$35) -> 1 | P23: =O23+COUNTIF($O$23:O23,O23)-1 -> 1 | Q23: =IF(P23<=ABS(Q$36),IF(M23<0,-1,1),0) -> 0 | R23: =Q23+L23 -> 0
A24: - from PEVS | I24: FeeIncomePEVS | J24: =ROW() -> 24 | K24: =B24 -> 0 | L24: =ROUND(K24,0) -> 0 | M24: =K24-L24 -> 0 | N24: =ABS(M24)*L$18+L24 -> 0 | O24: =RANK(N24,$N$23:$N$35) -> 1 | P24: =O24+COUNTIF($O$23:O24,O24)-1 -> 2 | Q24: =IF(P24<=ABS(Q$36),IF(M24<0,-1,1),0) -> 0 | R24: =Q24+L24 -> 0
A25: - from Kindergarten and Child Care Centre Fee Remission | I25: FeeIncomeKCFRS | J25: =ROW() -> 25 | K25: =B25 -> 0 | L25: =ROUND(K25,0) -> 0 | M25: =K25-L25 -> 0 | N25: =ABS(M25)*L$18+L25 -> 0 | O25: 1 | P25: =O25+COUNTIF($O$23:O25,O25)-1 -> 3 | Q25: =IF(P25<=ABS(Q$36),IF(M25<0,-1,1),0) -> 0 | R25: =Q25+L25 -> 0
A26: Scheme
A27: Less : Fee Remission (financed by school) | I27: FeeRemssion | J27: =ROW() -> 27 | K27: =B27 -> 0 | L27: =ROUND(K27,0) -> 0 | M27: =K27-L27 -> 0 | N27: =ABS(M27)*L$18+L27 -> 0 | O27: =RANK(N27,$N$23:$N$35) -> 1 | P27: =O27+COUNTIF($O$23:O27,O27)-1 -> 4 | Q27: =IF(P27<=ABS(Q$36),IF(M27<0,-1,1),0) -> 0 | R27: =Q27+L27 -> 0
C28: =SUM(B23:B25)-B27 -> 0 | D28: =+SUM(D23:D25)-D27 -> 0
A29: Subsidy received under the | E29: Per Statement 3 | I29: KCSS | J29: =ROW() -> 29 | K29: =C29 -> 0 | L29: =ROUND(K29,0) -> 0 | M29: =K29-L29 -> 0 | N29: =ABS(M29)*L$18+L29 -> 0 | O29: 1 | P29: =O29+COUNTIF($O$23:O29,O29)-1 -> 5 | Q29: =IF(P29<=ABS(Q$36),IF(M29<0,-1,1),0) -> 0 | R29: =Q29+L29 -> 0
A30: Child Care Centre Subsidy Scheme
A31: Subsidy for Manpower Enhancement | E31: Per Statement 3 | I31: SME | J31: =ROW() -> 31 | K31: =C31 -> 0 | L31: =ROUND(K31,0) -> 0 | M31: =K31-L31 -> 0 | N31: =ABS(M31)*L$18+L31 -> 0 | O31: =RANK(N31,$N$23:$N$35) -> 1 | P31: =O31+COUNTIF($O$23:O31,O31)-1 -> 6 | Q31: =IF(P31<=ABS(Q$36),IF(M31<0,-1,1),0) -> 0 | R31: =Q31+L31 -> 0
A32: Reimbursement of Government Rent | I32: GovRentReimbur | J32: =ROW() -> 32 | K32: =C32 -> 0 | L32: =ROUND(K32,0) -> 0 | M32: =K32-L32 -> 0 | N32: =ABS(M32)*L$18+L32 -> 0 | O32: 1 | P32: =O32+COUNTIF($O$23:O32,O32)-1 -> 7 | Q32: =IF(P32<=ABS(Q$36),IF(M32<0,-1,1),0) -> 0 | R32: =Q32+L32 -> 0
A33: Reimbursement of Rates | I33: RatesReimbur | J33: =ROW() -> 33 | K33: =C33 -> 0 | L33: =ROUND(K33,0) -> 0 | M33: =K33-L33 -> 0 | N33: =ABS(M33)*L$18+L33 -> 0 | O33: 1 | P33: =O33+COUNTIF($O$23:O33,O33)-1 -> 8 | Q33: =IF(P33<=ABS(Q$36),IF(M33<0,-1,1),0) -> 0 | R33: =Q33+L33 -> 0
A34: Reimbursement of Rent | I34: RentReimbur | J34: =ROW() -> 34 | K34: =C34 -> 0 | L34: =ROUND(K34,0) -> 0 | M34: =K34-L34 -> 0 | N34: =ABS(M34)*L$18+L34 -> 0 | O34: 1 | P34: =O34+COUNTIF($O$23:O34,O34)-1 -> 9 | Q34: =IF(P34<=ABS(Q$36),IF(M34<0,-1,1),0) -> 0 | R34: =Q34+L34 -> 0
A35: Other Income (Note 1) | C35: =IF('Annex 1'!$C$27="No",+'Statement 6_Others'!D257,0) -> 0 | D35: =IF('Annex 1'!$C$27="No",+'Statement 6_Others'!H257,0) -> 0 | E35: Per Statement 6 (item 5) | I35: OthersNoBreakdown | J35: =ROW() -> 35 | K35: =C35 -> 0 | L35: =ROUND(K35,0) -> 0 | R35: =Q35+L35 -> 0
A36: TOTAL INCOME (a) | C36: =SUM(C28:C35) -> 0 | D36: =SUM(D28:D35) -> 0 | I36: TotalIncome | J36: =ROW() -> 36 | K36: =SUM(K23:K25,K29:K35)-K27 -> 0 | L36: =SUM(L23:L25,L29:L35)-L27 -> 0 | M36: =ROUND(SUM(M23:M35),2) -> 0 | Q36: =R75-L36 -> 0 | R36: =SUM(R23:R25,R29:R35,-R27) -> 0
A37: EXPENDITURE (Note 2)
A38: Salaries
A39: - Teaching Staff (including Principal) | I39: Salary_T | J39: =ROW() -> 39 | K39: =C39 -> 0 | L39: =INT(K39) -> 0 | M39: =ROUND(K39,2)-L39 -> 0 | N39: =M39*L$18+L39 -> 0 | O39: =RANK(N39,$N$39:$N$61) -> 1 | P39: =O39+COUNTIF($O$39:O39,O39)-1 -> 1 | Q39: =IF(P39<=Q$62,1,0) -> 0 | R39: =Q39+L39 -> 0
A40: - Non-teaching Staff | I40: Salary_NT | J40: =ROW() -> 40 | K40: =C40 -> 0 | L40: 0 | M40: =ROUND(K40,2)-L40 -> 0 | N40: =M40*L$18+L40 -> 0 | O40: =RANK(N40,$N$39:$N$61) -> 1 | P40: =O40+COUNTIF($O$39:O40,O40)-1 -> 2 | Q40: =IF(P40<=Q$62,1,0) -> 0 | R40: 0
A41: Employer's Contribution to Provident Fund Scheme
A42: - Teaching Staff (including Principal) | I42: PFund_T | J42: =ROW() -> 42 | K42: =C42 -> 0 | L42: =INT(K42) -> 0 | M42: =ROUND(K42,2)-L42 -> 0 | N42: =M42*L$18+L42 -> 0 | O42: =RANK(N42,$N$39:$N$61) -> 1 | P42: =O42+COUNTIF($O$39:O42,O42)-1 -> 3 | Q42: =IF(P42<=Q$62,1,0) -> 0 | R42: =Q42+L42 -> 0
A43: - Non-teaching Staff | I43: PFund_NT | J43: =ROW() -> 43 | K43: 0 | L43: 0 | M43: 0 | N43: =M43*L$18+L43 -> 0 | O43: 1 | P43: =O43+COUNTIF($O$39:O43,O43)-1 -> 4 | Q43: 0 | R43: 0
A44: Severance Pay/Long-service Pay
A45: - Teaching Staff (including Principal) | I45: LongServicePay_T | J45: =ROW() -> 45 | K45: 0 | L45: 0 | M45: 0 | N45: =M45*L$18+L45 -> 0 | O45: 1 | P45: =O45+COUNTIF($O$39:O45,O45)-1 -> 5 | Q45: 0 | R45: 0
A46: - Non-teaching Staff | I46: LongServicePay_NT | J46: =ROW() -> 46 | K46: 0 | L46: 0 | M46: 0 | N46: 0 | O46: 1 | P46: =O46+COUNTIF($O$39:O46,O46)-1 -> 6 | Q46: 0 | R46: 0
A47: Supervisor's Remuneration | I47: SupervisorPay | J47: =ROW() -> 47 | K47: 0 | L47: 0 | M47: 0 | N47: 0 | O47: 1 | P47: =O47+COUNTIF($O$39:O47,O47)-1 -> 7 | Q47: 0 | R47: 0
A48: Government Rent | I48: GovRent | J48: =ROW() -> 48 | K48: 0 | L48: 0 | M48: 0 | N48: 0 | O48: 1 | P48: =O48+COUNTIF($O$39:O48,O48)-1 -> 8 | Q48: 0 | R48: 0
A49: Rates | I49: Rates | J49: =ROW() -> 49 | K49: 0 | L49: 0 | M49: 0 | N49: 0 | O49: 1 | P49: =O49+COUNTIF($O$39:O49,O49)-1 -> 9 | Q49: 0 | R49: 0
A50: Rent | I50: Rental | J50: =ROW() -> 50 | K50: 0 | L50: 0 | M50: 0 | N50: 0 | O50: 1 | P50: =O50+COUNTIF($O$39:O50,O50)-1 -> 10 | Q50: 0 | R50: 0
A51: Depreciation | E51: Per Statement 6 | K51: 0 | L51: 0 | M51: 0 | N51: 0 | O51: 1
A52: - School Premises | C52: =IF('Annex 1'!$C$27="NO",+'Statement 6_FA'!C32,0) -> 0 | E52: (item 1) | I52: DeprecPremises | J52: =ROW() -> 52 | K52: =C52 -> 0 | L52: =ROUND(K52,0) -> 0 | R52: 0
A53: - Furniture/Equipment/Fixtures/Fittings | C53: =IF('Annex 1'!$C$27="NO",+'Statement 6_FA'!E32,0) -> 0 | I53: DeprecFurniture | J53: =ROW() -> 53 | K53: =C53 -> 0 | L53: =ROUND(K53,0) -> 0 | R53: 0
A54: - Computer Hardware and Software | C54: =IF('Annex 1'!$C$27="NO",+'Statement 6_FA'!G32,0) -> 0 | I54: DeprecComputer | J54: =ROW() -> 54 | K54: =C54 -> 0 | L54: =ROUND(K54,0) -> 0 | R54: 0
A55: - Others | C55: =IF('Annex 1'!$C$27="NO",+'Statement 6_FA'!AC32-SUM('Statement 6_FA'!C32:G32),0) -> 0 | I55: DeprecOthers | J55: =ROW() -> 55 | K55: =C55 -> 0 | L55: =ROUND(K55,0) -> 0 | R55: 0
A56: Major Repairs and Maintenance (for items costing $8,000 | I56: MajorRepairs | J56: =ROW() -> 56 | K56: 0 | L56: 0 | M56: 0 | N56: =M56*L$18+L56 -> 0 | O56: 1 | P56: =O56+COUNTIF($O$39:O56,O56)-1 -> 12 | Q56: 0 | R56: 0
A57: or above each)
A58: Minor Repairs and Maintenance (for items costing below | I58: MinorRepairs | J58: =ROW() -> 58 | K58: 0 | L58: 0 | M58: 0 | N58: =M58*L$18+L58 -> 0 | O58: 1 | P58: =O58+COUNTIF($O$39:O58,O58)-1 -> 13 | Q58: 0 | R58: 0
A59: $8,000 each)
A60: Audit Fee | I60: AuditFee | J60: =ROW() -> 60 | K60: 0 | L60: 0 | M60: 0 | N60: =M60*L$18+L60 -> 0 | O60: 1 | P60: =O60+COUNTIF($O$39:O60,O60)-1 -> 14 | Q60: 0 | R60: 0
A61: Other Expenditure (Note 3) | C61: =IF('Annex 1'!$C$27="NO",+'Statement 6_Others'!D135,0) -> 0 | D61: =IF('Annex 1'!$C$27="NO",+'Statement 6_Others'!H135,0) -> 0 | E61: Per Statement 6 (item 3) | K61: =C61 -> 0 | L61: =ROUND(K61,0) -> 0 | R61: 0
A62: TOTAL EXPENDITURE (b) | C62: =SUM(C39:C61) -> 0 | D62: =SUM(D39:D61) -> 0 | I62: TotalExpense | J62: =ROW() -> 62 | K62: =SUM(K39:K61) -> 0 | L62: =SUM(L39:L61) -> 0 | M62: =SUM(M39:M61) -> 0 | Q62: =R78-L62 -> 0 | R62: =SUM(R39:R61) -> 0
E65: (to be continued)
A66: - 4 -
A71: Statement 1
E72: (Page 2 of 2)
A74: =A8 -> Name of School : ________________________________________________________________________ | K74: Total Income
A75: =A9 ->  | K75: =C36 -> 0 | L75: =ROUND(K75,0) -> 0 | M75: =K75-L75 -> 0 | N75: =ABS(M75)*L$18+L75 -> 0 | O75: =RANK(N75,N$75:N$78) -> 1 | P75: =O75+COUNTIF(O$75:O75,O75)-1 -> 1 | Q75: =IF(P75<=ABS(Q$80),IF(M75<0,-1,1),0) -> 0 | R75: =Q75+L75 -> 0
K77: Total Expenditure
C78: Current | D78: Previous | E78: Remarks | K78: =C62 -> 0 | L78: =ROUND(K78,0) -> 0 | M78: =K78-L78 -> 0 | N78: =ABS(M78)*L$18+L78 -> 0 | O78: =RANK(N78,N$75:N$78) -> 1 | P78: =O78+COUNTIF(O$75:O78,O78)-1 -> 2 | Q78: =IF(P78<=ABS(Q$80),IF(M78<0,-1,1),0) -> 0 | R78: =Q78+L78 -> 0
C79: Year | D79: Year | E79: (or Notes)
B80: $ | C80: $ | D80: $ | Q80: =R82-L75+L78 -> 0
A82: Surplus/(Deficit) from the operation [(a) – (b)] | C82: =C36-C62 -> 0 | D82: =D36-D62 -> 0 | K82: =C82 -> 0 | L82: =INT(K82) -> 0 | M82: =ROUND(K82,2)-L82 -> 0 | N82: =M82*L$18+L82 -> 0 | O82: =RANK(N82,N$82:N$88) -> 1 | P82: =O82+COUNTIF(O$82:O82,O82)-1 -> 1 | Q82: =IF(P82<=ABS(Q$90),1,0) -> 0 | R82: =Q82+L82 -> 0
A83: Profit/(Loss) from Trading Operations (Note 4) | C83: =IF('Annex 1'!$C$27="NO",'Statement 4'!AS40,0) -> 0 | E83: Per Statement 4 | I83: SurplusDefTA | J83: =ROW() -> 83 | K83: =C83 -> 0 | L83: =ROUND(K83,0) -> 0 | R83: =Q83+L83 -> 0
A84: Donation Income (Note 5) | C84: =IF('Annex 1'!$C$27="NO",'Statement 5'!B40,0) -> 0 | D84: =IF('Annex 1'!$C$27="NO",'Statement 5'!C40,0) -> 0 | E84: Per Statement 5 | I84: DonationsReceived | J84: =ROW() -> 84 | K84: 0 | L84: =ROUND(K84,0) -> 0 | R84: 0
A85: SURPLUS/(DEFICIT) FOR THE YEAR | C85: =SUM(C82:C84) -> 0 | D85: =SUM(D82:D84) -> 0
A86: ACCUMULATED SURPLUS/(DEFICIT) BROUGHT FORWARD FROM PREVIOUS YEAR | C86: =+D90 -> 0 | K86: 0 | L86: =ROUND(K86,0) -> 0 | R86: 0
A87: PRIOR YEAR ADJUSTMENT (Please specify the nature) | I87: =Interim!FW1 -> PriorYearAdj | J87: =ROW() -> 87 | K87: 0 | L87: =INT(K87) -> 0 | M87: =ROUND(K87,2)-L87 -> 0 | N87: =M87*L$18+L87 -> 0 | O87: =RANK(N87,N$82:N$88) -> 1 | P87: =O87+COUNTIF(O$82:O87,O87)-1 -> 2 | Q87: =IF(P87<=ABS(Q$90),1,0) -> 0 | R87: 0
A88: TRANSFER TO/(FROM) RESERVE (Note 6) | C88: =IF('Annex 1'!$C$27="NO",+'Statement 6_Others'!D275,0) -> 0 | D88: =IF('Annex 1'!$C$27="NO",+'Statement 6_Others'!H275,0) -> 0 | E88: Per Statement 6 (item 6) | K88: 0 | L88: =ROUND(K88,0) -> 0 | R88: 0
A90: ACCUMULATED SURPLUS/(DEFICIT) CARRIED FORWARD TO NEXT YEAR | C90: =SUM(C85:C87)-SUM(C88) -> 0 | D90: =SUM(D85:D87)-SUM(D88) -> 0 | K90: =SUM(K82:K89) -> 0 | L90: =SUM(L82:L89) -> 0 | M90: =SUM(M82:M89) -> 0 | Q90: =ROUND(C90,0)-L90 -> 0 | R90: =SUM(R82:R89) -> 0
A93: Note
A94: 1. Please provide breakdowns for "Other Income" in Statement 6.
A96: 2. Please observe the guiding principles on scope of expenditure at Annex 3.
A98: 3. Please provide breakdowns for "Other Expenditure" in Statement 6.
A100: 4. For KGs with trading operations such as sale of school items and provision of paid services, please provide details of such income and corresponding costs in Statement 4.
A102: 5. For KGs with donations received, please provide details of income from donation and corresponding expenditure in Statement 5.
A104: 6. Please specify the nature of surplus transfer to/(from) reserve e.g. school development for educational purpose in Statement 6.
A130: - 5 -

Sheet Statement 1A
A2: Statement 1A
F3: (Page 1 of 2)
A5: For KGs/KG-cum-CCCs redeeming voucher subsidy under PEVS with operating classes of both local and non-local curriculum
A6: =IF('Annex 1'!C27='Annex 1'!$E$27,"(For those KGs/KG-cum-CCCs redeeming voucher subsidy under PEVS and operating local curriculum only, please complete Statement 1 instead.) ","") -> 
A8: ='School Name'!A4 -> Name of School : ________________________________________________________________________
A9: ='School Name'!A5 -> 
A11: ='Statement 1'!A11 -> School type : *KG / KG-cum-CCC | D11: =IF(AND('Annex 1'!C19=""),"[*Please delete whichever is inappropriate.]","") -> [*Please delete whichever is inappropriate.]
A14: INCOME AND EXPENDITURE ACCOUNT
A15: ='Statement 1'!A15 -> FOR THE YEAR ENDED ______________________________
B17: Current | E17: Previous | F17: Remarks
B18: Year | E18: Year | F18: (or Notes)
B19: $ | E19: $ | O19: maximum | P19: =MAX(P22:P522)*200 -> 0 | X19: maximum | Y19: =MAX(Y22:Y522)*200 -> 0
B20: Local | C20: Non-Local | E20: Total
B21: Curriculum | C21: Curriculum | D21: Total | P21: Local Curriculum | Y21: Non-Local Curriculum
B22: Classes | C22: Classes | O22: Original | P22: Integer | Q22: Decimal | R22: Fake No. | S22: Rank | T22: Adj. Rank | U22: Adjustment | V22: Final | X22: Original | Y22: Integer | Z22: Decimal | AA22: Fake No. | AB22: Rank | AC22: Adj. Rank | AD22: Adjustment | AE22: Final
A23: INCOME
A24: School Fees | B24: 0 | C24: 0
A25: - from parents | D25: =B25+C25 -> 0 | I25: FeeIncomeParent | J25: =ROW() -> 25 | O25: =B25 -> 0 | P25: =ROUND(O25,0) -> 0 | Q25: =O25-P25 -> 0 | R25: =ABS(Q25)*P$19+P25 -> 0 | S25: =RANK(R25,R$25:R$36) -> 1 | T25: =S25+COUNTIF(S$25:S25,S25)-1 -> 1 | U25: =IF(T25<=ABS(U$38),IF(Q25<0,-1,1),0) -> 0 | V25: =U25+P25 -> 0 | X25: =C25 -> 0 | Y25: =ROUND(X25,0) -> 0 | Z25: =X25-Y25 -> 0 | AA25: =ABS(Z25)*Y$19+Y25 -> 0 | AB25: =RANK(AA25,AA$25:AA$36) -> 1 | AC25: =AB25+COUNTIF(AB$25:AB25,AB25)-1 -> 1 | AD25: =IF(AC25<=ABS(AD$38),IF(Z25<0,-1,1),0) -> 0 | AE25: =AD25+Y25 -> 0
A26: - from PEVS | D26: =B26+C26 -> 0 | I26: FeeIncomePEVS | J26: =ROW() -> 26 | O26: =B26 -> 0 | P26: =ROUND(O26,0) -> 0 | Q26: =O26-P26 -> 0 | R26: =ABS(Q26)*P$19+P26 -> 0 | S26: =RANK(R26,R$25:R$36) -> 1 | T26: =S26+COUNTIF(S$25:S26,S26)-1 -> 2 | U26: =IF(T26<=ABS(U$38),IF(Q26<0,-1,1),0) -> 0 | V26: =U26+P26 -> 0 | X26: =C26 -> 0 | Y26: =ROUND(X26,0) -> 0 | Z26: =X26-Y26 -> 0 | AA26: =ABS(Z26)*Y$19+Y26 -> 0 | AB26: =RANK(AA26,AA$25:AA$36) -> 1 | AC26: =AB26+COUNTIF(AB$25:AB26,AB26)-1 -> 2 | AD26: =IF(AC26<=ABS(AD$38),IF(Z26<0,-1,1),0) -> 0 | AE26: =AD26+Y26 -> 0
A27: - from Kindergarten and Child Care Centre Fee | D27: =B27+C27 -> 0 | I27: FeeIncomeKCFRS | J27: =ROW() -> 27 | O27: =B27 -> 0 | P27: =ROUND(O27,0) -> 0 | Q27: =O27-P27 -> 0 | R27: =ABS(Q27)*P$19+P27 -> 0 | S27: =RANK(R27,R$25:R$36) -> 1 | T27: =S27+COUNTIF(S$25:S27,S27)-1 -> 3 | U27: =IF(T27<=ABS(U$38),IF(Q27<0,-1,1),0) -> 0 | V27: =U27+P27 -> 0 | X27: =C27 -> 0 | Y27: =ROUND(X27,0) -> 0 | Z27: =X27-Y27 -> 0 | AA27: =ABS(Z27)*Y$19+Y27 -> 0 | AB27: =RANK(AA27,AA$25:AA$36) -> 1 | AC27: =AB27+COUNTIF(AB$25:AB27,AB27)-1 -> 3 | AD27: =IF(AC27<=ABS(AD$38),IF(Z27<0,-1,1),0) -> 0 | AE27: =AD27+Y27 -> 0
A28: Remission Scheme
A29: Less : Fee Remission (financed by school) | D29: =B29+C29 -> 0 | I29: FeeRemssion | J29: =ROW() -> 29 | O29: =B29 -> 0 | P29: =ROUND(O29,0) -> 0 | Q29: =O29-P29 -> 0 | R29: =ABS(Q29)*P$19+P29 -> 0 | S29: =RANK(R29,R$25:R$36) -> 1 | T29: =S29+COUNTIF(S$25:S29,S29)-1 -> 4 | U29: =IF(T29<=ABS(U$38),IF(Q29<0,-1,1),0) -> 0 | V29: =U29+P29 -> 0 | X29: =C29 -> 0 | Y29: =ROUND(X29,0) -> 0 | Z29: =X29-Y29 -> 0 | AA29: =ABS(Z29)*Y$19+Y29 -> 0 | AB29: =RANK(AA29,AA$25:AA$36) -> 1 | AC29: =AB29+COUNTIF(AB$25:AB29,AB29)-1 -> 4 | AD29: =IF(AC29<=ABS(AD$38),IF(Z29<0,-1,1),0) -> 0 | AE29: =AD29+Y29 -> 0
B30: =SUM(B25:B27)-B29 -> 0 | C30: =SUM(C25:C27)-C29 -> 0 | D30: =SUM(D25:D27)-D29 -> 0 | E30: =SUM(E25:E27)-E29 -> 0
A31: Subsidy received under the | D31: =B31+C31 -> 0 | F31: Per Statement 3 | I31: KCSS | J31: =ROW() -> 31 | O31: =B31 -> 0 | P31: =ROUND(O31,0) -> 0 | Q31: =O31-P31 -> 0 | R31: =ABS(Q31)*P$19+P31 -> 0 | S31: =RANK(R31,R$25:R$36) -> 1 | T31: =S31+COUNTIF(S$25:S31,S31)-1 -> 5 | U31: =IF(T31<=ABS(U$38),IF(Q31<0,-1,1),0) -> 0 | V31: =U31+P31 -> 0 | X31: =C31 -> 0 | Y31: =ROUND(X31,0) -> 0 | Z31: =X31-Y31 -> 0 | AA31: =ABS(Z31)*Y$19+Y31 -> 0 | AB31: =RANK(AA31,AA$25:AA$36) -> 1 | AC31: =AB31+COUNTIF(AB$25:AB31,AB31)-1 -> 5 | AD31: =IF(AC31<=ABS(AD$38),IF(Z31<0,-1,1),0) -> 0 | AE31: =AD31+Y31 -> 0
A32: Child Care Centre Subsidy Scheme
A33: Subsidy for Manpower Enhancement | D33: =B33+C33 -> 0 | F33: Per Statement 3 | I33: SME | J33: =ROW() -> 33 | O33: =B33 -> 0 | P33: =ROUND(O33,0) -> 0 | Q33: =O33-P33 -> 0 | R33: =ABS(Q33)*P$19+P33 -> 0 | S33: =RANK(R33,R$25:R$36) -> 1 | T33: =S33+COUNTIF(S$25:S33,S33)-1 -> 6 | U33: =IF(T33<=ABS(U$38),IF(Q33<0,-1,1),0) -> 0 | V33: =U33+P33 -> 0 | X33: =C33 -> 0 | Y33: =ROUND(X33,0) -> 0 | Z33: =X33-Y33 -> 0 | AA33: =ABS(Z33)*Y$19+Y33 -> 0 | AB33: =RANK(AA33,AA$25:AA$36) -> 1 | AC33: =AB33+COUNTIF(AB$25:AB33,AB33)-1 -> 6 | AD33: =IF(AC33<=ABS(AD$38),IF(Z33<0,-1,1),0) -> 0 | AE33: =AD33+Y33 -> 0
A34: Reimbursement of Government Rent | D34: =B34+C34 -> 0 | I34: GovRentReimbur | J34: =ROW() -> 34 | O34: =B34 -> 0 | P34: =ROUND(O34,0) -> 0 | Q34: =O34-P34 -> 0 | R34: =ABS(Q34)*P$19+P34 -> 0 | S34: =RANK(R34,R$25:R$36) -> 1 | T34: =S34+COUNTIF(S$25:S34,S34)-1 -> 7 | U34: =IF(T34<=ABS(U$38),IF(Q34<0,-1,1),0) -> 0 | V34: =U34+P34 -> 0 | X34: =C34 -> 0 | Y34: =ROUND(X34,0) -> 0 | Z34: =X34-Y34 -> 0 | AA34: =ABS(Z34)*Y$19+Y34 -> 0 | AB34: =RANK(AA34,AA$25:AA$36) -> 1 | AC34: =AB34+COUNTIF(AB$25:AB34,AB34)-1 -> 7 | AD34: =IF(AC34<=ABS(AD$38),IF(Z34<0,-1,1),0) -> 0 | AE34: =AD34+Y34 -> 0
A35: Reimbursement of Rates | D35: =B35+C35 -> 0 | I35: RatesReimbur | J35: =ROW() -> 35 | O35: =B35 -> 0 | P35: =ROUND(O35,0) -> 0 | Q35: =O35-P35 -> 0 | R35: =ABS(Q35)*P$19+P35 -> 0 | S35: =RANK(R35,R$25:R$36) -> 1 | T35: =S35+COUNTIF(S$25:S35,S35)-1 -> 8 | U35: =IF(T35<=ABS(U$38),IF(Q35<0,-1,1),0) -> 0 | V35: =U35+P35 -> 0 | X35: =C35 -> 0 | Y35: =ROUND(X35,0) -> 0 | Z35: =X35-Y35 -> 0 | AA35: =ABS(Z35)*Y$19+Y35 -> 0 | AB35: =RANK(AA35,AA$25:AA$36) -> 1 | AC35: =AB35+COUNTIF(AB$25:AB35,AB35)-1 -> 8 | AD35: =IF(AC35<=ABS(AD$38),IF(Z35<0,-1,1),0) -> 0 | AE35: =AD35+Y35 -> 0
A36: Reimbursement of Rent | D36: =B36+C36 -> 0 | I36: RentReimbur | J36: =ROW() -> 36 | O36: =B36 -> 0 | P36: =ROUND(O36,0) -> 0 | Q36: =O36-P36 -> 0 | R36: =ABS(Q36)*P$19+P36 -> 0 | S36: =RANK(R36,R$25:R$36) -> 1 | T36: =S36+COUNTIF(S$25:S36,S36)-1 -> 9 | U36: =IF(T36<=ABS(U$38),IF(Q36<0,-1,1),0) -> 0 | V36: =U36+P36 -> 0 | X36: =C36 -> 0 | Y36: =ROUND(X36,0) -> 0 | Z36: =X36-Y36 -> 0 | AA36: =ABS(Z36)*Y$19+Y36 -> 0 | AB36: =RANK(AA36,AA$25:AA$36) -> 1 | AC36: =AB36+COUNTIF(AB$25:AB36,AB36)-1 -> 9 | AD36: =IF(AC36<=ABS(AD$38),IF(Z36<0,-1,1),0) -> 0 | AE36: =AD36+Y36 -> 0
A37: Other Income (Note 1) | B37: =IF('Annex 1'!$C$27="YES",+'Statement 6_Others'!D257,0) -> 0 | C37: =IF('Annex 1'!$C$27="YES",+'Statement 6_Others'!F257,0) -> 0 | D37: =B37+C37 -> 0 | E37: =IF('Annex 1'!$C$27="YES",+'Statement 6_Others'!H257,0) -> 0 | F37: Per Statement 6 (item 5) | I37: OthersNoBreakdown | J37: =ROW() -> 37 | O37: =B37 -> 0 | P37: =ROUND(O37,0) -> 0 | V37: =U37+P37 -> 0 | X37: =C37 -> 0 | Y37: =ROUND(X37,0) -> 0 | AE37: =AD37+Y37 -> 0
A38: TOTAL INCOME (a) | B38: =SUM(B30:B37) -> 0 | C38: =SUM(C30:C37) -> 0 | D38: =SUM(D30:D37) -> 0 | E38: =SUM(E30:E37) -> 0 | I38: TotalIncome | J38: =ROW() -> 38 | O38: =SUM(O25:O27,O31:O37)-O29 -> 0 | P38: =SUM(P25:P27,P31:P37)-P29 -> 0 | Q38: =ROUND(SUM(Q25:Q37),2) -> 0 | U38: =V85-P38 -> 0 | V38: =SUM(V25:V27,V31:V37,-V29) -> 0 | X38: =SUM(X25:X27,X31:X37)-X29 -> 0 | Y38: =SUM(Y25:Y27,Y31:Y37)-Y29 -> 0 | Z38: =ROUND(SUM(Z25:Z37),2) -> 0 | AD38: =AE85-Y38 -> 0 | AE38: =SUM(AE25:AE27,AE31:AE37,-AE29) -> 0
A39: EXPENDITURE (Note 2)
A40: Salaries
A41: - Teaching Staff (including Principal) | D41: =B41+C41 -> 0 | I41: Salary_T | J41: =ROW() -> 41 | O41: =B41 -> 0 | P41: =INT(O41) -> 0 | Q41: =ROUND(O41,2)-P41 -> 0 | R41: =Q41*P$19+P41 -> 0 | S41: =RANK(R41,$R$41:$R$63) -> 1 | T41: =S41+COUNTIF($S$41:S41,S41)-1 -> 1 | U41: =IF(T41<=U$65,1,0) -> 0 | V41: =U41+P41 -> 0 | X41: =C41 -> 0 | Y41: =INT(X41) -> 0 | Z41: =ROUND(X41,2)-Y41 -> 0 | AA41: =Z41*Y$19+Y41 -> 0 | AB41: =RANK(AA41,AA$41:AA$63) -> 1 | AC41: =AB41+COUNTIF(AB$41:AB41,AB41)-1 -> 1 | AD41: =IF(AC41<=AD$65,1,0) -> 0 | AE41: =AD41+Y41 -> 0
A42: - Non-teaching Staff | D42: =B42+C42 -> 0 | I42: Salary_NT | J42: =ROW() -> 42 | O42: =B42 -> 0 | P42: =INT(O42) -> 0 | Q42: =ROUND(O42,2)-P42 -> 0 | R42: =Q42*P$19+P42 -> 0 | S42: =RANK(R42,$R$41:$R$63) -> 1 | T42: =S42+COUNTIF($S$41:S42,S42)-1 -> 2 | U42: =IF(T42<=U$65,1,0) -> 0 | V42: =U42+P42 -> 0 | X42: =C42 -> 0 | Y42: =INT(X42) -> 0 | Z42: =ROUND(X42,2)-Y42 -> 0 | AA42: =Z42*Y$19+Y42 -> 0 | AB42: =RANK(AA42,AA$41:AA$63) -> 1 | AC42: =AB42+COUNTIF(AB$41:AB42,AB42)-1 -> 2 | AD42: =IF(AC42<=AD$65,1,0) -> 0 | AE42: =AD42+Y42 -> 0
A43: Employer's Contribution to Provident Fund Scheme
A44: - Teaching Staff (including Principal) | D44: =B44+C44 -> 0 | I44: PFund_T | J44: =ROW() -> 44 | O44: =B44 -> 0 | P44: =INT(O44) -> 0 | Q44: =ROUND(O44,2)-P44 -> 0 | R44: =Q44*P$19+P44 -> 0 | S44: =RANK(R44,$R$41:$R$63) -> 1 | T44: =S44+COUNTIF($S$41:S44,S44)-1 -> 3 | U44: =IF(T44<=U$65,1,0) -> 0 | V44: =U44+P44 -> 0 | X44: =C44 -> 0 | Y44: =INT(X44) -> 0 | Z44: =ROUND(X44,2)-Y44 -> 0 | AA44: =Z44*Y$19+Y44 -> 0 | AB44: =RANK(AA44,AA$41:AA$63) -> 1 | AC44: =AB44+COUNTIF(AB$41:AB44,AB44)-1 -> 3 | AD44: =IF(AC44<=AD$65,1,0) -> 0 | AE44: =AD44+Y44 -> 0
A45: - Non-teaching Staff | D45: =B45+C45 -> 0 | I45: PFund_NT | J45: =ROW() -> 45 | O45: =B45 -> 0 | P45: =INT(O45) -> 0 | Q45: =ROUND(O45,2)-P45 -> 0 | R45: =Q45*P$19+P45 -> 0 | S45: =RANK(R45,$R$41:$R$63) -> 1 | T45: =S45+COUNTIF($S$41:S45,S45)-1 -> 4 | U45: 0 | V45: =U45+P45 -> 0 | X45: =C45 -> 0 | Y45: =INT(X45) -> 0 | Z45: =ROUND(X45,2)-Y45 -> 0 | AA45: =Z45*Y$19+Y45 -> 0 | AB45: =RANK(AA45,AA$41:AA$63) -> 1 | AC45: =AB45+COUNTIF(AB$41:AB45,AB45)-1 -> 4 | AD45: 0 | AE45: =AD45+Y45 -> 0
A46: Severance Pay/Long-service Pay
A47: - Teaching Staff (including Principal) | D47: =B47+C47 -> 0 | I47: LongServicePay_T | J47: =ROW() -> 47 | O47: =B47 -> 0 | P47: =INT(O47) -> 0 | Q47: =ROUND(O47,2)-P47 -> 0 | R47: =Q47*P$19+P47 -> 0 | S47: =RANK(R47,$R$41:$R$63) -> 1 | T47: =S47+COUNTIF($S$41:S47,S47)-1 -> 5 | U47: 0 | V47: =U47+P47 -> 0 | X47: =C47 -> 0 | Y47: =INT(X47) -> 0 | Z47: =ROUND(X47,2)-Y47 -> 0 | AA47: =Z47*Y$19+Y47 -> 0 | AB47: =RANK(AA47,AA$41:AA$63) -> 1 | AC47: =AB47+COUNTIF(AB$41:AB47,AB47)-1 -> 5 | AD47: 0 | AE47: =AD47+Y47 -> 0
A48: - Non-teaching Staff | D48: 0 | I48: LongServicePay_NT | J48: =ROW() -> 48 | O48: 0 | P48: 0 | Q48: 0 | R48: 0 | S48: 1 | T48: =S48+COUNTIF($S$41:S48,S48)-1 -> 6 | U48: 0 | V48: 0 | X48: 0 | Y48: 0 | Z48: 0 | AA48: 0 | AB48: 1 | AC48: =AB48+COUNTIF(AB$41:AB48,AB48)-1 -> 6 | AD48: 0 | AE48: 0
A49: Supervisor's Remuneration | D49: 0 | I49: SupervisorPay | J49: =ROW() -> 49 | O49: 0 | P49: 0 | Q49: 0 | R49: 0 | S49: 1 | T49: =S49+COUNTIF($S$41:S49,S49)-1 -> 7 | U49: 0 | V49: 0 | X49: 0 | Y49: 0 | Z49: 0 | AA49: 0 | AB49: 1 | AC49: =AB49+COUNTIF(AB$41:AB49,AB49)-1 -> 7 | AD49: 0 | AE49: 0
A50: Government Rent | D50: 0 | I50: GovRent | J50: =ROW() -> 50 | O50: 0 | P50: 0 | Q50: 0 | R50: 0 | S50: 1 | T50: =S50+COUNTIF($S$41:S50,S50)-1 -> 8 | U50: 0 | V50: 0 | X50: 0 | Y50: 0 | Z50: 0 | AA50: 0 | AB50: 1 | AC50: =AB50+COUNTIF(AB$41:AB50,AB50)-1 -> 8 | AD50: 0 | AE50: 0
A51: Rates | D51: 0 | I51: Rates | J51: =ROW() -> 51 | O51: 0 | P51: 0 | Q51: 0 | R51: 0 | S51: 1 | T51: =S51+COUNTIF($S$41:S51,S51)-1 -> 9 | U51: 0 | V51: 0 | X51: 0 | Y51: 0 | Z51: 0 | AA51: 0 | AB51: 1 | AC51: =AB51+COUNTIF(AB$41:AB51,AB51)-1 -> 9 | AD51: 0 | AE51: 0
A52: Rent | D52: 0 | I52: Rental | J52: =ROW() -> 52 | O52: 0 | P52: 0 | Q52: 0 | R52: 0 | S52: 1 | T52: =S52+COUNTIF($S$41:S52,S52)-1 -> 10 | U52: 0 | V52: 0 | X52: 0 | Y52: 0 | Z52: 0 | AA52: 0 | AB52: 1 | AC52: =AB52+COUNTIF(AB$41:AB52,AB52)-1 -> 10 | AD52: 0 | AE52: 0
A53: Depreciation | F53: Per Statement 6
A54: - School Premises | C54: =+D54-B54 -> 0 | D54: =IF('Annex 1'!$C$27="YES",+'Statement 6_FA'!C32,0) -> 0 | F54: (item 1) | I54: DeprecPremises | J54: =ROW() -> 54 | O54: =B54 -> 0 | P54: =INT(O54) -> 0 | Q54: =ROUND(O54,2)-P54 -> 0 | R54: =Q54*P$19+P54 -> 0 | S54: =RANK(R54,$R$41:$R$63) -> 1 | T54: =S54+COUNTIF($S$41:S54,S54)-1 -> 11 | U54: 0 | V54: =U54+P54 -> 0 | X54: =C54 -> 0 | Y54: =INT(X54) -> 0 | Z54: =ROUND(X54,2)-Y54 -> 0 | AA54: =Z54*Y$19+Y54 -> 0 | AB54: =RANK(AA54,AA$41:AA$63) -> 1 | AC54: =AB54+COUNTIF(AB$41:AB54,AB54)-1 -> 11 | AD54: 0 | AE54: =AD54+Y54 -> 0
A55: - Furniture/Equipment/Fixtures/Fittings | C55: =+D55-B55 -> 0 | D55: =IF('Annex 1'!$C$27="YES",+'Statement 6_FA'!E32,0) -> 0 | I55: DeprecFurniture | J55: =ROW() -> 55 | O55: =B55 -> 0 | P55: =INT(O55) -> 0 | Q55: =ROUND(O55,2)-P55 -> 0 | R55: =Q55*P$19+P55 -> 0 | S55: =RANK(R55,$R$41:$R$63) -> 1 | T55: =S55+COUNTIF($S$41:S55,S55)-1 -> 12 | U55: 0 | V55: =U55+P55 -> 0 | X55: =C55 -> 0 | Y55: =INT(X55) -> 0 | Z55: =ROUND(X55,2)-Y55 -> 0 | AA55: =Z55*Y$19+Y55 -> 0 | AB55: =RANK(AA55,AA$41:AA$63) -> 1 | AC55: =AB55+COUNTIF(AB$41:AB55,AB55)-1 -> 12 | AD55: 0 | AE55: =AD55+Y55 -> 0
A56: - Computer Hardware and Software | C56: =+D56-B56 -> 0 | D56: =IF('Annex 1'!$C$27="YES",+'Statement 6_FA'!G32,0) -> 0 | I56: DeprecComputer | J56: =ROW() -> 56 | O56: =B56 -> 0 | P56: =INT(O56) -> 0 | Q56: =ROUND(O56,2)-P56 -> 0 | R56: =Q56*P$19+P56 -> 0 | S56: =RANK(R56,$R$41:$R$63) -> 1 | T56: =S56+COUNTIF($S$41:S56,S56)-1 -> 13 | U56: 0 | V56: =U56+P56 -> 0 | X56: =C56 -> 0 | Y56: =INT(X56) -> 0 | Z56: =ROUND(X56,2)-Y56 -> 0 | AA56: =Z56*Y$19+Y56 -> 0 | AB56: =RANK(AA56,AA$41:AA$63) -> 1 | AC56: =AB56+COUNTIF(AB$41:AB56,AB56)-1 -> 13 | AD56: 0 | AE56: =AD56+Y56 -> 0
A57: - Others | C57: =+D57-B57 -> 0 | D57: =IF('Annex 1'!$C$27="YES",+'Statement 6_FA'!AC32-SUM('Statement 6_FA'!C32:G32),0) -> 0 | I57: DeprecOthers | J57: =ROW() -> 57 | O57: =B57 -> 0 | P57: =INT(O57) -> 0 | Q57: =ROUND(O57,2)-P57 -> 0 | R57: =Q57*P$19+P57 -> 0 | S57: =RANK(R57,$R$41:$R$63) -> 1 | T57: =S57+COUNTIF($S$41:S57,S57)-1 -> 14 | U57: 0 | V57: =U57+P57 -> 0 | X57: =C57 -> 0 | Y57: =INT(X57) -> 0 | Z57: =ROUND(X57,2)-Y57 -> 0 | AA57: =Z57*Y$19+Y57 -> 0 | AB57: =RANK(AA57,AA$41:AA$63) -> 1 | AC57: =AB57+COUNTIF(AB$41:AB57,AB57)-1 -> 14 | AD57: 0 | AE57: =AD57+Y57 -> 0
A59: Major Repairs and Maintenance (for items costing $8,000 | D59: =B59+C59 -> 0 | I59: MajorRepairs | J59: =ROW() -> 59 | O59: =B59 -> 0 | P59: =INT(O59) -> 0 | Q59: =ROUND(O59,2)-P59 -> 0 | R59: =Q59*P$19+P59 -> 0 | S59: =RANK(R59,$R$41:$R$63) -> 1 | T59: =S59+COUNTIF($S$41:S59,S59)-1 -> 15 | U59: 0 | V59: =U59+P59 -> 0 | X59: =C59 -> 0 | Y59: =INT(X59) -> 0 | Z59: =ROUND(X59,2)-Y59 -> 0 | AA59: =Z59*Y$19+Y59 -> 0 | AB59: =RANK(AA59,AA$41:AA$63) -> 1 | AC59: =AB59+COUNTIF(AB$41:AB59,AB59)-1 -> 15 | AD59: 0 | AE59: =AD59+Y59 -> 0
A60: or above each)
A61: Minor Repairs and Maintenance (for items costing below | D61: =B61+C61 -> 0 | I61: MinorRepairs | J61: =ROW() -> 61 | O61: =B61 -> 0 | P61: =INT(O61) -> 0 | Q61: =ROUND(O61,2)-P61 -> 0 | R61: =Q61*P$19+P61 -> 0 | S61: =RANK(R61,$R$41:$R$63) -> 1 | T61: =S61+COUNTIF($S$41:S61,S61)-1 -> 16 | U61: 0 | V61: =U61+P61 -> 0 | X61: =C61 -> 0 | Y61: =INT(X61) -> 0 | Z61: =ROUND(X61,2)-Y61 -> 0 | AA61: =Z61*Y$19+Y61 -> 0 | AB61: =RANK(AA61,AA$41:AA$63) -> 1 | AC61: =AB61+COUNTIF(AB$41:AB61,AB61)-1 -> 16 | AD61: 0 | AE61: =AD61+Y61 -> 0
A62: $8,000 each)
A63: Audit Fee | D63: =B63+C63 -> 0 | I63: AuditFee | J63: =ROW() -> 63 | O63: =B63 -> 0 | P63: =INT(O63) -> 0 | Q63: =ROUND(O63,2)-P63 -> 0 | R63: =Q63*P$19+P63 -> 0 | S63: =RANK(R63,$R$41:$R$63) -> 1 | T63: =S63+COUNTIF($S$41:S63,S63)-1 -> 17 | U63: 0 | V63: =U63+P63 -> 0 | X63: =C63 -> 0 | Y63: =INT(X63) -> 0 | Z63: =ROUND(X63,2)-Y63 -> 0 | AA63: =Z63*Y$19+Y63 -> 0 | AB63: =RANK(AA63,AA$41:AA$63) -> 1 | AC63: =AB63+COUNTIF(AB$41:AB63,AB63)-1 -> 17 | AD63: 0 | AE63: =AD63+Y63 -> 0
A64: Other Expenditure (Note 3) | B64: =IF('Annex 1'!$C$27="YES",+'Statement 6_Others'!D135,0) -> 0 | C64: =IF('Annex 1'!$C$27="YES",+'Statement 6_Others'!F135,0) -> 0 | D64: =B64+C64 -> 0 | E64: =IF('Annex 1'!$C$27="YES",+'Statement 6_Others'!H135,0) -> 0 | F64: Per Statement 6 (item 3) | O64: =B64 -> 0 | P64: =ROUND(O64,0) -> 0 | V64: =U64+P64 -> 0 | X64: =C64 -> 0 | Y64: =ROUND(X64,0) -> 0 | AE64: =AD64+Y64 -> 0
A65: TOTAL EXPENDITURE (b) | B65: =SUM(B40:B64) -> 0 | C65: =SUM(C40:C64) -> 0 | D65: =SUM(D40:D64) -> 0 | E65: =SUM(E40:E64) -> 0 | I65: TotalExpense | J65: =ROW() -> 65 | L65: =B65-SUM(B53:B64)-SUM(B40:B66) -> 0 | M65: =C65-SUM(C53:C64)-SUM(C40:C66) -> 0 | O65: =SUM(O41:O64) -> 0 | P65: =SUM(P41:P64) -> 0 | Q65: =SUM(Q41:Q64) -> 0 | U65: =V88-P65 -> 0 | V65: =SUM(V41:V64) -> 0 | X65: =SUM(X41:X64) -> 0 | Y65: =SUM(Y41:Y64) -> 0 | Z65: =SUM(Z41:Z64) -> 0 | AD65: =AE88-Y65 -> 0 | AE65: =SUM(AE41:AE64) -> 0
F68: (to be continued)
A72: - 6 -
A78: Statement 1A
F79: (Page 2 of 2)
A81: =A8 -> Name of School : ________________________________________________________________________
A82: =A9 -> 
B84: Current | E84: Previous | F84: Remarks | O84: Total Income | X84: Total Income
B85: Year | E85: Year | F85: (or Notes) | O85: =B38 -> 0 | P85: =ROUND(O85,0) -> 0 | Q85: =O85-P85 -> 0 | R85: =ABS(Q85)*P$19+P85 -> 0 | S85: =RANK(R85,$R$85:$R$88) -> 1 | T85: =S85+COUNTIF(S$85:S85,S85)-1 -> 1 | U85: =IF(T85<=ABS(U$90),IF(Q85<0,-1,1),0) -> 0 | V85: =U85+P85 -> 0 | X85: =C38 -> 0 | Y85: =ROUND(X85,0) -> 0 | Z85: =X85-Y85 -> 0 | AA85: =ABS(Z85)*Y$19+Y85 -> 0 | AB85: =RANK(AA85,AA$85:AA$88) -> 1 | AC85: =AB85+COUNTIF(AB$85:AB85,AB85)-1 -> 1 | AD85: =IF(AC85<=ABS(AD$90),IF(Z85<0,-1,1),0) -> 0 | AE85: =AD85+Y85 -> 0
B86: $ | E86: $
B87: Local | C87: Non-Local | E87: Total | O87: Total Expenditure | X87: Total Expenditure
B88: Curriculum | C88: Curriculum | D88: Total | O88: =B65 -> 0 | P88: =ROUND(O88,0) -> 0 | Q88: =O88-P88 -> 0 | R88: =ABS(Q88)*P$19+P88 -> 0 | S88: =RANK(R88,$R$85:$R$88) -> 1 | T88: =S88+COUNTIF(S$85:S88,S88)-1 -> 2 | U88: =IF(T88<=ABS(U$90),IF(Q88<0,-1,1),0) -> 0 | V88: =U88+P88 -> 0 | X88: =C65 -> 0 | Y88: =ROUND(X88,0) -> 0 | Z88: =X88-Y88 -> 0 | AA88: =ABS(Z88)*Y$19+Y88 -> 0 | AB88: =RANK(AA88,AA$85:AA$88) -> 1 | AC88: =AB88+COUNTIF(AB$85:AB88,AB88)-1 -> 2 | AD88: =IF(AC88<=ABS(AD$90),IF(Z88<0,-1,1),0) -> 0 | AE88: =AD88+Y88 -> 0
B89: Classes | C89: Classes
U90: =V91-P85+P88 -> 0 | AD90: =AE91-Y85+Y88 -> 0
A91: Surplus/(Deficit) from the operation [(a) – (b)] | B91: =B38-B65 -> 0 | C91: =C38-C65 -> 0 | D91: =D38-D65 -> 0 | E91: =E38-E65 -> 0 | O91: =B91 -> 0 | P91: =INT(O91) -> 0 | Q91: =ROUND(O91,2)-P91 -> 0 | R91: =Q91*P$19+P91 -> 0 | S91: =RANK(R91,$R$91:$R$97) -> 1 | T91: =S91+COUNTIF(S$91:S91,S91)-1 -> 1 | U91: =IF(T91<=U$99,1,0) -> 0 | V91: =U91+P91 -> 0 | X91: =C91 -> 0 | Y91: =INT(X91) -> 0 | Z91: =ROUND(X91,2)-Y91 -> 0 | AA91: =Z91*Y$19+Y91 -> 0 | AB91: =RANK(AA91,AA$91:AA$97) -> 1 | AC91: =AB91+COUNTIF(AB$91:AB91,AB91)-1 -> 1 | AD91: =IF(AC91<=AD$99,1,0) -> 0 | AE91: =AD91+Y91 -> 0
A92: Profit/(Loss) from Trading Operations (Note 4) | C92: =+D92-B92 -> 0 | D92: =IF('Annex 1'!$C$27="YES",'Statement 4'!AS40,0) -> 0 | F92: Per Statement 4 | I92: SurplusDefTA | J92: =ROW() -> 92 | O92: 0 | P92: =ROUND(O92,0) -> 0 | V92: =U92+P92 -> 0 | X92: =C92 -> 0 | Y92: =ROUND(X92,0) -> 0 | AE92: =AD92+Y92 -> 0
A93: Donation Income (Note 5) | C93: =+D93-B93 -> 0 | D93: =IF('Annex 1'!$C$27="YES",'Statement 5'!B40,0) -> 0 | E93: =IF('Annex 1'!$C$27="YES",'Statement 5'!C40,0) -> 0 | F93: Per Statement 5 | I93: DonationsReceived | J93: =ROW() -> 93 | O93: 0 | P93: =ROUND(O93,0) -> 0 | V93: =U93+P93 -> 0 | X93: =C93 -> 0 | Y93: =ROUND(X93,0) -> 0 | AE93: =AD93+Y93 -> 0
A94: SURPLUS/(DEFICIT) FOR THE YEAR | B94: =SUM(B91:B93) -> 0 | C94: =SUM(C91:C93) -> 0 | D94: =SUM(D91:D93) -> 0 | E94: =SUM(E91:E93) -> 0
A95: ACCUMULATED SURPLUS/(DEFICIT) BROUGHT FORWARD FROM PREVIOUS YEAR | C95: =+D95-B95 -> 0 | D95: =+E99 -> 0 | O95: 0 | P95: =ROUND(O95,0) -> 0 | V95: =U95+P95 -> 0 | X95: =C95 -> 0 | Y95: =ROUND(X95,0) -> 0 | AE95: =AD95+Y95 -> 0
A96: PRIOR YEAR ADJUSTMENT (Please specify the nature) | D96: =C96+B96 -> 0 | I96: =Interim!FW1 -> PriorYearAdj | J96: =ROW() -> 96 | O96: =B96 -> 0 | P96: =INT(O96) -> 0 | Q96: =ROUND(O96,2)-P96 -> 0 | R96: =Q96*P$19+P96 -> 0 | S96: =RANK(R96,$R$91:$R$97) -> 1 | T96: =S96+COUNTIF(S$91:S96,S96)-1 -> 2 | U96: =IF(T96<=U$99,1,0) -> 0 | V96: =U96+P96 -> 0 | X96: =C96 -> 0 | Y96: =INT(X96) -> 0 | Z96: =ROUND(X96,2)-Y96 -> 0 | AA96: =Z96*Y$19+Y96 -> 0 | AB96: =RANK(AA96,AA$91:AA$97) -> 1 | AC96: =AB96+COUNTIF(AB$91:AB96,AB96)-1 -> 2 | AD96: =IF(AC96<=AD$99,1,0) -> 0 | AE96: =AD96+Y96 -> 0
A97: TRANSFER TO/(FROM) RESERVE (Note 6) | B97: =IF('Annex 1'!$C$27="YES",+'Statement 6_Others'!D275,0) -> 0 | C97: =IF('Annex 1'!$C$27="YES",+'Statement 6_Others'!F275,0) -> 0 | D97: =C97+B97 -> 0 | E97: =IF('Annex 1'!$C$27="YES",+'Statement 6_Others'!H275,0) -> 0 | F97: Per Statement 6 (item 6) | O97: 0 | P97: =ROUND(O97,0) -> 0 | V97: =U97+P97 -> 0 | X97: =C97 -> 0 | Y97: =ROUND(X97,0) -> 0 | AE97: =AD97+Y97 -> 0
A99: ACCUMULATED SURPLUS/(DEFICIT) CARRIED FORWARD TO NEXT YEAR | B99: =SUM(B94:B96)-B97 -> 0 | C99: =SUM(C94:C96)-C97 -> 0 | D99: =SUM(D94:D96)-D97 -> 0 | E99: =SUM(E94:E96)-E97 -> 0 | O99: =SUM(O91:O98) -> 0 | P99: =SUM(P91:P98) -> 0 | Q99: =SUM(Q91:Q98) -> 0 | U99: =ROUND(B99,0)-P99 -> 0 | V99: =SUM(V91:V98) -> 0 | X99: =SUM(X91:X98) -> 0 | Y99: =SUM(Y91:Y98) -> 0 | Z99: =SUM(Z91:Z98) -> 0 | AD99: =ROUND(C99,0)-Y99 -> 0 | AE99: =SUM(AE91:AE98) -> 0
A102: Note
A103: 1. Please provide breakdowns for "Other Income" in Statement 6.
A105: 2. Please observe the guiding principles on scope of expenditure at Annex 3.
A107: 3. Please provide breakdowns for "Other Expenditure" in Statement 6.
A109: 4. For KGs with trading opertions such as sale of school items and provision of paid services, please provide details of such income and corresponding costs in Statement 4.
A111: 5. For KGs with donations received, please provide details of income from donation and corresponding expenditure in Statement 5.
A113: 6. Please specify the nature of surplus transfer to/(from) reserve e.g. school development for educational purpose in Statement 6.
A143: - 7 -

Sheet Statement 2
A2: Statement 2 | G2: Total Non-Current Assets
G3: =C31 -> 0 | H3: =ROUND(G3,0) -> 0 | I3: =G3-H3 -> 0 | J3: =ABS(I3)*H$14+H3 -> 0 | K3: =RANK(J3,$J$3:$J$8) -> 1 | L3: =K3+COUNTIF(K$3:K3,K3)-1 -> 1 | M3: =IF(L3<=ABS(M$10),IF(I3<0,-1,1),0) -> 0 | N3: =M3+H3 -> 0
A4: For KGs/KG-cum-CCCs (i) redeeming voucher subsidy under PEVS and/or (ii) receiving (a) CCCSS, and/or (b) SME and/or (c) Rent Reimbursement
A6: ='Statement 1'!A8 -> Name of School : ________________________________________________________________________ | G6: =C50 -> 0 | H6: =ROUND(G6,0) -> 0 | I6: =G6-H6 -> 0 | J6: =ABS(I6)*H$14+H6 -> 0 | K6: =RANK(J6,$J$3:$J$8) -> 1 | L6: =K6+COUNTIF(K$3:K6,K6)-1 -> 2 | M6: =IF(L6<=ABS(M$10),IF(I6<0,-1,1),0) -> 0 | N6: =M6+H6 -> 0
A7: ='Statement 1'!A9 -> 
A8: ='Statement 1'!A11 -> School type : *KG / KG-cum-CCC | E8: =IF(AND('Annex 1'!C19="",'Annex 1'!C20=""),"[*Please delete whichever is inappropriate.]","") -> [*Please delete whichever is inappropriate.] | H8: =ROUND(G8,0) -> 0 | I8: =G8-H8 -> 0 | J8: =ABS(I8)*H$14+H8 -> 0 | K8: =RANK(J8,$J$3:$J$8) -> 1 | L8: =K8+COUNTIF(K$3:K8,K8)-1 -> 3 | M8: =IF(L8<=ABS(M$10),IF(I8<0,-1,1),0) -> 0 | N8: =M8+H8 -> 0
A9: ='Statement 1'!A12 -> *Redeeming / Not redeeming voucher subsidy under PEVS
G10: =+G3+G6-G8 -> 0 | H10: =+H3+H6-H8 -> 0 | I10: =+I3+I6-I8 -> 0 | M10: =ROUND(C72,0)-H3-H6+H8 -> 0 | N10: =+N3+N6-N8 -> 0
A11: =CONCATENATE("BALANCE SHEET AS AT ",IF(NOT(ISNUMBER('Annex 1'!C33)),"_____________________ ",UPPER(TEXT('Annex 1'!C33,"dd mmmm yyyy")))) -> BALANCE SHEET AS AT _____________________
C14: Current | D14: Previous | E14: Remarks | G14: maximum | H14: =MAX(H17:H139)*200 -> 0
C15: Year | D15: Year | E15: (or Notes)
B16: $ | C16: $ | D16: $ | G16: Original | H16: Integer | I16: Decimal | J16: Fake No. | K16: Rank | L16: Adj. Rank | M16: Adjustment | N16: Final
A17: NON-CURRENT ASSETS
A18: Fixed assets | B18: ='Statement 6_FA'!AC46 -> 0 | D18: =+'Statement 6_FA'!AC42 -> 0 | E18: Per Statement 7 (item 1) | G18: =B18 -> 0 | H18: =ROUND(G18,0) -> 0 | N18: =M18+H18 -> 0
A19: Other Non-Current Assets (please specify)
A20: (1) Please specify | G20: =B20 -> 0 | H20: =INT(G20) -> 0 | I20: =ROUND(G20,2)-H20 -> 0 | J20: =I20*H$14+H20 -> 0 | K20: =RANK(J20,J$19:J$29) -> 1 | L20: =K20+COUNTIF(K$19:K20,K20)-1 -> 1 | M20: =IF(L20<=M$31,1,0) -> 0 | N20: =M20+H20 -> 0
A21: (2) Please specify | G21: 0 | H21: 0 | I21: =ROUND(G21,2)-H21 -> 0 | J21: =I21*H$14+H21 -> 0 | K21: =RANK(J21,J$19:J$29) -> 1 | L21: =K21+COUNTIF(K$19:K21,K21)-1 -> 2 | M21: =IF(L21<=M$31,1,0) -> 0 | N21: 0
A22: (3) Please specify | G22: 0 | H22: 0 | I22: 0 | J22: 0 | K22: 1 | L22: =K22+COUNTIF(K$19:K22,K22)-1 -> 3 | M22: 0 | N22: 0
A23: (4) Please specify | G23: 0 | H23: 0 | I23: 0 | J23: 0 | K23: 1 | L23: =K23+COUNTIF(K$19:K23,K23)-1 -> 4 | M23: 0 | N23: 0
A24: (5) Please specify | G24: 0 | H24: 0 | I24: 0 | J24: 0 | K24: 1 | L24: =K24+COUNTIF(K$19:K24,K24)-1 -> 5 | M24: 0 | N24: 0
A25: (6) Please specify | G25: 0 | H25: 0 | I25: 0 | J25: 0 | K25: 1 | L25: =K25+COUNTIF(K$19:K25,K25)-1 -> 6 | M25: 0 | N25: 0
A26: (7) Please specify | G26: 0 | H26: 0 | I26: 0 | J26: 0 | K26: 1 | L26: =K26+COUNTIF(K$19:K26,K26)-1 -> 7 | M26: 0 | N26: 0
A27: (8) Please specify | G27: 0 | H27: 0 | I27: 0 | J27: 0 | K27: 1 | L27: =K27+COUNTIF(K$19:K27,K27)-1 -> 8 | M27: 0 | N27: 0
A28: (9) Please specify | G28: 0 | H28: 0 | I28: 0 | J28: 0 | K28: 1 | L28: =K28+COUNTIF(K$19:K28,K28)-1 -> 9 | M28: 0 | N28: 0
A29: (10) Please specify | G29: 0 | H29: 0 | I29: 0 | J29: 0 | K29: 1 | L29: =K29+COUNTIF(K$19:K29,K29)-1 -> 10 | M29: 0 | N29: 0
A31: TOTAL NON-CURRENT ASSETS | C31: =SUM(B18:B29) -> 0 | D31: =SUM(D18:D29) -> 0 | G31: =SUM(G18:G30) -> 0 | H31: =SUM(H18:H30) -> 0 | I31: =SUM(I18:I30) -> 0 | M31: =N3-H31 -> 0 | N31: =SUM(N18:N30) -> 0
A33: CURRENT ASSETS
A34: Stock of Exercise Books, Stationery and Uniform etc. | B34: =+'Statement 4'!AS35 -> 0 | D34: =+'Statement 4'!AS20 -> 0 | E34: Per Statement 5 | G34: =B34 -> 0 | H34: =ROUND(G34,0) -> 0 | N34: =M34+H34 -> 0
A35: Sundry Debtors and Prepayments | G35: 0 | H35: 0 | I35: =ROUND(G35,2)-H35 -> 0 | J35: =I35*H$14+H35 -> 0 | K35: =RANK(J35,J$35:J$49) -> 1 | L35: =K35+COUNTIF(K$35:K35,K35)-1 -> 1 | M35: =IF(L35<=M$50,1,0) -> 0 | N35: 0
A36: Rental & Utility Deposit | G36: 0 | H36: 0 | I36: =ROUND(G36,2)-H36 -> 0 | J36: =I36*H$14+H36 -> 0 | K36: =RANK(J36,J$35:J$49) -> 1 | L36: =K36+COUNTIF(K$35:K36,K36)-1 -> 2 | M36: =IF(L36<=M$50,1,0) -> 0 | N36: 0
A37: Cash at bank and in hand | G37: 0 | H37: 0 | I37: =ROUND(G37,2)-H37 -> 0 | J37: =I37*H$14+H37 -> 0 | K37: 1 | L37: =K37+COUNTIF(K$35:K37,K37)-1 -> 3 | M37: 0 | N37: 0
A38: Other Current Assets (please specify)
A39: (1) Please specify | G39: 0 | H39: 0 | I39: =ROUND(G39,2)-H39 -> 0 | J39: =I39*H$14+H39 -> 0 | K39: 1 | L39: =K39+COUNTIF(K$35:K39,K39)-1 -> 4 | M39: 0 | N39: 0
A40: (2) Please specify | G40: 0 | H40: 0 | I40: 0 | J40: 0 | K40: 1 | L40: =K40+COUNTIF(K$35:K40,K40)-1 -> 5 | M40: 0 | N40: 0
A41: (3) Please specify | G41: 0 | H41: 0 | I41: 0 | J41: 0 | K41: 1 | L41: =K41+COUNTIF(K$35:K41,K41)-1 -> 6 | M41: 0 | N41: 0
A42: (4) Please specify | G42: 0 | H42: 0 | I42: 0 | J42: 0 | K42: 1 | L42: =K42+COUNTIF(K$35:K42,K42)-1 -> 7 | M42: 0 | N42: 0
A43: (5) Please specify | G43: 0 | H43: 0 | I43: 0 | J43: 0 | K43: 1 | L43: =K43+COUNTIF(K$35:K43,K43)-1 -> 8 | M43: 0 | N43: 0
A44: (6) Please specify | G44: 0 | H44: 0 | I44: 0 | J44: 0 | K44: 1 | L44: =K44+COUNTIF(K$35:K44,K44)-1 -> 9 | M44: 0 | N44: 0
A45: (7) Please specify | G45: 0 | H45: 0 | I45: 0 | J45: 0 | K45: 1 | L45: =K45+COUNTIF(K$35:K45,K45)-1 -> 10 | M45: 0 | N45: 0
A46: (8) Please specify | G46: 0 | H46: 0 | I46: 0 | J46: 0 | K46: 1 | L46: =K46+COUNTIF(K$35:K46,K46)-1 -> 11 | M46: 0 | N46: 0
A47: (9) Please specify | G47: 0 | H47: 0 | I47: 0 | J47: 0 | K47: 1 | L47: =K47+COUNTIF(K$35:K47,K47)-1 -> 12 | M47: 0 | N47: 0
A48: (10) Please specify | G48: 0 | H48: 0 | I48: 0 | J48: 0 | K48: 1 | L48: =K48+COUNTIF(K$35:K48,K48)-1 -> 13 | M48: 0 | N48: 0
G49: 0 | H49: 0 | I49: 0 | J49: 0 | K49: 1 | L49: =K49+COUNTIF(K$35:K49,K49)-1 -> 14 | M49: 0 | N49: 0
A50: TOTAL CURRENT ASSETS | C50: =SUM(B34:B48) -> 0 | D50: =SUM(D34:D48) -> 0 | G50: =SUM(G34:G49) -> 0 | H50: =SUM(H34:H49) -> 0 | I50: =SUM(I34:I49) -> 0 | M50: =N6-H50 -> 0 | N50: =SUM(N34:N49) -> 0
A52: CURRENT LIABILITIES
A53: School Fees Received in Advance | G53: =B53 -> 0 | H53: 0 | I53: =ROUND(G53,2)-H53 -> 0 | J53: =I53*H$14+H53 -> 0 | K53: =RANK(J53,J$53:J$66) -> 1 | L53: =K53+COUNTIF(K$53:K53,K53)-1 -> 1 | M53: =IF(L53<=M$68,1,0) -> 0 | N53: 0
A54: Bank Overdraft | G54: =B54 -> 0 | H54: 0 | I54: =ROUND(G54,2)-H54 -> 0 | J54: =I54*H$14+H54 -> 0 | K54: =RANK(J54,J$53:J$66) -> 1 | L54: =K54+COUNTIF(K$53:K54,K54)-1 -> 2 | M54: =IF(L54<=M$68,1,0) -> 0 | N54: 0
A55: Sundry Creditors and Accrual | G55: =B55 -> 0 | H55: 0 | I55: =ROUND(G55,2)-H55 -> 0 | J55: =I55*H$14+H55 -> 0 | K55: 1 | L55: =K55+COUNTIF(K$53:K55,K55)-1 -> 3 | M55: 0 | N55: 0
A56: Other Current Liabilities (please specify)
A57: (1) Please specify | G57: =B57 -> 0 | H57: 0 | I57: =ROUND(G57,2)-H57 -> 0 | J57: =I57*H$14+H57 -> 0 | K57: 1 | L57: =K57+COUNTIF(K$53:K57,K57)-1 -> 4 | M57: 0 | N57: 0
A58: (2) Please specify | G58: 0 | H58: 0 | I58: 0 | J58: 0 | K58: 1 | L58: =K58+COUNTIF(K$53:K58,K58)-1 -> 5 | M58: 0 | N58: 0
A59: (3) Please specify | G59: 0 | H59: 0 | I59: 0 | J59: 0 | K59: 1 | L59: =K59+COUNTIF(K$53:K59,K59)-1 -> 6 | M59: 0 | N59: 0
A60: (4) Please specify | G60: 0 | H60: 0 | I60: 0 | J60: 0 | K60: 1 | L60: =K60+COUNTIF(K$53:K60,K60)-1 -> 7 | M60: 0 | N60: 0
A61: (5) Please specify | G61: 0 | H61: 0 | I61: 0 | J61: 0 | K61: 1 | L61: =K61+COUNTIF(K$53:K61,K61)-1 -> 8 | M61: 0 | N61: 0
A62: (6) Please specify | G62: 0 | H62: 0 | I62: 0 | J62: 0 | K62: 1 | L62: =K62+COUNTIF(K$53:K62,K62)-1 -> 9 | M62: 0 | N62: 0
A63: (7) Please specify | G63: 0 | H63: 0 | I63: 0 | J63: 0 | K63: 1 | L63: =K63+COUNTIF(K$53:K63,K63)-1 -> 10 | M63: 0 | N63: 0
A64: (8) Please specify | G64: 0 | H64: 0 | I64: 0 | J64: 0 | K64: 1 | L64: =K64+COUNTIF(K$53:K64,K64)-1 -> 11 | M64: 0 | N64: 0
A65: (9) Please specify | G65: 0 | H65: 0 | I65: 0 | J65: 0 | K65: 1 | L65: =K65+COUNTIF(K$53:K65,K65)-1 -> 12 | M65: 0 | N65: 0
A66: (10) Please specify | G66: 0 | H66: 0 | I66: 0 | J66: 0 | K66: 1 | L66: =K66+COUNTIF(K$53:K66,K66)-1 -> 13 | M66: 0 | N66: 0
A68: TOTAL CURRENT LIABILITIES | C68: =SUM(B53:B66) -> 0 | D68: =SUM(D53:D66) -> 0 | G68: =SUM(G53:G67) -> 0 | H68: =SUM(H53:H67) -> 0 | I68: =SUM(I53:I67) -> 0 | M68: =N8-H68 -> 0 | N68: =SUM(N53:N67) -> 0
A70: NET CURRENT ASSETS/(LIABILITIES) | C70: =+C50-C68 -> 0 | D70: =+D50-D68 -> 0
A72: TOTAL ASSETS NET OF CURRENT LIABILITIES | C72: =+C31+C70 -> 0 | D72: =+D31+D70 -> 0 | G72: =+G50-G68+G31 -> 0 | H72: =+H50-H68+H31 -> 0 | I72: =+I50-I68+I31 -> 0 | M72: =ROUND(G72,0)-H72 -> 0 | N72: =+N50-N68+N31 -> 0
A74: REPRESENTED BY:
A75: RESERVE (please specify)
A76: (1) Please specify | G76: =B76 -> 0 | H76: =INT(G76) -> 0 | I76: =ROUND(G76,2)-H76 -> 0 | J76: =I76*H$14+H76 -> 0 | K76: =RANK(J76,J$76:J$105) -> 1 | L76: =K76+COUNTIF(K$76:K76,K76)-1 -> 1 | M76: =IF(L76<=M$104,1,0) -> 0 | N76: =M76+H76 -> 0
A77: (2) Please specify | G77: 0 | H77: 0 | I77: 0 | J77: 0 | K77: 1 | L77: =K77+COUNTIF(K$76:K77,K77)-1 -> 2 | M77: =IF(L77<=M$76,1,0) -> 0 | N77: 0
A78: (3) Please specify | G78: 0 | H78: 0 | I78: 0 | J78: 0 | K78: 1 | L78: =K78+COUNTIF(K$76:K78,K78)-1 -> 3 | M78: 0 | N78: 0
A79: (4) Please specify | G79: 0 | H79: 0 | I79: 0 | J79: 0 | K79: 1 | L79: =K79+COUNTIF(K$76:K79,K79)-1 -> 4 | M79: 0 | N79: 0
A80: (5) Please specify | G80: 0 | H80: 0 | I80: 0 | J80: 0 | K80: 1 | L80: =K80+COUNTIF(K$76:K80,K80)-1 -> 5 | M80: 0 | N80: 0
A81: (6) Please specify | G81: 0 | H81: 0 | I81: 0 | J81: 0 | K81: 1 | L81: =K81+COUNTIF(K$76:K81,K81)-1 -> 6 | M81: 0 | N81: 0
A82: (7) Please specify | G82: 0 | H82: 0 | I82: 0 | J82: 0 | K82: 1 | L82: =K82+COUNTIF(K$76:K82,K82)-1 -> 7 | M82: 0 | N82: 0
A83: (8) Please specify | G83: 0 | H83: 0 | I83: 0 | J83: 0 | K83: 1 | L83: =K83+COUNTIF(K$76:K83,K83)-1 -> 8 | M83: 0 | N83: 0
A84: (9) Please specify | G84: 0 | H84: 0 | I84: 0 | J84: 0 | K84: 1 | L84: =K84+COUNTIF(K$76:K84,K84)-1 -> 9 | M84: 0 | N84: 0
A85: (10) Please specify | G85: 0 | H85: 0 | I85: 0 | J85: 0 | K85: 1 | L85: =K85+COUNTIF(K$76:K85,K85)-1 -> 10 | M85: 0 | N85: 0
C87: =SUM(B76:B85) -> 0 | D87: =SUM(D76:D85) -> 0
A89: ACCUMULATED SURPLUS/(LIABILITIES) | C89: =IF(ISBLANK('Annex 1'!$C$27),0,IF('Annex 1'!$C$27="YES",+'Statement 1A'!D99,+'Statement 1'!C90)) -> 0 | D89: =IF(ISBLANK('Annex 1'!$C$27),0,IF('Annex 1'!$C$27="YES",+'Statement 1A'!E99,+'Statement 1'!D90)) -> 0 | E89: Per Statement 1/1A | G89: =B89 -> 0 | H89: =ROUND(G89,0) -> 0 | N89: =M89+H89 -> 0
A91: LONG TERM LIABILITIES
A92: Bank Loan | G92: =B92 -> 0 | H92: =INT(G92) -> 0 | I92: =ROUND(G92,2)-H92 -> 0 | J92: =I92*H$14+H92 -> 0 | K92: =RANK(J92,J$76:J$105) -> 1 | L92: =K92+COUNTIF(K$76:K92,K92)-1 -> 11 | M92: =IF(L92<=M$76,1,0) -> 0 | N92: =M92+H92 -> 0
A93: Other Long Term Liabilities (please specify)
A94: (1) Please specify | G94: =B94 -> 0 | H94: =INT(G94) -> 0 | I94: =ROUND(G94,2)-H94 -> 0 | J94: =I94*H$14+H94 -> 0 | K94: =RANK(J94,J$76:J$105) -> 1 | L94: =K94+COUNTIF(K$76:K94,K94)-1 -> 12 | M94: =IF(L94<=M$76,1,0) -> 0 | N94: =M94+H94 -> 0
A95: (2) Please specify | G95: 0 | H95: 0 | I95: 0 | J95: 0 | K95: 1 | L95: =K95+COUNTIF(K$76:K95,K95)-1 -> 13 | M95: 0 | N95: 0
A96: (3) Please specify | G96: 0 | H96: 0 | I96: 0 | J96: 0 | K96: 1 | L96: =K96+COUNTIF(K$76:K96,K96)-1 -> 14 | M96: 0 | N96: 0
A97: (4) Please specify | G97: 0 | H97: 0 | I97: 0 | J97: 0 | K97: 1 | L97: =K97+COUNTIF(K$76:K97,K97)-1 -> 15 | M97: 0 | N97: 0
A98: (5) Please specify | G98: 0 | H98: 0 | I98: 0 | J98: 0 | K98: 1 | L98: =K98+COUNTIF(K$76:K98,K98)-1 -> 16 | M98: 0 | N98: 0
A99: (6) Please specify | G99: 0 | H99: 0 | I99: 0 | J99: 0 | K99: 1 | L99: =K99+COUNTIF(K$76:K99,K99)-1 -> 17 | M99: 0 | N99: 0
A100: (7) Please specify | G100: 0 | H100: 0 | I100: 0 | J100: 0 | K100: 1 | L100: =K100+COUNTIF(K$76:K100,K100)-1 -> 18 | M100: 0 | N100: 0
A101: (8) Please specify | G101: 0 | H101: 0 | I101: 0 | J101: 0 | K101: 1 | L101: =K101+COUNTIF(K$76:K101,K101)-1 -> 19 | M101: 0 | N101: 0
A102: (9) Please specify | G102: 0 | H102: 0 | I102: 0 | J102: 0 | K102: 1 | L102: =K102+COUNTIF(K$76:K102,K102)-1 -> 20 | M102: 0 | N102: 0
A103: (10) Please specify | G103: 0 | H103: 0 | I103: 0 | J103: 0 | K103: 1 | L103: =K103+COUNTIF(K$76:K105,K103)-1 -> 21 | M103: 0 | N103: 0
C105: =SUM(B92:B103) -> 0 | D105: =SUM(D92:D103) -> 0
C107: =+C87+C105+C89 -> 0 | D107: =+D87+D105+D89 -> 0 | G107: =SUM(G76:G106) -> 0 | H107: =SUM(H76:H106) -> 0 | I107: =SUM(I76:I106) -> 0 | M107: =ROUND(G107,0)-H107 -> 0 | N107: =SUM(N76:N106) -> 0
A111: - 8 -

Sheet Statement 3
A2: Statement 3
A4: For KG-cum-CCCs receiving CCCSS and/or SME
A6: ='School Name'!A7 -> Name of School : ________________________________________________________________________
A7: ='School Name'!A8 -> 
A9: STATEMENT OF CHILD CARE CENTRE SUBSIDY SCHEME AND
A10: SUBSIDY FOR MANPOWER ENHANCEMENT
A11: ='Statement 1'!A15 -> FOR THE YEAR ENDED ______________________________
B13: Current | C13: Previous | D13: Remarks
B14: Year | C14: Year | D14: (or Notes)
B15: $ | C15: $
A17: INCOME
A19: Subsidy received under the Child Care Centre Subsidy Scheme (Note 1) | B19: =IF(OR(ISBLANK('Annex 1'!C$21),'Annex 1'!C$21="Non-CCCSS"),0,IF('Annex 1'!C$27="Yes",'Statement 1A'!D31,'Statement 1'!C29)) -> 0 | C19: =IF(OR(ISBLANK('Annex 1'!C$21),'Annex 1'!C$21="Non-CCCSS"),0,IF('Annex 1'!C$27="Yes",'Statement 1A'!E31,'Statement 1'!D29)) -> 0 | D19: =IF(ISBLANK('Annex 1'!C$27),"Per Statement *1/1A",(IF('Annex 1'!C$27="Yes","Per Statement 1A","Per Statement 1"))) -> Per Statement *1/1A | G19: DonationsReceived | H19: =ROW(G19) -> 19 | Q19: =ROUND(B19,0) -> 0
A20: Subsidy for Manpower Enhancement (“SME”) (Note 2) | B20: =IF(OR(ISBLANK('Annex 1'!C$22),'Annex 1'!C$22="Non-SME"),0,IF('Annex 1'!C$27="Yes",'Statement 1A'!D33,'Statement 1'!C31)) -> 0 | C20: =IF(OR(ISBLANK('Annex 1'!C$21),'Annex 1'!C$21="Non-SME"),0,IF('Annex 1'!C$27="Yes",'Statement 1A'!E33,'Statement 1'!D31)) -> 0
A22: TOTAL INCOME | B22: =SUM(B19:B20) -> 0 | C22: =SUM(C19:C20) -> 0
A25: EXPENDITURE
J26: maximum | K26: =MAX(K27:K104)*200 -> 0
A27: Salary and provident fund/mandatory provident fund (Note 1&2)
J28: Original | K28: Integer | L28: Decimal | M28: Fake No. | N28: Rank | O28: Adj. Rank | P28: Adjustment | Q28: Final
A29: - Child care supervisor's ("CCS's") salaries | J29: =B29 -> 0 | K29: =INT(J29) -> 0 | L29: =J29-K29 -> 0 | M29: =ABS(L29)*K$26+K29 -> 0 | N29: =RANK(M29,M$29:M$33) -> 1 | O29: =N29+COUNTIF(N$29:N29,N29)-1 -> 1 | P29: =IF(O29<=ABS(P$37),IF(L29<0,-1,1),0) -> 0 | Q29: =P29+K29 -> 0
A31: - Child care workers' ("CCW's") salaries | J31: =B31 -> 0 | K31: =INT(J31) -> 0 | L31: =J31-K31 -> 0 | M31: =ABS(L31)*K$26+K31 -> 0 | N31: =RANK(M31,M$29:M$33) -> 1 | O31: =N31+COUNTIF(N$29:N31,N31)-1 -> 2 | P31: =IF(O31<=ABS(P$37),IF(L31<0,-1,1),0) -> 0 | Q31: =P31+K31 -> 0
A33: - Employer's Contribution to Provident Fund Scheme / Mandatory Provident Fund Scheme for CCSs and CCWs | J33: =B33 -> 0 | K33: =INT(J33) -> 0 | L33: =J33-K33 -> 0 | M33: =ABS(L33)*K$26+K33 -> 0 | N33: =RANK(M33,M$29:M$33) -> 1 | O33: =N33+COUNTIF(N$29:N33,N33)-1 -> 3 | P33: =IF(O33<=ABS(P$37),IF(L33<0,-1,1),0) -> 0 | Q33: =P33+K33 -> 0
A36: TOTAL EXPENDITURE | B36: =B29+B31+B33 -> 0 | C36: =C29+C31+C33 -> 0 | J36: =B36 -> 0 | K36: =SUM(K27:K35) -> 0 | L36: =J36-K36 -> 0 | Q36: =SUM(Q27:Q35) -> 0
J37: =B37 -> 0 | K37: =INT(J37) -> 0 | L37: =J37-K37 -> 0 | P37: =Q19-K36-Q37 -> 0 | Q37: =ROUND(B37,0) -> 0
A38: SURPLUS (Note 3)/(DEFICIT)
A40: Surplus refundable to Education Bureau ("EDB") / (Deficit) for the period
A42: Surplus refundable to Social Welfare Department ("SWD") / (Deficit) for the period
A44: TOTAL SURPLUS/(DEFICIT) | B44: =B40+B42 -> 0 | C44: =C40+C42 -> 0
A47: =IF(ISBLANK('Annex 1'!C27),"*Please delete whichever is inappropriate","") -> *Please delete whichever is inappropriate
A49: Note
A51: 1. According to EDBC No. 3/2008, the subsidy under the Child Care Centre Subsidy Scheme (CCCSS) should be spent solely on CCS's / CCW's salaries and Provident Fund / Mandatory Provident Fund expenses.
A53: 2. According to SWD's notification letter issued to schools, the SME should be spent solely on CCS's / CCW's salaries and Provident Fund / Mandatory Provident Fund expenses and it has to be spent in the school year to which it is granted. KG-cum-CCCs withdrawn from Free Quality Kindergarten Education Scheme should continue to report any income and expenditure under SME.
A55: 3. Any unspent amount of the allocation will be clawed back by the Government of the Hong Kong Special Administrative Region ("the Government") after the review of the annual audited accounts. If the CCC service of the aided KG-cum-CCC is terminated, the entire unspent subsidy based on the audited accounts as at the date of closure will be clawed back by the Government. The surplus from CCCSS and SME will be calculated on pro-rata basis and returned to EDB and SWD accordingly.
A61: - 9 -

Sheet Statement 4 (old) (hidden)
A1: This statement will be hidden as it is no longer valid and de-link from other statements.
A2: Statement 4 | F2: Income
F3: =B23 -> 0 | G3: =ROUND(F3,0) -> 0 | H3: =F3-G3 -> 0 | I3: =ABS(H3)*G$12+G3 -> 0 | J3: =RANK(I3,$I$3:$I$6) -> 1 | K3: =J3+COUNTIF(J$3:J3,J3)-1 -> 1 | L3: =IF(K3<=ABS(L$8),IF(H3<0,-1,1),0) -> 0 | M3: =L3+G3 -> 0
A4: For KGs/KG-cum-CCCs joining PEVS
F5: Expenditure
A6: ='Statement 3'!A6 -> Name of School : ________________________________________________________________________ | F6: =B34 -> 0 | G6: =ROUND(F6,0) -> 0 | H6: =F6-G6 -> 0 | I6: =ABS(H6)*G$12+G6 -> 0 | J6: =RANK(I6,$I$3:$I$6) -> 1 | K6: =J6+COUNTIF(J$3:J6,J6)-1 -> 2 | L6: =IF(K6<=ABS(L$8),IF(H6<0,-1,1),0) -> 0 | M6: =L6+G6 -> 0
A7: ='Statement 3'!A7 -> 
F8: =+F3-F6 -> 0 | G8: =+G3-G6 -> 0 | H8: =+H3-H6 -> 0 | L8: =ROUND(F8,0)-G8 -> 0 | M8: =+M3-M6 -> 0
A9: STATEMENT OF TEACHER DEVELOPMENT SUBSIDY
A10: ='Statement 3'!A11 -> FOR THE YEAR ENDED ______________________________
B12: Current | C12: Previous | D12: Remarks | F12: maximum | G12: =MAX(G15:G198)*200 -> 4200
B13: Year | C13: Year | D13: (or Notes)
B14: $ | C14: $ | F14: Original | G14: Integer | H14: Decimal | I14: Fake No. | J14: Rank | K14: Adj. Rank | L14: Adjustment | M14: Final
A16: INCOME
A18: Subsidy Received | C18: 21.1 | F18: =B18 -> 0 | G18: =INT(F18) -> 0 | H18: =ROUND(F18,2)-G18 -> 0 | I18: =H18*G$12+G18 -> 0 | J18: =RANK(I18,I$18:I$21) -> 1 | K18: =J18+COUNTIF(J$18:J18,J18)-1 -> 1 | L18: =IF(K18<=L$23,1,0) -> 0 | M18: =L18+G18 -> 0
A20: Interest Income | F20: =B20 -> 0 | G20: =INT(F20) -> 0 | H20: =ROUND(F20,2)-G20 -> 0 | I20: =H20*G$12+G20 -> 0 | J20: =RANK(I20,I$18:I$21) -> 1 | K20: =J20+COUNTIF(J$18:J20,J20)-1 -> 2 | L20: =IF(K20<=L$23,1,0) -> 0 | M20: =L20+G20 -> 0
A23: TOTAL INCOME | B23: =SUM(B18:Above) -> 0 | C23: =SUM(C18:Above) -> 21.1 | F23: =SUM(F18:F22) -> 0 | G23: =SUM(G18:G22) -> 0 | H23: =SUM(H18:H22) -> 0 | L23: =M3-G23 -> 0 | M23: =SUM(M18:M22) -> 0
A25: EXPENDITURE
A27: Reimbursed Course Fees | F27: =B27 -> 0 | G27: =INT(F27) -> 0 | H27: =ROUND(F27,2)-G27 -> 0 | I27: =H27*G$12+G27 -> 0 | J27: =RANK(I27,I$27:I$33) -> 1 | K27: =J27+COUNTIF(J$27:J27,J27)-1 -> 1 | L27: =IF(K27<=L$34,1,0) -> 0 | M27: =L27+G27 -> 0
A29: Payments for Supply Teacher (including the MPF) | F29: =B29 -> 0 | G29: =INT(F29) -> 0 | H29: =ROUND(F29,2)-G29 -> 0 | I29: =H29*G$12+G29 -> 0 | J29: =RANK(I29,I$27:I$33) -> 1 | K29: =J29+COUNTIF(J$27:J29,J29)-1 -> 2 | L29: =IF(K29<=L$34,1,0) -> 0 | M29: =L29+G29 -> 0
A31: School-Based Training | F31: =B31 -> 0 | G31: =INT(F31) -> 0 | H31: =ROUND(F31,2)-G31 -> 0 | I31: =H31*G$12+G31 -> 0 | J31: =RANK(I31,I$27:I$33) -> 1 | K31: =J31+COUNTIF(J$27:J31,J31)-1 -> 3 | L31: =IF(K31<=L$34,1,0) -> 0 | M31: =L31+G31 -> 0
A34: TOTAL EXPENDITURE | B34: =SUM(B27:Above) -> 0 | C34: =SUM(C27:Above) -> 0 | F34: =SUM(F27:F33) -> 0 | G34: =SUM(G27:G33) -> 0 | H34: =SUM(H27:H33) -> 0 | L34: =M6-G34 -> 0 | M34: =SUM(M27:M33) -> 0
A36: SURPLUS/(DEFICIT) FOR THE YEAR | B36: =+B23-B34 -> 0 | C36: =+C23-C34 -> 21.1 | F36: =B36 -> 0 | G36: =INT(F36) -> 0 | H36: =ROUND(F36,2)-G36 -> 0 | I36: =H36*G$12+G36 -> 0 | J36: =RANK(I36,I$36:I$49) -> 1 | K36: =J36+COUNTIF($J$36:J36,J36)-1 -> 1 | L36: =IF(K36<=L$51,1,0) -> 0 | M36: =L36+G36 -> 0
A38: SURPLUS/(DEFICIT) BROUGHT FORWARD FROM PREVIOUS YEAR | B38: =C51 -> 21.1 | F38: =B38 -> 21.1 | G38: =ROUND(F38,0) -> 21 | M38: =L38+G38 -> 21
A39: ADD: ADJUSTMENTS (PLEASE SPECIFY)
A40: (1) Please specify | F40: =B40 -> 0 | G40: =INT(F40) -> 0 | H40: =ROUND(F40,2)-G40 -> 0 | I40: =H40*G$12+G40 -> 0 | J40: =RANK(I40,I$36:I$49) -> 1 | K40: =J40+COUNTIF($J$36:J40,J40)-1 -> 2 | L40: =IF(K40<=L$51,1,0) -> 0 | M40: =L40+G40 -> 0
A41: (2) Please specify | F41: =B41 -> 0 | G41: 0 | H41: 0 | I41: 0 | J41: 1 | K41: =J41+COUNTIF($J$36:J41,J41)-1 -> 3 | L41: 0 | M41: =L41+G41 -> 0
A42: (3) Please specify | F42: 0 | G42: 0 | H42: 0 | I42: 0 | J42: 1 | K42: =J42+COUNTIF($J$36:J42,J42)-1 -> 4 | L42: 0 | M42: 0
A43: (4) Please specify | F43: 0 | G43: 0 | H43: 0 | I43: 0 | J43: 1 | K43: =J43+COUNTIF($J$36:J43,J43)-1 -> 5 | L43: 0 | M43: 0
A44: (5) Please specify | F44: 0 | G44: 0 | H44: 0 | I44: 0 | J44: 1 | K44: =J44+COUNTIF($J$36:J44,J44)-1 -> 6 | L44: 0 | M44: 0
A45: (6) Please specify | F45: 0 | G45: 0 | H45: 0 | I45: 0 | J45: 1 | K45: =J45+COUNTIF($J$36:J45,J45)-1 -> 7 | L45: 0 | M45: 0
A46: (7) Please specify | F46: 0 | G46: 0 | H46: 0 | I46: 0 | J46: 1 | K46: =J46+COUNTIF($J$36:J46,J46)-1 -> 8 | L46: 0 | M46: 0
A47: (8) Please specify | F47: 0 | G47: 0 | H47: 0 | I47: 0 | J47: 1 | K47: =J47+COUNTIF($J$36:J47,J47)-1 -> 9 | L47: 0 | M47: 0
A48: (9) Please specify | F48: 0 | G48: 0 | H48: 0 | I48: 0 | J48: 1 | K48: =J48+COUNTIF($J$36:J48,J48)-1 -> 10 | L48: 0 | M48: 0
A49: (10) Please specify | F49: 0 | G49: 0 | H49: 0 | I49: 0 | J49: 1 | K49: =J49+COUNTIF($J$36:J49,J49)-1 -> 11 | L49: 0 | M49: 0
A50: LESS : AMOUNT RETURNED TO EDB | F50: =B50 -> 0 | G50: =ROUND(F50,0) -> 0 | M50: =L50+G50 -> 0
A51: SURPLUS/(DEFICIT) TO BE CARRIED FORWARD TO NEXT YEAR | B51: =+B36+B38+SUM(B40:B49)-B50-B53 -> 21.1 | C51: =+C36+C38+SUM(C40:C49)-C50 -> 21.1 | D51: Per Balance Sheet | F51: =+F36+F38+SUM(F40:F49)-F50-F53 -> 21.1 | G51: =+G36+G38+SUM(G40:G49)-G50-G53 -> 21 | H51: =+H36+H38+SUM(H40:H49)-H50-H53 -> 0 | L51: =ROUND(F51,0)-G51 -> 0 | M51: =+M36+M38+SUM(M40:M49)-M50-M53 -> 21
A52: OR
A53: Amount to be clawed back by EDB (Note) | F53: =B53 -> 0 | G53: =ROUND(F53,0) -> 0 | M53: =L53+G53 -> 0
A55: Note
A56: According to EDBC No. 1/2007, the unspent balance as at end of the 2011/12 school year would be clawed back by EDB. Please explain if the clawback amount differs from the reported figure in the “Statement of Teacher Development Subsidy for Clawback Purpose”submitted to EDB earlier (if applicable).
B59: - 11 -

Sheet Statement 4
A2: Statement 4
A4: For KGs/KG-cum-CCCs (i) redeeming voucher subsidy under PEVS and/or (ii) receiving (a) CCCSS, and/or (b) SME, and/or (c) Rent Reimbursement
A6: =CONCATENATE("Name of School : ",'School Name'!A15) -> Name of School : ________________________________________________________________________
A8: STATEMENT OF TRADING OPERATIONS
A9: =+'Statement 4 (old)'!A10 -> FOR THE YEAR ENDED ______________________________
C11: A | E11: B | G11: C | I11: D | K11: E | M11: F | O11: G | Q11: H | S11: I | U11: J | W11: K | Y11: L | AA11: M | AC11: N | AE11: O | AG11: P | AI11: Q | AK11: R | AM11: S | AO11: T | AQ11: U | AS11: V
C12: School Bus | E12: Text Books | G12: Exercise Books | I12: School Uniform | K12: School Bag(s) | M12: Beddings | O12: Activities outside regular school hours | Q12: Stationery | S12: Teaching/ Learning Materials | U12: Snack/Food/ Refreshment | W12: Others (Please specify) | Y12: Others (Please specify) | AA12: Others (Please specify) | AC12: Others (Please specify) | AE12: Others (Please specify) | AG12: Others (Please specify) | AI12: Others (Please specify) | AK12: Others (Please specify) | AM12: Others (Please specify) | AO12: Others (Please specify) | AQ12: Others (Please specify) | AS12: Total
C13: (Notes 1 & 4) | E13: (Notes 1 & 4) | G13: (Notes 1 & 4) | I13: (Notes 1 & 4) | K13: (Notes 1 & 4) | M13: (Notes 1 & 4) | O13: (Notes 1 & 4) | Q13: (Notes 1 & 4) | S13: (Notes 1 & 4) | U13: (Notes 1 & 4) | W13: (Notes 1 & 4) | Y13: (Notes 1 & 4) | AA13: (Notes 1 & 4) | AC13: (Notes 1 & 4) | AE13: (Notes 1 & 4) | AG13: (Notes 1 & 4) | AI13: (Notes 1 & 4) | AK13: (Notes 1 & 4) | AM13: (Notes 1 & 4) | AO13: (Notes 1 & 4) | AQ13: (Notes 1 & 4)
C14: $ | E14: $ | G14: $ | I14: $ | K14: $ | M14: $ | O14: $ | Q14: $ | S14: $ | U14: $ | W14: $ | Y14: $ | AA14: $ | AC14: $ | AE14: $ | AG14: $ | AI14: $ | AK14: $ | AM14: $ | AO14: $ | AQ14: $ | AS14: $
A15: Income (a) | AS15: =SUM(C15:AR15) -> 0 | AW15: =ROUND(C15,0) -> 0 | AY15: =ROUND(E15,0) -> 0 | BA15: =ROUND(G15,0) -> 0 | BC15: =ROUND(I15,0) -> 0 | BE15: =ROUND(K15,0) -> 0 | BG15: =ROUND(M15,0) -> 0 | BI15: =ROUND(O15,0) -> 0 | BK15: =ROUND(Q15,0) -> 0 | BM15: =ROUND(S15,0) -> 0 | BO15: =ROUND(U15,0) -> 0 | BQ15: =ROUND(AS15-SUM(C15:U15),0) -> 0
A17: Less: Cost of Sales (b)
B20: Opening Stock | AS20: =SUM(C20:AR20) -> 0 | AW20: =ROUND(C20,0) -> 0 | AY20: =ROUND(E20,0) -> 0 | BA20: =ROUND(G20,0) -> 0 | BC20: =ROUND(I20,0) -> 0 | BE20: =ROUND(K20,0) -> 0 | BG20: =ROUND(M20,0) -> 0 | BI20: =ROUND(O20,0) -> 0 | BK20: =ROUND(Q20,0) -> 0 | BM20: =ROUND(S20,0) -> 0 | BO20: =ROUND(U20,0) -> 0 | BQ20: =ROUND(AS20-SUM(C20:U20),0) -> 0
B22: Add : Purchases | AS22: =SUM(C22:AR22) -> 0 | AW22: =ROUND(C22,0) -> 0 | AY22: =ROUND(E22,0) -> 0 | BA22: =ROUND(G22,0) -> 0 | BC22: =ROUND(I22,0) -> 0 | BE22: =ROUND(K22,0) -> 0 | BG22: =ROUND(M22,0) -> 0 | BI22: =ROUND(O22,0) -> 0 | BK22: =ROUND(Q22,0) -> 0 | BM22: =ROUND(S22,0) -> 0 | BO22: =ROUND(U22,0) -> 0 | BQ22: =ROUND(AS22-SUM(C22:U22),0) -> 0
B23: Other Expenses
B24: (1) Please specify | AS24: =SUM(C24:AR24) -> 0 | AW24: =ROUND(C24,0) -> 0 | AY24: =ROUND(E24,0) -> 0 | BA24: =ROUND(G24,0) -> 0 | BC24: =ROUND(I24,0) -> 0 | BE24: =ROUND(K24,0) -> 0 | BG24: =ROUND(M24,0) -> 0 | BI24: =ROUND(O24,0) -> 0 | BK24: =ROUND(Q24,0) -> 0 | BM24: =ROUND(S24,0) -> 0 | BO24: =ROUND(U24,0) -> 0 | BQ24: =ROUND(AS24-SUM(C24:U24),0) -> 0
B25: (2) Please specify | AS25: =SUM(C25:AR25) -> 0 | AW25: 0 | AY25: 0 | BA25: 0 | BC25: 0 | BE25: 0 | BG25: 0 | BI25: 0 | BK25: 0 | BM25: 0 | BO25: 0 | BQ25: 0
B26: (3) Please specify | AS26: 0 | AW26: 0 | AY26: 0 | BA26: 0 | BC26: 0 | BE26: 0 | BG26: 0 | BI26: 0 | BK26: 0 | BM26: 0 | BO26: 0 | BQ26: 0
B27: (4) Please specify | AS27: 0 | AW27: 0 | AY27: 0 | BA27: 0 | BC27: 0 | BE27: 0 | BG27: 0 | BI27: 0 | BK27: 0 | BM27: 0 | BO27: 0 | BQ27: 0
B28: (5) Please specify | AS28: 0 | AW28: 0 | AY28: 0 | BA28: 0 | BC28: 0 | BE28: 0 | BG28: 0 | BI28: 0 | BK28: 0 | BM28: 0 | BO28: 0 | BQ28: 0
B29: (6) Please specify | AS29: 0 | AW29: 0 | AY29: 0 | BA29: 0 | BC29: 0 | BE29: 0 | BG29: 0 | BI29: 0 | BK29: 0 | BM29: 0 | BO29: 0 | BQ29: 0
B30: (7) Please specify | AS30: 0 | AW30: 0 | AY30: 0 | BA30: 0 | BC30: 0 | BE30: 0 | BG30: 0 | BI30: 0 | BK30: 0 | BM30: 0 | BO30: 0 | BQ30: 0
B31: (8) Please specify | AS31: 0 | AW31: 0 | AY31: 0 | BA31: 0 | BC31: 0 | BE31: 0 | BG31: 0 | BI31: 0 | BK31: 0 | BM31: 0 | BO31: 0 | BQ31: 0
B32: (9) Please specify | AS32: 0 | AW32: 0 | AY32: 0 | BA32: 0 | BC32: 0 | BE32: 0 | BG32: 0 | BI32: 0 | BK32: 0 | BM32: 0 | BO32: 0 | BQ32: 0
B33: (10) Please specify | AS33: 0 | AW33: 0 | AY33: 0 | BA33: 0 | BC33: 0 | BE33: 0 | BG33: 0 | BI33: 0 | BK33: 0 | BM33: 0 | BO33: 0 | BQ33: 0
B35: Less : Closing Stock | AS35: =SUM(C35:AR35) -> 0 | AW35: =ROUND(C35,0) -> 0 | AY35: =ROUND(E35,0) -> 0 | BA35: =ROUND(G35,0) -> 0 | BC35: =ROUND(I35,0) -> 0 | BE35: =ROUND(K35,0) -> 0 | BG35: =ROUND(M35,0) -> 0 | BI35: =ROUND(O35,0) -> 0 | BK35: =ROUND(Q35,0) -> 0 | BM35: =ROUND(S35,0) -> 0 | BO35: =ROUND(U35,0) -> 0 | BQ35: =ROUND(AS35-SUM(C35:U35),0) -> 0
C37: =+C20+SUM(C22:C34)-C35 -> 0 | E37: =+E20+SUM(E22:E34)-E35 -> 0 | G37: =+G20+SUM(G22:G34)-G35 -> 0 | I37: =+I20+SUM(I22:I34)-I35 -> 0 | K37: =+K20+SUM(K22:K34)-K35 -> 0 | M37: =+M20+SUM(M22:M34)-M35 -> 0 | O37: =+O20+SUM(O22:O34)-O35 -> 0 | Q37: =+Q20+SUM(Q22:Q34)-Q35 -> 0 | S37: =+S20+SUM(S22:S34)-S35 -> 0 | U37: =+U20+SUM(U22:U34)-U35 -> 0 | W37: =+W20+SUM(W22:W34)-W35 -> 0 | Y37: =+Y20+SUM(Y22:Y34)-Y35 -> 0 | AA37: =+AA20+SUM(AA22:AA34)-AA35 -> 0 | AC37: =+AC20+SUM(AC22:AC34)-AC35 -> 0 | AE37: =+AE20+SUM(AE22:AE34)-AE35 -> 0 | AG37: =+AG20+SUM(AG22:AG34)-AG35 -> 0 | AI37: =+AI20+SUM(AI22:AI34)-AI35 -> 0 | AK37: =+AK20+SUM(AK22:AK34)-AK35 -> 0 | AM37: =+AM20+SUM(AM22:AM34)-AM35 -> 0 | AO37: =+AO20+SUM(AO22:AO34)-AO35 -> 0 | AQ37: =+AQ20+SUM(AQ22:AQ34)-AQ35 -> 0 | AS37: =+AS20+SUM(AS22:AS34)-AS35 -> 0 | AW37: =ROUND(C37,0) -> 0 | AY37: =ROUND(E37,0) -> 0 | BA37: =ROUND(G37,0) -> 0 | BC37: =ROUND(I37,0) -> 0 | BE37: =ROUND(K37,0) -> 0 | BG37: =ROUND(M37,0) -> 0 | BI37: =ROUND(O37,0) -> 0 | BK37: =ROUND(Q37,0) -> 0 | BM37: =ROUND(S37,0) -> 0 | BO37: =ROUND(U37,0) -> 0 | BQ37: =ROUND(AS37-SUM(C37:U37),0) -> 0
A40: Profit/(Loss) for the year (c) = (a) - (b) | C40: =+C15-C37 -> 0 | E40: =+E15-E37 -> 0 | G40: =+G15-G37 -> 0 | I40: =+I15-I37 -> 0 | K40: =+K15-K37 -> 0 | M40: =+M15-M37 -> 0 | O40: =+O15-O37 -> 0 | Q40: =+Q15-Q37 -> 0 | S40: =+S15-S37 -> 0 | U40: =+U15-U37 -> 0 | W40: =+W15-W37 -> 0 | Y40: =+Y15-Y37 -> 0 | AA40: =+AA15-AA37 -> 0 | AC40: =+AC15-AC37 -> 0 | AE40: =+AE15-AE37 -> 0 | AG40: =+AG15-AG37 -> 0 | AI40: =+AI15-AI37 -> 0 | AK40: =+AK15-AK37 -> 0 | AM40: =+AM15-AM37 -> 0 | AO40: =+AO15-AO37 -> 0 | AQ40: =+AQ15-AQ37 -> 0 | AS40: =+AS15-AS37 -> 0
A41: (Transfer to Income and Expenditure Account)
A43: Profit/(Loss) as a % of cost (c)/(b) (Notes 2 & 3) | C43: =IF(+C40=0,"",C40/C37) ->  | E43: =IF(+E40=0,"",E40/E37) ->  | G43: =IF(+G40=0,"",G40/G37) ->  | I43: =IF(+I40=0,"",I40/I37) ->  | K43: =IF(+K40=0,"",K40/K37) ->  | M43: =IF(+M40=0,"",M40/M37) ->  | O43: =IF(+O40=0,"",O40/O37) ->  | Q43: =IF(+Q40=0,"",Q40/Q37) ->  | S43: =IF(+S40=0,"",S40/S37) ->  | U43: =IF(+U40=0,"",U40/U37) ->  | W43: =IF(+W40=0,"",W40/W37) ->  | Y43: =IF(+Y40=0,"",Y40/Y37) ->  | AA43: =IF(+AA40=0,"",AA40/AA37) ->  | AC43: =IF(+AC40=0,"",AC40/AC37) ->  | AE43: =IF(+AE40=0,"",AE40/AE37) ->  | AG43: =IF(+AG40=0,"",AG40/AG37) ->  | AI43: =IF(+AI40=0,"",AI40/AI37) ->  | AK43: =IF(+AK40=0,"",AK40/AK37) ->  | AM43: =IF(+AM40=0,"",AM40/AM37) ->  | AO43: =IF(+AO40=0,"",AO40/AO37) ->  | AQ43: =IF(+AQ40=0,"",AQ40/AQ37) ->  | AS43: =IF(+AS40=0,"",AS40/AS37) -> 
A47: Notes
A48: 1. Please state the description of the trading operations and put each activity under SEPARATE columns. Sale of textbooks should be shown as a separate activity.
A50: 2. The profit from the sale of exercise books, schools uniforms, stationery, equipment and other school items (other than textbooks) / provision of paid services should be limited to 15% of the cost price / total cost involved according to EDBC No.16/2013.
A52: 3. No profit would be generated from sale of textbooks. For details, please refer to EDBC No. 16/2013.
A54: 4. Any discount or block sum of money received from trading operators / suppliers should be entered into school accounts as an item of income.
A63: - 10 -
C96: - 14 -

Sheet Statement 4B (hidden)
A2: Statement 4B
A4: For KGs/KG-cum-CCCs receiving One-off Start-up Grant for Kindergartens joining the
A5: Free Quality Kindergarten Education Scheme in the 2017/18 School Year
A7: ='[1]Statement 3'!A6 -> Name of School : PO LEUNG KUK BUTTERFLY BAY KINDERGARTEN
A9: STATEMENT OF ONE-OFF START-UP GRANT FOR KINDERGARTENS JOINING
A10: THE FREE QUALITY KINDERGARTEN EDUCATION SCHEME IN THE 2017/18 SCHOOL YEAR
A12: ='[1]Statement 3'!A10 -> FOR THE YEAR ENDED 31 三月 2017
B14: Current | C14: Previous | D14: Remarks
B15: Year | C15: Year | D15: (or Notes)
B16: $ | C16: $
A18: INCOME
A20: Grant Received | B20: 0 | C20: 0
A23: TOTAL INCOME | B23: =B20 -> 0 | C23: =C20 -> 0
A25: EXPENDITURE
A26: For the implementation of Free Quality Kindergarten
A27: Education Scheme
A29: (1)Additional staff salaries and related costs | B29: 0 | C29: 0
A30: (2) Hiring of services | B30: 0 | C30: 0
A31: (3) Furniture and equipment for additional teachers | B31: 0 | C31: 0
A32: (4) Small-scale renovations | B32: 0 | C32: 0
A33: (5) Others (Please specify)
A34: (6) Others (Please specify)
A35: (7) Others (Please specify)
A36: (8) Others (Please specify)
A37: (9) Others (Please specify)
A38: (10) Others (Please specify)
A39: (11) Others (Please specify)
A40: (12) Others (Please specify)
A41: (13) Others (Please specify)
A42: (14) Others (Please specify)
A43: (15) Others (Please specify)
A45: TOTAL EXPENDITURE | B45: =SUM(B29:Above) -> 0 | C45: =SUM(C29:Above) -> 0
A47: SURPLUS/(DEFICIT) FOR THE YEAR | B47: =+B23-B45 -> 0 | C47: =+C23-C45 -> 0
A48: SURPLUS/(DEFICIT) BROUGHT FORWARD FROM
A49: PREVIOUS YEAR
A50: SURPLUS/(DEFICIT) CARRIED FORWARD TO NEXT YEAR | B50: =+B47+B49 -> 0 | C50: =+C47+C49 -> 0 | D50: Per Balance Sheet
A52: OR
A53: Amount to be returmed to EDB (Note)
A55: Note
A56: Any unspent amount as at 31 July 2019 or the date of closure/revocation/voluntary withdrawal of the KG from the Scheme,
A57: whichever is earlier, should be returned to the Government of HKSAR.
B67: - 13 -

Sheet Statement 5
A2: Statement 5
A4: For KGs/KG-cum-CCCs (i) redeeming voucher subsidy under PEVS and/or (ii) receiving (a) CCCSS, and/or (b) SME, and/or (c) Rent Reimbursement
A6: ='Statement 1'!A8 -> Name of School : ________________________________________________________________________
A7: ='Statement 1'!A9 -> 
A9: STATEMENT OF DONATION INCOME
A10: ='Statement 4'!A9 -> FOR THE YEAR ENDED ______________________________
B12: Current | C12: Previous | D12: Remarks | J12: maximum | K12: =MAX(K15:K191)*200 -> 0
B13: Year | C13: Year | D13: (or Notes)
B14: $ | C14: $ | J14: Original | K14: Integer | L14: Decimal | M14: Fake No. | N14: Rank | O14: Adj. Rank | P14: Adjustment | Q14: Final
A16: DONATION INCOME | G16: DonationsReceived | H16: =ROW(G16) -> 16 | J16: =B16 -> 0 | K16: =ROUND(J16,0) -> 0 | L16: =J16-K16 -> 0 | M16: =ABS(L16)*K$12+K16 -> 0 | N16: =RANK(M16,M$16:M$36) -> 1 | O16: =N16+COUNTIF(N$16:N16,N16)-1 -> 1 | P16: =IF(O16<=ABS(P$40),IF(L16<0,-1,1),0) -> 0 | Q16: =P16+K16 -> 0
A20: EXPENDITURE
A21: (PLEASE SPECIFY)
A22: (1) Please specify | J22: =B22 -> 0 | K22: =ROUND(J22,0) -> 0 | L22: =J22-K22 -> 0 | M22: =ABS(L22)*K$12+K22 -> 0 | N22: =RANK(M22,M$16:M$36) -> 1 | O22: =N22+COUNTIF(N$16:N22,N22)-1 -> 2 | P22: =IF(O22<=ABS(P$40),IF(L22<0,-1,1),0) -> 0 | Q22: =P22+K22 -> 0
A23: (2) Please specify | J23: =B23 -> 0 | K23: 0 | L23: 0 | M23: 0 | N23: 1 | O23: =N23+COUNTIF(N$16:N23,N23)-1 -> 3 | P23: 0 | Q23: 0
A24: (3) Please specify | J24: 0 | K24: 0 | L24: 0 | M24: 0 | N24: 1 | O24: =N24+COUNTIF(N$16:N24,N24)-1 -> 4 | P24: 0 | Q24: 0
A25: (4) Please specify | J25: 0 | K25: 0 | L25: 0 | M25: 0 | N25: 1 | O25: =N25+COUNTIF(N$16:N25,N25)-1 -> 5 | P25: 0 | Q25: 0
A26: (5) Please specify | J26: 0 | K26: 0 | L26: 0 | M26: 0 | N26: 1 | O26: =N26+COUNTIF(N$16:N26,N26)-1 -> 6 | P26: 0 | Q26: 0
A27: (6) Please specify | J27: 0 | K27: 0 | L27: 0 | M27: 0 | N27: 1 | O27: =N27+COUNTIF(N$16:N27,N27)-1 -> 7 | P27: 0 | Q27: 0
A28: (7) Please specify | J28: 0 | K28: 0 | L28: 0 | M28: 0 | N28: 1 | O28: =N28+COUNTIF(N$16:N28,N28)-1 -> 8 | P28: 0 | Q28: 0
A29: (8) Please specify | J29: 0 | K29: 0 | L29: 0 | M29: 0 | N29: 1 | O29: =N29+COUNTIF(N$16:N29,N29)-1 -> 9 | P29: 0 | Q29: 0
A30: (9) Please specify | J30: 0 | K30: 0 | L30: 0 | M30: 0 | N30: 1 | O30: =N30+COUNTIF(N$16:N30,N30)-1 -> 10 | P30: 0 | Q30: 0
A31: (10) Please specify | J31: 0 | K31: 0 | L31: 0 | M31: 0 | N31: 1 | O31: =N31+COUNTIF(N$16:N31,N31)-1 -> 11 | P31: 0 | Q31: 0
A32: (11) Please specify | J32: 0 | K32: 0 | L32: 0 | M32: 0 | N32: 1 | O32: =N32+COUNTIF(N$16:N32,N32)-1 -> 12 | P32: 0 | Q32: 0
A33: (12) Please specify | J33: 0 | K33: 0 | L33: 0 | M33: 0 | N33: 1 | O33: =N33+COUNTIF(N$16:N33,N33)-1 -> 13 | P33: 0 | Q33: 0
A34: (13) Please specify | J34: 0 | K34: 0 | L34: 0 | M34: 0 | N34: 1 | O34: =N34+COUNTIF(N$16:N34,N34)-1 -> 14 | P34: 0 | Q34: 0
A35: (14) Please specify | J35: 0 | K35: 0 | L35: 0 | M35: 0 | N35: 1 | O35: =N35+COUNTIF(N$16:N35,N35)-1 -> 15 | P35: 0 | Q35: 0
A36: (15) Please specify | J36: 0 | K36: 0 | L36: 0 | M36: 0 | N36: 1 | O36: =N36+COUNTIF(N$16:N36,N36)-1 -> 16 | P36: 0 | Q36: 0
A38: TOTAL EXPENDITURE | B38: =SUM(B22:B36) -> 0 | C38: =SUM(C22:C36) -> 0 | G38: ExpChargedToDonationIncome | H38: =ROW(G38) -> 38 | J38: =SUM(J22:J37) -> 0 | K38: =SUM(K22:K37) -> 0 | L38: =SUM(L22:L37) -> 0 | Q38: =SUM(Q22:Q37) -> 0
A39: NET BALANCE
A40: (Transfer to Income and Expenditure Account) | B40: =SUM(B16:B19)-B38 -> 0 | C40: =SUM(C16:C19)-C38 -> 0 | D40: =IF(ISBLANK('Annex 1'!$C$27),"Per Statement *1/1A",(IF('Annex 1'!$C$27="Yes","Per Statement 1A","Per Statement 1"))) -> Per Statement *1/1A | J40: =SUM(J16:J19)-J38 -> 0 | K40: =SUM(K16:K19)-K38 -> 0 | L40: =SUM(L16:L19)-L38 -> 0 | P40: =ROUND(J40,0)-K40 -> 0 | Q40: =SUM(Q16:Q19)-Q38 -> 0
A43: =IF(ISBLANK('Annex 1'!C27),"*Please delete whichever is inappropriate","") -> *Please delete whichever is inappropriate
A57: - 11 -

Sheet Statement 6_FA
A2: Statement 6
AC3: (Page 1 of 5)
A5: For KGs/KG-cum-CCCs (i) redeeming voucher subsidy under PEVS and/or (ii) receiving (a) CCCSS, and/or (b) SME and/or (c) Rent Reimbursement
A7: ='Statement 1A'!A8 -> Name of School : ________________________________________________________________________
A8: ='Statement 1A'!A9 -> 
A10: NOTES TO THE ACCOUNTS
A12: 1. FIXED ASSETS
C13: A | E13: B | G13: C | I13: D | K13: E | M13: F | O13: G | Q13: H | S13: I | U13: J | W13: K | Y13: L | AA13: M | AC13: N
C14: School Premises | E14: Furniture / Equipment / Fixtures/Fittings | G14: Computer Hardware and Software | I14: Others (Please specify) | K14: Others (Please specify) | M14: Others (Please specify) | O14: Others (Please specify) | Q14: Others (Please specify) | S14: Others (Please specify) | U14: Others (Please specify) | W14: Others (Please specify) | Y14: Others (Please specify) | AA14: Others (Please specify) | AC14: Total
C15: $ | E15: $ | G15: $ | I15: $ | K15: $ | M15: $ | O15: $ | Q15: $ | S15: $ | U15: $ | W15: $ | Y15: $ | AA15: $ | AC15: $
A16: At Cost
A18: =CONCATENATE("Balance as at ",IF(NOT(ISNUMBER('Annex 1'!C33)),"___________ ",TEXT('Annex 1'!C32,"dd/mm/yyyy"))) -> Balance as at ___________ | AC18: =SUM(C18:AA18) -> 0
A20: Add: Additions During the Year | C20: ='Statement 6_Others'!H31 -> 0 | E20: ='Statement 6_Others'!H48 -> 0 | G20: ='Statement 6_Others'!H65 -> 0 | AC20: =SUM(C20:AA20) -> 0
A21: (Remark 1) | AC21: 0
A23: Less: Disposal During the Year | AC23: =SUM(C23:AA23) -> 0
A25: =CONCATENATE("Balance as at ",IF(NOT(ISNUMBER('Annex 1'!C33)),"___________ ",TEXT('Annex 1'!C33,"dd/mm/yyyy"))) -> Balance as at ___________ | C25: =+C18+C20-C23 -> 0 | E25: =+E18+E20-E23 -> 0 | G25: =+G18+G20-G23 -> 0 | I25: =+I18+I20-I23 -> 0 | K25: =+K18+K20-K23 -> 0 | M25: =+M18+M20-M23 -> 0 | O25: =+O18+O20-O23 -> 0 | Q25: =+Q18+Q20-Q23 -> 0 | S25: =+S18+S20-S23 -> 0 | U25: =+U18+U20-U23 -> 0 | W25: =+W18+W20-W23 -> 0 | Y25: =+Y18+Y20-Y23 -> 0 | AA25: =+AA18+AA20-AA23 -> 0 | AC25: =+AC18+AC20-AC23 -> 0
A28: Accumulated Depreciation
A30: =A18 -> Balance as at ___________ | AC30: =SUM(C30:AA30) -> 0
A32: Add: Depreciation for the Year | AC32: =SUM(C32:AA32) -> 0
A34: Less: Depreciation for Disposed Items for the year | AC34: =SUM(C34:AA34) -> 0
A37: =A25 -> Balance as at ___________ | C37: =+C30+C32-C34 -> 0 | E37: =+E30+E32-E34 -> 0 | G37: =+G30+G32-G34 -> 0 | I37: =+I30+I32-I34 -> 0 | K37: =+K30+K32-K34 -> 0 | M37: =+M30+M32-M34 -> 0 | O37: =+O30+O32-O34 -> 0 | Q37: =+Q30+Q32-Q34 -> 0 | S37: =+S30+S32-S34 -> 0 | U37: =+U30+U32-U34 -> 0 | W37: =+W30+W32-W34 -> 0 | Y37: =+Y30+Y32-Y34 -> 0 | AA37: =+AA30+AA32-AA34 -> 0 | AC37: =+AC30+AC32-AC34 -> 0
A40: Net Book Value
A42: =A18 -> Balance as at ___________ | C42: =+C18-C30 -> 0 | E42: =+E18-E30 -> 0 | G42: =+G18-G30 -> 0 | I42: =+I18-I30 -> 0 | K42: =+K18-K30 -> 0 | M42: =+M18-M30 -> 0 | O42: =+O18-O30 -> 0 | Q42: =+Q18-Q30 -> 0 | S42: =+S18-S30 -> 0 | U42: =+U18-U30 -> 0 | W42: =+W18-W30 -> 0 | Y42: =+Y18-Y30 -> 0 | AA42: =+AA18-AA30 -> 0 | AC42: =+AC18-AC30 -> 0
A43: (beginning of the year)
A46: =A25 -> Balance as at ___________ | C46: =+C25-C37 -> 0 | E46: =+E25-E37 -> 0 | G46: =+G25-G37 -> 0 | I46: =+I25-I37 -> 0 | K46: =+K25-K37 -> 0 | M46: =+M25-M37 -> 0 | O46: =+O25-O37 -> 0 | Q46: =+Q25-Q37 -> 0 | S46: =+S25-S37 -> 0 | U46: =+U25-U37 -> 0 | W46: =+W25-W37 -> 0 | Y46: =+Y25-Y37 -> 0 | AA46: =+AA25-AA37 -> 0 | AC46: =+AC25-AC37 -> 0
A47: (end of the year)
A49: Threshold amount (Remark 2)
A51: Depreciation rate (%)
A54: Remarks
A55: (1) For all KGs/KG-cum-CCCs joining PEVS, details must be provided in Note 2 to the Accounts.
A56: (2) Please provide the threshold amount (i.e. the amount where at or above which the relevant expenditure would be treated as fixed asset) for each type of assets.
AC57: (to be continued)
A58: - 12 -

Sheet Statement 6_Others
A1: Statement 6
H3: (Page 2 of 5)
A4: ='Statement 5'!A6 -> Name of School : ________________________________________________________________________
A5: ='Statement 5'!A7 -> 
A7: NOTES TO THE ACCOUNTS
A9: =CONCATENATE("2. DETAILS OF ADDITIONS OF FIXED ASSETS DURING ",IF(NOT(ISNUMBER('Annex 1'!C33)),"__________",CONCATENATE(TEXT(YEAR('Annex 1'!C32),"0000"),"/",TEXT(YEAR('Annex 1'!C33),"00")))) -> 2. DETAILS OF ADDITIONS OF FIXED ASSETS DURING __________
F11: Purchase/ | O11: maximum | P11: =MAX(P14:P526)*200 -> 0 | X11: maximum | Y11: =MAX(Y14:Y526)*200 -> 0
A12: List of fixed assets by nature and item | F12: commission | G12: Cost
F13: date | O13: Original | P13: Integer | Q13: Decimal | R13: Fake No. | S13: Rank | T13: Adj. Rank | U13: Adjustment | V13: Final
G14: $
A15: 1 School Premises
A16: (1.1) | B16: Please specify | O16: =H16 -> 0 | P16: =INT(O16) -> 0 | Q16: =ROUND(O16,2)-P16 -> 0 | R16: =Q16*P$11+P16 -> 0 | S16: =RANK(R16,R$16:R$30) -> 1 | T16: =S16+COUNTIF(S$16:S16,S16)-1 -> 1 | U16: =IF(T16<=U$31,1,0) -> 0 | V16: =U16+P16 -> 0
A17: (1.2) | B17: Please specify | O17: =H17 -> 0 | P17: 0 | Q17: =ROUND(O17,2)-P17 -> 0 | R17: =Q17*P$11+P17 -> 0 | S17: =RANK(R17,R$16:R$30) -> 1 | T17: =S17+COUNTIF(S$16:S17,S17)-1 -> 2 | U17: =IF(T17<=U$31,1,0) -> 0 | V17: 0
A18: (1.3) | B18: Please specify | O18: 0 | P18: 0 | Q18: 0 | R18: 0 | S18: 1 | T18: =S18+COUNTIF(S$16:S18,S18)-1 -> 3 | U18: 0 | V18: 0
A19: (1.4) | B19: Please specify | O19: 0 | P19: 0 | Q19: 0 | R19: 0 | S19: 1 | T19: =S19+COUNTIF(S$16:S19,S19)-1 -> 4 | U19: 0 | V19: 0
A20: (1.5) | B20: Please specify | O20: 0 | P20: 0 | Q20: 0 | R20: 0 | S20: 1 | T20: =S20+COUNTIF(S$16:S20,S20)-1 -> 5 | U20: 0 | V20: 0
A21: (1.6) | B21: Please specify | O21: 0 | P21: 0 | Q21: 0 | R21: 0 | S21: 1 | T21: =S21+COUNTIF(S$16:S21,S21)-1 -> 6 | U21: 0 | V21: 0
A22: (1.7) | B22: Please specify | O22: 0 | P22: 0 | Q22: 0 | R22: 0 | S22: 1 | T22: =S22+COUNTIF(S$16:S22,S22)-1 -> 7 | U22: 0 | V22: 0
A23: (1.8) | B23: Please specify | O23: 0 | P23: 0 | Q23: 0 | R23: 0 | S23: 1 | T23: =S23+COUNTIF(S$16:S23,S23)-1 -> 8 | U23: 0 | V23: 0
A24: (1.9) | B24: Please specify | O24: 0 | P24: 0 | Q24: 0 | R24: 0 | S24: 1 | T24: =S24+COUNTIF(S$16:S24,S24)-1 -> 9 | U24: 0 | V24: 0
A25: (1.10) | B25: Please specify | O25: 0 | P25: 0 | Q25: 0 | R25: 0 | S25: 1 | T25: =S25+COUNTIF(S$16:S25,S25)-1 -> 10 | U25: 0 | V25: 0
A26: (1.11) | B26: Please specify | O26: 0 | P26: 0 | Q26: 0 | R26: 0 | S26: 1 | T26: =S26+COUNTIF(S$16:S26,S26)-1 -> 11 | U26: 0 | V26: 0
A27: (1.12) | B27: Please specify | O27: 0 | P27: 0 | Q27: 0 | R27: 0 | S27: 1 | T27: =S27+COUNTIF(S$16:S27,S27)-1 -> 12 | U27: 0 | V27: 0
A28: (1.13) | B28: Please specify | O28: 0 | P28: 0 | Q28: 0 | R28: 0 | S28: 1 | T28: =S28+COUNTIF(S$16:S28,S28)-1 -> 13 | U28: 0 | V28: 0
A29: (1.14) | B29: Please specify | O29: 0 | P29: 0 | Q29: 0 | R29: 0 | S29: 1 | T29: =S29+COUNTIF(S$16:S29,S29)-1 -> 14 | U29: 0 | V29: 0
A30: (1.15) | B30: Please specify | O30: 0 | P30: 0 | Q30: 0 | R30: 0 | S30: 1 | T30: =S30+COUNTIF(S$16:S30,S30)-1 -> 15 | U30: 0 | V30: 0
F31: Total: | H31: =SUM(H16:H30) -> 0 | O31: =SUM(O16:O30) -> 0 | P31: =SUM(P16:P30) -> 0 | Q31: =SUM(Q16:Q30) -> 0 | U31: =ROUND(O31,0)-P31 -> 0 | V31: =SUM(V16:V30) -> 0
A32: 2 Furniture/equipment/fixtures/fittings
A33: (2.1) | B33: Please specify | O33: =H33 -> 0 | P33: =INT(O33) -> 0 | Q33: =ROUND(O33,2)-P33 -> 0 | R33: =Q33*P$11+P33 -> 0 | S33: =RANK(R33,R$33:R$47) -> 1 | T33: =S33+COUNTIF(S$33:S33,S33)-1 -> 1 | U33: =IF(T33<=U$48,1,0) -> 0 | V33: =U33+P33 -> 0
A34: (2.2) | B34: Please specify | O34: =H34 -> 0 | P34: 0 | Q34: 0 | R34: 0 | S34: =RANK(R34,R$33:R$47) -> 1 | T34: =S34+COUNTIF(S$33:S34,S34)-1 -> 2 | U34: =IF(T34<=U$48,1,0) -> 0 | V34: 0
A35: (2.3) | B35: Please specify | O35: 0 | P35: 0 | Q35: 0 | R35: 0 | S35: 1 | T35: =S35+COUNTIF(S$33:S35,S35)-1 -> 3 | U35: 0 | V35: 0
A36: (2.4) | B36: Please specify | O36: 0 | P36: 0 | Q36: 0 | R36: 0 | S36: 1 | T36: =S36+COUNTIF(S$33:S36,S36)-1 -> 4 | U36: 0 | V36: 0
A37: (2.5) | B37: Please specify | O37: 0 | P37: 0 | Q37: 0 | R37: 0 | S37: 1 | T37: =S37+COUNTIF(S$33:S37,S37)-1 -> 5 | U37: 0 | V37: 0
A38: (2.6) | B38: Please specify | O38: 0 | P38: 0 | Q38: 0 | R38: 0 | S38: 1 | T38: =S38+COUNTIF(S$33:S38,S38)-1 -> 6 | U38: 0 | V38: 0
A39: (2.7) | B39: Please specify | O39: 0 | P39: 0 | Q39: 0 | R39: 0 | S39: 1 | T39: =S39+COUNTIF(S$33:S39,S39)-1 -> 7 | U39: 0 | V39: 0
A40: (2.8) | B40: Please specify | O40: 0 | P40: 0 | Q40: 0 | R40: 0 | S40: 1 | T40: =S40+COUNTIF(S$33:S40,S40)-1 -> 8 | U40: 0 | V40: 0
A41: (2.9) | B41: Please specify | O41: 0 | P41: 0 | Q41: 0 | R41: 0 | S41: 1 | T41: =S41+COUNTIF(S$33:S41,S41)-1 -> 9 | U41: 0 | V41: 0
A42: (2.10) | B42: Please specify | O42: 0 | P42: 0 | Q42: 0 | R42: 0 | S42: 1 | T42: =S42+COUNTIF(S$33:S42,S42)-1 -> 10 | U42: 0 | V42: 0
A43: (2.11) | B43: Please specify | O43: 0 | P43: 0 | Q43: 0 | R43: 0 | S43: 1 | T43: =S43+COUNTIF(S$33:S43,S43)-1 -> 11 | U43: 0 | V43: 0
A44: (2.12) | B44: Please specify | O44: 0 | P44: 0 | Q44: 0 | R44: 0 | S44: 1 | T44: =S44+COUNTIF(S$33:S44,S44)-1 -> 12 | U44: 0 | V44: 0
A45: (2.13) | B45: Please specify | O45: 0 | P45: 0 | Q45: 0 | R45: 0 | S45: 1 | T45: =S45+COUNTIF(S$33:S45,S45)-1 -> 13 | U45: 0 | V45: 0
A46: (2.14) | B46: Please specify | O46: 0 | P46: 0 | Q46: 0 | R46: 0 | S46: 1 | T46: =S46+COUNTIF(S$33:S46,S46)-1 -> 14 | U46: 0 | V46: 0
A47: (2.15) | B47: Please specify | O47: 0 | P47: 0 | Q47: 0 | R47: 0 | S47: 1 | T47: =S47+COUNTIF(S$33:S47,S47)-1 -> 15 | U47: 0 | V47: 0
F48: Total: | H48: =SUM(H33:H47) -> 0 | O48: =SUM(O33:O47) -> 0 | P48: =SUM(P33:P47) -> 0 | Q48: =SUM(Q33:Q47) -> 0 | U48: =ROUND(O48,0)-P48 -> 0 | V48: =SUM(V33:V47) -> 0
A49: 3 Computer hardware & software
A50: (3.1) | B50: Please specify | O50: =H50 -> 0 | P50: =INT(O50) -> 0 | Q50: =ROUND(O50,2)-P50 -> 0 | R50: =Q50*P$11+P50 -> 0 | S50: =RANK(R50,R$50:R$59) -> 1 | T50: =S50+COUNTIF(S$50:S50,S50)-1 -> 1 | U50: =IF(T50<=U$65,1,0) -> 0 | V50: =U50+P50 -> 0
A51: (3.2) | B51: Please specify | O51: =H51 -> 0 | P51: 0 | Q51: 0 | R51: 0 | S51: =RANK(R51,R$50:R$59) -> 1 | T51: =S51+COUNTIF(S$50:S51,S51)-1 -> 2 | U51: =IF(T51<=U$65,1,0) -> 0 | V51: 0
A52: (3.3) | B52: Please specify | O52: 0 | P52: 0 | Q52: 0 | R52: 0 | S52: 1 | T52: =S52+COUNTIF(S$50:S52,S52)-1 -> 3 | U52: 0 | V52: 0
A53: (3.4) | B53: Please specify | O53: 0 | P53: 0 | Q53: 0 | R53: 0 | S53: 1 | T53: =S53+COUNTIF(S$50:S53,S53)-1 -> 4 | U53: 0 | V53: 0
A54: (3.5) | B54: Please specify | O54: 0 | P54: 0 | Q54: 0 | R54: 0 | S54: 1 | T54: =S54+COUNTIF(S$50:S54,S54)-1 -> 5 | U54: 0 | V54: 0
A55: (3.6) | B55: Please specify | O55: 0 | P55: 0 | Q55: 0 | R55: 0 | S55: 1 | T55: =S55+COUNTIF(S$50:S55,S55)-1 -> 6 | U55: 0 | V55: 0
A56: (3.7) | B56: Please specify | O56: 0 | P56: 0 | Q56: 0 | R56: 0 | S56: 1 | T56: =S56+COUNTIF(S$50:S56,S56)-1 -> 7 | U56: 0 | V56: 0
A57: (3.8) | B57: Please specify | O57: 0 | P57: 0 | Q57: 0 | R57: 0 | S57: 1 | T57: =S57+COUNTIF(S$50:S57,S57)-1 -> 8 | U57: 0 | V57: 0
A58: (3.9) | B58: Please specify | O58: 0 | P58: 0 | Q58: 0 | R58: 0 | S58: 1 | T58: =S58+COUNTIF(S$50:S58,S58)-1 -> 9 | U58: 0 | V58: 0
A59: (3.10) | B59: Please specify | O59: 0 | P59: 0 | Q59: 0 | R59: 0 | S59: 1 | T59: =S59+COUNTIF(S$50:S59,S59)-1 -> 10 | U59: 0 | V59: 0
A60: (3.11) | B60: Please specify
A61: (3.12) | B61: Please specify
A62: (3.13) | B62: Please specify
A63: (3.14) | B63: Please specify
A64: (3.15) | B64: Please specify
F65: Total: | H65: =SUM(H50:H64) -> 0 | O65: =SUM(O50:O64) -> 0 | P65: =SUM(P50:P64) -> 0 | Q65: =SUM(Q50:Q64) -> 0 | U65: =ROUND(O65,0)-P65 -> 0 | V65: =SUM(V50:V64) -> 0
A66: 4 Others (please specify)
A67: (4.1) | B67: Please specify | O67: =H67 -> 0 | P67: =INT(O67) -> 0 | Q67: =ROUND(O67,2)-P67 -> 0 | R67: =Q67*P$11+P67 -> 0 | S67: =RANK(R67,R$67:R$81) -> 1 | T67: =S67+COUNTIF(S$67:S67,S67)-1 -> 1 | U67: =IF(T67<=U$82,1,0) -> 0 | V67: =U67+P67 -> 0
A68: (4.2) | B68: Please specify | O68: =H68 -> 0 | P68: 0 | Q68: 0 | R68: 0 | S68: =RANK(R68,R$67:R$81) -> 1 | T68: =S68+COUNTIF(S$67:S68,S68)-1 -> 2 | U68: =IF(T68<=U$82,1,0) -> 0 | V68: 0
A69: (4.3) | B69: Please specify | O69: 0 | P69: 0 | Q69: 0 | R69: 0 | S69: 1 | T69: =S69+COUNTIF(S$67:S69,S69)-1 -> 3 | U69: 0 | V69: 0
A70: (4.4) | B70: Please specify | O70: 0 | P70: 0 | Q70: 0 | R70: 0 | S70: 1 | T70: =S70+COUNTIF(S$67:S70,S70)-1 -> 4 | U70: 0 | V70: 0
A71: (4.5) | B71: Please specify | O71: 0 | P71: 0 | Q71: 0 | R71: 0 | S71: 1 | T71: =S71+COUNTIF(S$67:S71,S71)-1 -> 5 | U71: 0 | V71: 0
A72: (4.6) | B72: Please specify | O72: 0 | P72: 0 | Q72: 0 | R72: 0 | S72: 1 | T72: =S72+COUNTIF(S$67:S72,S72)-1 -> 6 | U72: 0 | V72: 0
A73: (4.7) | B73: Please specify | O73: 0 | P73: 0 | Q73: 0 | R73: 0 | S73: 1 | T73: =S73+COUNTIF(S$67:S73,S73)-1 -> 7 | U73: 0 | V73: 0
A74: (4.8) | B74: Please specify | O74: 0 | P74: 0 | Q74: 0 | R74: 0 | S74: 1 | T74: =S74+COUNTIF(S$67:S74,S74)-1 -> 8 | U74: 0 | V74: 0
A75: (4.9) | B75: Please specify | O75: 0 | P75: 0 | Q75: 0 | R75: 0 | S75: 1 | T75: =S75+COUNTIF(S$67:S75,S75)-1 -> 9 | U75: 0 | V75: 0
A76: (4.10) | B76: Please specify | O76: 0 | P76: 0 | Q76: 0 | R76: 0 | S76: 1 | T76: =S76+COUNTIF(S$67:S76,S76)-1 -> 10 | U76: 0 | V76: 0
A77: (4.11) | B77: Please specify | O77: 0 | P77: 0 | Q77: 0 | R77: 0 | S77: 1 | T77: =S77+COUNTIF(S$67:S77,S77)-1 -> 11 | U77: 0 | V77: 0
A78: (4.12) | B78: Please specify | O78: 0 | P78: 0 | Q78: 0 | R78: 0 | S78: 1 | T78: =S78+COUNTIF(S$67:S78,S78)-1 -> 12 | U78: 0 | V78: 0
A79: (4.13) | B79: Please specify | O79: 0 | P79: 0 | Q79: 0 | R79: 0 | S79: 1 | T79: =S79+COUNTIF(S$67:S79,S79)-1 -> 13 | U79: 0 | V79: 0
A80: (4.14) | B80: Please specify | O80: 0 | P80: 0 | Q80: 0 | R80: 0 | S80: 1 | T80: =S80+COUNTIF(S$67:S80,S80)-1 -> 14 | U80: 0 | V80: 0
A81: (4.15) | B81: Please specify | O81: 0 | P81: 0 | Q81: 0 | R81: 0 | S81: 1 | T81: =S81+COUNTIF(S$67:S81,S81)-1 -> 15 | U81: 0 | V81: 0
F82: Total: | H82: =SUM(H67:H81) -> 0 | O82: =SUM(O67:O81) -> 0 | P82: =SUM(P67:P81) -> 0 | Q82: =SUM(Q67:Q81) -> 0 | U82: =ROUND(O82,0)-P82 -> 0 | V82: =SUM(V67:V81) -> 0
D83: (Per Note 1 to the Accounts) | H83: =IF(SUM(H31,H48,H65,H82)='Statement 6_FA'!AC20,"OK","Pls check") -> OK
H85: (to be continued)
A86: - 13 -
A88: Statement 6
H90: (Page 3 of 5)
A91: =A4 -> Name of School : ________________________________________________________________________
A92: =A5 -> 
A94: NOTES TO THE ACCOUNTS
A96: 3. OTHER EXPENDITURE
D97: Current Year | H97: Previous Year
D98: $ | H98: $
D99: Local Curriculum Classes | F99: Non-Local Curriculum Classes | H99: Total
A100: Expenses on meal preparation | K100: ExpMealPreparation | L100: =ROW() -> 100 | O100: =D100 -> 0 | P100: =INT(O100) -> 0 | Q100: =ROUND(O100,2)-P100 -> 0 | R100: =Q100*P$11+P100 -> 0 | S100: =RANK(R100,R$100:R$134) -> 1 | T100: =S100+COUNTIF(S$100:S100,S100)-1 -> 1 | U100: =IF(T100<=U$135,1,0) -> 0 | V100: =U100+P100 -> 0 | X100: =F100 -> 0 | Y100: =INT(X100) -> 0 | Z100: =ROUND(X100,2)-Y100 -> 0 | AA100: =Z100*Y$11+Y100 -> 0 | AB100: =RANK(AA100,AA$100:AA$134) -> 1 | AC100: =AB100+COUNTIF(AB$100:AB100,AB100)-1 -> 1 | AD100: =IF(AC100<=AD$135,1,0) -> 0 | AE100: =AD100+Y100 -> 0
A101: Furniture and equipment and teaching aids other than those included in the fixed assets | K101: FEAndTeachingAids | L101: =ROW() -> 101 | O101: =D101 -> 0 | P101: 0 | Q101: 0 | R101: 0 | S101: =RANK(R101,R$100:R$134) -> 1 | T101: =S101+COUNTIF(S$100:S101,S101)-1 -> 2 | U101: =IF(T101<=U$135,1,0) -> 0 | V101: 0 | X101: =F101 -> 0 | Y101: 0 | Z101: 0 | AA101: 0 | AB101: =RANK(AA101,AA$100:AA$134) -> 1 | AC101: =AB101+COUNTIF(AB$100:AB101,AB101)-1 -> 2 | AD101: =IF(AC101<=AD$135,1,0) -> 0 | AE101: 0
A102: Water | K102: Water | L102: =ROW() -> 102 | O102: 0 | P102: 0 | Q102: 0 | R102: 0 | S102: 1 | T102: =S102+COUNTIF(S$100:S102,S102)-1 -> 3 | U102: 0 | V102: 0 | X102: 0 | Y102: 0 | Z102: 0 | AA102: 0 | AB102: 1 | AC102: =AB102+COUNTIF(AB$100:AB102,AB102)-1 -> 3 | AD102: 0 | AE102: 0
A103: Electricity | K103: Electricity | L103: =ROW() -> 103 | O103: 0 | P103: 0 | Q103: 0 | R103: 0 | S103: 1 | T103: =S103+COUNTIF(S$100:S103,S103)-1 -> 4 | U103: 0 | V103: 0 | X103: 0 | Y103: 0 | Z103: 0 | AA103: 0 | AB103: 1 | AC103: =AB103+COUNTIF(AB$100:AB103,AB103)-1 -> 4 | AD103: 0 | AE103: 0
A104: Telephone, fax line and internet service charges | K104: Telephone | L104: =ROW() -> 104 | O104: 0 | P104: 0 | Q104: 0 | R104: 0 | S104: 1 | T104: =S104+COUNTIF(S$100:S104,S104)-1 -> 5 | U104: 0 | V104: 0 | X104: 0 | Y104: 0 | Z104: 0 | AA104: 0 | AB104: 1 | AC104: =AB104+COUNTIF(AB$100:AB104,AB104)-1 -> 5 | AD104: 0 | AE104: 0
A105: Cleaning | K105: Cleaning | L105: =ROW() -> 105 | O105: 0 | P105: 0 | Q105: 0 | R105: 0 | S105: 1 | T105: =S105+COUNTIF(S$100:S105,S105)-1 -> 6 | U105: 0 | V105: 0 | X105: 0 | Y105: 0 | Z105: 0 | AA105: 0 | AB105: 1 | AC105: =AB105+COUNTIF(AB$100:AB105,AB105)-1 -> 6 | AD105: 0 | AE105: 0
A106: Printing and stationery | K106: Printing | L106: =ROW() -> 106 | O106: 0 | P106: 0 | Q106: 0 | R106: 0 | S106: 1 | T106: =S106+COUNTIF(S$100:S106,S106)-1 -> 7 | U106: 0 | V106: 0 | X106: 0 | Y106: 0 | Z106: 0 | AA106: 0 | AB106: 1 | AC106: =AB106+COUNTIF(AB$100:AB106,AB106)-1 -> 7 | AD106: 0 | AE106: 0
A107: Teaching consumables | K107: TeachingConsumables | L107: =ROW() -> 107 | O107: 0 | P107: 0 | Q107: 0 | R107: 0 | S107: 1 | T107: =S107+COUNTIF(S$100:S107,S107)-1 -> 8 | U107: 0 | V107: 0 | X107: 0 | Y107: 0 | Z107: 0 | AA107: 0 | AB107: 1 | AC107: =AB107+COUNTIF(AB$100:AB107,AB107)-1 -> 8 | AD107: 0 | AE107: 0
A108: Insurance | K108: Insurance | L108: =ROW() -> 108 | O108: 0 | P108: 0 | Q108: 0 | R108: 0 | S108: 1 | T108: =S108+COUNTIF(S$100:S108,S108)-1 -> 9 | U108: 0 | V108: 0 | X108: 0 | Y108: 0 | Z108: 0 | AA108: 0 | AB108: 1 | AC108: =AB108+COUNTIF(AB$100:AB108,AB108)-1 -> 9 | AD108: 0 | AE108: 0
A109: First aid and fire safety equipment | K109: FirstAidAndFireSafety | L109: =ROW() -> 109 | O109: 0 | P109: 0 | Q109: 0 | R109: 0 | S109: 1 | T109: =S109+COUNTIF(S$100:S109,S109)-1 -> 10 | U109: 0 | V109: 0 | X109: 0 | Y109: 0 | Z109: 0 | AA109: 0 | AB109: 1 | AC109: =AB109+COUNTIF(AB$100:AB109,AB109)-1 -> 10 | AD109: 0 | AE109: 0
A110: Transportation fees for school administration purposes | K110: Travelling | L110: =ROW() -> 110 | O110: 0 | P110: 0 | Q110: 0 | R110: 0 | S110: 1 | T110: =S110+COUNTIF(S$100:S110,S110)-1 -> 11 | U110: 0 | V110: 0 | X110: 0 | Y110: 0 | Z110: 0 | AA110: 0 | AB110: 1 | AC110: =AB110+COUNTIF(AB$100:AB110,AB110)-1 -> 11 | AD110: 0 | AE110: 0
A111: Expenses on regular learning activities for all students | K111: RegularLearning | L111: =ROW() -> 111 | O111: 0 | P111: 0 | Q111: 0 | R111: 0 | S111: 1 | T111: =S111+COUNTIF(S$100:S111,S111)-1 -> 12 | U111: 0 | V111: 0 | X111: 0 | Y111: 0 | Z111: 0 | AA111: 0 | AB111: 1 | AC111: =AB111+COUNTIF(AB$100:AB111,AB111)-1 -> 12 | AD111: 0 | AE111: 0
A112: Postage | K112: Postage | L112: =ROW() -> 112 | O112: 0 | P112: 0 | Q112: 0 | R112: 0 | S112: 1 | T112: =S112+COUNTIF(S$100:S112,S112)-1 -> 13 | U112: 0 | V112: 0 | X112: 0 | Y112: 0 | Z112: 0 | AA112: 0 | AB112: 1 | AC112: =AB112+COUNTIF(AB$100:AB112,AB112)-1 -> 13 | AD112: 0 | AE112: 0
A113: Publications for school use | K113: Publications | L113: =ROW() -> 113 | O113: 0 | P113: 0 | Q113: 0 | R113: 0 | S113: 1 | T113: =S113+COUNTIF(S$100:S113,S113)-1 -> 14 | U113: 0 | V113: 0 | X113: 0 | Y113: 0 | Z113: 0 | AA113: 0 | AB113: 1 | AC113: =AB113+COUNTIF(AB$100:AB113,AB113)-1 -> 14 | AD113: 0 | AE113: 0
A114: Student handbooks, profiles, graduation certificates and identity cards | K114: StudentHandbooks | L114: =ROW() -> 114 | O114: 0 | P114: 0 | Q114: 0 | R114: 0 | S114: 1 | T114: =S114+COUNTIF(S$100:S114,S114)-1 -> 15 | U114: 0 | V114: 0 | X114: 0 | Y114: 0 | Z114: 0 | AA114: 0 | AB114: 1 | AC114: =AB114+COUNTIF(AB$100:AB114,AB114)-1 -> 15 | AD114: 0 | AE114: 0
A115: Advertisement | K115: Advertisement | L115: =ROW() -> 115 | O115: 0 | P115: 0 | Q115: 0 | R115: 0 | S115: 1 | T115: =S115+COUNTIF(S$100:S115,S115)-1 -> 16 | U115: 0 | V115: 0 | X115: 0 | Y115: 0 | Z115: 0 | AA115: 0 | AB115: 1 | AC115: =AB115+COUNTIF(AB$100:AB115,AB115)-1 -> 16 | AD115: 0 | AE115: 0
A116: Bank interest | K116: BankInterest | L116: =ROW() -> 116 | O116: 0 | P116: 0 | Q116: 0 | R116: 0 | S116: 1 | T116: =S116+COUNTIF(S$100:S116,S116)-1 -> 17 | U116: 0 | V116: 0 | X116: 0 | Y116: 0 | Z116: 0 | AA116: 0 | AB116: 1 | AC116: =AB116+COUNTIF(AB$100:AB116,AB116)-1 -> 17 | AD116: 0 | AE116: 0
A117: Bank charges | K117: BankCharges | L117: =ROW() -> 117 | O117: 0 | P117: 0 | Q117: 0 | R117: 0 | S117: 1 | T117: =S117+COUNTIF(S$100:S117,S117)-1 -> 18 | U117: 0 | V117: 0 | X117: 0 | Y117: 0 | Z117: 0 | AA117: 0 | AB117: 1 | AC117: =AB117+COUNTIF(AB$100:AB117,AB117)-1 -> 18 | AD117: 0 | AE117: 0
A118: Newspapers and magazines | K118: Newspapers | L118: =ROW() -> 118 | O118: 0 | P118: 0 | Q118: 0 | R118: 0 | S118: 1 | T118: =S118+COUNTIF(S$100:S118,S118)-1 -> 19 | U118: 0 | V118: 0 | X118: 0 | Y118: 0 | Z118: 0 | AA118: 0 | AB118: 1 | AC118: =AB118+COUNTIF(AB$100:AB118,AB118)-1 -> 19 | AD118: 0 | AE118: 0
A119: Others
A120: (1) | B120: Please specify | K120: OtherExpenditureAmount1 | L120: =ROW() -> 120 | O120: 0 | P120: =INT(O120) -> 0 | Q120: 0 | R120: 0 | S120: 1 | T120: =S120+COUNTIF(S$100:S120,S120)-1 -> 20 | U120: 0 | V120: =U120+P120 -> 0 | X120: 0 | Y120: 0 | Z120: 0 | AA120: 0 | AB120: 1 | AC120: =AB120+COUNTIF(AB$100:AB120,AB120)-1 -> 20 | AD120: 0 | AE120: 0 | AF120: =IF(OR(ISBLANK(B120),B120=""),A120,B120) -> Please specify
A121: (2) | B121: Please specify | K121: OtherExpenditureAmount2 | L121: =ROW() -> 121 | O121: 0 | P121: 0 | Q121: 0 | R121: 0 | S121: 1 | T121: =S121+COUNTIF(S$100:S121,S121)-1 -> 21 | U121: 0 | V121: 0 | X121: 0 | Y121: 0 | Z121: 0 | AA121: 0 | AB121: 1 | AC121: =AB121+COUNTIF(AB$100:AB121,AB121)-1 -> 21 | AD121: 0 | AE121: 0 | AF121: Please specify
A122: (3) | B122: Please specify | K122: OtherExpenditureAmount3 | L122: =ROW() -> 122 | O122: 0 | P122: 0 | Q122: 0 | R122: 0 | S122: 1 | T122: =S122+COUNTIF(S$100:S122,S122)-1 -> 22 | U122: 0 | V122: 0 | X122: 0 | Y122: 0 | Z122: 0 | AA122: 0 | AB122: 1 | AC122: =AB122+COUNTIF(AB$100:AB122,AB122)-1 -> 22 | AD122: 0 | AE122: 0 | AF122: Please specify
A123: (4) | B123: Please specify | K123: OtherExpenditureAmount4 | L123: =ROW() -> 123 | O123: 0 | P123: 0 | Q123: 0 | R123: 0 | S123: 1 | T123: =S123+COUNTIF(S$100:S123,S123)-1 -> 23 | U123: 0 | V123: 0 | X123: 0 | Y123: 0 | Z123: 0 | AA123: 0 | AB123: 1 | AC123: =AB123+COUNTIF(AB$100:AB123,AB123)-1 -> 23 | AD123: 0 | AE123: 0 | AF123: Please specify
A124: (5) | B124: Please specify | K124: OtherExpenditureAmount5 | L124: =ROW() -> 124 | O124: 0 | P124: 0 | Q124: 0 | R124: 0 | S124: 1 | T124: =S124+COUNTIF(S$100:S124,S124)-1 -> 24 | U124: 0 | V124: 0 | X124: 0 | Y124: 0 | Z124: 0 | AA124: 0 | AB124: 1 | AC124: =AB124+COUNTIF(AB$100:AB124,AB124)-1 -> 24 | AD124: 0 | AE124: 0 | AF124: Please specify
A125: (6) | B125: Please specify | K125: OtherExpenditureAmount6 | L125: =ROW() -> 125 | O125: 0 | P125: 0 | Q125: 0 | R125: 0 | S125: 1 | T125: =S125+COUNTIF(S$100:S125,S125)-1 -> 25 | U125: 0 | V125: 0 | X125: 0 | Y125: 0 | Z125: 0 | AA125: 0 | AB125: 1 | AC125: =AB125+COUNTIF(AB$100:AB125,AB125)-1 -> 25 | AD125: 0 | AE125: 0 | AF125: Please specify
A126: (7) | B126: Please specify | K126: OtherExpenditureAmount7 | L126: =ROW() -> 126 | O126: 0 | P126: 0 | Q126: 0 | R126: 0 | S126: 1 | T126: =S126+COUNTIF(S$100:S126,S126)-1 -> 26 | U126: 0 | V126: 0 | X126: 0 | Y126: 0 | Z126: 0 | AA126: 0 | AB126: 1 | AC126: =AB126+COUNTIF(AB$100:AB126,AB126)-1 -> 26 | AD126: 0 | AE126: 0 | AF126: Please specify
A127: (8) | B127: Please specify | K127: OtherExpenditureAmount8 | L127: =ROW() -> 127 | O127: 0 | P127: 0 | Q127: 0 | R127: 0 | S127: 1 | T127: =S127+COUNTIF(S$100:S127,S127)-1 -> 27 | U127: 0 | V127: 0 | X127: 0 | Y127: 0 | Z127: 0 | AA127: 0 | AB127: 1 | AC127: =AB127+COUNTIF(AB$100:AB127,AB127)-1 -> 27 | AD127: 0 | AE127: 0 | AF127: Please specify
A128: (9) | B128: Please specify | K128: OtherExpenditureAmount9 | L128: =ROW() -> 128 | O128: 0 | P128: 0 | Q128: 0 | R128: 0 | S128: 1 | T128: =S128+COUNTIF(S$100:S128,S128)-1 -> 28 | U128: 0 | V128: 0 | X128: 0 | Y128: 0 | Z128: 0 | AA128: 0 | AB128: 1 | AC128: =AB128+COUNTIF(AB$100:AB128,AB128)-1 -> 28 | AD128: 0 | AE128: 0 | AF128: Please specify
A129: (10) | B129: Please specify | K129: OtherExpenditureAmount10 | L129: =ROW() -> 129 | O129: 0 | P129: 0 | Q129: 0 | R129: 0 | S129: 1 | T129: =S129+COUNTIF(S$100:S129,S129)-1 -> 29 | U129: 0 | V129: 0 | X129: 0 | Y129: 0 | Z129: 0 | AA129: 0 | AB129: 1 | AC129: =AB129+COUNTIF(AB$100:AB129,AB129)-1 -> 29 | AD129: 0 | AE129: 0 | AF129: Please specify
A130: (11) | B130: Please specify | K130: OtherExpenditureAmount11 | L130: =ROW() -> 130 | O130: 0 | P130: 0 | Q130: 0 | R130: 0 | S130: 1 | T130: =S130+COUNTIF(S$100:S130,S130)-1 -> 30 | U130: 0 | V130: 0 | X130: 0 | Y130: 0 | Z130: 0 | AA130: 0 | AB130: 1 | AC130: =AB130+COUNTIF(AB$100:AB130,AB130)-1 -> 30 | AD130: 0 | AE130: 0 | AF130: Please specify
A131: (12) | B131: Please specify | K131: OtherExpenditureAmount12 | L131: =ROW() -> 131 | O131: 0 | P131: 0 | Q131: 0 | R131: 0 | S131: 1 | T131: =S131+COUNTIF(S$100:S131,S131)-1 -> 31 | U131: 0 | V131: 0 | X131: 0 | Y131: 0 | Z131: 0 | AA131: 0 | AB131: 1 | AC131: =AB131+COUNTIF(AB$100:AB131,AB131)-1 -> 31 | AD131: 0 | AE131: 0 | AF131: Please specify
A132: (13) | B132: Please specify | K132: OtherExpenditureAmount13 | L132: =ROW() -> 132 | O132: 0 | P132: 0 | Q132: 0 | R132: 0 | S132: 1 | T132: =S132+COUNTIF(S$100:S132,S132)-1 -> 32 | U132: 0 | V132: 0 | X132: 0 | Y132: 0 | Z132: 0 | AA132: 0 | AB132: 1 | AC132: =AB132+COUNTIF(AB$100:AB132,AB132)-1 -> 32 | AD132: 0 | AE132: 0 | AF132: Please specify
A133: (14) | B133: Please specify | K133: OtherExpenditureAmount14 | L133: =ROW() -> 133 | O133: 0 | P133: 0 | Q133: 0 | R133: 0 | S133: 1 | T133: =S133+COUNTIF(S$100:S133,S133)-1 -> 33 | U133: 0 | V133: 0 | X133: 0 | Y133: 0 | Z133: 0 | AA133: 0 | AB133: 1 | AC133: =AB133+COUNTIF(AB$100:AB133,AB133)-1 -> 33 | AD133: 0 | AE133: 0 | AF133: Please specify
A134: (15) | B134: Please specify | K134: OtherExpenditureAmount15 | L134: =ROW() -> 134 | O134: 0 | P134: 0 | Q134: 0 | R134: 0 | S134: 1 | T134: =S134+COUNTIF(S$100:S134,S134)-1 -> 34 | U134: 0 | V134: 0 | X134: 0 | Y134: 0 | Z134: 0 | AA134: 0 | AB134: 1 | AC134: =AB134+COUNTIF(AB$100:AB134,AB134)-1 -> 34 | AD134: 0 | AE134: 0 | AF134: Please specify
D135: =SUM(D100:D134) -> 0 | F135: =SUM(F100:F134) -> 0 | H135: =SUM(H100:H134) -> 0 | O135: =SUM(O100:O134) -> 0 | P135: =SUM(P100:P134) -> 0 | Q135: =SUM(Q100:Q134) -> 0 | U135: =ROUND(O135,0)-P135 -> 0 | V135: =SUM(V100:V134) -> 0 | X135: =SUM(X100:X134) -> 0 | Y135: =SUM(Y100:Y134) -> 0 | Z135: =SUM(Z100:Z134) -> 0 | AD135: =ROUND(X135,0)-Y135 -> 0 | AE135: =SUM(AE100:AE134) -> 0
H145: (to be continued)
A146: - 14 -
A148: Statement 6
H150: (Page 4 of 5)
A151: =A91 -> Name of School : ________________________________________________________________________
A152: =A92 -> 
A154: NOTES TO THE ACCOUNTS
A156: 4. RELATED PARTY TRANSACTION(S)
F157: Current Year | H157: Previous Year
F158: $ | H158: $
A159: Amount due from related party(ies)
A160: (1) | B160: Please specify | O160: =F160 -> 0 | P160: =INT(O160) -> 0 | Q160: =ROUND(O160,2)-P160 -> 0 | R160: =Q160*P$11+P160 -> 0 | S160: =RANK(R160,R$160:R$169) -> 1 | T160: =S160+COUNTIF(S$160:S160,S160)-1 -> 1 | U160: =IF(T160<=U$170,1,0) -> 0 | V160: =U160+P160 -> 0
A161: (2) | B161: Please specify | O161: =F161 -> 0 | P161: 0 | Q161: 0 | R161: 0 | S161: =RANK(R161,R$160:R$169) -> 1 | T161: =S161+COUNTIF(S$160:S161,S161)-1 -> 2 | U161: =IF(T161<=U$170,1,0) -> 0 | V161: 0
A162: (3) | B162: Please specify | O162: 0 | P162: 0 | Q162: 0 | R162: 0 | S162: 1 | T162: =S162+COUNTIF(S$160:S162,S162)-1 -> 3 | U162: 0 | V162: 0
A163: (4) | B163: Please specify | O163: 0 | P163: 0 | Q163: 0 | R163: 0 | S163: 1 | T163: =S163+COUNTIF(S$160:S163,S163)-1 -> 4 | U163: 0 | V163: 0
A164: (5) | B164: Please specify | O164: 0 | P164: 0 | Q164: 0 | R164: 0 | S164: 1 | T164: =S164+COUNTIF(S$160:S164,S164)-1 -> 5 | U164: 0 | V164: 0
A165: (6) | B165: Please specify | O165: 0 | P165: 0 | Q165: 0 | R165: 0 | S165: 1 | T165: =S165+COUNTIF(S$160:S165,S165)-1 -> 6 | U165: 0 | V165: 0
A166: (7) | B166: Please specify | O166: 0 | P166: 0 | Q166: 0 | R166: 0 | S166: 1 | T166: =S166+COUNTIF(S$160:S166,S166)-1 -> 7 | U166: 0 | V166: 0
A167: (8) | B167: Please specify | O167: 0 | P167: 0 | Q167: 0 | R167: 0 | S167: 1 | T167: =S167+COUNTIF(S$160:S167,S167)-1 -> 8 | U167: 0 | V167: 0
A168: (9) | B168: Please specify | O168: 0 | P168: 0 | Q168: 0 | R168: 0 | S168: 1 | T168: =S168+COUNTIF(S$160:S168,S168)-1 -> 9 | U168: 0 | V168: 0
A169: (10) | B169: Please specify | O169: 0 | P169: 0 | Q169: 0 | R169: 0 | S169: 1 | T169: =S169+COUNTIF(S$160:S169,S169)-1 -> 10 | U169: 0 | V169: 0
A170: Amount due to related party(ies) | K170: Comme_RelatePartyTransactionFromKG | O170: =SUM(O160:O169) -> 0 | P170: =SUM(P160:P169) -> 0 | Q170: =SUM(Q160:Q169) -> 0 | U170: =ROUND(O170,0)-P170 -> 0 | V170: =SUM(V160:V169) -> 0
A171: (1) | B171: Please specify | O171: =F171 -> 0 | P171: =INT(O171) -> 0 | Q171: =ROUND(O171,2)-P171 -> 0 | R171: =Q171*P$11+P171 -> 0 | S171: =RANK(R171,R$171:R$180) -> 1 | T171: =S171+COUNTIF(S$171:S171,S171)-1 -> 1 | U171: =IF(T171<=U$181,1,0) -> 0 | V171: =U171+P171 -> 0
A172: (2) | B172: Please specify | O172: =F172 -> 0 | P172: 0 | Q172: 0 | R172: 0 | S172: =RANK(R172,R$171:R$180) -> 1 | T172: =S172+COUNTIF(S$171:S172,S172)-1 -> 2 | U172: =IF(T172<=U$181,1,0) -> 0 | V172: 0
A173: (3) | B173: Please specify | O173: 0 | P173: 0 | Q173: 0 | R173: 0 | S173: 1 | T173: =S173+COUNTIF(S$171:S173,S173)-1 -> 3 | U173: 0 | V173: 0
A174: (4) | B174: Please specify | O174: 0 | P174: 0 | Q174: 0 | R174: 0 | S174: 1 | T174: =S174+COUNTIF(S$171:S174,S174)-1 -> 4 | U174: 0 | V174: 0
A175: (5) | B175: Please specify | O175: 0 | P175: 0 | Q175: 0 | R175: 0 | S175: 1 | T175: =S175+COUNTIF(S$171:S175,S175)-1 -> 5 | U175: 0 | V175: 0
A176: (6) | B176: Please specify | O176: 0 | P176: 0 | Q176: 0 | R176: 0 | S176: 1 | T176: =S176+COUNTIF(S$171:S176,S176)-1 -> 6 | U176: 0 | V176: 0
A177: (7) | B177: Please specify | O177: 0 | P177: 0 | Q177: 0 | R177: 0 | S177: 1 | T177: =S177+COUNTIF(S$171:S177,S177)-1 -> 7 | U177: 0 | V177: 0
A178: (8) | B178: Please specify | O178: 0 | P178: 0 | Q178: 0 | R178: 0 | S178: 1 | T178: =S178+COUNTIF(S$171:S178,S178)-1 -> 8 | U178: 0 | V178: 0
A179: (9) | B179: Please specify | O179: 0 | P179: 0 | Q179: 0 | R179: 0 | S179: 1 | T179: =S179+COUNTIF(S$171:S179,S179)-1 -> 9 | U179: 0 | V179: 0
A180: (10) | B180: Please specify | O180: 0 | P180: 0 | Q180: 0 | R180: 0 | S180: 1 | T180: =S180+COUNTIF(S$171:S180,S180)-1 -> 10 | U180: 0 | V180: 0
A181: Payment to related party(ies) | K181: Comme_RelatePartyTransaction | O181: =SUM(O171:O180) -> 0 | P181: =SUM(P171:P180) -> 0 | Q181: =SUM(Q171:Q180) -> 0 | U181: =ROUND(O181,0)-P181 -> 0 | V181: =SUM(V171:V180) -> 0
A182: (1) | B182: Please specify | O182: =F182 -> 0 | P182: =INT(O182) -> 0 | Q182: =ROUND(O182,2)-P182 -> 0 | R182: =Q182*P$11+P182 -> 0 | S182: =RANK(R182,R$182:R$191) -> 1 | T182: =S182+COUNTIF(S$182:S182,S182)-1 -> 1 | U182: =IF(T182<=U$192,1,0) -> 0 | V182: =U182+P182 -> 0
A183: (2) | B183: Please specify | O183: =F183 -> 0 | P183: 0 | Q183: 0 | R183: 0 | S183: =RANK(R183,R$182:R$191) -> 1 | T183: =S183+COUNTIF(S$182:S183,S183)-1 -> 2 | U183: =IF(T183<=U$192,1,0) -> 0 | V183: 0
A184: (3) | B184: Please specify | O184: 0 | P184: 0 | Q184: 0 | R184: 0 | S184: 1 | T184: =S184+COUNTIF(S$182:S184,S184)-1 -> 3 | U184: 0 | V184: 0
A185: (4) | B185: Please specify | O185: 0 | P185: 0 | Q185: 0 | R185: 0 | S185: 1 | T185: =S185+COUNTIF(S$182:S185,S185)-1 -> 4 | U185: 0 | V185: 0
A186: (5) | B186: Please specify | O186: 0 | P186: 0 | Q186: 0 | R186: 0 | S186: 1 | T186: =S186+COUNTIF(S$182:S186,S186)-1 -> 5 | U186: 0 | V186: 0
A187: (6) | B187: Please specify | O187: 0 | P187: 0 | Q187: 0 | R187: 0 | S187: 1 | T187: =S187+COUNTIF(S$182:S187,S187)-1 -> 6 | U187: 0 | V187: 0
A188: (7) | B188: Please specify | O188: 0 | P188: 0 | Q188: 0 | R188: 0 | S188: 1 | T188: =S188+COUNTIF(S$182:S188,S188)-1 -> 7 | U188: 0 | V188: 0
A189: (8) | B189: Please specify | O189: 0 | P189: 0 | Q189: 0 | R189: 0 | S189: 1 | T189: =S189+COUNTIF(S$182:S189,S189)-1 -> 8 | U189: 0 | V189: 0
A190: (9) | B190: Please specify | O190: 0 | P190: 0 | Q190: 0 | R190: 0 | S190: 1 | T190: =S190+COUNTIF(S$182:S190,S190)-1 -> 9 | U190: 0 | V190: 0
A191: (10) | B191: Please specify | O191: 0 | P191: 0 | Q191: 0 | R191: 0 | S191: 1 | T191: =S191+COUNTIF(S$182:S191,S191)-1 -> 10 | U191: 0 | V191: 0
A192: Receipt from related party(ies) | O192: =SUM(O182:O191) -> 0 | P192: =SUM(P182:P191) -> 0 | Q192: =SUM(Q182:Q191) -> 0 | U192: =ROUND(O192,0)-P192 -> 0 | V192: =SUM(V182:V191) -> 0
A193: (1) | B193: Please specify | O193: =F193 -> 0 | P193: =INT(O193) -> 0 | Q193: =ROUND(O193,2)-P193 -> 0 | R193: =Q193*P$11+P193 -> 0 | S193: =RANK(R193,R$193:R$202) -> 1 | T193: =S193+COUNTIF(S$193:S193,S193)-1 -> 1 | U193: =IF(T193<=U$218,1,0) -> 0 | V193: =U193+P193 -> 0
A194: (2) | B194: Please specify | O194: =F194 -> 0 | P194: 0 | Q194: 0 | R194: 0 | S194: =RANK(R194,R$193:R$202) -> 1 | T194: =S194+COUNTIF(S$193:S194,S194)-1 -> 2 | U194: 0 | V194: 0
A195: (3) | B195: Please specify | O195: 0 | P195: 0 | Q195: 0 | R195: 0 | S195: 1 | T195: =S195+COUNTIF(S$193:S195,S195)-1 -> 3 | U195: 0 | V195: 0
A196: (4) | B196: Please specify | O196: 0 | P196: 0 | Q196: 0 | R196: 0 | S196: 1 | T196: =S196+COUNTIF(S$193:S196,S196)-1 -> 4 | U196: 0 | V196: 0
A197: (5) | B197: Please specify | O197: 0 | P197: 0 | Q197: 0 | R197: 0 | S197: 1 | T197: =S197+COUNTIF(S$193:S197,S197)-1 -> 5 | U197: 0 | V197: 0
A198: (6) | B198: Please specify | O198: 0 | P198: 0 | Q198: 0 | R198: 0 | S198: 1 | T198: =S198+COUNTIF(S$193:S198,S198)-1 -> 6 | U198: 0 | V198: 0
A199: (7) | B199: Please specify | O199: 0 | P199: 0 | Q199: 0 | R199: 0 | S199: 1 | T199: =S199+COUNTIF(S$193:S199,S199)-1 -> 7 | U199: 0 | V199: 0
A200: (8) | B200: Please specify | O200: 0 | P200: 0 | Q200: 0 | R200: 0 | S200: 1 | T200: =S200+COUNTIF(S$193:S200,S200)-1 -> 8 | U200: 0 | V200: 0
A201: (9) | B201: Please specify | O201: 0 | P201: 0 | Q201: 0 | R201: 0 | S201: 1 | T201: =S201+COUNTIF(S$193:S201,S201)-1 -> 9 | U201: 0 | V201: 0
A202: (10) | B202: Please specify | O202: 0 | P202: 0 | Q202: 0 | R202: 0 | S202: 1 | T202: =S202+COUNTIF(S$193:S202,S202)-1 -> 10 | U202: 0 | V202: 0
H218: (to be continued) | O218: =SUM(O193:O217) -> 0 | P218: =SUM(P193:P217) -> 0 | Q218: =SUM(Q193:Q217) -> 0 | U218: =ROUND(O218,0)-P218 -> 0 | V218: =SUM(V193:V217) -> 0
A219: - 15 -
A221: Statement 6
H223: (Page 5 of 5)
A224: =A4 -> Name of School : ________________________________________________________________________
A225: =A5 -> 
A227: NOTES TO THE ACCOUNTS
A229: 5. OTHER INCOME (Remark 3)
D231: Current Year | H231: Previous Year
D232: $ | H232: $
D233: Local Curriculum Classes | F233: Non-Local Curriculum Classes | H233: Total
A234: Meal Charges | K234: MealCharges | L234: =ROW() -> 234 | O234: =D234 -> 0 | P234: =INT(O234) -> 0 | Q234: =ROUND(O234,2)-P234 -> 0 | R234: =Q234*P$11+P234 -> 0 | S234: =RANK(R234,R$234:R$256) -> 1 | T234: =S234+COUNTIF(S$234:S234,S234)-1 -> 1 | U234: =IF(T234<=U$257,1,0) -> 0 | V234: =U234+P234 -> 0 | X234: =F234 -> 0 | Y234: =INT(X234) -> 0 | Z234: =ROUND(X234,2)-Y234 -> 0 | AA234: =Z234*Y$11+Y234 -> 0 | AB234: =RANK(AA234,AA$234:AA$256) -> 1 | AC234: =AB234+COUNTIF(AB$234:AB234,AB234)-1 -> 1 | AD234: =IF(AC234<=AD$257,1,0) -> 0 | AE234: =AD234+Y234 -> 0
A235: Application Fee / Registration Fee | K235: AppFeeRegFee | L235: =ROW() -> 235 | O235: 0 | P235: 0 | Q235: 0 | R235: 0 | S235: =RANK(R235,R$234:R$256) -> 1 | T235: =S235+COUNTIF(S$234:S235,S235)-1 -> 2 | U235: =IF(T235<=U$257,1,0) -> 0 | V235: 0 | X235: =F235 -> 0 | Y235: 0 | Z235: 0 | AA235: 0 | AB235: =RANK(AA235,AA$234:AA$256) -> 1 | AC235: =AB235+COUNTIF(AB$234:AB235,AB235)-1 -> 2 | AD235: =IF(AC235<=AD$257,1,0) -> 0 | AE235: 0
A236: Subsidies from School Sponsoring Body | K236: SubsidiesFromSchSponsorBody | L236: =ROW() -> 236 | O236: 0 | P236: 0 | Q236: 0 | R236: 0 | S236: 1 | T236: =S236+COUNTIF(S$234:S236,S236)-1 -> 3 | U236: 0 | V236: 0 | X236: 0 | Y236: 0 | Z236: 0 | AA236: 0 | AB236: 1 | AC236: =AB236+COUNTIF(AB$234:AB236,AB236)-1 -> 3 | AD236: 0 | AE236: 0
A237: Course Fee Refund to Teachers | K237: CourseFeeRefundToTeachers | L237: =ROW() -> 237 | O237: 0 | P237: 0 | Q237: 0 | R237: 0 | S237: 1 | T237: =S237+COUNTIF(S$234:S237,S237)-1 -> 4 | U237: 0 | V237: 0 | X237: 0 | Y237: 0 | Z237: 0 | AA237: 0 | AB237: 1 | AC237: =AB237+COUNTIF(AB$234:AB237,AB237)-1 -> 4 | AD237: 0 | AE237: 0
A238: Receipt from Designated Grants (e.g. Subsidy from the Environment and Conservation Fund) | K238: DesignatedGrants | L238: =ROW() -> 238 | O238: 0 | P238: 0 | Q238: 0 | R238: 0 | S238: 1 | T238: =S238+COUNTIF(S$234:S238,S238)-1 -> 5 | U238: 0 | V238: 0 | X238: 0 | Y238: 0 | Z238: 0 | AA238: 0 | AB238: 1 | AC238: =AB238+COUNTIF(AB$234:AB238,AB238)-1 -> 5 | AD238: 0 | AE238: 0
A239: Bank Interest Income | K239: BankInterestIncome | L239: =ROW() -> 239 | O239: 0 | P239: 0 | Q239: 0 | R239: 0 | S239: 1 | T239: =S239+COUNTIF(S$234:S239,S239)-1 -> 6 | U239: 0 | V239: 0 | X239: 0 | Y239: 0 | Z239: 0 | AA239: 0 | AB239: 1 | AC239: =AB239+COUNTIF(AB$234:AB239,AB239)-1 -> 6 | AD239: 0 | AE239: 0 | AF239: =COLUMN() -> 32
A240: Insurance Compensation | K240: InsuranceCompensation | L240: =ROW() -> 240 | O240: 0 | P240: 0 | Q240: 0 | R240: 0 | S240: 1 | T240: =S240+COUNTIF(S$234:S240,S240)-1 -> 7 | U240: 0 | V240: 0 | X240: 0 | Y240: 0 | Z240: 0 | AA240: 0 | AB240: 1 | AC240: =AB240+COUNTIF(AB$234:AB240,AB240)-1 -> 7 | AD240: 0 | AE240: 0
A241: Others
A242: (1) | B242: Please specify | K242: OtherIncomeAmount1 | L242: =ROW() -> 242 | O242: 0 | P242: 0 | Q242: 0 | R242: 0 | S242: 1 | T242: =S242+COUNTIF(S$234:S242,S242)-1 -> 8 | U242: 0 | V242: 0 | X242: 0 | Y242: 0 | Z242: 0 | AA242: 0 | AB242: 1 | AC242: =AB242+COUNTIF(AB$234:AB242,AB242)-1 -> 8 | AD242: 0 | AE242: 0 | AF242: =IF(OR(ISBLANK(B242),B242=""),A242,B242) -> Please specify
... 33 more rows

Sheet ---
